Workbook

Sheet Octopus_10perc_no_rRNA
A1: Gene_id | B1: Contig | C1: Start | D1: End | E1: Strand | F1: Length | G1: transcript_id | H1: Raw_counts | I1: Reads_base | J1: TPM
A2: OCT-B-Thermocrinis-r01_03294 | B2: Ga0081478_143799 | C2: 576 | D2: 917 | E2: - | F2: 342 | G2: transfer-messenger RNA, SsrA | H2: 142586 | I2: =H2/F2 -> 416.92 | J2: =1000000*(I2/L$3) -> 17918.60
A3: OCT-B-Thermocrinis-r01_02425 | B3: Ga0081478_137345 | C3: 2474 | D3: 2737 | E3: + | F3: 264 | G3: Fe/S biogenesis protein NfuA | H3: 54138 | I3: =H3/F3 -> 205.07 | J3: =1000000*(I3/L$3) -> 8813.56 | L3: =SUM(I2:I40145) -> 23267.34
A4: OCT-B-Thermocrinis-r01_01038 | B4: Ga0081478_135997 | C4: 887 | D4: 1066 | E4: + | F4: 180 | G4: hypothetical protein | H4: 34863 | I4: =H4/F4 -> 193.68 | J4: =1000000*(I4/L$3) -> 8324.26
A5: OCT-B-Thermocrinis-r01_04232 | B5: Ga0081478_165733 | C5: 12845 | D5: 13330 | E5: - | F5: 486 | G5: hypothetical protein | H5: 85954 | I5: =H5/F5 -> 176.86 | J5: =1000000*(I5/L$3) -> 7601.22
A6: OCT-B-Thermocrinis-r01_00965 | B6: Ga0081478_146132 | C6: 1818 | D6: 2144 | E6: + | F6: 327 | G6: fuse_rel_SoxYZ: quinoprotein dehydrogenase-associated SoxYZ-like carrier | H6: 55118 | I6: =H6/F6 -> 168.56 | J6: =1000000*(I6/L$3) -> 7244.34
A7: OCT-B-Thermocrinis-r01_01037 | B7: Ga0081478_135997 | C7: 379 | D7: 813 | E7: + | F7: 435 | G7: Rubrerythrin-1 | H7: 69990 | I7: =H7/F7 -> 160.90 | J7: =1000000*(I7/L$3) -> 6915.12
A8: OCT-B-Pyrobaculum-r01_00981 | B8: Ga0081478_145669 | C8: 1776 | D8: 1982 | E8: + | F8: 207 | G8: hypothetical protein | H8: 28542 | I8: =H8/F8 -> 137.88 | J8: =1000000*(I8/L$3) -> 5926.08
A9: OCT-B-Pyrobaculum-r01_00334 | B9: Ga0081478_138090 | C9: 9013 | D9: 9672 | E9: + | F9: 660 | G9: DNA_bind_WhiA: DNA-binding protein WhiA | H9: 88344 | I9: =H9/F9 -> 133.85 | J9: =1000000*(I9/L$3) -> 5752.89
A10: OCT-B-Thermocrinis-r01_00964 | B10: Ga0081478_146132 | C10: 1332 | D10: 1775 | E10: + | F10: 444 | G10: SoxY_true_GGCGG: thiosulfate oxidation carrier protein SoxY | H10: 58940 | I10: =H10/F10 -> 132.75 | J10: =1000000*(I10/L$3) -> 5705.33
A11: OCT-B-Pyrobaculum-r01_04292 | B11: Ga0081478_142596 | C11: 6723 | D11: 6908 | E11: - | F11: 186 | G11: hypothetical protein | H11: 22602 | I11: =H11/F11 -> 121.52 | J11: =1000000*(I11/L$3) -> 5222.60
A12: OCT-B-Pyrobaculum-r01_00336 | B12: Ga0081478_138090 | C12: 12057 | D12: 12626 | E12: + | F12: 570 | G12: Homing endonuclease I-ApeI | H12: 68597 | I12: =H12/F12 -> 120.35 | J12: =1000000*(I12/L$3) -> 5172.30
A13: OCT-B-Caldipriscus-r01_00382 | B13: Ga0081478_149742 | C13: 183 | D13: 547 | E13: + | F13: 365 | G13: transfer-messenger RNA, SsrA | H13: 43343 | I13: =H13/F13 -> 118.75 | J13: =1000000*(I13/L$3) -> 5103.63
A14: OCT-B-Thermocrinis-r01_02733 | B14: Ga0081478_132240 | C14: 474 | D14: 1190 | E14: - | F14: 717 | G14: Arsenite oxidase subunit AioB | H14: 82120 | I14: =H14/F14 -> 114.53 | J14: =1000000*(I14/L$3) -> 4922.47
A15: OCT-B-Thermocrinis-r01_01795 | B15: Ga0081478_143568 | C15: 484 | D15: 984 | E15: - | F15: 501 | G15: Arsenite oxidase subunit AioB | H15: 57279 | I15: =H15/F15 -> 114.33 | J15: =1000000*(I15/L$3) -> 4913.73
A16: OCT-B-Thermocrinis-r01_03273 | B16: Ga0081478_139795 | C16: 10572 | D16: 10907 | E16: - | F16: 336 | G16: Uncharacterized conserved protein [Function unknown] | H16: 38166 | I16: =H16/F16 -> 113.59 | J16: =1000000*(I16/L$3) -> 4881.92
A17: OCT-B-Thermocrinis-r01_02426 | B17: Ga0081478_137345 | C17: 2746 | D17: 3003 | E17: + | F17: 258 | G17: hypothetical protein | H17: 28165 | I17: =H17/F17 -> 109.17 | J17: =1000000*(I17/L$3) -> 4691.84
A18: OCT-B-Thermocrinis-r01_02734 | B18: Ga0081478_132240 | C18: 1245 | D18: 2561 | E18: - | F18: 1317 | G18: Nterm_to_SelD: pyridine nucleotide-disulfide oxidoreductase family protein | H18: 143570 | I18: =H18/F18 -> 109.01 | J18: =1000000*(I18/L$3) -> 4685.23
A19: OCT-B-Thermocrinis-r01_03856 | B19: Ga0081478_129772 | C19: 3394 | D19: 3690 | E19: - | F19: 297 | G19: Cytochrome c-552 | H19: 31919 | I19: =H19/F19 -> 107.47 | J19: =1000000*(I19/L$3) -> 4618.98
A20: OCT-B-Pyrobaculum-r01_03671 | B20: Ga0081478_139761 | C20: 716 | D20: 1075 | E20: - | F20: 360 | G20: hypothetical protein | H20: 38089 | I20: =H20/F20 -> 105.80 | J20: =1000000*(I20/L$3) -> 4547.27
A21: OCT-B-Pyrobaculum-r01_00419 | B21: Ga0081478_166676 | C21: 1440 | D21: 2069 | E21: + | F21: 630 | G21: soxL2: Rieske iron-sulfur protein SoxL2 | H21: 66019 | I21: =H21/F21 -> 104.79 | J21: =1000000*(I21/L$3) -> 4503.83
A22: OCT-B-Pyrobaculum-r01_00333 | B22: Ga0081478_138090 | C22: 7952 | D22: 8581 | E22: + | F22: 630 | G22: Homing endonuclease I-ApeI | H22: 64776 | I22: =H22/F22 -> 102.82 | J22: =1000000*(I22/L$3) -> 4419.03
A23: OCT-B-Pyrobaculum-r01_00983 | B23: Ga0081478_145669 | C23: 5024 | D23: 5716 | E23: + | F23: 693 | G23: hypothetical protein | H23: 71114 | I23: =H23/F23 -> 102.62 | J23: =1000000*(I23/L$3) -> 4410.37
A24: OCT-B-Pyrobaculum-r01_04291 | B24: Ga0081478_142596 | C24: 6213 | D24: 6395 | E24: - | F24: 183 | G24: hypothetical protein | H24: 18739 | I24: =H24/F24 -> 102.40 | J24: =1000000*(I24/L$3) -> 4400.97
A25: OCT-B-Pyrobaculum-r01_00982 | B25: Ga0081478_145669 | C25: 4578 | D25: 5018 | E25: + | F25: 441 | G25: hypothetical protein | H25: 41761 | I25: =H25/F25 -> 94.70 | J25: =1000000*(I25/L$3) -> 4069.92
A26: OCT-B-Caldarchaeales-r01_01387 | B26: Ga0081478_143253 | C26: 1 | D26: 1807 | E26: - | F26: 1807 | G26: 23S ribosomal RNA (partial) | H26: 170039 | I26: =H26/F26 -> 94.10 | J26: =1000000*(I26/L$3) -> 4044.30
A27: OCT-B-Pyrobaculum-r01_03672 | B27: Ga0081478_139761 | C27: 1118 | D27: 1576 | E27: - | F27: 459 | G27: hypothetical protein | H27: 42912 | I27: =H27/F27 -> 93.49 | J27: =1000000*(I27/L$3) -> 4018.09
A28: OCT-B-Thermocrinis-r01_00966 | B28: Ga0081478_146132 | C28: 2158 | D28: 2991 | E28: + | F28: 834 | G28: L-cysteine S-thiosulfotransferase subunit SoxA | H28: 77538 | I28: =H28/F28 -> 92.97 | J28: =1000000*(I28/L$3) -> 3995.78
A29: OCT-B-Thermocrinis-r01_02301 | B29: Ga0081478_166004 | C29: 1709 | D29: 2137 | E29: + | F29: 429 | G29: typeII_sec_gspG: type II secretion system protein G | H29: 39273 | I29: =H29/F29 -> 91.55 | J29: =1000000*(I29/L$3) -> 3934.50
A30: OCT-B-Thermocrinis-r01_00437 | B30: Ga0081478_130898 | C30: 8956 | D30: 9300 | E30: + | F30: 345 | G30: Protein aq_1857 | H30: 30416 | I30: =H30/F30 -> 88.16 | J30: =1000000*(I30/L$3) -> 3789.10
A31: OCT-B-Thermocrinis-r01_03274 | B31: Ga0081478_139795 | C31: 10923 | D31: 11264 | E31: - | F31: 342 | G31: Uncharacterized conserved protein [Function unknown] | H31: 29476 | I31: =H31/F31 -> 86.19 | J31: =1000000*(I31/L$3) -> 3704.21
A32: OCT-B-Thermocrinis-r01_00967 | B32: Ga0081478_146132 | C32: 2995 | D32: 3669 | E32: + | F32: 675 | G32: thiosulf_SoxX: sulfur oxidation c-type cytochrome SoxX | H32: 54812 | I32: =H32/F32 -> 81.20 | J32: =1000000*(I32/L$3) -> 3490.00
A33: OCT-B-Pyrobaculum-r01_00930 | B33: Ga0081478_150529 | C33: 17850 | D33: 18410 | E33: - | F33: 561 | G33: Cytochrome C oxidase, mono-heme subunit/FixO | H33: 44832 | I33: =H33/F33 -> 79.91 | J33: =1000000*(I33/L$3) -> 3434.62
A34: OCT-B-Pyrobaculum-r01_00420 | B34: Ga0081478_166676 | C34: 2072 | D34: 5146 | E34: + | F34: 3075 | G34: arsenite_ox_L: arsenite oxidase, large subunit | H34: 233022 | I34: =H34/F34 -> 75.78 | J34: =1000000*(I34/L$3) -> 3256.90
A35: OCT-B-Thermocrinis-r01_04557 | B35: Ga0081478_150862 | C35: 5132 | D35: 6496 | E35: + | F35: 1365 | G35: CoB_CoM_SS_B: CoB--CoM heterodisulfide reductase, subunit B | H35: 97362 | I35: =H35/F35 -> 71.33 | J35: =1000000*(I35/L$3) -> 3065.56
A36: OCT-B-Caldipriscus-r01_01489 | B36: Ga0081478_130709 | C36: 2176 | D36: 5180 | E36: - | F36: 3005 | G36: 23S ribosomal RNA | H36: 197730 | I36: =H36/F36 -> 65.80 | J36: =1000000*(I36/L$3) -> 2828.01
A37: OCT-B-Thermocrinis-r01_04553 | B37: Ga0081478_150862 | C37: 3028 | D37: 3264 | E37: + | F37: 237 | G37: Sulfur carrier protein TusA | H37: 15361 | I37: =H37/F37 -> 64.81 | J37: =1000000*(I37/L$3) -> 2785.64
A38: OCT-B-Thermocrinis-r01_04554 | B38: Ga0081478_150862 | C38: 3277 | D38: 3807 | E38: + | F38: 531 | G38: Sulfur carrier protein DsrE2 | H38: 34356 | I38: =H38/F38 -> 64.70 | J38: =1000000*(I38/L$3) -> 2780.75
A39: OCT-B-Pyrobaculum-r01_03868 | B39: Ga0081478_140240 | C39: 12856 | D39: 14700 | E39: - | F39: 1845 | G39: Tungsten-containing aldehyde ferredoxin oxidoreductase | H39: 118235 | I39: =H39/F39 -> 64.08 | J39: =1000000*(I39/L$3) -> 2754.25
A40: OCT-B-Pyrobaculum-r01_00929 | B40: Ga0081478_150529 | C40: 17254 | D40: 17847 | E40: - | F40: 594 | G40: soxL2: Rieske iron-sulfur protein SoxL2 | H40: 37996 | I40: =H40/F40 -> 63.97 | J40: =1000000*(I40/L$3) -> 2749.19
A41: OCT-B-Thermocrinis-r01_01199 | B41: Ga0081478_139425 | C41: 7635 | D41: 8999 | E41: - | F41: 1365 | G41: CoB_CoM_SS_B: CoB--CoM heterodisulfide reductase, subunit B | H41: 83520 | I41: =H41/F41 -> 61.19 | J41: =1000000*(I41/L$3) -> 2629.73
A42: OCT-B-Thermocrinis-r01_04556 | B42: Ga0081478_150862 | C42: 4355 | D42: 5083 | E42: + | F42: 729 | G42: glycerol3P_GlpC: glycerol-3-phosphate dehydrogenase, anaerobic, C subunit | H42: 42490 | I42: =H42/F42 -> 58.29 | J42: =1000000*(I42/L$3) -> 2505.03
A43: OCT-B-Pyrobaculum-r01_00979 | B43: Ga0081478_145487 | C43: 275 | D43: 493 | E43: + | F43: 219 | G43: hypothetical protein | H43: 12639 | I43: =H43/F43 -> 57.71 | J43: =1000000*(I43/L$3) -> 2480.40
A44: OCT-B-Thermocrinis-r01_01332 | B44: Ga0081478_140434 | C44: 16128 | D44: 16631 | E44: - | F44: 504 | G44: hypothetical protein | H44: 28602 | I44: =H44/F44 -> 56.75 | J44: =1000000*(I44/L$3) -> 2439.04
A45: OCT-B-Pyrobaculum-r01_01250 | B45: Ga0081478_132609 | C45: 5646 | D45: 7307 | E45: - | F45: 1662 | G45: Thermosome subunit alpha | H45: 91427 | I45: =H45/F45 -> 55.01 | J45: =1000000*(I45/L$3) -> 2364.27
A46: OCT-B-Pyrobaculum-r01_04293 | B46: Ga0081478_142596 | C46: 7075 | D46: 7305 | E46: - | F46: 231 | G46: hypothetical protein | H46: 12444 | I46: =H46/F46 -> 53.87 | J46: =1000000*(I46/L$3) -> 2315.27
A47: OCT-B-Pyrobaculum-r01_03023 | B47: Ga0081478_143583 | C47: 67 | D47: 2655 | E47: + | F47: 2589 | G47: hypothetical protein | H47: 135886 | I47: =H47/F47 -> 52.49 | J47: =1000000*(I47/L$3) -> 2255.78
A48: OCT-B-Pyrobaculum-r01_01949 | B48: Ga0081478_139038 | C48: 14242 | D48: 14679 | E48: + | F48: 438 | G48: FlaF Putative archaeal flagellar protein F [Cell motility and secretion] | H48: 22545 | I48: =H48/F48 -> 51.47 | J48: =1000000*(I48/L$3) -> 2212.23
A49: OCT-B-Thermocrinis-r01_01136 | B49: Ga0081478_145299 | C49: 1344 | D49: 2522 | E49: - | F49: 1179 | G49: OprP Phosphate-selective porin [Inorganic ion transport and metabolism] | H49: 60485 | I49: =H49/F49 -> 51.30 | J49: =1000000*(I49/L$3) -> 2204.89
A50: OCT-B-Pyrobaculum-r01_03673 | B50: Ga0081478_139761 | C50: 2342 | D50: 2689 | E50: - | F50: 348 | G50: hypothetical protein | H50: 17684 | I50: =H50/F50 -> 50.82 | J50: =1000000*(I50/L$3) -> 2184.01
A51: OCT-B-Thermocrinis-r01_03272 | B51: Ga0081478_139795 | C51: 10137 | D51: 10526 | E51: - | F51: 390 | G51: Putative sterol carrier protein [Lipid metabolism] | H51: 19658 | I51: =H51/F51 -> 50.41 | J51: =1000000*(I51/L$3) -> 2166.35
A52: OCT-B-Caldarchaeales-r01_01391 | B52: Ga0081478_143253 | C52: 4658 | D52: 4744 | E52: + | F52: 87 | G52: Bacteria_small_SRP | H52: 4366 | I52: =H52/F52 -> 50.18 | J52: =1000000*(I52/L$3) -> 2156.84
A53: OCT-B-Thermocrinis-r01_04555 | B53: Ga0081478_150862 | C53: 3819 | D53: 4235 | E53: + | F53: 417 | G53: sulf_tusC_dsrF: sulfur relay protein TusC/DsrF | H53: 20627 | I53: =H53/F53 -> 49.47 | J53: =1000000*(I53/L$3) -> 2125.95
A54: OCT-B-Caldarchaeales-r01_00339 | B54: Ga0081478_139480 | C54: 2559 | D54: 2843 | E54: + | F54: 285 | G54: RNaseP_arch | H54: 12864 | I54: =H54/F54 -> 45.14 | J54: =1000000*(I54/L$3) -> 1939.92
A55: OCT-B-Pyrobaculum-r01_00980 | B55: Ga0081478_145487 | C55: 921 | D55: 1775 | E55: - | F55: 855 | G55: hypothetical protein | H55: 37871 | I55: =H55/F55 -> 44.29 | J55: =1000000*(I55/L$3) -> 1903.68
A56: OCT-B-Pyrobaculum-r01_03022 | B56: Ga0081478_150483 | C56: 165 | D56: 425 | E56: + | F56: 261 | G56: hypothetical protein | H56: 11443 | I56: =H56/F56 -> 43.84 | J56: =1000000*(I56/L$3) -> 1884.31
A57: OCT-B-Pyrobaculum-r01_03969 | B57: Ga0081478_128885 | C57: 11076 | D57: 11516 | E57: - | F57: 441 | G57: hypothetical protein | H57: 19312 | I57: =H57/F57 -> 43.79 | J57: =1000000*(I57/L$3) -> 1882.10
A58: OCT-B-Pyrobaculum-r01_04322 | B58: Ga0081478_146267 | C58: 797 | D58: 1051 | E58: - | F58: 255 | G58: hypothetical protein | H58: 11056 | I58: =H58/F58 -> 43.36 | J58: =1000000*(I58/L$3) -> 1863.42
A59: OCT-B-Thermocrinis-r01_02862 | B59: Ga0081478_128845 | C59: 545 | D59: 997 | E59: + | F59: 453 | G59: Uncharacterized protein conserved in bacteria [Function unknown] | H59: 19278 | I59: =H59/F59 -> 42.56 | J59: =1000000*(I59/L$3) -> 1829.01
A60: OCT-B-Thermocrinis-r01_03363 | B60: Ga0081478_138307 | C60: 30397 | D60: 30858 | E60: + | F60: 462 | G60: Iron-sulfur cluster assembly scaffold protein IscU | H60: 19563 | I60: =H60/F60 -> 42.34 | J60: =1000000*(I60/L$3) -> 1819.90
A61: OCT-B-Thermocrinis-r01_03210 | B61: Ga0081478_140211 | C61: 2860 | D61: 3153 | E61: - | F61: 294 | G61: Glutamine synthetase and cystathionine beta-lyase binding protein | H61: 12052 | I61: =H61/F61 -> 40.99 | J61: =1000000*(I61/L$3) -> 1761.83
A62: OCT-B-Pyrobaculum-r01_03591 | B62: Ga0081478_131164 | C62: 1280 | D62: 3682 | E62: + | F62: 2403 | G62: hypothetical protein | H62: 98425 | I62: =H62/F62 -> 40.96 | J62: =1000000*(I62/L$3) -> 1760.37
A63: OCT-B-Pyrobaculum-r01_02969 | B63: Ga0081478_159535 | C63: 578 | D63: 1156 | E63: + | F63: 579 | G63: hypothetical protein | H63: 23683 | I63: =H63/F63 -> 40.90 | J63: =1000000*(I63/L$3) -> 1757.97
A64: OCT-B-Thermocrinis-r01_03069 | B64: Ga0081478_138998 | C64: 468 | D64: 767 | E64: + | F64: 300 | G64: 50S ribosomal protein L21 | H64: 11596 | I64: =H64/F64 -> 38.65 | J64: =1000000*(I64/L$3) -> 1661.27
A65: OCT-B-Pyrobaculum-r01_00910 | B65: Ga0081478_150254 | C65: 3864 | D65: 4364 | E65: + | F65: 501 | G65: hypothetical protein | H65: 18287 | I65: =H65/F65 -> 36.50 | J65: =1000000*(I65/L$3) -> 1568.77
A66: OCT-B-Thermocrinis-r01_00037 | B66: Ga0081478_165094 | C66: 2943 | D66: 3269 | E66: - | F66: 327 | G66: fuse_rel_SoxYZ: quinoprotein dehydrogenase-associated SoxYZ-like carrier | H66: 11846 | I66: =H66/F66 -> 36.23 | J66: =1000000*(I66/L$3) -> 1556.96
A67: OCT-B-Thermocrinis-r01_02186 | B67: Ga0081478_134001 | C67: 399 | D67: 1064 | E67: + | F67: 666 | G67: type_VI_ompA: type VI secretion system peptidoglycan-associated domain | H67: 23907 | I67: =H67/F67 -> 35.90 | J67: =1000000*(I67/L$3) -> 1542.78
A68: OCT-B-Pyrobaculum-r01_02042 | B68: Ga0081478_136534 | C68: 8622 | D68: 10271 | E68: - | F68: 1650 | G68: Thermosome subunit beta | H68: 58548 | I68: =H68/F68 -> 35.48 | J68: =1000000*(I68/L$3) -> 1525.04
A69: OCT-B-Thermocrinis-r01_02302 | B69: Ga0081478_166004 | C69: 2182 | D69: 2592 | E69: + | F69: 411 | G69: typeII_sec_gspG: type II secretion system protein G | H69: 13966 | I69: =H69/F69 -> 33.98 | J69: =1000000*(I69/L$3) -> 1460.44
A70: OCT-B-Pyrobaculum-r01_03229 | B70: Ga0081478_136672 | C70: 2331 | D70: 3701 | E70: - | F70: 1371 | G70: Nterm_to_SelD: pyridine nucleotide-disulfide oxidoreductase family protein | H70: 45891 | I70: =H70/F70 -> 33.47 | J70: =1000000*(I70/L$3) -> 1438.61
A71: OCT-B-Pyrobaculum-r01_00584 | B71: Ga0081478_142178 | C71: 4597 | D71: 4776 | E71: - | F71: 180 | G71: hypothetical protein | H71: 5963 | I71: =H71/F71 -> 33.13 | J71: =1000000*(I71/L$3) -> 1423.79
A72: OCT-B-Pyrobaculum-r01_01835 | B72: Ga0081478_140451 | C72: 3245 | D72: 4579 | E72: - | F72: 1335 | G72: Elongation factor 1-alpha | H72: 44155 | I72: =H72/F72 -> 33.07 | J72: =1000000*(I72/L$3) -> 1421.52
A73: OCT-B-Thermocrinis-r01_03209 | B73: Ga0081478_140211 | C73: 2520 | D73: 2855 | E73: - | F73: 336 | G73: hypothetical protein | H73: 10946 | I73: =H73/F73 -> 32.58 | J73: =1000000*(I73/L$3) -> 1400.13
A74: OCT-B-Thermoflexus-r01_00484 | B74: Ga0081478_140049 | C74: 16386 | D74: 16790 | E74: - | F74: 405 | G74: RNaseP_bact_a | H74: 13105 | I74: =H74/F74 -> 32.36 | J74: =1000000*(I74/L$3) -> 1390.71
A75: OCT-B-Thermocrinis-r01_00046 | B75: Ga0081478_158463 | C75: 2374 | D75: 2769 | E75: + | F75: 396 | G75: 50S ribosomal protein L7/L12 | H75: 12737 | I75: =H75/F75 -> 32.16 | J75: =1000000*(I75/L$3) -> 1382.37
A76: OCT-B-Acidilobaceae-r01_01511 | B76: Ga0081478_140488 | C76: 30011 | D76: 30341 | E76: - | F76: 331 | G76: Archaea_SRP | H76: 10453 | I76: =H76/F76 -> 31.58 | J76: =1000000*(I76/L$3) -> 1357.27
A77: OCT-B-Thermocrinis-r01_03248 | B77: Ga0081478_138152 | C77: 5895 | D77: 6341 | E77: - | F77: 447 | G77: Glycine cleavage system H protein | H77: 14078 | I77: =H77/F77 -> 31.49 | J77: =1000000*(I77/L$3) -> 1353.59
A78: OCT-B-Pyrobaculum-r01_03145 | B78: Ga0081478_135809 | C78: 2426 | D78: 3142 | E78: + | F78: 717 | G78: Fumarate reductase (CoM/CoB) subunit B | H78: 22506 | I78: =H78/F78 -> 31.39 | J78: =1000000*(I78/L$3) -> 1349.06
A79: OCT-B-Pyrobaculum-r01_04435 | B79: Ga0081478_135074 | C79: 10880 | D79: 11068 | E79: - | F79: 189 | G79: CyoA: ubiquinol oxidase, subunit II | H79: 5906 | I79: =H79/F79 -> 31.25 | J79: =1000000*(I79/L$3) -> 1343.03
A80: OCT-B-Pyrobaculum-r01_00583 | B80: Ga0081478_142178 | C80: 3387 | D80: 4580 | E80: - | F80: 1194 | G80: urea_ABC_UrtA: urea ABC transporter, urea binding protein | H80: 36781 | I80: =H80/F80 -> 30.80 | J80: =1000000*(I80/L$3) -> 1323.95
A81: OCT-B-Thermocrinis-r01_02185 | B81: Ga0081478_134001 | C81: 9 | D81: 353 | E81: + | F81: 345 | G81: Peptidoglycan-associated lipoprotein | H81: 10546 | I81: =H81/F81 -> 30.57 | J81: =1000000*(I81/L$3) -> 1313.78
A82: OCT-B-Pyrobaculum-r01_03146 | B82: Ga0081478_135809 | C82: 3139 | D82: 3570 | E82: + | F82: 432 | G82: succ_dehyd_anc: succinate dehydrogenase, hydrophobic membrane anchor protein | H82: 12701 | I82: =H82/F82 -> 29.40 | J82: =1000000*(I82/L$3) -> 1263.59
A83: OCT-B-Pyrobaculum-r01_00720 | B83: Ga0081478_131361 | C83: 9134 | D83: 9463 | E83: - | F83: 330 | G83: Ferredoxin | H83: 9572 | I83: =H83/F83 -> 29.01 | J83: =1000000*(I83/L$3) -> 1246.64
A84: OCT-B-Thermocrinis-r01_00892 | B84: Ga0081478_142337 | C84: 2895 | D84: 3176 | E84: - | F84: 282 | G84: hypothetical protein | H84: 8105 | I84: =H84/F84 -> 28.74 | J84: =1000000*(I84/L$3) -> 1235.26
A85: OCT-B-Pyrobaculum-r01_00928 | B85: Ga0081478_150529 | C85: 16034 | D85: 17257 | E85: - | F85: 1224 | G85: Probable respiratory nitrate reductase subunit cytochrome b-561 | H85: 35131 | I85: =H85/F85 -> 28.70 | J85: =1000000*(I85/L$3) -> 1233.57
A86: OCT-B-Thermocrinis-r01_02402 | B86: Ga0081478_146571 | C86: 22767 | D86: 23030 | E86: - | F86: 264 | G86: Fe/S biogenesis protein NfuA | H86: 7568 | I86: =H86/F86 -> 28.67 | J86: =1000000*(I86/L$3) -> 1232.06
A87: OCT-B-Thermocrinis-r01_01407 | B87: Ga0081478_136975 | C87: 9102 | D87: 9737 | E87: + | F87: 636 | G87: Superoxide dismutase [Fe] | H87: 18186 | I87: =H87/F87 -> 28.59 | J87: =1000000*(I87/L$3) -> 1228.95
A88: OCT-B-Thermocrinis-r01_03068 | B88: Ga0081478_138998 | C88: 154 | D88: 438 | E88: - | F88: 285 | G88: hypothetical protein | H88: 8146 | I88: =H88/F88 -> 28.58 | J88: =1000000*(I88/L$3) -> 1228.44
A89: OCT-B-Thermoflexus-r01_00350 | B89: Ga0081478_137847 | C89: 2657 | D89: 2925 | E89: + | F89: 269 | G89: Bacteria_large_SRP | H89: 7688 | I89: =H89/F89 -> 28.58 | J89: =1000000*(I89/L$3) -> 1228.33
A90: OCT-B-Thermocrinis-r01_03070 | B90: Ga0081478_138998 | C90: 771 | D90: 1025 | E90: + | F90: 255 | G90: 50S ribosomal protein L27 | H90: 7266 | I90: =H90/F90 -> 28.49 | J90: =1000000*(I90/L$3) -> 1224.64
A91: OCT-B-Thermoproauctor-r01_00700 | B91: Ga0081478_131425 | C91: 14453 | D91: 14790 | E91: + | F91: 338 | G91: transfer-messenger RNA, SsrA | H91: 9584 | I91: =H91/F91 -> 28.36 | J91: =1000000*(I91/L$3) -> 1218.66
A92: OCT-B-Thermocrinis-r01_00301 | B92: Ga0081478_152443 | C92: 254 | D92: 2149 | E92: + | F92: 1896 | G92: Acetyl-coenzyme A synthetase | H92: 52922 | I92: =H92/F92 -> 27.91 | J92: =1000000*(I92/L$3) -> 1199.64
A93: OCT-B-Pyrobaculum-r01_02814 | B93: Ga0081478_145083 | C93: 722 | D93: 1918 | E93: + | F93: 1197 | G93: Membrane-anchored protein predicted to be involved in regulation of amylopullulanase [Carbohydrate transport and metabolism] | H93: 33064 | I93: =H93/F93 -> 27.62 | J93: =1000000*(I93/L$3) -> 1187.17
A94: OCT-B-Pyrobaculum-r01_00512 | B94: Ga0081478_141699 | C94: 553 | D94: 2724 | E94: - | F94: 2172 | G94: hypothetical protein | H94: 59871 | I94: =H94/F94 -> 27.56 | J94: =1000000*(I94/L$3) -> 1184.70
A95: OCT-B-Thermocrinis-r01_03475 | B95: Ga0081478_138796 | C95: 2891 | D95: 3277 | E95: - | F95: 387 | G95: LipA Surface antigen [Cell envelope biogenesis, outer membrane] | H95: 10627 | I95: =H95/F95 -> 27.46 | J95: =1000000*(I95/L$3) -> 1180.19
A96: OCT-B-Pyrobaculum-r01_04677 | B96: Ga0081478_167152 | C96: 11474 | D96: 12898 | E96: + | F96: 1425 | G96: sufB: FeS assembly protein SufB | H96: 38851 | I96: =H96/F96 -> 27.26 | J96: =1000000*(I96/L$3) -> 1171.77
A97: OCT-B-Thermocrinis-r01_00438 | B97: Ga0081478_130898 | C97: 9303 | D97: 9743 | E97: - | F97: 441 | G97: Uncharacterized protein conserved in bacteria [Function unknown] | H97: 12007 | I97: =H97/F97 -> 27.23 | J97: =1000000*(I97/L$3) -> 1170.17
A98: OCT-B-Pyrobaculum-r01_02882 | B98: Ga0081478_135364 | C98: 5647 | D98: 5814 | E98: - | F98: 168 | G98: hypothetical protein | H98: 4442 | I98: =H98/F98 -> 26.44 | J98: =1000000*(I98/L$3) -> 1136.38
A99: OCT-B-Thermocrinis-r01_00963 | B99: Ga0081478_146132 | C99: 907 | D99: 1320 | E99: + | F99: 414 | G99: TraF-like: TraF-like protein | H99: 10860 | I99: =H99/F99 -> 26.23 | J99: =1000000*(I99/L$3) -> 1127.41
A100: OCT-B-Pyrobaculum-r01_03147 | B100: Ga0081478_135809 | C100: 3567 | D100: 3917 | E100: + | F100: 351 | G100: hypothetical protein | H100: 9152 | I100: =H100/F100 -> 26.07 | J100: =1000000*(I100/L$3) -> 1120.63
A101: OCT-B-Pyrobaculum-r01_00761 | B101: Ga0081478_125801 | C101: 12149 | D101: 12427 | E101: - | F101: 279 | G101: DNA/RNA-binding protein Alba 1 | H101: 7224 | I101: =H101/F101 -> 25.89 | J101: =1000000*(I101/L$3) -> 1112.82
A102: OCT-B-Thermocrinis-r01_00038 | B102: Ga0081478_165094 | C102: 3311 | D102: 3754 | E102: - | F102: 444 | G102: SoxY_true_GGCGG: thiosulfate oxidation carrier protein SoxY | H102: 11270 | I102: =H102/F102 -> 25.38 | J102: =1000000*(I102/L$3) -> 1090.92
A103: OCT-B-Thermocrinis-r01_03926 | B103: Ga0081478_135768 | C103: 4818 | D103: 5522 | E103: - | F103: 705 | G103: Na_symport_lg: probable sodium:solute symporter, VC_2705 subfamily | H103: 17560 | I103: =H103/F103 -> 24.91 | J103: =1000000*(I103/L$3) -> 1070.50
A104: OCT-B-Thermocrinis-r01_01712 | B104: Ga0081478_144295 | C104: 1743 | D104: 2036 | E104: + | F104: 294 | G104: 10 kDa chaperonin | H104: 7198 | I104: =H104/F104 -> 24.48 | J104: =1000000*(I104/L$3) -> 1052.25
A105: OCT-B-Thermocrinis-r01_02240 | B105: Ga0081478_134262 | C105: 442 | D105: 1710 | E105: - | F105: 1269 | G105: PQQ_ABC_repeats: PQQ-dependent catabolism-associated beta-propeller protein | H105: 30639 | I105: =H105/F105 -> 24.14 | J105: =1000000*(I105/L$3) -> 1037.69
A106: OCT-B-Acidilobaceae-r01_00183 | B106: Ga0081478_142411 | C106: 2459 | D106: 3310 | E106: - | F106: 852 | G106: DMSO_red_II_bet: DMSO reductase family type II enzyme, iron-sulfur subunit | H106: 20526 | I106: =H106/F106 -> 24.09 | J106: =1000000*(I106/L$3) -> 1035.42
A107: OCT-B-Thermocrinis-r01_00116 | B107: Ga0081478_140347 | C107: 5099 | D107: 5398 | E107: - | F107: 300 | G107: 50S ribosomal protein L23 | H107: 7213 | I107: =H107/F107 -> 24.04 | J107: =1000000*(I107/L$3) -> 1033.35
A108: OCT-B-Acidilobaceae-r01_01606 | B108: Ga0081478_136419 | C108: 2661 | D108: 5738 | E108: - | F108: 3078 | G108: arsenite_ox_L: arsenite oxidase, large subunit | H108: 73543 | I108: =H108/F108 -> 23.89 | J108: =1000000*(I108/L$3) -> 1026.89
A109: OCT-B-Thermocrinis-r01_01365 | B109: Ga0081478_135954 | C109: 836 | D109: 1318 | E109: + | F109: 483 | G109: 30S ribosomal protein S7 | H109: 11411 | I109: =H109/F109 -> 23.63 | J109: =1000000*(I109/L$3) -> 1015.38
A110: OCT-B-Thermocrinis-r01_01046 | B110: Ga0081478_134862 | C110: 3302 | D110: 3583 | E110: - | F110: 282 | G110: CycNucDiestase: 2',3'-cyclic-nucleotide 2'-phosphodiesterase | H110: 6575 | I110: =H110/F110 -> 23.32 | J110: =1000000*(I110/L$3) -> 1002.07
A111: OCT-B-Thermocrinis-r01_01198 | B111: Ga0081478_139425 | C111: 6522 | D111: 7580 | E111: - | F111: 1059 | G111: soxA: sarcosine oxidase, alpha subunit family | H111: 24680 | I111: =H111/F111 -> 23.31 | J111: =1000000*(I111/L$3) -> 1001.62
A112: OCT-B-Pyrobaculum-r01_03968 | B112: Ga0081478_128885 | C112: 10808 | D112: 11086 | E112: - | F112: 279 | G112: hypothetical protein | H112: 6494 | I112: =H112/F112 -> 23.28 | J112: =1000000*(I112/L$3) -> 1000.37
A113: OCT-B-Pyrobaculum-r01_02171 | B113: Ga0081478_140575 | C113: 8777 | D113: 10936 | E113: - | F113: 2160 | G113: hypothetical protein | H113: 50203 | I113: =H113/F113 -> 23.24 | J113: =1000000*(I113/L$3) -> 998.92
A114: OCT-B-Thermocrinis-r01_03925 | B114: Ga0081478_135768 | C114: 4588 | D114: 4821 | E114: - | F114: 234 | G114: hypothetical protein | H114: 5436 | I114: =H114/F114 -> 23.23 | J114: =1000000*(I114/L$3) -> 998.43
A115: OCT-B-Thermocrinis-r01_00895 | B115: Ga0081478_142337 | C115: 4104 | D115: 4970 | E115: - | F115: 867 | G115: Oxalate oxidoreductase subunit beta | H115: 20074 | I115: =H115/F115 -> 23.15 | J115: =1000000*(I115/L$3) -> 995.10
A116: OCT-B-Thermocrinis-r01_04378 | B116: Ga0081478_155179 | C116: 1668 | D116: 3308 | E116: + | F116: 1641 | G116: 60 kDa chaperonin 1 | H116: 37633 | I116: =H116/F116 -> 22.93 | J116: =1000000*(I116/L$3) -> 985.63
A117: OCT-B-Thermocrinis-r01_02527 | B117: Ga0081478_137488 | C117: 5448 | D117: 5783 | E117: - | F117: 336 | G117: Uncharacterized conserved protein [Function unknown] | H117: 7677 | I117: =H117/F117 -> 22.85 | J117: =1000000*(I117/L$3) -> 981.99
A118: OCT-B-Thermocrinis-r01_00577 | B118: Ga0081478_137867 | C118: 265 | D118: 696 | E118: + | F118: 432 | G118: Rubrerythrin-1 | H118: 9852 | I118: =H118/F118 -> 22.81 | J118: =1000000*(I118/L$3) -> 980.15
A119: OCT-B-Pyrobaculum-r01_01083 | B119: Ga0081478_126102 | C119: 20350 | D119: 21738 | E119: + | F119: 1389 | G119: urea_ABC_UrtA: urea ABC transporter, urea binding protein | H119: 31639 | I119: =H119/F119 -> 22.78 | J119: =1000000*(I119/L$3) -> 978.98
A120: OCT-B-Pyrobaculum-r01_03970 | B120: Ga0081478_128885 | C120: 11696 | D120: 12028 | E120: + | F120: 333 | G120: hypothetical protein | H120: 7504 | I120: =H120/F120 -> 22.53 | J120: =1000000*(I120/L$3) -> 968.50
A121: OCT-B-Pyrobaculum-r01_02519 | B121: Ga0081478_131085 | C121: 4915 | D121: 5175 | E121: - | F121: 261 | G121: hypothetical protein | H121: 5868 | I121: =H121/F121 -> 22.48 | J121: =1000000*(I121/L$3) -> 966.28
A122: OCT-B-Pyrobaculum-r01_00844 | B122: Ga0081478_129121 | C122: 24 | D122: 485 | E122: + | F122: 462 | G122: 50S ribosomal protein L7Ae | H122: 10346 | I122: =H122/F122 -> 22.39 | J122: =1000000*(I122/L$3) -> 962.46
A123: OCT-B-Pyrobaculum-r01_03144 | B123: Ga0081478_135809 | C123: 679 | D123: 2424 | E123: + | F123: 1746 | G123: Fumarate reductase (CoM/CoB) subunit A | H123: 38564 | I123: =H123/F123 -> 22.09 | J123: =1000000*(I123/L$3) -> 949.27
A124: OCT-B-Acidilobaceae-r01_00184 | B124: Ga0081478_142411 | C124: 3314 | D124: 6856 | E124: - | F124: 3543 | G124: formate-DH-alph: formate dehydrogenase-N alpha subunit | H124: 76854 | I124: =H124/F124 -> 21.69 | J124: =1000000*(I124/L$3) -> 932.28
A125: OCT-B-Thermocrinis-r01_00118 | B125: Ga0081478_140347 | C125: 5979 | D125: 6683 | E125: - | F125: 705 | G125: 50S ribosomal protein L3 | H125: 15261 | I125: =H125/F125 -> 21.65 | J125: =1000000*(I125/L$3) -> 930.35
A126: OCT-B-Pyrobaculum-r01_04434 | B126: Ga0081478_135074 | C126: 8466 | D126: 10883 | E126: - | F126: 2418 | G126: QoxB: cytochrome aa3 quinol oxidase, subunit I | H126: 51738 | I126: =H126/F126 -> 21.40 | J126: =1000000*(I126/L$3) -> 919.62
A127: OCT-B-Pyrobaculum-r01_01610 | B127: Ga0081478_129412 | C127: 5293 | D127: 5451 | E127: - | F127: 159 | G127: 50S ribosomal protein L37e | H127: 3397 | I127: =H127/F127 -> 21.36 | J127: =1000000*(I127/L$3) -> 918.23
A128: OCT-B-Pyrobaculum-r01_02520 | B128: Ga0081478_131085 | C128: 5172 | D128: 6152 | E128: - | F128: 981 | G128: Putative arsenical pump-driving ATPase | H128: 20768 | I128: =H128/F128 -> 21.17 | J128: =1000000*(I128/L$3) -> 909.87
A129: OCT-B-Acidilobaceae-r01_00182 | B129: Ga0081478_142411 | C129: 1740 | D129: 2459 | E129: - | F129: 720 | G129: CytB-hydogenase: Ni/Fe-hydrogenase, b-type cytochrome subunit | H129: 15237 | I129: =H129/F129 -> 21.16 | J129: =1000000*(I129/L$3) -> 909.54
A130: OCT-B-Thermocrinis-r01_03364 | B130: Ga0081478_138307 | C130: 30855 | D130: 31901 | E130: + | F130: 1047 | G130: trmU: tRNA (5-methylaminomethyl-2-thiouridylate)-methyltransferase | H130: 22134 | I130: =H130/F130 -> 21.14 | J130: =1000000*(I130/L$3) -> 908.59
A131: OCT-B-Pyrobaculum-r01_00703 | B131: Ga0081478_139311 | C131: 9 | D131: 1367 | E131: + | F131: 1359 | G131: hypothetical protein | H131: 28696 | I131: =H131/F131 -> 21.12 | J131: =1000000*(I131/L$3) -> 907.52
A132: OCT-B-Thermocrinis-r01_01364 | B132: Ga0081478_135954 | C132: 438 | D132: 836 | E132: + | F132: 399 | G132: 30S ribosomal protein S12 | H132: 8386 | I132: =H132/F132 -> 21.02 | J132: =1000000*(I132/L$3) -> 903.31
A133: OCT-B-Thermocrinis-r01_01039 | B133: Ga0081478_135997 | C133: 1153 | D133: 1740 | E133: + | F133: 588 | G133: Protein of unknown function (DUF3501) | H133: 12258 | I133: =H133/F133 -> 20.85 | J133: =1000000*(I133/L$3) -> 895.97
A134: OCT-B-Thermocrinis-r01_00045 | B134: Ga0081478_158463 | C134: 1822 | D134: 2361 | E134: + | F134: 540 | G134: 50S ribosomal protein L10 | H134: 11242 | I134: =H134/F134 -> 20.82 | J134: =1000000*(I134/L$3) -> 894.75
A135: OCT-B-Acidilobaceae-r01_01149 | B135: Ga0081478_149297 | C135: 114 | D135: 437 | E135: + | F135: 324 | G135: hypothetical protein | H135: 6739 | I135: =H135/F135 -> 20.80 | J135: =1000000*(I135/L$3) -> 893.93
A136: OCT-B-Acidilobaceae-r01_01202 | B136: Ga0081478_133018 | C136: 6187 | D136: 9213 | E136: + | F136: 3027 | G136: nickel_nikA: nickel ABC transporter, nickel/metallophore periplasmic binding protein | H136: 62744 | I136: =H136/F136 -> 20.73 | J136: =1000000*(I136/L$3) -> 890.87
A137: OCT-B-Acidilobaceae-r01_01607 | B137: Ga0081478_136419 | C137: 5741 | D137: 6343 | E137: - | F137: 603 | G137: soxL2: Rieske iron-sulfur protein SoxL2 | H137: 12474 | I137: =H137/F137 -> 20.69 | J137: =1000000*(I137/L$3) -> 889.08
A138: OCT-B-Thermocrinis-r01_03367 | B138: Ga0081478_138307 | C138: 32375 | D138: 32626 | E138: + | F138: 252 | G138: Thioredoxin-like proteins and domains [Posttranslational modification, protein turnover, chaperones] | H138: 5209 | I138: =H138/F138 -> 20.67 | J138: =1000000*(I138/L$3) -> 888.40
A139: OCT-B-Caldarchaeales-r01_00342 | B139: Ga0081478_136683 | C139: 16 | D139: 2611 | E139: + | F139: 2596 | G139: 23S ribosomal RNA | H139: 53476 | I139: =H139/F139 -> 20.60 | J139: =1000000*(I139/L$3) -> 885.33
A140: OCT-B-Thermocrinis-r01_02528 | B140: Ga0081478_137488 | C140: 5799 | D140: 6140 | E140: - | F140: 342 | G140: Uncharacterized conserved protein [Function unknown] | H140: 7006 | I140: =H140/F140 -> 20.49 | J140: =1000000*(I140/L$3) -> 880.43
A141: OCT-B-Thermocrinis-r01_02319 | B141: Ga0081478_141811 | C141: 4503 | D141: 6947 | E141: - | F141: 2445 | G141: Negative regulator of genetic competence ClpC/MecB | H141: 50033 | I141: =H141/F141 -> 20.46 | J141: =1000000*(I141/L$3) -> 879.49
A142: OCT-B-Thermocrinis-r01_01017 | B142: Ga0081478_134318 | C142: 1563 | D142: 2231 | E142: - | F142: 669 | G142: Sulfide dehydrogenase [flavocytochrome c] flavoprotein chain | H142: 13633 | I142: =H142/F142 -> 20.38 | J142: =1000000*(I142/L$3) -> 875.83
A143: OCT-B-Pyrobaculum-r01_02521 | B143: Ga0081478_131085 | C143: 6149 | D143: 7153 | E143: - | F143: 1005 | G143: Putative arsenical pump-driving ATPase | H143: 20461 | I143: =H143/F143 -> 20.36 | J143: =1000000*(I143/L$3) -> 875.01
A144: OCT-B-Pyrobaculum-r01_03682 | B144: Ga0081478_160920 | C144: 4320 | D144: 4646 | E144: - | F144: 327 | G144: ribo_P1_arch: 50S ribosomal protein P1 | H144: 6640 | I144: =H144/F144 -> 20.31 | J144: =1000000*(I144/L$3) -> 872.72
A145: OCT-B-Thermocrinis-r01_00119 | B145: Ga0081478_140347 | C145: 6688 | D145: 7002 | E145: - | F145: 315 | G145: 30S ribosomal protein S10 | H145: 6383 | I145: =H145/F145 -> 20.26 | J145: =1000000*(I145/L$3) -> 870.90
A146: OCT-B-Acidilobaceae-r01_01923 | B146: Ga0081478_140658 | C146: 5079 | D146: 5537 | E146: + | F146: 459 | G146: hypothetical protein | H146: 9224 | I146: =H146/F146 -> 20.10 | J146: =1000000*(I146/L$3) -> 863.69
A147: OCT-B-Pyrobaculum-r01_04006 | B147: Ga0081478_138738 | C147: 6381 | D147: 6785 | E147: - | F147: 405 | G147: nifX: nitrogen fixation protein NifX | H147: 8136 | I147: =H147/F147 -> 20.09 | J147: =1000000*(I147/L$3) -> 863.39
A148: OCT-B-Pyrobaculum-r01_03463 | B148: Ga0081478_165170 | C148: 6088 | D148: 6240 | E148: - | F148: 153 | G148: hypothetical protein | H148: 3073 | I148: =H148/F148 -> 20.08 | J148: =1000000*(I148/L$3) -> 863.23
A149: OCT-B-Thermocrinis-r01_00894 | B149: Ga0081478_142337 | C149: 3424 | D149: 4107 | E149: - | F149: 684 | G149: PorC_KorC: 2-oxoacid:acceptor oxidoreductase, gamma subunit, pyruvate/2-ketoisovalerate family | H149: 13719 | I149: =H149/F149 -> 20.06 | J149: =1000000*(I149/L$3) -> 862.02
A150: OCT-B-Thermocrinis-r01_03692 | B150: Ga0081478_140421 | C150: 9569 | D150: 10000 | E150: + | F150: 432 | G150: Transcriptional regulator PerR | H150: 8650 | I150: =H150/F150 -> 20.02 | J150: =1000000*(I150/L$3) -> 860.57
A151: OCT-B-Thermocrinis-r01_01721 | B151: Ga0081478_136934 | C151: 2291 | D151: 2572 | E151: + | F151: 282 | G151: hypothetical protein | H151: 5629 | I151: =H151/F151 -> 19.96 | J151: =1000000*(I151/L$3) -> 857.90
A152: OCT-B-Thermocrinis-r01_02990 | B152: Ga0081478_159144 | C152: 6576 | D152: 7127 | E152: + | F152: 552 | G152: Uma2 Uncharacterized protein conserved in cyanobacteria [Function unknown] | H152: 10997 | I152: =H152/F152 -> 19.92 | J152: =1000000*(I152/L$3) -> 856.23
A153: OCT-B-Pyrobaculum-r01_03967 | B153: Ga0081478_128885 | C153: 10212 | D153: 10805 | E153: - | F153: 594 | G153: soxL2: Rieske iron-sulfur protein SoxL2 | H153: 11789 | I153: =H153/F153 -> 19.85 | J153: =1000000*(I153/L$3) -> 852.99
A154: OCT-B-Pyrobaculum-r01_04396 | B154: Ga0081478_131544 | C154: 609 | D154: 4379 | E154: - | F154: 3771 | G154: T7SS_mycosin: type VII secretion-associated serine protease mycosin | H154: 74687 | I154: =H154/F154 -> 19.81 | J154: =1000000*(I154/L$3) -> 851.22
A155: OCT-B-Pyrobaculum-r01_03151 | B155: Ga0081478_142796 | C155: 801 | D155: 1409 | E155: + | F155: 609 | G155: Pyridoxal 5'-phosphate synthase subunit PdxT | H155: 12050 | I155: =H155/F155 -> 19.79 | J155: =1000000*(I155/L$3) -> 850.40
A156: OCT-B-Thermocrinis-r01_01748 | B156: Ga0081478_150624 | C156: 883 | D156: 1179 | E156: - | F156: 297 | G156: Cytochrome c-552 | H156: 5804 | I156: =H156/F156 -> 19.54 | J156: =1000000*(I156/L$3) -> 839.89
A157: OCT-B-Thermocrinis-r01_01045 | B157: Ga0081478_134862 | C157: 2413 | D157: 3297 | E157: - | F157: 885 | G157: Uncharacterized conserved protein [Function unknown] | H157: 17151 | I157: =H157/F157 -> 19.38 | J157: =1000000*(I157/L$3) -> 832.91
A158: OCT-B-Thermocrinis-r01_00036 | B158: Ga0081478_165094 | C158: 2096 | D158: 2929 | E158: - | F158: 834 | G158: L-cysteine S-thiosulfotransferase subunit SoxA | H158: 16104 | I158: =H158/F158 -> 19.31 | J158: =1000000*(I158/L$3) -> 829.89
A159: OCT-B-Pyrobaculum-r01_00877 | B159: Ga0081478_129121 | C159: 22027 | D159: 22395 | E159: - | F159: 369 | G159: 50S ribosomal protein L24 | H159: 7094 | I159: =H159/F159 -> 19.22 | J159: =1000000*(I159/L$3) -> 826.26
A160: OCT-B-Thermocrinis-r01_00428 | B160: Ga0081478_130898 | C160: 256 | D160: 441 | E160: + | F160: 186 | G160: Protein of unknown function (DUF2892) | H160: 3571 | I160: =H160/F160 -> 19.20 | J160: =1000000*(I160/L$3) -> 825.14
A161: OCT-B-Thermocrinis-r01_00117 | B161: Ga0081478_140347 | C161: 5395 | D161: 5982 | E161: - | F161: 588 | G161: 50S ribosomal protein L4 | H161: 11251 | I161: =H161/F161 -> 19.13 | J161: =1000000*(I161/L$3) -> 822.37
A162: OCT-B-Thermocrinis-r01_03249 | B162: Ga0081478_138152 | C162: 6366 | D162: 6755 | E162: - | F162: 390 | G162: sulf_tusC_dsrF: sulfur relay protein TusC/DsrF | H162: 7418 | I162: =H162/F162 -> 19.02 | J162: =1000000*(I162/L$3) -> 817.48
A163: OCT-B-Pyrobaculum-r01_02408 | B163: Ga0081478_136752 | C163: 9689 | D163: 9949 | E163: - | F163: 261 | G163: Putative snRNP Sm-like protein | H163: 4916 | I163: =H163/F163 -> 18.84 | J163: =1000000*(I163/L$3) -> 809.51
A164: OCT-B-Pyrobaculum-r01_02330 | B164: Ga0081478_156771 | C164: 402 | D164: 956 | E164: + | F164: 555 | G164: hypothetical protein | H164: 10453 | I164: =H164/F164 -> 18.83 | J164: =1000000*(I164/L$3) -> 809.47
A165: OCT-B-Thermocrinis-r01_00109 | B165: Ga0081478_140347 | C165: 1772 | D165: 1972 | E165: - | F165: 201 | G165: 50S ribosomal protein L29 | H165: 3775 | I165: =H165/F165 -> 18.78 | J165: =1000000*(I165/L$3) -> 807.19
A166: OCT-B-Thermoflexus-r01_01303 | B166: Ga0081478_154932 | C166: 8394 | D166: 8776 | E166: + | F166: 383 | G166: transfer-messenger RNA, SsrA | H166: 7146 | I166: =H166/F166 -> 18.66 | J166: =1000000*(I166/L$3) -> 801.89
A167: OCT-B-Pyrobaculum-r01_00931 | B167: Ga0081478_150529 | C167: 18502 | D167: 18924 | E167: + | F167: 423 | G167: hypothetical protein | H167: 7892 | I167: =H167/F167 -> 18.66 | J167: =1000000*(I167/L$3) -> 801.86
A168: OCT-B-Pyrobaculum-r01_00911 | B168: Ga0081478_150254 | C168: 4376 | D168: 4570 | E168: + | F168: 195 | G168: hypothetical protein | H168: 3613 | I168: =H168/F168 -> 18.53 | J168: =1000000*(I168/L$3) -> 796.32
A169: OCT-B-Pyrobaculum-r01_02050 | B169: Ga0081478_136538 | C169: 3186 | D169: 5612 | E169: + | F169: 2427 | G169: hypothetical protein | H169: 44933 | I169: =H169/F169 -> 18.51 | J169: =1000000*(I169/L$3) -> 795.70
A170: OCT-B-Pyrobaculum-r01_03403 | B170: Ga0081478_132432 | C170: 3102 | D170: 3479 | E170: - | F170: 378 | G170: hypothetical protein | H170: 6950 | I170: =H170/F170 -> 18.39 | J170: =1000000*(I170/L$3) -> 790.22
A171: OCT-B-Pyrobaculum-r01_03958 | B171: Ga0081478_128885 | C171: 3437 | D171: 3772 | E171: + | F171: 336 | G171: DsrC like protein | H171: 6134 | I171: =H171/F171 -> 18.26 | J171: =1000000*(I171/L$3) -> 784.62
A172: OCT-B-Pyrobaculum-r01_04433 | B172: Ga0081478_135074 | C172: 8278 | D172: 8469 | E172: - | F172: 192 | G172: hypothetical protein | H172: 3499 | I172: =H172/F172 -> 18.22 | J172: =1000000*(I172/L$3) -> 783.24
A173: OCT-B-Thermocrinis-r01_00897 | B173: Ga0081478_142337 | C173: 6182 | D173: 6889 | E173: - | F173: 708 | G173: hypothetical protein | H173: 12872 | I173: =H173/F173 -> 18.18 | J173: =1000000*(I173/L$3) -> 781.39
A174: OCT-B-Thermocrinis-r01_02911 | B174: Ga0081478_133173 | C174: 15 | D174: 1223 | E174: + | F174: 1209 | G174: Phosphomethylpyrimidine synthase | H174: 21883 | I174: =H174/F174 -> 18.10 | J174: =1000000*(I174/L$3) -> 777.92
A175: OCT-B-Pyrobaculum-r01_03150 | B175: Ga0081478_142796 | C175: 28 | D175: 804 | E175: + | F175: 777 | G175: Pyridoxal 5'-phosphate synthase subunit PdxS | H175: 14054 | I175: =H175/F175 -> 18.09 | J175: =1000000*(I175/L$3) -> 777.38
A176: OCT-B-Pyrobaculum-r01_03585 | B176: Ga0081478_140970 | C176: 1578 | D176: 2897 | E176: - | F176: 1320 | G176: Carotenoid 3,4-desaturase | H176: 23682 | I176: =H176/F176 -> 17.94 | J176: =1000000*(I176/L$3) -> 771.08
A177: OCT-B-Thermocrinis-r01_03693 | B177: Ga0081478_140421 | C177: 9982 | D177: 10290 | E177: + | F177: 309 | G177: Pterin-4a-carbinolamine dehydratase [Coenzyme metabolism] | H177: 5519 | I177: =H177/F177 -> 17.86 | J177: =1000000*(I177/L$3) -> 767.64
A178: OCT-B-Thermocrinis-r01_03602 | B178: Ga0081478_131409 | C178: 1541 | D178: 1735 | E178: - | F178: 195 | G178: 50S ribosomal protein L30 | H178: 3480 | I178: =H178/F178 -> 17.85 | J178: =1000000*(I178/L$3) -> 767.00
A179: OCT-B-Pyrobaculum-r01_00845 | B179: Ga0081478_129121 | C179: 565 | D179: 798 | E179: + | F179: 234 | G179: RPS28A Ribosomal protein S28E/S33 [Translation, ribosomal structure and biogenesis] | H179: 4164 | I179: =H179/F179 -> 17.79 | J179: =1000000*(I179/L$3) -> 764.80
A180: OCT-B-Thermocrinis-r01_00896 | B180: Ga0081478_142337 | C180: 4994 | D180: 6163 | E180: - | F180: 1170 | G180: NADH-dependent phenylglyoxylate dehydrogenase subunit alpha | H180: 20795 | I180: =H180/F180 -> 17.77 | J180: =1000000*(I180/L$3) -> 763.88
A181: OCT-B-Caldarchaeales-r01_00243 | B181: Ga0081478_135131 | C181: 2462 | D181: 2602 | E181: - | F181: 141 | G181: hypothetical protein | H181: 2495 | I181: =H181/F181 -> 17.70 | J181: =1000000*(I181/L$3) -> 760.51
A182: OCT-B-Thermocrinis-r01_01334 | B182: Ga0081478_166752 | C182: 526 | D182: 717 | E182: - | F182: 192 | G182: hypothetical protein | H182: 3390 | I182: =H182/F182 -> 17.66 | J182: =1000000*(I182/L$3) -> 758.84
A183: OCT-B-Pyrobaculum-r01_02917 | B183: Ga0081478_149866 | C183: 3800 | D183: 4237 | E183: + | F183: 438 | G183: uS17_arch: ribosomal protein uS17 | H183: 7711 | I183: =H183/F183 -> 17.61 | J183: =1000000*(I183/L$3) -> 756.64
A184: OCT-B-Pyrobaculum-r01_01881 | B184: Ga0081478_158557 | C184: 6064 | D184: 7170 | E184: - | F184: 1107 | G184: TRAP_TAXI: TRAP transporter solute receptor, TAXI family | H184: 19328 | I184: =H184/F184 -> 17.46 | J184: =1000000*(I184/L$3) -> 750.40
A185: OCT-B-Pyrobaculum-r01_02558 | B185: Ga0081478_122489 | C185: 1851 | D185: 2891 | E185: + | F185: 1041 | G185: HtpX Zn-dependent protease with chaperone function [Posttranslational modification, protein turnover, chaperones] | H185: 18162 | I185: =H185/F185 -> 17.45 | J185: =1000000*(I185/L$3) -> 749.84
A186: OCT-B-Thermocrinis-r01_00115 | B186: Ga0081478_140347 | C186: 4222 | D186: 5094 | E186: - | F186: 873 | G186: 50S ribosomal protein L2 | H186: 15174 | I186: =H186/F186 -> 17.38 | J186: =1000000*(I186/L$3) -> 747.03
A187: OCT-B-Pyrobaculum-r01_02456 | B187: Ga0081478_137155 | C187: 13536 | D187: 13979 | E187: - | F187: 444 | G187: 50S ribosomal protein L19e | H187: 7712 | I187: =H187/F187 -> 17.37 | J187: =1000000*(I187/L$3) -> 746.51
A188: OCT-B-Pyrobaculum-r01_03995 | B188: Ga0081478_138738 | C188: 63 | D188: 602 | E188: + | F188: 540 | G188: Putative thiosulfate sulfurtransferase | H188: 9362 | I188: =H188/F188 -> 17.34 | J188: =1000000*(I188/L$3) -> 745.12
A189: OCT-B-Pyrobaculum-r01_00927 | B189: Ga0081478_150529 | C189: 15681 | D189: 16037 | E189: - | F189: 357 | G189: hypothetical protein | H189: 6160 | I189: =H189/F189 -> 17.25 | J189: =1000000*(I189/L$3) -> 741.59
A190: OCT-B-Thermocrinis-r01_00044 | B190: Ga0081478_158463 | C190: 1100 | D190: 1825 | E190: + | F190: 726 | G190: 50S ribosomal protein L1 | H190: 12407 | I190: =H190/F190 -> 17.09 | J190: =1000000*(I190/L$3) -> 734.49
A191: OCT-B-Pyrobaculum-r01_00441 | B191: Ga0081478_144021 | C191: 11055 | D191: 11996 | E191: + | F191: 942 | G191: 2-oxoacid:ferredoxin oxidoreductase subunit beta | H191: 16009 | I191: =H191/F191 -> 16.99 | J191: =1000000*(I191/L$3) -> 730.41
A192: OCT-B-Pyrobaculum-r01_00455 | B192: Ga0081478_153575 | C192: 679 | D192: 1227 | E192: - | F192: 549 | G192: 50S ribosomal protein L10e | H192: 9313 | I192: =H192/F192 -> 16.96 | J192: =1000000*(I192/L$3) -> 729.07
A193: OCT-B-Thermocrinis-r01_00114 | B193: Ga0081478_140347 | C193: 3767 | D193: 4222 | E193: - | F193: 456 | G193: rpsS_bact: ribosomal protein uS19 | H193: 7699 | I193: =H193/F193 -> 16.88 | J193: =1000000*(I193/L$3) -> 725.64
A194: OCT-B-Thermocrinis-r01_02770 | B194: Ga0081478_167345 | C194: 5498 | D194: 5929 | E194: + | F194: 432 | G194: Rubrerythrin-1 | H194: 7257 | I194: =H194/F194 -> 16.80 | J194: =1000000*(I194/L$3) -> 721.98
A195: OCT-B-Thermocrinis-r01_00893 | B195: Ga0081478_142337 | C195: 3180 | D195: 3404 | E195: - | F195: 225 | G195: hypothetical protein | H195: 3741 | I195: =H195/F195 -> 16.63 | J195: =1000000*(I195/L$3) -> 714.59
A196: OCT-B-Pyrobaculum-r01_03940 | B196: Ga0081478_125463 | C196: 20157 | D196: 20636 | E196: - | F196: 480 | G196: 30S ribosomal protein S4 | H196: 7979 | I196: =H196/F196 -> 16.62 | J196: =1000000*(I196/L$3) -> 714.43
A197: OCT-B-Thermocrinis-r01_01954 | B197: Ga0081478_136041 | C197: 484 | D197: 984 | E197: - | F197: 501 | G197: Arsenite oxidase subunit AioB | H197: 8312 | I197: =H197/F197 -> 16.59 | J197: =1000000*(I197/L$3) -> 713.05
A198: OCT-B-Thermocrinis-r01_04160 | B198: Ga0081478_128461 | C198: 5081 | D198: 5653 | E198: - | F198: 573 | G198: PorC_KorC: 2-oxoacid:acceptor oxidoreductase, gamma subunit, pyruvate/2-ketoisovalerate family | H198: 9496 | I198: =H198/F198 -> 16.57 | J198: =1000000*(I198/L$3) -> 712.26
A199: OCT-B-Thermocrinis-r01_02601 | B199: Ga0081478_146002 | C199: 6812 | D199: 7303 | E199: - | F199: 492 | G199: cytochrome_MoxG: cytochrome c(L), periplasmic | H199: 8138 | I199: =H199/F199 -> 16.54 | J199: =1000000*(I199/L$3) -> 710.90
A200: OCT-B-Pyrobaculum-r01_00846 | B200: Ga0081478_129121 | C200: 795 | D200: 977 | E200: + | F200: 183 | G200: 50S ribosomal protein L24e | H200: 3008 | I200: =H200/F200 -> 16.44 | J200: =1000000*(I200/L$3) -> 706.45
... 4300 more rows

Sheet OCT-B-Acidilobaceae-r01
A1: Gene_id | B1: Contig | C1: Start | D1: End | E1: Strand | F1: Length | G1: transcript_id | H1: Raw_counts | I1: Reads_base | J1: TPM
A2: OCT-B-Acidilobaceae-r01_01511 | B2: Ga0081478_140488 | C2: 30011 | D2: 30341 | E2: - | F2: 331 | G2: Archaea_SRP | H2: 10453 | I2: 31.58 | J2: 1357.27
A3: OCT-B-Acidilobaceae-r01_00183 | B3: Ga0081478_142411 | C3: 2459 | D3: 3310 | E3: - | F3: 852 | G3: DMSO_red_II_bet: DMSO reductase family type II enzyme, iron-sulfur subunit | H3: 20526 | I3: 24.09 | J3: 1035.42
A4: OCT-B-Acidilobaceae-r01_01606 | B4: Ga0081478_136419 | C4: 2661 | D4: 5738 | E4: - | F4: 3078 | G4: arsenite_ox_L: arsenite oxidase, large subunit | H4: 73543 | I4: 23.89 | J4: 1026.89
A5: OCT-B-Acidilobaceae-r01_00184 | B5: Ga0081478_142411 | C5: 3314 | D5: 6856 | E5: - | F5: 3543 | G5: formate-DH-alph: formate dehydrogenase-N alpha subunit | H5: 76854 | I5: 21.69 | J5: 932.28
A6: OCT-B-Acidilobaceae-r01_00182 | B6: Ga0081478_142411 | C6: 1740 | D6: 2459 | E6: - | F6: 720 | G6: CytB-hydogenase: Ni/Fe-hydrogenase, b-type cytochrome subunit | H6: 15237 | I6: 21.16 | J6: 909.54
A7: OCT-B-Acidilobaceae-r01_01149 | B7: Ga0081478_149297 | C7: 114 | D7: 437 | E7: + | F7: 324 | G7: hypothetical protein | H7: 6739 | I7: 20.80 | J7: 893.93
A8: OCT-B-Acidilobaceae-r01_01202 | B8: Ga0081478_133018 | C8: 6187 | D8: 9213 | E8: + | F8: 3027 | G8: nickel_nikA: nickel ABC transporter, nickel/metallophore periplasmic binding protein | H8: 62744 | I8: 20.73 | J8: 890.87
A9: OCT-B-Acidilobaceae-r01_01607 | B9: Ga0081478_136419 | C9: 5741 | D9: 6343 | E9: - | F9: 603 | G9: soxL2: Rieske iron-sulfur protein SoxL2 | H9: 12474 | I9: 20.69 | J9: 889.08
A10: OCT-B-Acidilobaceae-r01_01923 | B10: Ga0081478_140658 | C10: 5079 | D10: 5537 | E10: + | F10: 459 | G10: hypothetical protein | H10: 9224 | I10: 20.10 | J10: 863.69
A11: OCT-B-Acidilobaceae-r01_00313 | B11: Ga0081478_137202 | C11: 11212 | D11: 11481 | E11: - | F11: 270 | G11: hypothetical protein | H11: 4045 | I11: 14.98 | J11: 643.88
A12: OCT-B-Acidilobaceae-r01_00062 | B12: Ga0081478_161674 | C12: 2713 | D12: 3156 | E12: - | F12: 444 | G12: hypothetical protein | H12: 5957 | I12: 13.42 | J12: 576.63
A13: OCT-B-Acidilobaceae-r01_00315 | B13: Ga0081478_137202 | C13: 12277 | D13: 12558 | E13: - | F13: 282 | G13: hypothetical protein | H13: 3722 | I13: 13.20 | J13: 567.26
A14: OCT-B-Acidilobaceae-r01_00886 | B14: Ga0081478_142840 | C14: 1063 | D14: 1290 | E14: - | F14: 228 | G14: hypothetical protein | H14: 2871 | I14: 12.59 | J14: 541.19
A15: OCT-B-Acidilobaceae-r01_00308 | B15: Ga0081478_137202 | C15: 45 | D15: 572 | E15: + | F15: 528 | G15: hypothetical protein | H15: 5947 | I15: 11.26 | J15: 484.08
A16: OCT-B-Acidilobaceae-r01_00603 | B16: Ga0081478_137280 | C16: 17112 | D16: 17423 | E16: + | F16: 312 | G16: hypothetical protein | H16: 3442 | I16: 11.03 | J16: 474.14
A17: OCT-B-Acidilobaceae-r01_00314 | B17: Ga0081478_137202 | C17: 11872 | D17: 12219 | E17: - | F17: 348 | G17: hypothetical protein | H17: 3739 | I17: 10.74 | J17: 461.77
A18: OCT-B-Acidilobaceae-r01_00316 | B18: Ga0081478_137202 | C18: 13573 | D18: 14085 | E18: - | F18: 513 | G18: hypothetical protein | H18: 5352 | I18: 10.43 | J18: 448.39
A19: OCT-B-Acidilobaceae-r01_00884 | B19: Ga0081478_142840 | C19: 283 | D19: 522 | E19: - | F19: 240 | G19: hypothetical protein | H19: 2164 | I19: 9.02 | J19: 387.52
A20: OCT-B-Acidilobaceae-r01_01578 | B20: Ga0081478_160473 | C20: 10544 | D20: 11364 | E20: + | F20: 821 | G20: 16S ribosomal RNA (partial) | H20: 6698 | I20: 8.16 | J20: 350.63
A21: OCT-B-Acidilobaceae-r01_02491 | B21: Ga0081478_136561 | C21: 7543 | D21: 11547 | E21: - | F21: 4005 | G21: T7SS_mycosin: type VII secretion-associated serine protease mycosin | H21: 30923 | I21: 7.72 | J21: 331.84
A22: OCT-B-Acidilobaceae-r01_00885 | B22: Ga0081478_142840 | C22: 559 | D22: 1050 | E22: - | F22: 492 | G22: hypothetical protein | H22: 3577 | I22: 7.27 | J22: 312.47
A23: OCT-B-Acidilobaceae-r01_01580 | B23: Ga0081478_160473 | C23: 13674 | D23: 16251 | E23: + | F23: 2578 | G23: 23S ribosomal RNA (partial) | H23: 18122 | I23: 7.03 | J23: 302.12
A24: OCT-B-Acidilobaceae-r01_01389 | B24: Ga0081478_135822 | C24: 8081 | D24: 8395 | E24: + | F24: 315 | G24: 30S ribosomal protein S10 | H24: 2206 | I24: 7.00 | J24: 300.99
A25: OCT-B-Acidilobaceae-r01_00887 | B25: Ga0081478_142840 | C25: 1504 | D25: 1881 | E25: - | F25: 378 | G25: hypothetical protein | H25: 2433 | I25: 6.44 | J25: 276.63
A26: OCT-B-Acidilobaceae-r01_01971 | B26: Ga0081478_138137 | C26: 1527 | D26: 3002 | E26: + | F26: 1476 | G26: peripla_PGF_1: putative ABC transporter PGF-CTERM-modified substrate-binding protein | H26: 8882 | I26: 6.02 | J26: 258.63
A27: OCT-B-Acidilobaceae-r01_01388 | B27: Ga0081478_135822 | C27: 6735 | D27: 8048 | E27: + | F27: 1314 | G27: Elongation factor 1-alpha | H27: 7561 | I27: 5.75 | J27: 247.31
A28: OCT-B-Acidilobaceae-r01_00181 | B28: Ga0081478_142411 | C28: 894 | D28: 1724 | E28: - | F28: 831 | G28: fdhD_narQ: formate dehydrogenase family accessory protein FdhD | H28: 4739 | I28: 5.70 | J28: 245.10
A29: OCT-B-Acidilobaceae-r01_02184 | B29: Ga0081478_142567 | C29: 16340 | D29: 16639 | E29: + | F29: 300 | G29: DNA/RNA-binding protein Alba 2 | H29: 1611 | I29: 5.37 | J29: 230.80
A30: OCT-B-Acidilobaceae-r01_02589 | B30: Ga0081478_139210 | C30: 54141 | D30: 55784 | E30: + | F30: 1644 | G30: SBP_KPN_01854: ABC transporter substrate binding protein, KPN_01854 family | H30: 8738 | I30: 5.32 | J30: 228.44
A31: OCT-B-Acidilobaceae-r01_00602 | B31: Ga0081478_137280 | C31: 15413 | D31: 16831 | E31: - | F31: 1419 | G31: urea_ABC_UrtA: urea ABC transporter, urea binding protein | H31: 7383 | I31: 5.20 | J31: 223.62
A32: OCT-B-Acidilobaceae-r01_01015 | B32: Ga0081478_142599 | C32: 19473 | D32: 21125 | E32: + | F32: 1653 | G32: Thermosome subunit beta | H32: 8350 | I32: 5.05 | J32: 217.10
A33: OCT-B-Acidilobaceae-r01_01390 | B33: Ga0081478_135822 | C33: 8449 | D33: 8536 | E33: + | F33: 88 | G33: tRNA-Ser(gga) | H33: 425 | I33: 4.83 | J33: 207.57
A34: OCT-B-Acidilobaceae-r01_01215 | B34: Ga0081478_133018 | C34: 25762 | D34: 26931 | E34: + | F34: 1170 | G34: GldG: gliding-associated putative ABC transporter substrate-binding component GldG | H34: 5159 | I34: 4.41 | J34: 189.51
A35: OCT-B-Acidilobaceae-r01_00138 | B35: Ga0081478_137983 | C35: 13110 | D35: 13604 | E35: - | F35: 495 | G35: F(420)H(2) dehydrogenase subunit C | H35: 2165 | I35: 4.37 | J35: 187.98
A36: OCT-B-Acidilobaceae-r01_02441 | B36: Ga0081478_155090 | C36: 26755 | D36: 28419 | E36: + | F36: 1665 | G36: Thermosome subunit alpha | H36: 7199 | I36: 4.32 | J36: 185.83
A37: OCT-B-Acidilobaceae-r01_01733 | B37: Ga0081478_122877 | C37: 9877 | D37: 10170 | E37: + | F37: 294 | G37: CoxD_Bacillus: cytochrome c oxidase, subunit IVB | H37: 1263 | I37: 4.30 | J37: 184.63
A38: OCT-B-Acidilobaceae-r01_00937 | B38: Ga0081478_131515 | C38: 38383 | D38: 38637 | E38: + | F38: 255 | G38: RPB10 DNA-directed RNA polymerase, subunit N (RpoN/RPB10) [Transcription] | H38: 1081 | I38: 4.24 | J38: 182.20
A39: OCT-B-Acidilobaceae-r01_00148 | B39: Ga0081478_137983 | C39: 21095 | D39: 21568 | E39: - | F39: 474 | G39: Uncharacterized protein conserved in bacteria [Function unknown] | H39: 1982 | I39: 4.18 | J39: 179.71
A40: OCT-B-Acidilobaceae-r01_01312 | B40: Ga0081478_129960 | C40: 14813 | D40: 15214 | E40: + | F40: 402 | G40: 30S ribosomal protein S8 | H40: 1605 | I40: 3.99 | J40: 171.59
A41: OCT-B-Acidilobaceae-r01_00844 | B41: Ga0081478_141034 | C41: 7531 | D41: 8298 | E41: + | F41: 768 | G41: soxL2: Rieske iron-sulfur protein SoxL2 | H41: 3010 | I41: 3.92 | J41: 168.45
A42: OCT-B-Acidilobaceae-r01_01732 | B42: Ga0081478_122877 | C42: 7425 | D42: 9866 | E42: + | F42: 2442 | G42: QoxB: cytochrome aa3 quinol oxidase, subunit I | H42: 9360 | I42: 3.83 | J42: 164.73
A43: OCT-B-Acidilobaceae-r01_01878 | B43: Ga0081478_140659 | C43: 28946 | D43: 29023 | E43: + | F43: 78 | G43: tRNA-Arg(ccg) | H43: 296 | I43: 3.79 | J43: 163.10
A44: OCT-B-Acidilobaceae-r01_02365 | B44: Ga0081478_137332 | C44: 4806 | D44: 4982 | E44: - | F44: 177 | G44: Ribbon-helix-helix protein, copG family | H44: 671 | I44: 3.79 | J44: 162.93
A45: OCT-B-Acidilobaceae-r01_01318 | B45: Ga0081478_129960 | C45: 21629 | D45: 23059 | E45: + | F45: 1431 | G45: sufB: FeS assembly protein SufB | H45: 5296 | I45: 3.70 | J45: 159.06
A46: OCT-B-Acidilobaceae-r01_01919 | B46: Ga0081478_140658 | C46: 15 | D46: 1247 | E46: + | F46: 1233 | G46: hypothetical protein | H46: 4415 | I46: 3.58 | J46: 153.89
A47: OCT-B-Acidilobaceae-r01_01237 | B47: Ga0081478_160801 | C47: 1868 | D47: 2179 | E47: + | F47: 312 | G47: GAR1 RNA-binding protein involved in rRNA processing [Translation, ribosomal structure and biogenesis] | H47: 1107 | I47: 3.55 | J47: 152.49
A48: OCT-B-Acidilobaceae-r01_01457 | B48: Ga0081478_144744 | C48: 125 | D48: 1678 | E48: + | F48: 1554 | G48: QcrB Cytochrome b subunit of the bc complex [Energy production and conversion] | H48: 5105 | I48: 3.29 | J48: 141.19
A49: OCT-B-Acidilobaceae-r01_02167 | B49: Ga0081478_142567 | C49: 3084 | D49: 4532 | E49: + | F49: 1449 | G49: TIGR00148: decarboxylase, UbiD family | H49: 4575 | I49: 3.16 | J49: 135.70
A50: OCT-B-Acidilobaceae-r01_00137 | B50: Ga0081478_137983 | C50: 11888 | D50: 13138 | E50: - | F50: 1251 | G50: F(420)H(2) dehydrogenase subunit D | H50: 3920 | I50: 3.13 | J50: 134.67
A51: OCT-B-Acidilobaceae-r01_01089 | B51: Ga0081478_128359 | C51: 8864 | D51: 10255 | E51: + | F51: 1392 | G51: Glucose-binding protein GlcS | H51: 4341 | I51: 3.12 | J51: 134.03
A52: OCT-B-Acidilobaceae-r01_01257 | B52: Ga0081478_160801 | C52: 18813 | D52: 19682 | E52: - | F52: 870 | G52: Glyceraldehyde dehydrogenase medium chain | H52: 2711 | I52: 3.12 | J52: 133.93
A53: OCT-B-Acidilobaceae-r01_02462 | B53: Ga0081478_155090 | C53: 50314 | D53: 51141 | E53: - | F53: 828 | G53: Stomatin homolog PH1511 | H53: 2437 | I53: 2.94 | J53: 126.50
A54: OCT-B-Acidilobaceae-r01_02156 | B54: Ga0081478_138051 | C54: 86386 | D54: 86649 | E54: - | F54: 264 | G54: DNA-directed RNA polymerase subunit H | H54: 775 | I54: 2.94 | J54: 126.17
A55: OCT-B-Acidilobaceae-r01_01054 | B55: Ga0081478_139560 | C55: 11273 | D55: 11560 | E55: - | F55: 288 | G55: 50S ribosomal protein L44e | H55: 841 | I55: 2.92 | J55: 125.50
A56: OCT-B-Acidilobaceae-r01_02093 | B56: Ga0081478_138051 | C56: 22857 | D56: 23195 | E56: - | F56: 339 | G56: Ferredoxin | H56: 973 | I56: 2.87 | J56: 123.36
A57: OCT-B-Acidilobaceae-r01_00888 | B57: Ga0081478_142840 | C57: 1975 | D57: 2217 | E57: - | F57: 243 | G57: hypothetical protein | H57: 697 | I57: 2.87 | J57: 123.28
A58: OCT-B-Acidilobaceae-r01_01731 | B58: Ga0081478_122877 | C58: 6788 | D58: 7477 | E58: + | F58: 690 | G58: CyoA: ubiquinol oxidase, subunit II | H58: 1976 | I58: 2.86 | J58: 123.08
A59: OCT-B-Acidilobaceae-r01_01894 | B59: Ga0081478_140659 | C59: 41936 | D59: 42535 | E59: + | F59: 600 | G59: Pyridoxal 5'-phosphate synthase subunit PdxT | H59: 1718 | I59: 2.86 | J59: 123.06
A60: OCT-B-Acidilobaceae-r01_02452 | B60: Ga0081478_155090 | C60: 41198 | D60: 41516 | E60: + | F60: 319 | G60: RNaseP_arch | H60: 910 | I60: 2.85 | J60: 122.60
A61: OCT-B-Acidilobaceae-r01_00817 | B61: Ga0081478_137301 | C61: 7644 | D61: 8780 | E61: + | F61: 1137 | G61: TRAP_TAXI: TRAP transporter solute receptor, TAXI family | H61: 3226 | I61: 2.84 | J61: 121.94
A62: OCT-B-Acidilobaceae-r01_00664 | B62: Ga0081478_139823 | C62: 4610 | D62: 5458 | E62: + | F62: 849 | G62: Putative thiosulfate sulfurtransferase | H62: 2362 | I62: 2.78 | J62: 119.57
A63: OCT-B-Acidilobaceae-r01_02504 | B63: Ga0081478_138481 | C63: 56 | D63: 1156 | E63: + | F63: 1101 | G63: TRAP_TAXI: TRAP transporter solute receptor, TAXI family | H63: 3023 | I63: 2.75 | J63: 118.01
A64: OCT-B-Acidilobaceae-r01_00139 | B64: Ga0081478_137983 | C64: 13601 | D64: 14194 | E64: - | F64: 594 | G64: nuoB_fam: NADH-quinone oxidoreductase, B subunit | H64: 1598 | I64: 2.69 | J64: 115.62
A65: OCT-B-Acidilobaceae-r01_00515 | B65: Ga0081478_139409 | C65: 9954 | D65: 11597 | E65: - | F65: 1644 | G65: nickel_nikA: nickel ABC transporter, nickel/metallophore periplasmic binding protein | H65: 4364 | I65: 2.65 | J65: 114.09
A66: OCT-B-Acidilobaceae-r01_01974 | B66: Ga0081478_138137 | C66: 4712 | D66: 5812 | E66: - | F66: 1101 | G66: HtpX Zn-dependent protease with chaperone function [Posttranslational modification, protein turnover, chaperones] | H66: 2911 | I66: 2.64 | J66: 113.63
A67: OCT-B-Acidilobaceae-r01_01670 | B67: Ga0081478_137230 | C67: 33059 | D67: 34513 | E67: + | F67: 1455 | G67: hypothetical protein | H67: 3822 | I67: 2.63 | J67: 112.90
A68: OCT-B-Acidilobaceae-r01_01258 | B68: Ga0081478_160801 | C68: 19683 | D68: 22037 | E68: - | F68: 2355 | G68: Glyceraldehyde dehydrogenase large chain | H68: 6080 | I68: 2.58 | J68: 110.96
A69: OCT-B-Acidilobaceae-r01_01319 | B69: Ga0081478_129960 | C69: 23078 | D69: 24232 | E69: + | F69: 1155 | G69: sufB: FeS assembly protein SufB | H69: 2960 | I69: 2.56 | J69: 110.14
A70: OCT-B-Acidilobaceae-r01_01906 | B70: Ga0081478_140659 | C70: 53680 | D70: 55146 | E70: + | F70: 1467 | G70: urea_ABC_arch: urea ABC transporter, substrate-binding protein | H70: 3741 | I70: 2.55 | J70: 109.60
A71: OCT-B-Acidilobaceae-r01_01884 | B71: Ga0081478_140659 | C71: 34043 | D71: 34252 | E71: + | F71: 210 | G71: hypothetical protein | H71: 532 | I71: 2.53 | J71: 108.88
A72: OCT-B-Acidilobaceae-r01_01022 | B72: Ga0081478_142599 | C72: 25215 | D72: 25883 | E72: + | F72: 669 | G72: Superoxide dismutase [Mn/Fe] | H72: 1650 | I72: 2.47 | J72: 106.00
A73: OCT-B-Acidilobaceae-r01_01053 | B73: Ga0081478_139560 | C73: 11049 | D73: 11276 | E73: - | F73: 228 | G73: 30S ribosomal protein S27e | H73: 562 | I73: 2.46 | J73: 105.94
A74: OCT-B-Acidilobaceae-r01_00604 | B74: Ga0081478_137280 | C74: 17410 | D74: 18546 | E74: - | F74: 1137 | G74: BchP-ChlP: geranylgeranyl reductase | H74: 2733 | I74: 2.40 | J74: 103.31
A75: OCT-B-Acidilobaceae-r01_01303 | B75: Ga0081478_129960 | C75: 10389 | D75: 10865 | E75: + | F75: 477 | G75: 50S ribosomal protein L22 | H75: 1139 | I75: 2.39 | J75: 102.63
A76: OCT-B-Acidilobaceae-r01_00128 | B76: Ga0081478_137983 | C76: 564 | D76: 2777 | E76: + | F76: 2214 | G76: Elongation factor 2 | H76: 5109 | I76: 2.31 | J76: 99.18
A77: OCT-B-Acidilobaceae-r01_01259 | B77: Ga0081478_160801 | C77: 22044 | D77: 22538 | E77: - | F77: 495 | G77: Glyceraldehyde dehydrogenase small chain | H77: 1138 | I77: 2.30 | J77: 98.81
A78: OCT-B-Acidilobaceae-r01_01930 | B78: Ga0081478_140658 | C78: 12015 | D78: 12437 | E78: - | F78: 423 | G78: Single-stranded DNA binding protein Ssb | H78: 972 | I78: 2.30 | J78: 98.76
A79: OCT-B-Acidilobaceae-r01_02168 | B79: Ga0081478_142567 | C79: 4498 | D79: 5418 | E79: + | F79: 921 | G79: menA_cyano-plnt: 1,4-dihydroxy-2-naphthoate phytyltransferase | H79: 2103 | I79: 2.28 | J79: 98.14
A80: OCT-B-Acidilobaceae-r01_00654 | B80: Ga0081478_141405 | C80: 2387 | D80: 4198 | E80: - | F80: 1812 | G80: SBP_KPN_01854: ABC transporter substrate binding protein, KPN_01854 family | H80: 4060 | I80: 2.24 | J80: 96.30
A81: OCT-B-Acidilobaceae-r01_01481 | B81: Ga0081478_140488 | C81: 1665 | D81: 2075 | E81: - | F81: 411 | G81: hypothetical protein | H81: 919 | I81: 2.24 | J81: 96.10
A82: OCT-B-Acidilobaceae-r01_01302 | B82: Ga0081478_129960 | C82: 9936 | D82: 10373 | E82: + | F82: 438 | G82: 30S ribosomal protein S19 | H82: 978 | I82: 2.23 | J82: 95.97
A83: OCT-B-Acidilobaceae-r01_00170 | B83: Ga0081478_141691 | C83: 3114 | D83: 3446 | E83: + | F83: 333 | G83: arch_SelU_Nterm: selenouridine synthase, SelU N-terminal-like subunit | H83: 743 | I83: 2.23 | J83: 95.90
A84: OCT-B-Acidilobaceae-r01_01883 | B84: Ga0081478_140659 | C84: 33654 | D84: 34037 | E84: + | F84: 384 | G84: hypothetical protein | H84: 848 | I84: 2.21 | J84: 94.91
A85: OCT-B-Acidilobaceae-r01_01714 | B85: Ga0081478_140975 | C85: 19118 | D85: 19696 | E85: - | F85: 579 | G85: Deglycase PH1704 | H85: 1260 | I85: 2.18 | J85: 93.53
A86: OCT-B-Acidilobaceae-r01_01992 | B86: Ga0081478_160966 | C86: 5783 | D86: 6712 | E86: - | F86: 930 | G86: SpoVT_AbrB SpoVT / AbrB like domain This domain is found in AbrB from Bacillus subtilis. The product of the abrB gene is an ambiactive repressor and activator of the transcription of genes expressed during the transition state between vegetative growth and the onset of stationary phase and sporulation PUBMED:2504584. AbrB is thought to interact directly with the transcription initiation regions of genes under its control PUBMED:8755877. AbrB contains a helix-turn-helix structure, but this domain ends before the helix-turn-helix begins PUBMED:1908787. The product of the B. subtilis gene spoVT is another member of this family and is also a transcriptional regulator PUBMED:8755877. DNA-binding activity in this AbrB homologue requires hexamerisation PUBMED:10978510. Another family member has been isolated from the Sulfolobus solfataricus and has been identified as a homologue of bacterial repressor-like proteins. The Escherichia coli family member SohA or Prl1F appears to be bifunctional and is able to regulate its own expression as well as relieve the export block imposed by high-level synthesis of beta-galactosidase hybrid proteins PUBMED:2152898. | H86: 2001 | I86: 2.15 | J86: 92.47
A87: OCT-B-Acidilobaceae-r01_01891 | B87: Ga0081478_140659 | C87: 39543 | D87: 39896 | E87: + | F87: 354 | G87: SQR_TypeA_SdhD_like, Succinate:quinone oxidoreductase (SQR) Type A subfamily, Succinate dehydrogenase D (SdhD)-like subunit; SQR catalyzes the oxidation of succinate to fumarate coupled to the reduction of quinone to quinol. Members of this subfamily reduce low potential quinones such as menaquinone and thermoplasmaquinone. SQR is also called succinate dehydrogenase or Complex II, and is part of the citric acid cycle and the aerobic respiratory chain. SQR is composed of a flavoprotein catalytic subunit, an iron-sulfur protein and one or two hydrophobic transmembrane subunits. Members of this subfamily are similar to the Thermoplasma acidophilum SQR and are classified as Type A because they contain two transmembrane subunits as well as two heme groups. Although there are no structures available for this subfamily, the presence of two hemes has been proven spectroscopically for T. acidophilum. The two membrane anchor subunits are similar to the SdhD and SdhC subunits of bacterial SQRs, which contain heme and quinone binding sites. The two-electron oxidation of succinate in the flavoprotein active site is coupled to the two-electron reduction of quinone in the membrane anchor subunits via electron transport through FAD and three iron-sulfur centers. The reversible reduction of quinone is an essential feature of respiration, allowing transfer of electrons between respiratory complexes | H87: 758 | I87: 2.14 | J87: 92.03
A88: OCT-B-Acidilobaceae-r01_00374 | B88: Ga0081478_152258 | C88: 2644 | D88: 3066 | E88: + | F88: 423 | G88: gcvH: glycine cleavage system H protein | H88: 905 | I88: 2.14 | J88: 91.95
A89: OCT-B-Acidilobaceae-r01_00151 | B89: Ga0081478_137983 | C89: 23032 | D89: 23499 | E89: + | F89: 468 | G89: Peroxiredoxin | H89: 990 | I89: 2.12 | J89: 90.92
A90: OCT-B-Acidilobaceae-r01_02549 | B90: Ga0081478_139210 | C90: 6021 | D90: 8684 | E90: - | F90: 2664 | G90: T7SS_mycosin: type VII secretion-associated serine protease mycosin | H90: 5598 | I90: 2.10 | J90: 90.31
A91: OCT-B-Acidilobaceae-r01_02166 | B91: Ga0081478_142567 | C91: 1981 | D91: 2958 | E91: - | F91: 978 | G91: ABC_peri_uca: ABC transporter periplasmic binding protein, urea carboxylase region | H91: 2055 | I91: 2.10 | J91: 90.31
A92: OCT-B-Acidilobaceae-r01_01890 | B92: Ga0081478_140659 | C92: 39064 | D92: 39531 | E92: + | F92: 468 | G92: succ_dehyd_cytB: succinate dehydrogenase, cytochrome b556 subunit | H92: 979 | I92: 2.09 | J92: 89.91
A93: OCT-B-Acidilobaceae-r01_00012 | B93: Ga0081478_169359 | C93: 54 | D93: 227 | E93: - | F93: 174 | G93: RPL24A Ribosomal protein L24E [Translation, ribosomal structure and biogenesis] | H93: 361 | I93: 2.07 | J93: 89.17
A94: OCT-B-Acidilobaceae-r01_01893 | B94: Ga0081478_140659 | C94: 40926 | D94: 41933 | E94: + | F94: 1008 | G94: Pyridoxal 5'-phosphate synthase subunit PdxS | H94: 2088 | I94: 2.07 | J94: 89.03
A95: OCT-B-Acidilobaceae-r01_02460 | B95: Ga0081478_155090 | C95: 48724 | D95: 48909 | E95: + | F95: 186 | G95: hypothetical protein | H95: 371 | I95: 1.99 | J95: 85.73
A96: OCT-B-Acidilobaceae-r01_02152 | B96: Ga0081478_138051 | C96: 78617 | D96: 78949 | E96: - | F96: 333 | G96: 50S ribosomal protein L30e | H96: 664 | I96: 1.99 | J96: 85.70
A97: OCT-B-Acidilobaceae-r01_02155 | B97: Ga0081478_138051 | C97: 82859 | D97: 86383 | E97: - | F97: 3525 | G97: rpoB: DNA-directed RNA polymerase, beta subunit | H97: 7001 | I97: 1.99 | J97: 85.36
A98: OCT-B-Acidilobaceae-r01_01203 | B98: Ga0081478_133018 | C98: 9322 | D98: 10434 | E98: + | F98: 1113 | G98: nickel_nikB: nickel ABC transporter, permease subunit NikB | H98: 2202 | I98: 1.98 | J98: 85.03
A99: OCT-B-Acidilobaceae-r01_01358 | B99: Ga0081478_132901 | C99: 27927 | D99: 28508 | E99: - | F99: 582 | G99: hypothetical protein | H99: 1145 | I99: 1.97 | J99: 84.55
A100: OCT-B-Acidilobaceae-r01_02120 | B100: Ga0081478_138051 | C100: 48873 | D100: 49112 | E100: + | F100: 240 | G100: hypothetical protein | H100: 468 | I100: 1.95 | J100: 83.81
A101: OCT-B-Acidilobaceae-r01_00259 | B101: Ga0081478_140493 | C101: 4461 | D101: 4652 | E101: - | F101: 192 | G101: tatAE: twin arginine-targeting protein translocase, TatA/E family | H101: 371 | I101: 1.93 | J101: 83.05
A102: OCT-B-Acidilobaceae-r01_01707 | B102: Ga0081478_140975 | C102: 12881 | D102: 13858 | E102: + | F102: 978 | G102: glycerol3P_GlpC: glycerol-3-phosphate dehydrogenase, anaerobic, C subunit | H102: 1888 | I102: 1.93 | J102: 82.97
A103: OCT-B-Acidilobaceae-r01_01101 | B103: Ga0081478_128359 | C103: 20479 | D103: 20919 | E103: + | F103: 441 | G103: nifX: nitrogen fixation protein NifX | H103: 847 | I103: 1.92 | J103: 82.55
A104: OCT-B-Acidilobaceae-r01_01311 | B104: Ga0081478_129960 | C104: 14059 | D104: 14622 | E104: + | F104: 564 | G104: 50S ribosomal protein L5 | H104: 1073 | I104: 1.90 | J104: 81.77
A105: OCT-B-Acidilobaceae-r01_01136 | B105: Ga0081478_128359 | C105: 53974 | D105: 54732 | E105: + | F105: 759 | G105: Probable branched-chain amino acid transport ATP-binding protein LivG | H105: 1424 | I105: 1.88 | J105: 80.63
A106: OCT-B-Acidilobaceae-r01_02092 | B106: Ga0081478_138051 | C106: 21870 | D106: 22823 | E106: + | F106: 954 | G106: 2-oxoacid:ferredoxin oxidoreductase 1, subunit beta | H106: 1789 | I106: 1.88 | J106: 80.60
A107: OCT-B-Acidilobaceae-r01_00336 | B107: Ga0081478_133433 | C107: 3028 | D107: 3297 | E107: + | F107: 270 | G107: hypothetical protein | H107: 503 | I107: 1.86 | J107: 80.07
A108: OCT-B-Acidilobaceae-r01_01205 | B108: Ga0081478_133018 | C108: 12045 | D108: 13142 | E108: + | F108: 1098 | G108: nickel_nikE: nickel import ATP-binding protein NikE | H108: 2024 | I108: 1.84 | J108: 79.22
A109: OCT-B-Acidilobaceae-r01_02151 | B109: Ga0081478_138051 | C109: 78193 | D109: 78624 | E109: - | F109: 432 | G109: nusA_arch: NusA family KH domain protein, archaeal | H109: 796 | I109: 1.84 | J109: 79.19
A110: OCT-B-Acidilobaceae-r01_01493 | B110: Ga0081478_140488 | C110: 13552 | D110: 14004 | E110: - | F110: 453 | G110: Homoserine O-acetyltransferase | H110: 833 | I110: 1.84 | J110: 79.03
A111: OCT-B-Acidilobaceae-r01_01204 | B111: Ga0081478_133018 | C111: 10434 | D111: 12026 | E111: + | F111: 1593 | G111: nickel_nikC: nickel ABC transporter, permease subunit NikC | H111: 2926 | I111: 1.84 | J111: 78.94
A112: OCT-B-Acidilobaceae-r01_01882 | B112: Ga0081478_140659 | C112: 31883 | D112: 33640 | E112: + | F112: 1758 | G112: Fumarate reductase (CoM/CoB) subunit A | H112: 3216 | I112: 1.83 | J112: 78.62
A113: OCT-B-Acidilobaceae-r01_01135 | B113: Ga0081478_128359 | C113: 52645 | D113: 53964 | E113: + | F113: 1320 | G113: urea_ABC_UrtA: urea ABC transporter, urea binding protein | H113: 2411 | I113: 1.83 | J113: 78.50
A114: OCT-B-Acidilobaceae-r01_00202 | B114: Ga0081478_160465 | C114: 3319 | D114: 3669 | E114: - | F114: 351 | G114: hypothetical protein | H114: 627 | I114: 1.79 | J114: 76.77
A115: OCT-B-Acidilobaceae-r01_01769 | B115: Ga0081478_133467 | C115: 4694 | D115: 4990 | E115: + | F115: 297 | G115: hypothetical protein | H115: 528 | I115: 1.78 | J115: 76.41
A116: OCT-B-Acidilobaceae-r01_01972 | B116: Ga0081478_138137 | C116: 3010 | D116: 3993 | E116: + | F116: 984 | G116: Cobalamin import system permease protein BtuC | H116: 1729 | I116: 1.76 | J116: 75.52
A117: OCT-B-Acidilobaceae-r01_01967 | B117: Ga0081478_140658 | C117: 40239 | D117: 40976 | E117: - | F117: 738 | G117: GlrX_arch: glutaredoxin-like domain protein | H117: 1296 | I117: 1.76 | J117: 75.47
A118: OCT-B-Acidilobaceae-r01_02165 | B118: Ga0081478_142567 | C118: 1286 | D118: 1984 | E118: - | F118: 699 | G118: Uncharacterized ABC transporter ATP-binding protein MJ0796 | H118: 1219 | I118: 1.74 | J118: 74.95
A119: OCT-B-Acidilobaceae-r01_01024 | B119: Ga0081478_142599 | C119: 27315 | D119: 27608 | E119: + | F119: 294 | G119: hypothetical protein | H119: 509 | I119: 1.73 | J119: 74.41
A120: OCT-B-Acidilobaceae-r01_00136 | B120: Ga0081478_137983 | C120: 10857 | D120: 11876 | E120: - | F120: 1020 | G120: F(420)H(2) dehydrogenase subunit H | H120: 1747 | I120: 1.71 | J120: 73.61
A121: OCT-B-Acidilobaceae-r01_01179 | B121: Ga0081478_149297 | C121: 28220 | D121: 28486 | E121: + | F121: 267 | G121: 50S ribosomal protein L37Ae | H121: 456 | I121: 1.71 | J121: 73.40
A122: OCT-B-Acidilobaceae-r01_02091 | B122: Ga0081478_138051 | C122: 19967 | D122: 21880 | E122: + | F122: 1914 | G122: 2-oxoacid:ferredoxin oxidoreductase 1, subunit alpha | H122: 3246 | I122: 1.70 | J122: 72.89
A123: OCT-B-Acidilobaceae-r01_01592 | B123: Ga0081478_139141 | C123: 161 | D123: 1426 | E123: + | F123: 1266 | G123: SBP_KPN_01854: ABC transporter substrate binding protein, KPN_01854 family | H123: 2143 | I123: 1.69 | J123: 72.75
A124: OCT-B-Acidilobaceae-r01_01355 | B124: Ga0081478_132901 | C124: 26409 | D124: 26684 | E124: - | F124: 276 | G124: UPF0147 protein Ta0600 | H124: 466 | I124: 1.69 | J124: 72.57
A125: OCT-B-Acidilobaceae-r01_00934 | B125: Ga0081478_131515 | C125: 36655 | D125: 37017 | E125: + | F125: 363 | G125: 50S ribosomal protein L18e | H125: 609 | I125: 1.68 | J125: 72.10
A126: OCT-B-Acidilobaceae-r01_01885 | B126: Ga0081478_140659 | C126: 34236 | D126: 34973 | E126: + | F126: 738 | G126: Fumarate reductase (CoM/CoB) subunit B | H126: 1238 | I126: 1.68 | J126: 72.10
A127: OCT-B-Acidilobaceae-r01_01579 | B127: Ga0081478_160473 | C127: 11964 | D127: 12974 | E127: + | F127: 1011 | G127: 16S ribosomal RNA (partial) | H127: 1680 | I127: 1.66 | J127: 71.42
A128: OCT-B-Acidilobaceae-r01_01357 | B128: Ga0081478_132901 | C128: 27716 | D128: 27886 | E128: + | F128: 171 | G128: Ribosome biogenesis protein Nop10 | H128: 284 | I128: 1.66 | J128: 71.38
A129: OCT-B-Acidilobaceae-r01_00909 | B129: Ga0081478_131515 | C129: 14373 | D129: 14540 | E129: + | F129: 168 | G129: hypothetical protein | H129: 278 | I129: 1.65 | J129: 71.12
A130: OCT-B-Acidilobaceae-r01_01933 | B130: Ga0081478_140658 | C130: 13684 | D130: 13866 | E130: + | F130: 183 | G130: Chromatin protein Cren7 | H130: 301 | I130: 1.64 | J130: 70.69
A131: OCT-B-Acidilobaceae-r01_02341 | B131: Ga0081478_139550 | C131: 7703 | D131: 7915 | E131: + | F131: 213 | G131: Chromatin protein Cren7 | H131: 347 | I131: 1.63 | J131: 70.02
A132: OCT-B-Acidilobaceae-r01_02150 | B132: Ga0081478_138051 | C132: 77712 | D132: 78155 | E132: - | F132: 444 | G132: 30S ribosomal protein S12 | H132: 720 | I132: 1.62 | J132: 69.70
A133: OCT-B-Acidilobaceae-r01_02154 | B133: Ga0081478_138051 | C133: 80171 | D133: 82852 | E133: - | F133: 2682 | G133: DNA-directed RNA polymerase subunit A' | H133: 4331 | I133: 1.61 | J133: 69.40
A134: OCT-B-Acidilobaceae-r01_01965 | B134: Ga0081478_140658 | C134: 39537 | D134: 39815 | E134: + | F134: 279 | G134: hypothetical protein | H134: 450 | I134: 1.61 | J134: 69.32
A135: OCT-B-Acidilobaceae-r01_02461 | B135: Ga0081478_155090 | C135: 48906 | D135: 50306 | E135: - | F135: 1401 | G135: Membrane-bound protease PH1510 | H135: 2259 | I135: 1.61 | J135: 69.30
A136: OCT-B-Acidilobaceae-r01_01768 | B136: Ga0081478_133467 | C136: 3568 | D136: 4683 | E136: + | F136: 1116 | G136: Uncharacterized protein conserved in archaea [Function unknown] | H136: 1791 | I136: 1.60 | J136: 68.97
A137: OCT-B-Acidilobaceae-r01_02149 | B137: Ga0081478_138051 | C137: 77192 | D137: 77674 | E137: + | F137: 483 | G137: Uncharacterized conserved protein [Function unknown] | H137: 773 | I137: 1.60 | J137: 68.78
A138: OCT-B-Acidilobaceae-r01_01320 | B138: Ga0081478_129960 | C138: 24307 | D138: 25518 | E138: + | F138: 1212 | G138: Citrate synthase | H138: 1938 | I138: 1.60 | J138: 68.72
A139: OCT-B-Acidilobaceae-r01_00135 | B139: Ga0081478_137983 | C139: 10245 | D139: 10781 | E139: - | F139: 537 | G139: sulfite_red_C: sulfite reductase, subunit C | H139: 836 | I139: 1.56 | J139: 66.91
A140: OCT-B-Acidilobaceae-r01_00180 | B140: Ga0081478_142411 | C140: 775 | D140: 849 | E140: - | F140: 75 | G140: tRNA-Phe(gaa) | H140: 116 | I140: 1.55 | J140: 66.47
A141: OCT-B-Acidilobaceae-r01_01708 | B141: Ga0081478_140975 | C141: 13839 | D141: 15068 | E141: + | F141: 1230 | G141: TIGR00273: iron-sulfur cluster-binding protein | H141: 1898 | I141: 1.54 | J141: 66.32
A142: OCT-B-Acidilobaceae-r01_02112 | B142: Ga0081478_138051 | C142: 42331 | D142: 43725 | E142: + | F142: 1395 | G142: V-type ATP synthase beta chain | H142: 2151 | I142: 1.54 | J142: 66.27
A143: OCT-B-Acidilobaceae-r01_01704 | B143: Ga0081478_140975 | C143: 9631 | D143: 11076 | E143: + | F143: 1446 | G143: nramp: metal ion transporter, metal ion (Mn2+/Fe2+) transporter (Nramp) family | H143: 2224 | I143: 1.54 | J143: 66.10
A144: OCT-B-Acidilobaceae-r01_01892 | B144: Ga0081478_140659 | C144: 39904 | D144: 40824 | E144: + | F144: 921 | G144: dhsB: succinate dehydrogenase and fumarate reductase iron-sulfur protein | H144: 1416 | I144: 1.54 | J144: 66.08
A145: OCT-B-Acidilobaceae-r01_00548 | B145: Ga0081478_137736 | C145: 12351 | D145: 12455 | E145: + | F145: 105 | G145: hypothetical protein | H145: 161 | I145: 1.53 | J145: 65.90
A146: OCT-B-Acidilobaceae-r01_01003 | B146: Ga0081478_142599 | C146: 8821 | D146: 9900 | E146: - | F146: 1080 | G146: S-adenosyl-L-methionine-dependent tRNA 4-demethylwyosine synthase | H146: 1647 | I146: 1.53 | J146: 65.54
A147: OCT-B-Acidilobaceae-r01_02370 | B147: Ga0081478_137332 | C147: 7836 | D147: 8354 | E147: + | F147: 519 | G147: Predicted Fe-S-cluster oxidoreductase [General function prediction only] | H147: 785 | I147: 1.51 | J147: 65.01
A148: OCT-B-Acidilobaceae-r01_02424 | B148: Ga0081478_155090 | C148: 12580 | D148: 12987 | E148: - | F148: 408 | G148: Arginine decarboxylase proenzyme | H148: 613 | I148: 1.50 | J148: 64.57
A149: OCT-B-Acidilobaceae-r01_01734 | B149: Ga0081478_122877 | C149: 10273 | D149: 10950 | E149: + | F149: 678 | G149: Uncharacterized protein SCO1/SenC/PrrC, involved in biogenesis of respiratory and photosynthetic systems [General function pred | H149: 1018 | I149: 1.50 | J149: 64.53
A150: OCT-B-Acidilobaceae-r01_02345 | B150: Ga0081478_139550 | C150: 10557 | D150: 10931 | E150: + | F150: 375 | G150: SUI1_rel: putative translation initiation factor SUI1 | H150: 563 | I150: 1.50 | J150: 64.53
A151: OCT-B-Acidilobaceae-r01_01377 | B151: Ga0081478_170075 | C151: 2428 | D151: 2934 | E151: + | F151: 507 | G151: FDH-beta: formate dehydrogenase, beta subunit | H151: 758 | I151: 1.50 | J151: 64.26
A152: OCT-B-Acidilobaceae-r01_01706 | B152: Ga0081478_140975 | C152: 12584 | D152: 12868 | E152: + | F152: 285 | G152: cdhA: CO dehydrogenase/acetyl-CoA synthase complex, epsilon subunit | H152: 425 | I152: 1.49 | J152: 64.09
A153: OCT-B-Acidilobaceae-r01_02113 | B153: Ga0081478_138051 | C153: 43731 | D153: 44375 | E153: + | F153: 645 | G153: V-type ATP synthase subunit D | H153: 958 | I153: 1.49 | J153: 63.84
A154: OCT-B-Acidilobaceae-r01_02000 | B154: Ga0081478_163590 | C154: 2188 | D154: 3120 | E154: - | F154: 933 | G154: Transcription initiation factor IIB | H154: 1380 | I154: 1.48 | J154: 63.57
A155: OCT-B-Acidilobaceae-r01_01354 | B155: Ga0081478_132901 | C155: 24933 | D155: 26354 | E155: - | F155: 1422 | G155: Probable ribonuclease FAU-1 | H155: 2101 | I155: 1.48 | J155: 63.50
A156: OCT-B-Acidilobaceae-r01_00149 | B156: Ga0081478_137983 | C156: 21561 | D156: 22265 | E156: - | F156: 705 | G156: hypothetical protein | H156: 1036 | I156: 1.47 | J156: 63.16
A157: OCT-B-Acidilobaceae-r01_01796 | B157: Ga0081478_140222 | C157: 24032 | D157: 24253 | E157: + | F157: 222 | G157: hypothetical protein | H157: 326 | I157: 1.47 | J157: 63.11
A158: OCT-B-Acidilobaceae-r01_01376 | B158: Ga0081478_170075 | C158: 553 | D158: 2424 | E158: + | F158: 1872 | G158: Tungsten-containing aldehyde ferredoxin oxidoreductase | H158: 2740 | I158: 1.46 | J158: 62.91
A159: OCT-B-Acidilobaceae-r01_00601 | B159: Ga0081478_137280 | C159: 14554 | D159: 15342 | E159: - | F159: 789 | G159: Probable branched-chain amino acid transport ATP-binding protein LivG | H159: 1152 | I159: 1.46 | J159: 62.75
A160: OCT-B-Acidilobaceae-r01_00133 | B160: Ga0081478_137983 | C160: 9464 | D160: 9763 | E160: - | F160: 300 | G160: 2a6301s03: multicomponent Na+:H+ antiporter, MnhC subunit | H160: 436 | I160: 1.45 | J160: 62.46
A161: OCT-B-Acidilobaceae-r01_00908 | B161: Ga0081478_131515 | C161: 13649 | D161: 14212 | E161: + | F161: 564 | G161: hypothetical protein | H161: 805 | I161: 1.43 | J161: 61.34
A162: OCT-B-Acidilobaceae-r01_01137 | B162: Ga0081478_128359 | C162: 54821 | D162: 55426 | E162: + | F162: 606 | G162: Glucose import ATP-binding protein GlcV | H162: 863 | I162: 1.42 | J162: 61.21
A163: OCT-B-Acidilobaceae-r01_01174 | B163: Ga0081478_149297 | C163: 24397 | D163: 25170 | E163: + | F163: 774 | G163: Proteasome subunit alpha | H163: 1101 | I163: 1.42 | J163: 61.14
A164: OCT-B-Acidilobaceae-r01_02534 | B164: Ga0081478_128731 | C164: 19332 | D164: 19571 | E164: + | F164: 240 | G164: hypothetical protein | H164: 341 | I164: 1.42 | J164: 61.07
A165: OCT-B-Acidilobaceae-r01_01277 | B165: Ga0081478_133039 | C165: 8890 | D165: 12285 | E165: + | F165: 3396 | G165: ATP_syn_A_arch: ATP synthase archaeal, A subunit | H165: 4817 | I165: 1.42 | J165: 60.96
A166: OCT-B-Acidilobaceae-r01_01025 | B166: Ga0081478_142599 | C166: 27577 | D166: 28467 | E166: + | F166: 891 | G166: mft_etfB: electron transfer flavoprotein, mycofactocin-associated | H166: 1263 | I166: 1.42 | J166: 60.92
A167: OCT-B-Acidilobaceae-r01_00147 | B167: Ga0081478_137983 | C167: 19898 | D167: 20968 | E167: - | F167: 1071 | G167: TRAP_TAXI: TRAP transporter solute receptor, TAXI family | H167: 1508 | I167: 1.41 | J167: 60.52
A168: OCT-B-Acidilobaceae-r01_01317 | B168: Ga0081478_129960 | C168: 20807 | D168: 21586 | E168: + | F168: 780 | G168: Probable branched-chain amino acid transport ATP-binding protein LivG | H168: 1097 | I168: 1.41 | J168: 60.45
A169: OCT-B-Acidilobaceae-r01_02295 | B169: Ga0081478_137789 | C169: 7480 | D169: 7683 | E169: + | F169: 204 | G169: hypothetical protein | H169: 286 | I169: 1.40 | J169: 60.25
A170: OCT-B-Acidilobaceae-r01_02288 | B170: Ga0081478_137789 | C170: 1057 | D170: 1557 | E170: + | F170: 501 | G170: hypothetical protein | H170: 693 | I170: 1.38 | J170: 59.45
A171: OCT-B-Acidilobaceae-r01_02121 | B171: Ga0081478_138051 | C171: 49123 | D171: 50355 | E171: + | F171: 1233 | G171: Cysteine desulfurase | H171: 1693 | I171: 1.37 | J171: 59.01
A172: OCT-B-Acidilobaceae-r01_00408 | B172: Ga0081478_145485 | C172: 3686 | D172: 4243 | E172: + | F172: 558 | G172: Archaeal PaREP1/PaREP8 family | H172: 764 | I172: 1.37 | J172: 58.85
A173: OCT-B-Acidilobaceae-r01_01895 | B173: Ga0081478_140659 | C173: 42564 | D173: 43685 | E173: + | F173: 1122 | G173: trpB_rel: pyridoxal-phosphate dependent TrpB-like enzyme | H173: 1529 | I173: 1.36 | J173: 58.57
A174: OCT-B-Acidilobaceae-r01_02434 | B174: Ga0081478_155090 | C174: 20123 | D174: 21973 | E174: + | F174: 1851 | G174: Peptide N-acetyl-beta-D-glucosaminyl asparaginase amidase A | H174: 2521 | I174: 1.36 | J174: 58.54
A175: OCT-B-Acidilobaceae-r01_00580 | B175: Ga0081478_147726 | C175: 3545 | D175: 4948 | E175: - | F175: 1404 | G175: urea_ABC_UrtA: urea ABC transporter, urea binding protein | H175: 1903 | I175: 1.36 | J175: 58.25
A176: OCT-B-Acidilobaceae-r01_02114 | B176: Ga0081478_138051 | C176: 44365 | D176: 44613 | E176: - | F176: 249 | G176: hypothetical protein | H176: 333 | I176: 1.34 | J176: 57.48
A177: OCT-B-Acidilobaceae-r01_00134 | B177: Ga0081478_137983 | C177: 9766 | D177: 10245 | E177: - | F177: 480 | G177: NuoJ NADH:ubiquinone oxidoreductase subunit 6 (chain J) [Energy production and conversion] | H177: 641 | I177: 1.34 | J177: 57.39
A178: OCT-B-Acidilobaceae-r01_00697 | B178: Ga0081478_141244 | C178: 9578 | D178: 9823 | E178: + | F178: 246 | G178: hypothetical protein | H178: 328 | I178: 1.33 | J178: 57.30
A179: OCT-B-Acidilobaceae-r01_01889 | B179: Ga0081478_140659 | C179: 37302 | D179: 39050 | E179: + | F179: 1749 | G179: Fumarate reductase (CoM/CoB) subunit A | H179: 2330 | I179: 1.33 | J179: 57.26
A180: OCT-B-Acidilobaceae-r01_00175 | B180: Ga0081478_141691 | C180: 7508 | D180: 7816 | E180: + | F180: 309 | G180: hypothetical protein | H180: 410 | I180: 1.33 | J180: 57.03
A181: OCT-B-Acidilobaceae-r01_00177 | B181: Ga0081478_141691 | C181: 9735 | D181: 10664 | E181: + | F181: 930 | G181: 2-oxoacid:ferredoxin oxidoreductase 2, subunit beta | H181: 1233 | I181: 1.33 | J181: 56.98
A182: OCT-B-Acidilobaceae-r01_01307 | B182: Ga0081478_129960 | C182: 12098 | D182: 12445 | E182: + | F182: 348 | G182: 30S ribosomal protein S17 | H182: 456 | I182: 1.31 | J182: 56.32
A183: OCT-B-Acidilobaceae-r01_01807 | B183: Ga0081478_140222 | C183: 33730 | D183: 34071 | E183: + | F183: 342 | G183: ribo_P1_arch: 50S ribosomal protein P1 | H183: 444 | I183: 1.30 | J183: 55.80
A184: OCT-B-Acidilobaceae-r01_02590 | B184: Ga0081478_139210 | C184: 55787 | D184: 56719 | E184: + | F184: 933 | G184: nickel_nikB: nickel ABC transporter, permease subunit NikB | H184: 1211 | I184: 1.30 | J184: 55.78
A185: OCT-B-Acidilobaceae-r01_01973 | B185: Ga0081478_138137 | C185: 3977 | D185: 4717 | E185: + | F185: 741 | G185: Glucose import ATP-binding protein GlcV | H185: 961 | I185: 1.30 | J185: 55.74
A186: OCT-B-Acidilobaceae-r01_00938 | B186: Ga0081478_131515 | C186: 38641 | D186: 39249 | E186: + | F186: 609 | G186: 30S ribosomal protein S2 | H186: 784 | I186: 1.29 | J186: 55.33
A187: OCT-B-Acidilobaceae-r01_00923 | B187: Ga0081478_131515 | C187: 25036 | D187: 25464 | E187: + | F187: 429 | G187: FlaF Putative archaeal flagellar protein F [Cell motility and secretion] | H187: 550 | I187: 1.28 | J187: 55.10
A188: OCT-B-Acidilobaceae-r01_02466 | B188: Ga0081478_155090 | C188: 53236 | D188: 53844 | E188: - | F188: 609 | G188: Adenylate kinase | H188: 779 | I188: 1.28 | J188: 54.98
A189: OCT-B-Acidilobaceae-r01_02296 | B189: Ga0081478_137789 | C189: 7680 | D189: 8990 | E189: - | F189: 1311 | G189: hypothetical protein | H189: 1668 | I189: 1.27 | J189: 54.68
A190: OCT-B-Acidilobaceae-r01_01310 | B190: Ga0081478_129960 | C190: 13301 | D190: 14062 | E190: + | F190: 762 | G190: 30S ribosomal protein S4e | H190: 968 | I190: 1.27 | J190: 54.60
A191: OCT-B-Acidilobaceae-r01_02141 | B191: Ga0081478_138051 | C191: 69390 | D191: 69824 | E191: - | F191: 435 | G191: Uncharacterized protein conserved in archaea [Function unknown] | H191: 547 | I191: 1.26 | J191: 54.04
A192: OCT-B-Acidilobaceae-r01_01785 | B192: Ga0081478_140222 | C192: 11425 | D192: 13095 | E192: - | F192: 1671 | G192: hypothetical protein | H192: 2091 | I192: 1.25 | J192: 53.78
A193: OCT-B-Acidilobaceae-r01_00894 | B193: Ga0081478_131515 | C193: 108 | D193: 1397 | E193: + | F193: 1290 | G193: urea_ABC_UrtA: urea ABC transporter, urea binding protein | H193: 1608 | I193: 1.25 | J193: 53.57
A194: OCT-B-Acidilobaceae-r01_01797 | B194: Ga0081478_140222 | C194: 24257 | D194: 25759 | E194: + | F194: 1503 | G194: Na_Pro_sym: sodium/proline symporter | H194: 1868 | I194: 1.24 | J194: 53.42
A195: OCT-B-Acidilobaceae-r01_00983 | B195: Ga0081478_136511 | C195: 18460 | D195: 18720 | E195: - | F195: 261 | G195: 50S ribosomal protein L18Ae | H195: 324 | I195: 1.24 | J195: 53.35
A196: OCT-B-Acidilobaceae-r01_01907 | B196: Ga0081478_140659 | C196: 55171 | D196: 56061 | E196: + | F196: 891 | G196: urea_trans_UrtB: urea ABC transporter, permease protein UrtB | H196: 1097 | I196: 1.23 | J196: 52.92
A197: OCT-B-Acidilobaceae-r01_01304 | B197: Ga0081478_129960 | C197: 10865 | D197: 11614 | E197: + | F197: 750 | G197: 30S ribosomal protein S3 | H197: 920 | I197: 1.23 | J197: 52.72
A198: OCT-B-Acidilobaceae-r01_01909 | B198: Ga0081478_140659 | C198: 57047 | D198: 57805 | E198: + | F198: 759 | G198: Probable branched-chain amino acid transport ATP-binding protein LivG | H198: 931 | I198: 1.23 | J198: 52.72
A199: OCT-B-Acidilobaceae-r01_02153 | B199: Ga0081478_138051 | C199: 78952 | D199: 80178 | E199: - | F199: 1227 | G199: DNA-directed RNA polymerase subunit A'' | H199: 1504 | I199: 1.23 | J199: 52.68
A200: OCT-B-Acidilobaceae-r01_00600 | B200: Ga0081478_137280 | C200: 13832 | D200: 14551 | E200: - | F200: 720 | G200: Probable branched-chain amino acid transport ATP-binding protein LivG | H200: 882 | I200: 1.23 | J200: 52.65
... 2405 more rows

Sheet OCT-B-Caldarchaeales-r01
A1: Gene_id | B1: Contig | C1: Start | D1: End | E1: Strand | F1: Length | G1: transcript_id | H1: Raw_counts | I1: Reads_base | J1: TPM
A2: OCT-B-Caldarchaeales-r01_01387 | B2: Ga0081478_143253 | C2: 1 | D2: 1807 | E2: - | F2: 1807 | G2: 23S ribosomal RNA (partial) | H2: 170039 | I2: 94.10 | J2: 4044.30
A3: OCT-B-Caldarchaeales-r01_01391 | B3: Ga0081478_143253 | C3: 4658 | D3: 4744 | E3: + | F3: 87 | G3: Bacteria_small_SRP | H3: 4366 | I3: 50.18 | J3: 2156.84
A4: OCT-B-Caldarchaeales-r01_00339 | B4: Ga0081478_139480 | C4: 2559 | D4: 2843 | E4: + | F4: 285 | G4: RNaseP_arch | H4: 12864 | I4: 45.14 | J4: 1939.92
A5: OCT-B-Caldarchaeales-r01_00342 | B5: Ga0081478_136683 | C5: 16 | D5: 2611 | E5: + | F5: 2596 | G5: 23S ribosomal RNA | H5: 53476 | I5: 20.60 | J5: 885.33
A6: OCT-B-Caldarchaeales-r01_00243 | B6: Ga0081478_135131 | C6: 2462 | D6: 2602 | E6: - | F6: 141 | G6: hypothetical protein | H6: 2495 | I6: 17.70 | J6: 760.51
A7: OCT-B-Caldarchaeales-r01_00242 | B7: Ga0081478_135131 | C7: 1978 | D7: 2235 | E7: - | F7: 258 | G7: hypothetical protein | H7: 4156 | I7: 16.11 | J7: 692.32
A8: OCT-B-Caldarchaeales-r01_00217 | B8: Ga0081478_137670 | C8: 1358 | D8: 1633 | E8: - | F8: 276 | G8: DNA/RNA-binding protein Alba | H8: 3961 | I8: 14.35 | J8: 616.81
A9: OCT-B-Caldarchaeales-r01_01722 | B9: Ga0081478_141900 | C9: 4512 | D9: 5522 | E9: - | F9: 1011 | G9: PDH_E1_alph_x: pyruvate dehydrogenase (acetyl-transferring) E1 component, alpha subunit | H9: 13214 | I9: 13.07 | J9: 561.74
A10: OCT-B-Caldarchaeales-r01_00244 | B10: Ga0081478_135131 | C10: 2660 | D10: 2974 | E10: - | F10: 315 | G10: hypothetical protein | H10: 3365 | I10: 10.68 | J10: 459.12
A11: OCT-B-Caldarchaeales-r01_01963 | B11: Ga0081478_149544 | C11: 11266 | D11: 11520 | E11: - | F11: 255 | G11: hypothetical protein | H11: 2723 | I11: 10.68 | J11: 458.95
A12: OCT-B-Caldarchaeales-r01_00245 | B12: Ga0081478_135131 | C12: 4849 | D12: 5256 | E12: - | F12: 408 | G12: hypothetical protein | H12: 3669 | I12: 8.99 | J12: 386.49
A13: OCT-B-Caldarchaeales-r01_00241 | B13: Ga0081478_135131 | C13: 1072 | D13: 1350 | E13: + | F13: 279 | G13: hypothetical protein | H13: 2272 | I13: 8.14 | J13: 349.99
A14: OCT-B-Caldarchaeales-r01_00477 | B14: Ga0081478_134474 | C14: 15345 | D14: 15491 | E14: - | F14: 147 | G14: hypothetical protein | H14: 1073 | I14: 7.30 | J14: 313.72
A15: OCT-B-Caldarchaeales-r01_01866 | B15: Ga0081478_131030 | C15: 1304 | D15: 2197 | E15: + | F15: 894 | G15: hypothetical protein | H15: 6460 | I15: 7.23 | J15: 310.56
A16: OCT-B-Caldarchaeales-r01_01721 | B16: Ga0081478_141900 | C16: 3541 | D16: 4515 | E16: - | F16: 975 | G16: dxs: 1-deoxy-D-xylulose-5-phosphate synthase | H16: 6777 | I16: 6.95 | J16: 298.74
A17: OCT-B-Caldarchaeales-r01_01421 | B17: Ga0081478_136109 | C17: 2487 | D17: 3038 | E17: + | F17: 552 | G17: Putative respiratory nitrate reductase subunit Rieske | H17: 3495 | I17: 6.33 | J17: 272.12
A18: OCT-B-Caldarchaeales-r01_01768 | B18: Ga0081478_149240 | C18: 1524 | D18: 4562 | E18: - | F18: 3039 | G18: lipo_with_rSAM: putative lipoprotein, rSAM/lipoprotein system | H18: 18742 | I18: 6.17 | J18: 265.06
A19: OCT-B-Caldarchaeales-r01_01962 | B19: Ga0081478_149544 | C19: 9247 | D19: 9585 | E19: - | F19: 339 | G19: hypothetical protein | H19: 1784 | I19: 5.26 | J19: 226.18
A20: OCT-B-Caldarchaeales-r01_00246 | B20: Ga0081478_135131 | C20: 5266 | D20: 5463 | E20: - | F20: 198 | G20: hypothetical protein | H20: 1041 | I20: 5.26 | J20: 225.96
A21: OCT-B-Caldarchaeales-r01_00916 | B21: Ga0081478_141855 | C21: 8804 | D21: 10240 | E21: + | F21: 1437 | G21: urea_ABC_UrtA: urea ABC transporter, urea binding protein | H21: 7417 | I21: 5.16 | J21: 221.83
A22: OCT-B-Caldarchaeales-r01_01931 | B22: Ga0081478_140638 | C22: 606 | D22: 2093 | E22: - | F22: 1488 | G22: 16S ribosomal RNA | H22: 7634 | I22: 5.13 | J22: 220.50
A23: OCT-B-Caldarchaeales-r01_02097 | B23: Ga0081478_133210 | C23: 640 | D23: 2277 | E23: - | F23: 1638 | G23: Thermosome subunit beta | H23: 8175 | I23: 4.99 | J23: 214.50
A24: OCT-B-Caldarchaeales-r01_01422 | B24: Ga0081478_136109 | C24: 3041 | D24: 4369 | E24: + | F24: 1329 | G24: Probable respiratory nitrate reductase subunit cytochrome b-561 | H24: 6382 | I24: 4.80 | J24: 206.39
A25: OCT-B-Caldarchaeales-r01_01964 | B25: Ga0081478_149544 | C25: 11692 | D25: 12030 | E25: - | F25: 339 | G25: hypothetical protein | H25: 1618 | I25: 4.77 | J25: 205.13
A26: OCT-B-Caldarchaeales-r01_01867 | B26: Ga0081478_131030 | C26: 2213 | D26: 2551 | E26: + | F26: 339 | G26: hypothetical protein | H26: 1458 | I26: 4.30 | J26: 184.85
A27: OCT-B-Caldarchaeales-r01_00476 | B27: Ga0081478_134474 | C27: 14322 | D27: 14555 | E27: - | F27: 234 | G27: hypothetical protein | H27: 972 | I27: 4.15 | J27: 178.53
A28: OCT-B-Caldarchaeales-r01_02035 | B28: Ga0081478_130815 | C28: 21418 | D28: 21981 | E28: + | F28: 564 | G28: Glyceraldehyde dehydrogenase small chain | H28: 2285 | I28: 4.05 | J28: 174.12
A29: OCT-B-Caldarchaeales-r01_00475 | B29: Ga0081478_134474 | C29: 13995 | D29: 14177 | E29: - | F29: 183 | G29: hypothetical protein | H29: 697 | I29: 3.81 | J29: 163.69
A30: OCT-B-Caldarchaeales-r01_00398 | B30: Ga0081478_139171 | C30: 5918 | D30: 6358 | E30: + | F30: 441 | G30: Zinc-containing ferredoxin | H30: 1675 | I30: 3.80 | J30: 163.24
A31: OCT-B-Caldarchaeales-r01_01175 | B31: Ga0081478_137603 | C31: 11733 | D31: 13031 | E31: - | F31: 1299 | G31: Elongation factor 1-alpha | H31: 4904 | I31: 3.78 | J31: 162.25
A32: OCT-B-Caldarchaeales-r01_00377 | B32: Ga0081478_140492 | C32: 2938 | D32: 4122 | E32: - | F32: 1185 | G32: ccpA: catabolite control protein A | H32: 4407 | I32: 3.72 | J32: 159.84
A33: OCT-B-Caldarchaeales-r01_00581 | B33: Ga0081478_122828 | C33: 66 | D33: 602 | E33: + | F33: 537 | G33: hypothetical protein | H33: 1881 | I33: 3.50 | J33: 150.55
A34: OCT-B-Caldarchaeales-r01_00216 | B34: Ga0081478_137670 | C34: 809 | D34: 1312 | E34: - | F34: 504 | G34: hypothetical protein | H34: 1712 | I34: 3.40 | J34: 145.99
A35: OCT-B-Caldarchaeales-r01_01933 | B35: Ga0081478_140638 | C35: 2820 | D35: 3476 | E35: - | F35: 657 | G35: nuoB_fam: NADH-quinone oxidoreductase, B subunit | H35: 2190 | I35: 3.33 | J35: 143.26
A36: OCT-B-Caldarchaeales-r01_00295 | B36: Ga0081478_145504 | C36: 17621 | D36: 18514 | E36: - | F36: 894 | G36: hypothetical protein | H36: 2978 | I36: 3.33 | J36: 143.17
A37: OCT-B-Caldarchaeales-r01_00372 | B37: Ga0081478_163199 | C37: 1176 | D37: 1325 | E37: + | F37: 150 | G37: hypothetical protein | H37: 484 | I37: 3.23 | J37: 138.68
A38: OCT-B-Caldarchaeales-r01_00371 | B38: Ga0081478_163199 | C38: 285 | D38: 1175 | E38: + | F38: 891 | G38: hypothetical protein | H38: 2800 | I38: 3.14 | J38: 135.06
A39: OCT-B-Caldarchaeales-r01_00587 | B39: Ga0081478_129767 | C39: 633 | D39: 1535 | E39: - | F39: 903 | G39: DNA_bind_WhiA: DNA-binding protein WhiA | H39: 2787 | I39: 3.09 | J39: 132.65
A40: OCT-B-Caldarchaeales-r01_02034 | B40: Ga0081478_130815 | C40: 20466 | D40: 21416 | E40: + | F40: 951 | G40: Glyceraldehyde dehydrogenase medium chain | H40: 2931 | I40: 3.08 | J40: 132.46
A41: OCT-B-Caldarchaeales-r01_00160 | B41: Ga0081478_137620 | C41: 792 | D41: 1631 | E41: - | F41: 840 | G41: Putative thiosulfate sulfurtransferase | H41: 2573 | I41: 3.06 | J41: 131.65
A42: OCT-B-Caldarchaeales-r01_00524 | B42: Ga0081478_144185 | C42: 8965 | D42: 10632 | E42: - | F42: 1668 | G42: Thermosome subunit beta | H42: 5103 | I42: 3.06 | J42: 131.49
A43: OCT-B-Caldarchaeales-r01_00816 | B43: Ga0081478_130064 | C43: 9053 | D43: 10171 | E43: + | F43: 1119 | G43: mft_etfB: electron transfer flavoprotein, mycofactocin-associated | H43: 3245 | I43: 2.90 | J43: 124.63
A44: OCT-B-Caldarchaeales-r01_01932 | B44: Ga0081478_140638 | C44: 2330 | D44: 2809 | E44: - | F44: 480 | G44: F(420)H(2) dehydrogenase subunit C | H44: 1388 | I44: 2.89 | J44: 124.28
A45: OCT-B-Caldarchaeales-r01_01961 | B45: Ga0081478_149544 | C45: 8212 | D45: 9177 | E45: - | F45: 966 | G45: hypothetical protein | H45: 2678 | I45: 2.77 | J45: 119.15
A46: OCT-B-Caldarchaeales-r01_00474 | B46: Ga0081478_134474 | C46: 13284 | D46: 13910 | E46: + | F46: 627 | G46: CyoA: ubiquinol oxidase, subunit II | H46: 1708 | I46: 2.72 | J46: 117.08
A47: OCT-B-Caldarchaeales-r01_00815 | B47: Ga0081478_130064 | C47: 7891 | D47: 9078 | E47: + | F47: 1188 | G47: mft_etfB: electron transfer flavoprotein, mycofactocin-associated | H47: 3096 | I47: 2.61 | J47: 112.01
A48: OCT-B-Caldarchaeales-r01_02091 | B48: Ga0081478_147321 | C48: 6440 | D48: 7891 | E48: + | F48: 1452 | G48: chitin_NgcE: carbohydrate ABC transporter, N-acetylglucosamine/diacetylchitobiose-binding protein | H48: 3602 | I48: 2.48 | J48: 106.62
A49: OCT-B-Caldarchaeales-r01_00523 | B49: Ga0081478_144185 | C49: 8682 | D49: 8927 | E49: - | F49: 246 | G49: RNA polymerase subunit K [Transcription] | H49: 610 | I49: 2.48 | J49: 106.57
A50: OCT-B-Caldarchaeales-r01_00917 | B50: Ga0081478_139033 | C50: 151 | D50: 483 | E50: - | F50: 333 | G50: hypothetical protein | H50: 811 | I50: 2.44 | J50: 104.67
A51: OCT-B-Caldarchaeales-r01_00467 | B51: Ga0081478_134474 | C51: 5708 | D51: 6691 | E51: + | F51: 984 | G51: 2-oxoacid:ferredoxin oxidoreductase subunit beta | H51: 2390 | I51: 2.43 | J51: 104.39
A52: OCT-B-Caldarchaeales-r01_01400 | B52: Ga0081478_143253 | C52: 11469 | D52: 12794 | E52: - | F52: 1326 | G52: urea_ABC_UrtA: urea ABC transporter, urea binding protein | H52: 3146 | I52: 2.37 | J52: 101.97
A53: OCT-B-Caldarchaeales-r01_01103 | B53: Ga0081478_123076 | C53: 3489 | D53: 4745 | E53: - | F53: 1257 | G53: urea_ABC_arch: urea ABC transporter, substrate-binding protein | H53: 2761 | I53: 2.20 | J53: 94.40
A54: OCT-B-Caldarchaeales-r01_00312 | B54: Ga0081478_140022 | C54: 6451 | D54: 7848 | E54: + | F54: 1398 | G54: sufB: FeS assembly protein SufB | H54: 3031 | I54: 2.17 | J54: 93.18
A55: OCT-B-Caldarchaeales-r01_01115 | B55: Ga0081478_142801 | C55: 3727 | D55: 5100 | E55: - | F55: 1374 | G55: urea_ABC_arch: urea ABC transporter, substrate-binding protein | H55: 2961 | I55: 2.16 | J55: 92.62
A56: OCT-B-Caldarchaeales-r01_00294 | B56: Ga0081478_145504 | C56: 16671 | D56: 17615 | E56: - | F56: 945 | G56: drrA: daunorubicin resistance ABC transporter, ATP-binding protein | H56: 2017 | I56: 2.13 | J56: 91.73
A57: OCT-B-Caldarchaeales-r01_02113 | B57: Ga0081478_133210 | C57: 11314 | D57: 12258 | E57: - | F57: 945 | G57: Transcription initiation factor IIB | H57: 1978 | I57: 2.09 | J57: 89.96
A58: OCT-B-Caldarchaeales-r01_00403 | B58: Ga0081478_139171 | C58: 13721 | D58: 15373 | E58: - | F58: 1653 | G58: Predicted neuraminidase (sialidase) [Carbohydrate transport and metabolism] | H58: 3318 | I58: 2.01 | J58: 86.27
A59: OCT-B-Caldarchaeales-r01_00012 | B59: Ga0081478_138601 | C59: 10650 | D59: 11570 | E59: - | F59: 921 | G59: CyoC: cytochrome o ubiquinol oxidase, subunit III | H59: 1769 | I59: 1.92 | J59: 82.55
A60: OCT-B-Caldarchaeales-r01_01590 | B60: Ga0081478_145490 | C60: 6387 | D60: 8102 | E60: + | F60: 1716 | G60: Fumarate reductase (CoM/CoB) subunit A | H60: 3158 | I60: 1.84 | J60: 79.09
A61: OCT-B-Caldarchaeales-r01_00983 | B61: Ga0081478_141032 | C61: 3465 | D61: 3704 | E61: - | F61: 240 | G61: CXXU_selWTH: selT/selW/selH selenoprotein domain | H61: 428 | I61: 1.78 | J61: 76.65
A62: OCT-B-Caldarchaeales-r01_01037 | B62: Ga0081478_141017 | C62: 5860 | D62: 7812 | E62: - | F62: 1953 | G62: 2-oxoacid:ferredoxin oxidoreductase subunit alpha | H62: 3383 | I62: 1.73 | J62: 74.45
A63: OCT-B-Caldarchaeales-r01_02094 | B63: Ga0081478_145240 | C63: 82 | D63: 1302 | E63: + | F63: 1221 | G63: Glyceraldehyde dehydrogenase large chain | H63: 2068 | I63: 1.69 | J63: 72.79
A64: OCT-B-Caldarchaeales-r01_01560 | B64: Ga0081478_139913 | C64: 7923 | D64: 8240 | E64: + | F64: 318 | G64: ribo_P1_arch: 50S ribosomal protein P1 | H64: 537 | I64: 1.69 | J64: 72.58
A65: OCT-B-Caldarchaeales-r01_00980 | B65: Ga0081478_141032 | C65: 2090 | D65: 2434 | E65: + | F65: 345 | G65: sufA_proteo: FeS assembly scaffold SufA | H65: 578 | I65: 1.68 | J65: 72.00
A66: OCT-B-Caldarchaeales-r01_01379 | B66: Ga0081478_159761 | C66: 2834 | D66: 4282 | E66: - | F66: 1449 | G66: Med Uncharacterized ABC-type transport system, periplasmic component/surface lipoprotein [General function prediction only] | H66: 2370 | I66: 1.64 | J66: 70.30
A67: OCT-B-Caldarchaeales-r01_00151 | B67: Ga0081478_149652 | C67: 9317 | D67: 9553 | E67: - | F67: 237 | G67: SMT3 Ubiquitin-like protein (sentrin) [Posttranslational modification, protein turnover, chaperones] | H67: 378 | I67: 1.59 | J67: 68.55
A68: OCT-B-Caldarchaeales-r01_00313 | B68: Ga0081478_140022 | C68: 8053 | D68: 8547 | E68: + | F68: 495 | G68: hypothetical protein | H68: 771 | I68: 1.56 | J68: 66.94
A69: OCT-B-Caldarchaeales-r01_01159 | B69: Ga0081478_136555 | C69: 3672 | D69: 4208 | E69: - | F69: 537 | G69: hypothetical protein | H69: 822 | I69: 1.53 | J69: 65.79
A70: OCT-B-Caldarchaeales-r01_00409 | B70: Ga0081478_139171 | C70: 21313 | D70: 21519 | E70: + | F70: 207 | G70: hypothetical protein | H70: 315 | I70: 1.52 | J70: 65.40
A71: OCT-B-Caldarchaeales-r01_01648 | B71: Ga0081478_142122 | C71: 7427 | D71: 9616 | E71: + | F71: 2190 | G71: VCP-like ATPase | H71: 3326 | I71: 1.52 | J71: 65.27
A72: OCT-B-Caldarchaeales-r01_01423 | B72: Ga0081478_136109 | C72: 4373 | D72: 5023 | E72: - | F72: 651 | G72: yfcE: phosphodiesterase, MJ0936 family | H72: 984 | I72: 1.51 | J72: 64.96
A73: OCT-B-Caldarchaeales-r01_01299 | B73: Ga0081478_144705 | C73: 8513 | D73: 8653 | E73: + | F73: 141 | G73: hypothetical protein | H73: 213 | I73: 1.51 | J73: 64.93
A74: OCT-B-Caldarchaeales-r01_01797 | B74: Ga0081478_135039 | C74: 12964 | D74: 13686 | E74: - | F74: 723 | G74: Putative FKBP-type peptidyl-prolyl cis-trans isomerase MJ0825 | H74: 1084 | I74: 1.50 | J74: 64.44
A75: OCT-B-Caldarchaeales-r01_01720 | B75: Ga0081478_141900 | C75: 2352 | D75: 3521 | E75: - | F75: 1170 | G75: cyc_hxne_CoA_dh: cyclohexanecarboxyl-CoA dehydrogenase | H75: 1744 | I75: 1.49 | J75: 64.06
A76: OCT-B-Caldarchaeales-r01_01023 | B76: Ga0081478_126943 | C76: 977 | D76: 1783 | E76: - | F76: 807 | G76: 3-hydroxypropionyl-coenzyme A dehydratase | H76: 1182 | I76: 1.46 | J76: 62.95
A77: OCT-B-Caldarchaeales-r01_00437 | B77: Ga0081478_158042 | C77: 9650 | D77: 10084 | E77: + | F77: 435 | G77: hypothetical protein | H77: 636 | I77: 1.46 | J77: 62.84
A78: OCT-B-Caldarchaeales-r01_01167 | B78: Ga0081478_137603 | C78: 3202 | D78: 4488 | E78: + | F78: 1287 | G78: F420-O_ABCperi: proposed F420-0 ABC transporter, periplasmic F420-0 binding protein | H78: 1865 | I78: 1.45 | J78: 62.28
A79: OCT-B-Caldarchaeales-r01_01782 | B79: Ga0081478_168587 | C79: 6293 | D79: 6649 | E79: + | F79: 357 | G79: RPB5 DNA-directed RNA polymerase, subunit H, RpoH/RPB5 [Transcription] | H79: 517 | I79: 1.45 | J79: 62.24
A80: OCT-B-Caldarchaeales-r01_00005 | B80: Ga0081478_138601 | C80: 5172 | D80: 5402 | E80: + | F80: 231 | G80: 30S ribosomal protein S28e | H80: 334 | I80: 1.45 | J80: 62.14
A81: OCT-B-Caldarchaeales-r01_01370 | B81: Ga0081478_132907 | C81: 48 | D81: 1514 | E81: + | F81: 1467 | G81: BchP-ChlP: geranylgeranyl reductase | H81: 2117 | I81: 1.44 | J81: 62.02
A82: OCT-B-Caldarchaeales-r01_01062 | B82: Ga0081478_139750 | C82: 4782 | D82: 4928 | E82: + | F82: 147 | G82: hypothetical protein | H82: 210 | I82: 1.43 | J82: 61.40
A83: OCT-B-Caldarchaeales-r01_00083 | B83: Ga0081478_139707 | C83: 958 | D83: 2637 | E83: - | F83: 1680 | G83: 7,8-dihydro-6-hydroxymethylpterin dimethyltransferase | H83: 2335 | I83: 1.39 | J83: 59.74
A84: OCT-B-Caldarchaeales-r01_01481 | B84: Ga0081478_134431 | C84: 10255 | D84: 10734 | E84: - | F84: 480 | G84: amicyanin: amicyanin | H84: 666 | I84: 1.39 | J84: 59.63
A85: OCT-B-Caldarchaeales-r01_00402 | B85: Ga0081478_139171 | C85: 11163 | D85: 13715 | E85: - | F85: 2553 | G85: SBP_KPN_01854: ABC transporter substrate binding protein, KPN_01854 family | H85: 3529 | I85: 1.38 | J85: 59.41
A86: OCT-B-Caldarchaeales-r01_01399 | B86: Ga0081478_143253 | C86: 10702 | D86: 11463 | E86: - | F86: 762 | G86: Probable branched-chain amino acid transport ATP-binding protein LivG | H86: 1048 | I86: 1.38 | J86: 59.11
A87: OCT-B-Caldarchaeales-r01_01857 | B87: Ga0081478_134172 | C87: 180 | D87: 1118 | E87: - | F87: 939 | G87: DNA_bind_WhiA: DNA-binding protein WhiA | H87: 1290 | I87: 1.37 | J87: 59.04
A88: OCT-B-Caldarchaeales-r01_01669 | B88: Ga0081478_149751 | C88: 7208 | D88: 7759 | E88: + | F88: 552 | G88: ADP-ribose glycohydrolase AF_1521 | H88: 758 | I88: 1.37 | J88: 59.02
A89: OCT-B-Caldarchaeales-r01_01679 | B89: Ga0081478_141378 | C89: 3336 | D89: 4604 | E89: + | F89: 1269 | G89: Glutamate dehydrogenase | H89: 1738 | I89: 1.37 | J89: 58.86
A90: OCT-B-Caldarchaeales-r01_01450 | B90: Ga0081478_148858 | C90: 7716 | D90: 7898 | E90: - | F90: 183 | G90: hypothetical protein | H90: 243 | I90: 1.33 | J90: 57.07
A91: OCT-B-Caldarchaeales-r01_01016 | B91: Ga0081478_161691 | C91: 194 | D91: 865 | E91: - | F91: 672 | G91: halo_cynanin: halocyanin domain | H91: 874 | I91: 1.30 | J91: 55.90
A92: OCT-B-Caldarchaeales-r01_00627 | B92: Ga0081478_155917 | C92: 3564 | D92: 3929 | E92: - | F92: 366 | G92: 50S ribosomal protein L18e | H92: 470 | I92: 1.28 | J92: 55.19
A93: OCT-B-Caldarchaeales-r01_02153 | B93: Ga0081478_131807 | C93: 2416 | D93: 3708 | E93: + | F93: 1293 | G93: F(420)H(2) dehydrogenase subunit D | H93: 1614 | I93: 1.25 | J93: 53.65
A94: OCT-B-Caldarchaeales-r01_00856 | B94: Ga0081478_128474 | C94: 612 | D94: 4643 | E94: + | F94: 4032 | G94: aEF-2: translation elongation factor aEF-2 | H94: 4989 | I94: 1.24 | J94: 53.18
A95: OCT-B-Caldarchaeales-r01_01537 | B95: Ga0081478_160669 | C95: 4889 | D95: 5842 | E95: + | F95: 954 | G95: anch_rpt_subst: anchored repeat ABC transporter, substrate-binding protein | H95: 1176 | I95: 1.23 | J95: 52.98
A96: OCT-B-Caldarchaeales-r01_01277 | B96: Ga0081478_145861 | C96: 11588 | D96: 12346 | E96: + | F96: 759 | G96: sufC: FeS assembly ATPase SufC | H96: 935 | I96: 1.23 | J96: 52.94
A97: OCT-B-Caldarchaeales-r01_00608 | B97: Ga0081478_135950 | C97: 5882 | D97: 7363 | E97: - | F97: 1482 | G97: Tryptophan synthase beta chain 1 | H97: 1825 | I97: 1.23 | J97: 52.93
A98: OCT-B-Caldarchaeales-r01_00982 | B98: Ga0081478_141032 | C98: 2989 | D98: 3468 | E98: - | F98: 480 | G98: lacB: galactose-6-phosphate isomerase, LacB subunit | H98: 582 | I98: 1.21 | J98: 52.11
A99: OCT-B-Caldarchaeales-r01_00024 | B99: Ga0081478_133910 | C99: 1059 | D99: 2339 | E99: + | F99: 1281 | G99: urea_ABC_UrtA: urea ABC transporter, urea binding protein | H99: 1538 | I99: 1.20 | J99: 51.60
A100: OCT-B-Caldarchaeales-r01_01536 | B100: Ga0081478_160669 | C100: 4467 | D100: 4898 | E100: + | F100: 432 | G100: DNA: TIGR02647 family protein | H100: 515 | I100: 1.19 | J100: 51.24
A101: OCT-B-Caldarchaeales-r01_00232 | B101: Ga0081478_132914 | C101: 489 | D101: 656 | E101: + | F101: 168 | G101: secE_euk_arch: protein translocase SEC61 complex gamma subunit, archaeal and eukaryotic | H101: 200 | I101: 1.19 | J101: 51.17
A102: OCT-B-Caldarchaeales-r01_00373 | B102: Ga0081478_163199 | C102: 2112 | D102: 2264 | E102: + | F102: 153 | G102: hypothetical protein | H102: 181 | I102: 1.18 | J102: 50.84
A103: OCT-B-Caldarchaeales-r01_01275 | B103: Ga0081478_145861 | C103: 10891 | D103: 11184 | E103: - | F103: 294 | G103: 50S ribosomal protein L30e | H103: 346 | I103: 1.18 | J103: 50.58
A104: OCT-B-Caldarchaeales-r01_00838 | B104: Ga0081478_136058 | C104: 601 | D104: 1515 | E104: - | F104: 915 | G104: gas_vesic_GvpN: gas vesicle protein GvpN | H104: 1073 | I104: 1.17 | J104: 50.40
A105: OCT-B-Caldarchaeales-r01_00660 | B105: Ga0081478_134144 | C105: 1741 | D105: 2160 | E105: - | F105: 420 | G105: hypothetical protein | H105: 492 | I105: 1.17 | J105: 50.35
A106: OCT-B-Caldarchaeales-r01_01058 | B106: Ga0081478_139750 | C106: 1184 | D106: 1510 | E106: - | F106: 327 | G106: hypothetical protein | H106: 381 | I106: 1.17 | J106: 50.08
A107: OCT-B-Caldarchaeales-r01_00004 | B107: Ga0081478_138601 | C107: 4792 | D107: 5175 | E107: + | F107: 384 | G107: 50S ribosomal protein L7Ae | H107: 446 | I107: 1.16 | J107: 49.92
A108: OCT-B-Caldarchaeales-r01_01649 | B108: Ga0081478_142122 | C108: 9622 | D108: 9843 | E108: + | F108: 222 | G108: hypothetical protein | H108: 257 | I108: 1.16 | J108: 49.75
A109: OCT-B-Caldarchaeales-r01_00261 | B109: Ga0081478_135652 | C109: 44 | D109: 238 | E109: + | F109: 195 | G109: RPL39 Ribosomal protein L39E [Translation, ribosomal structure and biogenesis] | H109: 222 | I109: 1.14 | J109: 48.93
A110: OCT-B-Caldarchaeales-r01_01784 | B110: Ga0081478_168587 | C110: 10672 | D110: 11130 | E110: - | F110: 459 | G110: hypothetical protein | H110: 514 | I110: 1.12 | J110: 48.13
A111: OCT-B-Caldarchaeales-r01_01052 | B111: Ga0081478_143319 | C111: 1506 | D111: 1985 | E111: + | F111: 480 | G111: amicyanin: amicyanin | H111: 531 | I111: 1.11 | J111: 47.55
A112: OCT-B-Caldarchaeales-r01_00404 | B112: Ga0081478_139171 | C112: 15964 | D112: 16191 | E112: + | F112: 228 | G112: hypothetical protein | H112: 251 | I112: 1.10 | J112: 47.31
A113: OCT-B-Caldarchaeales-r01_01404 | B113: Ga0081478_143253 | C113: 15423 | D113: 16871 | E113: - | F113: 1449 | G113: Med Uncharacterized ABC-type transport system, periplasmic component/surface lipoprotein [General function prediction only] | H113: 1589 | I113: 1.10 | J113: 47.13
A114: OCT-B-Caldarchaeales-r01_01535 | B114: Ga0081478_160669 | C114: 3787 | D114: 4269 | E114: - | F114: 483 | G114: heme_HutZ: heme utilization protein HutZ | H114: 529 | I114: 1.10 | J114: 47.07
A115: OCT-B-Caldarchaeales-r01_00150 | B115: Ga0081478_149652 | C115: 8812 | D115: 9312 | E115: - | F115: 501 | G115: Ubiquitin-protein ligase [Posttranslational modification, protein turnover, chaperones] | H115: 547 | I115: 1.09 | J115: 46.92
A116: OCT-B-Caldarchaeales-r01_01300 | B116: Ga0081478_144705 | C116: 8657 | D116: 9481 | E116: - | F116: 825 | G116: mft_etfB: electron transfer flavoprotein, mycofactocin-associated | H116: 900 | I116: 1.09 | J116: 46.89
A117: OCT-B-Caldarchaeales-r01_00981 | B117: Ga0081478_141032 | C117: 2480 | D117: 2986 | E117: + | F117: 507 | G117: Peroxiredoxin | H117: 553 | I117: 1.09 | J117: 46.88
A118: OCT-B-Caldarchaeales-r01_01802 | B118: Ga0081478_135039 | C118: 15519 | D118: 15803 | E118: - | F118: 285 | G118: 50S ribosomal protein L44e | H118: 308 | I118: 1.08 | J118: 46.45
A119: OCT-B-Caldarchaeales-r01_00293 | B119: Ga0081478_145504 | C119: 15839 | D119: 16684 | E119: - | F119: 846 | G119: ABC_perm_GldF: gliding motility-associated ABC transporter permease protein GldF | H119: 914 | I119: 1.08 | J119: 46.43
A120: OCT-B-Caldarchaeales-r01_02135 | B120: Ga0081478_150089 | C120: 1654 | D120: 1797 | E120: + | F120: 144 | G120: hypothetical protein | H120: 155 | I120: 1.08 | J120: 46.26
A121: OCT-B-Caldarchaeales-r01_01582 | B121: Ga0081478_145490 | C121: 2378 | D121: 2608 | E121: - | F121: 231 | G121: DNA-directed RNA polymerase subunit N | H121: 247 | I121: 1.07 | J121: 45.96
A122: OCT-B-Caldarchaeales-r01_01683 | B122: Ga0081478_141378 | C122: 7172 | D122: 8584 | E122: + | F122: 1413 | G122: V-type ATP synthase beta chain | H122: 1490 | I122: 1.05 | J122: 45.32
A123: OCT-B-Caldarchaeales-r01_00468 | B123: Ga0081478_134474 | C123: 6762 | D123: 9419 | E123: - | F123: 2658 | G123: Phosphoenolpyruvate synthase | H123: 2797 | I123: 1.05 | J123: 45.23
A124: OCT-B-Caldarchaeales-r01_00761 | B124: Ga0081478_158956 | C124: 1801 | D124: 2067 | E124: + | F124: 267 | G124: hypothetical protein | H124: 280 | I124: 1.05 | J124: 45.07
A125: OCT-B-Caldarchaeales-r01_01060 | B125: Ga0081478_139750 | C125: 2744 | D125: 3868 | E125: + | F125: 1125 | G125: stp1: sugar transferase, PEP-CTERM/EpsH1 system associated | H125: 1175 | I125: 1.04 | J125: 44.89
A126: OCT-B-Caldarchaeales-r01_02133 | B126: Ga0081478_150089 | C126: 993 | D126: 1286 | E126: + | F126: 294 | G126: tatAE: twin arginine-targeting protein translocase, TatA/E family | H126: 306 | I126: 1.04 | J126: 44.73
A127: OCT-B-Caldarchaeales-r01_01665 | B127: Ga0081478_149751 | C127: 2046 | D127: 3035 | E127: - | F127: 990 | G127: Putative arsenical pump-driving ATPase | H127: 1030 | I127: 1.04 | J127: 44.72
A128: OCT-B-Caldarchaeales-r01_01559 | B128: Ga0081478_139913 | C128: 7490 | D128: 7786 | E128: - | F128: 297 | G128: alt_F1F0_F0_C: alternate F1F0 ATPase, F0 subunit C | H128: 308 | I128: 1.04 | J128: 44.57
A129: OCT-B-Caldarchaeales-r01_01783 | B129: Ga0081478_168587 | C129: 6646 | D129: 10026 | E129: + | F129: 3381 | G129: rpoB: DNA-directed RNA polymerase, beta subunit | H129: 3479 | I129: 1.03 | J129: 44.22
A130: OCT-B-Caldarchaeales-r01_01706 | B130: Ga0081478_125445 | C130: 1384 | D130: 1998 | E130: + | F130: 615 | G130: 30S ribosomal protein S3 | H130: 630 | I130: 1.02 | J130: 44.03
A131: OCT-B-Caldarchaeales-r01_01707 | B131: Ga0081478_125445 | C131: 1988 | D131: 2200 | E131: + | F131: 213 | G131: L29: ribosomal protein uL29 | H131: 217 | I131: 1.02 | J131: 43.79
A132: OCT-B-Caldarchaeales-r01_01265 | B132: Ga0081478_145861 | C132: 2269 | D132: 2442 | E132: + | F132: 174 | G132: 50S ribosomal protein L37e | H132: 177 | I132: 1.02 | J132: 43.72
A133: OCT-B-Caldarchaeales-r01_00698 | B133: Ga0081478_135979 | C133: 1102 | D133: 2049 | E133: - | F133: 948 | G133: Transposase and inactivated derivatives [DNA replication, recombination, and repair] | H133: 960 | I133: 1.01 | J133: 43.52
A134: OCT-B-Caldarchaeales-r01_01538 | B134: Ga0081478_160669 | C134: 5839 | D134: 6585 | E134: + | F134: 747 | G134: FliI_clade3: flagellar protein export ATPase FliI | H134: 750 | I134: 1.00 | J134: 43.15
A135: OCT-B-Caldarchaeales-r01_00262 | B135: Ga0081478_135652 | C135: 249 | D135: 533 | E135: + | F135: 285 | G135: RPL31A Ribosomal protein L31E [Translation, ribosomal structure and biogenesis] | H135: 282 | I135: 0.99 | J135: 42.53
A136: OCT-B-Caldarchaeales-r01_00307 | B136: Ga0081478_140022 | C136: 3921 | D136: 4472 | E136: - | F136: 552 | G136: hypothetical protein | H136: 543 | I136: 0.98 | J136: 42.28
A137: OCT-B-Caldarchaeales-r01_00268 | B137: Ga0081478_135652 | C137: 2481 | D137: 4262 | E137: - | F137: 1782 | G137: acid_CoA_mut_N: methylmalonyl-CoA mutase N-terminal domain | H137: 1743 | I137: 0.98 | J137: 42.04
A138: OCT-B-Caldarchaeales-r01_01026 | B138: Ga0081478_126943 | C138: 4254 | D138: 5063 | E138: + | F138: 810 | G138: trp_arylform: arylformamidase | H138: 792 | I138: 0.98 | J138: 42.02
A139: OCT-B-Caldarchaeales-r01_02092 | B139: Ga0081478_147321 | C139: 7888 | D139: 8718 | E139: + | F139: 831 | G139: PhnU2: putative 2-aminoethylphosphonate ABC transporter, permease protein | H139: 793 | I139: 0.95 | J139: 41.01
A140: OCT-B-Caldarchaeales-r01_00352 | B140: Ga0081478_136683 | C140: 14670 | D140: 15104 | E140: + | F140: 435 | G140: rpa1: replication factor-a protein 1 (rpa1) | H140: 415 | I140: 0.95 | J140: 41.00
A141: OCT-B-Caldarchaeales-r01_01059 | B141: Ga0081478_139750 | C141: 1697 | D141: 2380 | E141: + | F141: 684 | G141: ovoA_Cterm: putative 4-mercaptohistidine N1-methyltranferase | H141: 650 | I141: 0.95 | J141: 40.84
A142: OCT-B-Caldarchaeales-r01_00979 | B142: Ga0081478_141032 | C142: 1736 | D142: 1972 | E142: + | F142: 237 | G142: NapD Uncharacterized protein involved in formation of periplasmic nitrate reductase [Inorganic ion transport and metabolism] | H142: 223 | I142: 0.94 | J142: 40.44
A143: OCT-B-Caldarchaeales-r01_00626 | B143: Ga0081478_155917 | C143: 3088 | D143: 3558 | E143: - | F143: 471 | G143: 50S ribosomal protein L13 | H143: 440 | I143: 0.93 | J143: 40.15
A144: OCT-B-Caldarchaeales-r01_00628 | B144: Ga0081478_155917 | C144: 3910 | D144: 4551 | E144: - | F144: 642 | G144: DNA-directed RNA polymerase subunit D | H144: 598 | I144: 0.93 | J144: 40.03
A145: OCT-B-Caldarchaeales-r01_00832 | B145: Ga0081478_136052 | C145: 670 | D145: 1404 | E145: + | F145: 735 | G145: Proteasome subunit alpha | H145: 678 | I145: 0.92 | J145: 39.65
A146: OCT-B-Caldarchaeales-r01_01470 | B146: Ga0081478_124164 | C146: 5068 | D146: 5361 | E146: - | F146: 294 | G146: repress_PhaQ: poly-beta-hydroxybutyrate-responsive repressor | H146: 270 | I146: 0.92 | J146: 39.47
A147: OCT-B-Caldarchaeales-r01_01713 | B147: Ga0081478_125445 | C147: 5348 | D147: 5632 | E147: + | F147: 285 | G147: RPS26B Ribosomal protein S26 [Translation, ribosomal structure and biogenesis] | H147: 261 | I147: 0.92 | J147: 39.36
A148: OCT-B-Caldarchaeales-r01_02024 | B148: Ga0081478_130815 | C148: 13349 | D148: 14635 | E148: - | F148: 1287 | G148: peptidase-T: peptidase T | H148: 1174 | I148: 0.91 | J148: 39.21
A149: OCT-B-Caldarchaeales-r01_00259 | B149: Ga0081478_131133 | C149: 3143 | D149: 5347 | E149: + | F149: 2205 | G149: VCP-like ATPase | H149: 1985 | I149: 0.90 | J149: 38.69
A150: OCT-B-Caldarchaeales-r01_01988 | B150: Ga0081478_136784 | C150: 3168 | D150: 4067 | E150: - | F150: 900 | G150: SMC_prok_A: chromosome segregation protein SMC | H150: 807 | I150: 0.90 | J150: 38.54
A151: OCT-B-Caldarchaeales-r01_01628 | B151: Ga0081478_167589 | C151: 5510 | D151: 6328 | E151: - | F151: 819 | G151: 2-amino-3,7-dideoxy-D-threo-hept-6-ulosonate synthase | H151: 732 | I151: 0.89 | J151: 38.41
A152: OCT-B-Caldarchaeales-r01_00803 | B152: Ga0081478_157874 | C152: 11544 | D152: 12092 | E152: - | F152: 549 | G152: Proteasome subunit beta | H152: 485 | I152: 0.88 | J152: 37.97
A153: OCT-B-Caldarchaeales-r01_00054 | B153: Ga0081478_137493 | C153: 38 | D153: 328 | E153: + | F153: 291 | G153: hypothetical protein | H153: 257 | I153: 0.88 | J153: 37.96
A154: OCT-B-Caldarchaeales-r01_02134 | B154: Ga0081478_150089 | C154: 1293 | D154: 1535 | E154: + | F154: 243 | G154: hypothetical protein | H154: 214 | I154: 0.88 | J154: 37.85
A155: OCT-B-Caldarchaeales-r01_00999 | B155: Ga0081478_143377 | C155: 918 | D155: 1391 | E155: + | F155: 474 | G155: Arginine decarboxylase proenzyme | H155: 414 | I155: 0.87 | J155: 37.54
A156: OCT-B-Caldarchaeales-r01_00720 | B156: Ga0081478_136270 | C156: 8933 | D156: 9844 | E156: - | F156: 912 | G156: ndhI: NADH-plastoquinone oxidoreductase, I subunit | H156: 793 | I156: 0.87 | J156: 37.37
A157: OCT-B-Caldarchaeales-r01_01820 | B157: Ga0081478_139291 | C157: 283 | D157: 1212 | E157: + | F157: 930 | G157: mft_etfB: electron transfer flavoprotein, mycofactocin-associated | H157: 808 | I157: 0.87 | J157: 37.34
A158: OCT-B-Caldarchaeales-r01_00785 | B158: Ga0081478_141877 | C158: 2321 | D158: 3523 | E158: - | F158: 1203 | G158: cyc_hxne_CoA_dh: cyclohexanecarboxyl-CoA dehydrogenase | H158: 1045 | I158: 0.87 | J158: 37.33
A159: OCT-B-Caldarchaeales-r01_01238 | B159: Ga0081478_132929 | C159: 2118 | D159: 2336 | E159: - | F159: 219 | G159: hypothetical protein | H159: 190 | I159: 0.87 | J159: 37.29
A160: OCT-B-Caldarchaeales-r01_00788 | B160: Ga0081478_141877 | C160: 6733 | D160: 7074 | E160: + | F160: 342 | G160: hypothetical protein | H160: 296 | I160: 0.87 | J160: 37.20
A161: OCT-B-Caldarchaeales-r01_01082 | B161: Ga0081478_139750 | C161: 18963 | D161: 20216 | E161: - | F161: 1254 | G161: chol_sulfatase: choline-sulfatase | H161: 1080 | I161: 0.86 | J161: 37.02
A162: OCT-B-Caldarchaeales-r01_01664 | B162: Ga0081478_149751 | C162: 1045 | D162: 2052 | E162: - | F162: 1008 | G162: Putative arsenical pump-driving ATPase | H162: 868 | I162: 0.86 | J162: 37.01
A163: OCT-B-Caldarchaeales-r01_01038 | B163: Ga0081478_141017 | C163: 7981 | D163: 8553 | E163: - | F163: 573 | G163: IbpA Molecular chaperone (small heat shock protein) [Posttranslational modification, protein turnover, chaperones] | H163: 491 | I163: 0.86 | J163: 36.83
A164: OCT-B-Caldarchaeales-r01_00760 | B164: Ga0081478_158956 | C164: 1553 | D164: 1804 | E164: + | F164: 252 | G164: Predicted subunit of the Multisubunit Na+/H+ antiporter [Inorganic ion transport and metabolism] | H164: 215 | I164: 0.85 | J164: 36.67
A165: OCT-B-Caldarchaeales-r01_00909 | B165: Ga0081478_141855 | C165: 3515 | D165: 3694 | E165: + | F165: 180 | G165: SBH1 Preprotein translocase subunit Sec61beta [Intracellular trafficking and secretion] | H165: 153 | I165: 0.85 | J165: 36.53
A166: OCT-B-Caldarchaeales-r01_01114 | B166: Ga0081478_142801 | C166: 2847 | D166: 3707 | E166: - | F166: 861 | G166: urea_trans_UrtB: urea ABC transporter, permease protein UrtB | H166: 730 | I166: 0.85 | J166: 36.44
A167: OCT-B-Caldarchaeales-r01_00423 | B167: Ga0081478_139171 | C167: 32569 | D167: 32832 | E167: - | F167: 264 | G167: 50S ribosomal protein L23 | H167: 222 | I167: 0.84 | J167: 36.14
A168: OCT-B-Caldarchaeales-r01_01709 | B168: Ga0081478_125445 | C168: 2593 | D168: 2931 | E168: + | F168: 339 | G168: 30S ribosomal protein S17 | H168: 284 | I168: 0.84 | J168: 36.01
A169: OCT-B-Caldarchaeales-r01_01710 | B169: Ga0081478_125445 | C169: 2938 | D169: 3372 | E169: + | F169: 435 | G169: 50S ribosomal protein L14 | H169: 364 | I169: 0.84 | J169: 35.96
A170: OCT-B-Caldarchaeales-r01_00042 | B170: Ga0081478_136769 | C170: 10902 | D170: 11342 | E170: - | F170: 441 | G170: ER_PDI_fam: protein disulfide isomerase | H170: 368 | I170: 0.83 | J170: 35.86
A171: OCT-B-Caldarchaeales-r01_00255 | B171: Ga0081478_132749 | C171: 3761 | D171: 3940 | E171: + | F171: 180 | G171: hypothetical protein | H171: 150 | I171: 0.83 | J171: 35.82
A172: OCT-B-Caldarchaeales-r01_01412 | B172: Ga0081478_145965 | C172: 3367 | D172: 3594 | E172: - | F172: 228 | G172: 50S ribosomal protein L21e | H172: 190 | I172: 0.83 | J172: 35.82
A173: OCT-B-Caldarchaeales-r01_01274 | B173: Ga0081478_145861 | C173: 10446 | D173: 10886 | E173: - | F173: 441 | G173: NusA: transcription termination factor NusA | H173: 367 | I173: 0.83 | J173: 35.77
A174: OCT-B-Caldarchaeales-r01_01206 | B174: Ga0081478_167978 | C174: 10260 | D174: 10760 | E174: - | F174: 501 | G174: hypothetical protein | H174: 413 | I174: 0.82 | J174: 35.43
A175: OCT-B-Caldarchaeales-r01_00273 | B175: Ga0081478_135652 | C175: 7042 | D175: 10380 | E175: - | F175: 3339 | G175: ATP_syn_A_arch: ATP synthase archaeal, A subunit | H175: 2752 | I175: 0.82 | J175: 35.42
A176: OCT-B-Caldarchaeales-r01_00933 | B176: Ga0081478_160054 | C176: 5787 | D176: 5966 | E176: - | F176: 180 | G176: hypothetical protein | H176: 147 | I176: 0.82 | J176: 35.10
A177: OCT-B-Caldarchaeales-r01_00877 | B177: Ga0081478_145687 | C177: 4653 | D177: 7328 | E177: - | F177: 2676 | G177: Vitamin B12-dependent ribonucleoside-diphosphate reductase | H177: 2182 | I177: 0.82 | J177: 35.04
A178: OCT-B-Caldarchaeales-r01_00935 | B178: Ga0081478_160054 | C178: 6949 | D178: 7410 | E178: - | F178: 462 | G178: hypothetical protein | H178: 375 | I178: 0.81 | J178: 34.89
A179: OCT-B-Caldarchaeales-r01_02023 | B179: Ga0081478_130815 | C179: 11022 | D179: 13346 | E179: - | F179: 2325 | G179: Glyceraldehyde dehydrogenase large chain | H179: 1878 | I179: 0.81 | J179: 34.72
A180: OCT-B-Caldarchaeales-r01_00817 | B180: Ga0081478_127678 | C180: 225 | D180: 848 | E180: + | F180: 624 | G180: ytfJ_HI0045: conserved hypothetical protein YtfJ-family, TIGR01626 | H180: 504 | I180: 0.81 | J180: 34.71
A181: OCT-B-Caldarchaeales-r01_00006 | B181: Ga0081478_138601 | C181: 5409 | D181: 5600 | E181: + | F181: 192 | G181: 50S ribosomal protein L24e | H181: 155 | I181: 0.81 | J181: 34.70
A182: OCT-B-Caldarchaeales-r01_02147 | B182: Ga0081478_130591 | C182: 8583 | D182: 9143 | E182: + | F182: 561 | G182: xanthine_xdhA: xanthine dehydrogenase, small subunit | H182: 452 | I182: 0.81 | J182: 34.63
A183: OCT-B-Caldarchaeales-r01_02048 | B183: Ga0081478_138011 | C183: 4479 | D183: 4874 | E183: + | F183: 396 | G183: 30S ribosomal protein S19 | H183: 319 | I183: 0.81 | J183: 34.62
A184: OCT-B-Caldarchaeales-r01_01580 | B184: Ga0081478_145490 | C184: 485 | D184: 1123 | E184: - | F184: 639 | G184: 30S ribosomal protein S2 | H184: 513 | I184: 0.80 | J184: 34.50
A185: OCT-B-Caldarchaeales-r01_00443 | B185: Ga0081478_137751 | C185: 2319 | D185: 2948 | E185: - | F185: 630 | G185: Proteasome subunit beta | H185: 497 | I185: 0.79 | J185: 33.91
A186: OCT-B-Caldarchaeales-r01_00115 | B186: Ga0081478_135118 | C186: 968 | D186: 1849 | E186: - | F186: 882 | G186: hypothetical protein | H186: 695 | I186: 0.79 | J186: 33.87
A187: OCT-B-Caldarchaeales-r01_00120 | B187: Ga0081478_135118 | C187: 5305 | D187: 6567 | E187: - | F187: 1263 | G187: MG423: beta-CASP ribonuclease, RNase J family | H187: 993 | I187: 0.79 | J187: 33.79
A188: OCT-B-Caldarchaeales-r01_00783 | B188: Ga0081478_141877 | C188: 1269 | D188: 1529 | E188: + | F188: 261 | G188: hypothetical protein | H188: 204 | I188: 0.78 | J188: 33.59
A189: OCT-B-Caldarchaeales-r01_01444 | B189: Ga0081478_148858 | C189: 3419 | D189: 4393 | E189: - | F189: 975 | G189: HtpX Zn-dependent protease with chaperone function [Posttranslational modification, protein turnover, chaperones] | H189: 759 | I189: 0.78 | J189: 33.46
A190: OCT-B-Caldarchaeales-r01_01801 | B190: Ga0081478_135039 | C190: 15307 | D190: 15513 | E190: - | F190: 207 | G190: 30S ribosomal protein S27e | H190: 161 | I190: 0.78 | J190: 33.43
A191: OCT-B-Caldarchaeales-r01_00492 | B191: Ga0081478_126627 | C191: 205 | D191: 2046 | E191: + | F191: 1842 | G191: RNA_pol_rpoA2: DNA-directed RNA polymerase, subunit A'' | H191: 1429 | I191: 0.78 | J191: 33.34
A192: OCT-B-Caldarchaeales-r01_00658 | B192: Ga0081478_150193 | C192: 11355 | D192: 12665 | E192: - | F192: 1311 | G192: tRNA-splicing ligase RtcB | H192: 1016 | I192: 0.77 | J192: 33.31
A193: OCT-B-Caldarchaeales-r01_00173 | B193: Ga0081478_139278 | C193: 2031 | D193: 2198 | E193: + | F193: 168 | G193: hypothetical protein | H193: 129 | I193: 0.77 | J193: 33.00
A194: OCT-B-Caldarchaeales-r01_00278 | B194: Ga0081478_145504 | C194: 2130 | D194: 3434 | E194: - | F194: 1305 | G194: devC: ABC exporter transmembrane subunit, DevC protein | H194: 1000 | I194: 0.77 | J194: 32.93
A195: OCT-B-Caldarchaeales-r01_02086 | B195: Ga0081478_147321 | C195: 1669 | D195: 3015 | E195: + | F195: 1347 | G195: urea_ABC_UrtA: urea ABC transporter, urea binding protein | H195: 1031 | I195: 0.77 | J195: 32.90
A196: OCT-B-Caldarchaeales-r01_01057 | B196: Ga0081478_139750 | C196: 310 | D196: 1203 | E196: + | F196: 894 | G196: wcaI: colanic acid biosynthesis glycosyltransferase WcaI | H196: 684 | I196: 0.77 | J196: 32.88
A197: OCT-B-Caldarchaeales-r01_02145 | B197: Ga0081478_130591 | C197: 6455 | D197: 7414 | E197: + | F197: 960 | G197: Carbamate kinase | H197: 733 | I197: 0.76 | J197: 32.82
A198: OCT-B-Caldarchaeales-r01_02143 | B198: Ga0081478_130591 | C198: 3574 | D198: 4032 | E198: + | F198: 459 | G198: Glyceraldehyde dehydrogenase small chain | H198: 349 | I198: 0.76 | J198: 32.68
A199: OCT-B-Caldarchaeales-r01_00547 | B199: Ga0081478_166547 | C199: 2379 | D199: 3671 | E199: - | F199: 1293 | G199: urea_ABC_UrtA: urea ABC transporter, urea binding protein | H199: 983 | I199: 0.76 | J199: 32.67
A200: OCT-B-Caldarchaeales-r01_01264 | B200: Ga0081478_145861 | C200: 2024 | D200: 2272 | E200: + | F200: 249 | G200: Putative snRNP Sm-like protein | H200: 189 | I200: 0.76 | J200: 32.62
... 1957 more rows

Sheet OCT-B-Caldipriscus-r01
A1: Gene_id | B1: Contig | C1: Start | D1: End | E1: Strand | F1: Length | G1: transcript_id | H1: Raw_counts | I1: Reads_base | J1: TPM
A2: OCT-B-Caldipriscus-r01_00382 | B2: Ga0081478_149742 | C2: 183 | D2: 547 | E2: + | F2: 365 | G2: transfer-messenger RNA, SsrA | H2: 43343 | I2: 118.75 | J2: 5103.63
A3: OCT-B-Caldipriscus-r01_01489 | B3: Ga0081478_130709 | C3: 2176 | D3: 5180 | E3: - | F3: 3005 | G3: 23S ribosomal RNA | H3: 197730 | I3: 65.80 | J3: 2828.01
A4: OCT-B-Caldipriscus-r01_01114 | B4: Ga0081478_135824 | C4: 2387 | D4: 2683 | E4: - | F4: 297 | G4: DNA-binding protein HU | H4: 4841 | I4: 16.30 | J4: 700.54
A5: OCT-B-Caldipriscus-r01_00687 | B5: Ga0081478_137090 | C5: 2243 | D5: 5861 | E5: + | F5: 3619 | G5: 23S ribosomal RNA | H5: 45097 | I5: 12.46 | J5: 535.57
A6: OCT-B-Caldipriscus-r01_01508 | B6: Ga0081478_141923 | C6: 2281 | D6: 2577 | E6: - | F6: 297 | G6: DNA-binding protein HU | H6: 3058 | I6: 10.30 | J6: 442.52
A7: OCT-B-Caldipriscus-r01_00635 | B7: Ga0081478_134166 | C7: 2760 | D7: 2879 | E7: - | F7: 120 | G7: hypothetical protein | H7: 1077 | I7: 8.98 | J7: 385.73
A8: OCT-B-Caldipriscus-r01_00097 | B8: Ga0081478_145833 | C8: 1017 | D8: 1214 | E8: + | F8: 198 | G8: hypothetical protein | H8: 1179 | I8: 5.95 | J8: 255.92
A9: OCT-B-Caldipriscus-r01_00385 | B9: Ga0081478_149742 | C9: 2024 | D9: 2116 | E9: + | F9: 93 | G9: hypothetical protein | H9: 546 | I9: 5.87 | J9: 252.33
A10: OCT-B-Caldipriscus-r01_01555 | B10: Ga0081478_137541 | C10: 10110 | D10: 11613 | E10: - | F10: 1504 | G10: 16S ribosomal RNA | H10: 8703 | I10: 5.79 | J10: 248.70
A11: OCT-B-Caldipriscus-r01_00517 | B11: Ga0081478_138129 | C11: 1595 | D11: 2392 | E11: + | F11: 798 | G11: hypothetical protein | H11: 4564 | I11: 5.72 | J11: 245.81
A12: OCT-B-Caldipriscus-r01_00516 | B12: Ga0081478_138129 | C12: 1222 | D12: 1578 | E12: + | F12: 357 | G12: hypothetical protein | H12: 1905 | I12: 5.34 | J12: 229.34
A13: OCT-B-Caldipriscus-r01_01730 | B13: Ga0081478_140808 | C13: 702 | D13: 893 | E13: + | F13: 192 | G13: hypothetical protein | H13: 920 | I13: 4.79 | J13: 205.94
A14: OCT-B-Caldipriscus-r01_01449 | B14: Ga0081478_152268 | C14: 185 | D14: 1852 | E14: + | F14: 1668 | G14: hypothetical protein | H14: 7570 | I14: 4.54 | J14: 195.05
A15: OCT-B-Caldipriscus-r01_00826 | B15: Ga0081478_138822 | C15: 1265 | D15: 1594 | E15: + | F15: 330 | G15: Bor protein | H15: 1378 | I15: 4.18 | J15: 179.47
A16: OCT-B-Caldipriscus-r01_00165 | B16: Ga0081478_121158 | C16: 723 | D16: 983 | E16: + | F16: 261 | G16: Ferredoxin 7Fe | H16: 1011 | I16: 3.87 | J16: 166.48
A17: OCT-B-Caldipriscus-r01_00633 | B17: Ga0081478_147556 | C17: 1877 | D17: 3628 | E17: - | F17: 1752 | G17: TonB-hemin: TonB-dependent heme/hemoglobin receptor family protein | H17: 6643 | I17: 3.79 | J17: 162.96
A18: OCT-B-Caldipriscus-r01_01787 | B18: Ga0081478_135256 | C18: 2584 | D18: 2880 | E18: + | F18: 297 | G18: DNA-binding protein HU | H18: 1120 | I18: 3.77 | J18: 162.07
A19: OCT-B-Caldipriscus-r01_01254 | B19: Ga0081478_136434 | C19: 791 | D19: 3523 | E19: + | F19: 2733 | G19: lipo_with_rSAM: putative lipoprotein, rSAM/lipoprotein system | H19: 7923 | I19: 2.90 | J19: 124.60
A20: OCT-B-Caldipriscus-r01_00634 | B20: Ga0081478_134166 | C20: 357 | D20: 746 | E20: + | F20: 390 | G20: hypothetical protein | H20: 1119 | I20: 2.87 | J20: 123.32
A21: OCT-B-Caldipriscus-r01_00800 | B21: Ga0081478_132328 | C21: 2640 | D21: 2801 | E21: - | F21: 162 | G21: hypothetical protein | H21: 416 | I21: 2.57 | J21: 110.37
A22: OCT-B-Caldipriscus-r01_01408 | B22: Ga0081478_164998 | C22: 2528 | D22: 3067 | E22: - | F22: 540 | G22: redox_disulf_1: redox-active disulfide protein 1 | H22: 1376 | I22: 2.55 | J22: 109.52
A23: OCT-B-Caldipriscus-r01_00470 | B23: Ga0081478_136626 | C23: 8840 | D23: 11608 | E23: + | F23: 2769 | G23: T7SS_mycosin: type VII secretion-associated serine protease mycosin | H23: 6956 | I23: 2.51 | J23: 107.97
A24: OCT-B-Caldipriscus-r01_01629 | B24: Ga0081478_139298 | C24: 4162 | D24: 4494 | E24: - | F24: 333 | G24: redox_disulf_2: redox-active disulfide protein 2 | H24: 833 | I24: 2.50 | J24: 107.51
A25: OCT-B-Caldipriscus-r01_01630 | B25: Ga0081478_139298 | C25: 4472 | D25: 4687 | E25: - | F25: 216 | G25: MerP: mercuric transport protein periplasmic component | H25: 531 | I25: 2.46 | J25: 105.66
A26: OCT-B-Caldipriscus-r01_01796 | B26: Ga0081478_143360 | C26: 3199 | D26: 4755 | E26: - | F26: 1557 | G26: Extracellular protein TEM7, contains PSI domain (tumor endothelial marker in humans) [Extracellular structures] | H26: 3700 | I26: 2.38 | J26: 102.13
A27: OCT-B-Caldipriscus-r01_01488 | B27: Ga0081478_130709 | C27: 1861 | D27: 2022 | E27: + | F27: 162 | G27: hypothetical protein | H27: 366 | I27: 2.26 | J27: 97.10
A28: OCT-B-Caldipriscus-r01_00384 | B28: Ga0081478_149742 | C28: 1758 | D28: 2024 | E28: + | F28: 267 | G28: himA: integration host factor, alpha subunit | H28: 598 | I28: 2.24 | J28: 96.26
A29: OCT-B-Caldipriscus-r01_00452 | B29: Ga0081478_144187 | C29: 942 | D29: 1373 | E29: - | F29: 432 | G29: ExbD_1: TonB system transport protein ExbD | H29: 897 | I29: 2.08 | J29: 89.24
A30: OCT-B-Caldipriscus-r01_00865 | B30: Ga0081478_129646 | C30: 1670 | D30: 2368 | E30: - | F30: 699 | G30: tolQ: protein TolQ | H30: 1450 | I30: 2.07 | J30: 89.15
A31: OCT-B-Caldipriscus-r01_00636 | B31: Ga0081478_134166 | C31: 2821 | D31: 4008 | E31: - | F31: 1188 | G31: hypothetical protein | H31: 2407 | I31: 2.03 | J31: 87.08
A32: OCT-B-Caldipriscus-r01_01191 | B32: Ga0081478_169207 | C32: 8168 | D32: 8422 | E32: - | F32: 255 | G32: 50S ribosomal protein L27 | H32: 511 | I32: 2.00 | J32: 86.13
A33: OCT-B-Caldipriscus-r01_01245 | B33: Ga0081478_159077 | C33: 1543 | D33: 1881 | E33: - | F33: 339 | G33: hypothetical protein | H33: 675 | I33: 1.99 | J33: 85.58
A34: OCT-B-Caldipriscus-r01_00862 | B34: Ga0081478_129646 | C34: 345 | D34: 848 | E34: + | F34: 504 | G34: hypothetical protein | H34: 1003 | I34: 1.99 | J34: 85.53
A35: OCT-B-Caldipriscus-r01_01520 | B35: Ga0081478_140384 | C35: 143 | D35: 2131 | E35: + | F35: 1989 | G35: protease_PatA: cyanobactin maturation protease, PatA/PatG family | H35: 3768 | I35: 1.89 | J35: 81.42
A36: OCT-B-Caldipriscus-r01_00720 | B36: Ga0081478_164293 | C36: 3767 | D36: 4072 | E36: - | F36: 306 | G36: 30S ribosomal protein S10 | H36: 572 | I36: 1.87 | J36: 80.34
A37: OCT-B-Caldipriscus-r01_01834 | B37: Ga0081478_164798 | C37: 1929 | D37: 2336 | E37: - | F37: 408 | G37: ExbD_2: TonB system transport protein ExbD | H37: 757 | I37: 1.86 | J37: 79.74
A38: OCT-B-Caldipriscus-r01_01465 | B38: Ga0081478_121741 | C38: 610 | D38: 2211 | E38: - | F38: 1602 | G38: Cytochrome c oxidase subunit 1 | H38: 2886 | I38: 1.80 | J38: 77.43
A39: OCT-B-Caldipriscus-r01_01812 | B39: Ga0081478_141025 | C39: 462 | D39: 671 | E39: - | F39: 210 | G39: Protein of unknown function (DUF2892) | H39: 375 | I39: 1.79 | J39: 76.75
A40: OCT-B-Caldipriscus-r01_00387 | B40: Ga0081478_141176 | C40: 1763 | D40: 3937 | E40: - | F40: 2175 | G40: OMP_RagA_SusC: TonB-linked outer membrane protein, SusC/RagA family | H40: 3805 | I40: 1.75 | J40: 75.19
A41: OCT-B-Caldipriscus-r01_00675 | B41: Ga0081478_132361 | C41: 1892 | D41: 3589 | E41: - | F41: 1698 | G41: TonB-hemin: TonB-dependent heme/hemoglobin receptor family protein | H41: 2963 | I41: 1.74 | J41: 75.00
A42: OCT-B-Caldipriscus-r01_00717 | B42: Ga0081478_164293 | C42: 2182 | D42: 2478 | E42: - | F42: 297 | G42: 50S ribosomal protein L23 | H42: 511 | I42: 1.72 | J42: 73.95
A43: OCT-B-Caldipriscus-r01_00078 | B43: Ga0081478_133022 | C43: 2361 | D43: 2828 | E43: - | F43: 468 | G43: 30S ribosomal protein S7 | H43: 801 | I43: 1.71 | J43: 73.56
A44: OCT-B-Caldipriscus-r01_00864 | B44: Ga0081478_129646 | C44: 1237 | D44: 1668 | E44: - | F44: 432 | G44: ExbD_1: TonB system transport protein ExbD | H44: 708 | I44: 1.64 | J44: 70.44
A45: OCT-B-Caldipriscus-r01_01323 | B45: Ga0081478_158115 | C45: 2448 | D45: 3086 | E45: + | F45: 639 | G45: Superoxide dismutase [Fe] | H45: 1033 | I45: 1.62 | J45: 69.48
A46: OCT-B-Caldipriscus-r01_01611 | B46: Ga0081478_133296 | C46: 1288 | D46: 1731 | E46: + | F46: 444 | G46: Predicted membrane protein [Function unknown] | H46: 708 | I46: 1.59 | J46: 68.53
A47: OCT-B-Caldipriscus-r01_01552 | B47: Ga0081478_137541 | C47: 8518 | D47: 8883 | E47: - | F47: 366 | G47: hypothetical protein | H47: 580 | I47: 1.58 | J47: 68.11
A48: OCT-B-Caldipriscus-r01_01441 | B48: Ga0081478_129758 | C48: 2508 | D48: 2753 | E48: + | F48: 246 | G48: Acyl carrier protein | H48: 387 | I48: 1.57 | J48: 67.61
A49: OCT-B-Caldipriscus-r01_01454 | B49: Ga0081478_152268 | C49: 5228 | D49: 5587 | E49: + | F49: 360 | G49: Anti-sigma-B factor antagonist | H49: 542 | I49: 1.51 | J49: 64.71
A50: OCT-B-Caldipriscus-r01_01404 | B50: Ga0081478_143612 | C50: 2192 | D50: 2578 | E50: - | F50: 387 | G50: 50S ribosomal protein L7/L12 | H50: 579 | I50: 1.50 | J50: 64.30
A51: OCT-B-Caldipriscus-r01_01466 | B51: Ga0081478_121741 | C51: 2223 | D51: 2513 | E51: - | F51: 291 | G51: CxxCH_TIGR02603: putative heme-binding domain | H51: 435 | I51: 1.49 | J51: 64.25
A52: OCT-B-Caldipriscus-r01_00919 | B52: Ga0081478_141592 | C52: 3987 | D52: 4247 | E52: - | F52: 261 | G52: geo_PqqD_fam: GeoRSP system PqqD family protein | H52: 389 | I52: 1.49 | J52: 64.06
A53: OCT-B-Caldipriscus-r01_01137 | B53: Ga0081478_136597 | C53: 223 | D53: 921 | E53: - | F53: 699 | G53: tolQ: protein TolQ | H53: 1036 | I53: 1.48 | J53: 63.70
A54: OCT-B-Caldipriscus-r01_00866 | B54: Ga0081478_129646 | C54: 2389 | D54: 4932 | E54: - | F54: 2544 | G54: OM_YfiO: outer membrane assembly lipoprotein YfiO | H54: 3769 | I54: 1.48 | J54: 63.67
A55: OCT-B-Caldipriscus-r01_00799 | B55: Ga0081478_132328 | C55: 2286 | D55: 2600 | E55: - | F55: 315 | G55: hypothetical protein | H55: 466 | I55: 1.48 | J55: 63.58
A56: OCT-B-Caldipriscus-r01_01453 | B56: Ga0081478_152268 | C56: 4873 | D56: 5223 | E56: + | F56: 351 | G56: Putative anti-sigma factor antagonist TM_1442 | H56: 514 | I56: 1.46 | J56: 62.94
A57: OCT-B-Caldipriscus-r01_00863 | B57: Ga0081478_129646 | C57: 781 | D57: 1227 | E57: - | F57: 447 | G57: tolR: protein TolR | H57: 651 | I57: 1.46 | J57: 62.59
A58: OCT-B-Caldipriscus-r01_00803 | B58: Ga0081478_133050 | C58: 698 | D58: 1573 | E58: + | F58: 876 | G58: hypothetical protein | H58: 1274 | I58: 1.45 | J58: 62.51
A59: OCT-B-Caldipriscus-r01_01147 | B59: Ga0081478_139903 | C59: 690 | D59: 2762 | E59: + | F59: 2073 | G59: Extracellular protein TEM7, contains PSI domain (tumor endothelial marker in humans) [Extracellular structures] | H59: 2942 | I59: 1.42 | J59: 61.00
A60: OCT-B-Caldipriscus-r01_01833 | B60: Ga0081478_164798 | C60: 1285 | D60: 1929 | E60: - | F60: 645 | G60: tonB_Cterm: TonB family C-terminal domain | H60: 912 | I60: 1.41 | J60: 60.77
A61: OCT-B-Caldipriscus-r01_01553 | B61: Ga0081478_137541 | C61: 8876 | D61: 9331 | E61: - | F61: 456 | G61: nitro_reg_IIA: PTS IIA-like nitrogen-regulatory protein PtsN | H61: 641 | I61: 1.41 | J61: 60.42
A62: OCT-B-Caldipriscus-r01_00079 | B62: Ga0081478_133022 | C62: 2825 | D62: 3211 | E62: - | F62: 387 | G62: 30S ribosomal protein S12 | H62: 538 | I62: 1.39 | J62: 59.75
A63: OCT-B-Caldipriscus-r01_00719 | B63: Ga0081478_164293 | C63: 3095 | D63: 3757 | E63: - | F63: 663 | G63: 50S ribosomal protein L3 | H63: 904 | I63: 1.36 | J63: 58.60
A64: OCT-B-Caldipriscus-r01_00451 | B64: Ga0081478_144187 | C64: 486 | D64: 932 | E64: - | F64: 447 | G64: tolR: protein TolR | H64: 607 | I64: 1.36 | J64: 58.36
A65: OCT-B-Caldipriscus-r01_01735 | B65: Ga0081478_164523 | C65: 1598 | D65: 2089 | E65: - | F65: 492 | G65: ytfJ_HI0045: conserved hypothetical protein YtfJ-family, TIGR01626 | H65: 664 | I65: 1.35 | J65: 58.00
A66: OCT-B-Caldipriscus-r01_01775 | B66: Ga0081478_160182 | C66: 2254 | D66: 2439 | E66: + | F66: 186 | G66: Uncharacterized conserved protein [Function unknown] | H66: 240 | I66: 1.29 | J66: 55.46
A67: OCT-B-Caldipriscus-r01_01494 | B67: Ga0081478_130709 | C67: 8581 | D67: 10164 | E67: - | F67: 1584 | G67: PQQ_membr_DH: membrane-bound PQQ-dependent dehydrogenase, glucose/quinate/shikimate family | H67: 2017 | I67: 1.27 | J67: 54.73
A68: OCT-B-Caldipriscus-r01_00827 | B68: Ga0081478_138822 | C68: 1600 | D68: 2604 | E68: - | F68: 1005 | G68: phnS2: putative 2-aminoethylphosphonate ABC transporter, periplasmic 2-aminoethylphosphonate-binding protein | H68: 1251 | I68: 1.24 | J68: 53.50
A69: OCT-B-Caldipriscus-r01_00718 | B69: Ga0081478_164293 | C69: 2475 | D69: 3098 | E69: - | F69: 624 | G69: 50S ribosomal protein L4 | H69: 774 | I69: 1.24 | J69: 53.31
A70: OCT-B-Caldipriscus-r01_01045 | B70: Ga0081478_124127 | C70: 1010 | D70: 1195 | E70: + | F70: 186 | G70: 50S ribosomal protein L30 | H70: 230 | I70: 1.24 | J70: 53.15
A71: OCT-B-Caldipriscus-r01_00335 | B71: Ga0081478_167862 | C71: 1085 | D71: 1282 | E71: - | F71: 198 | G71: 30S ribosomal protein S18 | H71: 244 | I71: 1.23 | J71: 52.96
A72: OCT-B-Caldipriscus-r01_01337 | B72: Ga0081478_133053 | C72: 2082 | D72: 2507 | E72: + | F72: 426 | G72: S-adenosylmethionine decarboxylase proenzyme | H72: 523 | I72: 1.23 | J72: 52.76
A73: OCT-B-Caldipriscus-r01_01442 | B73: Ga0081478_129758 | C73: 2632 | D73: 3126 | E73: - | F73: 495 | G73: hypothetical protein | H73: 603 | I73: 1.22 | J73: 52.36
A74: OCT-B-Caldipriscus-r01_00778 | B74: Ga0081478_132798 | C74: 87 | D74: 2837 | E74: + | F74: 2751 | G74: hypothetical protein | H74: 3334 | I74: 1.21 | J74: 52.09
A75: OCT-B-Caldipriscus-r01_00475 | B75: Ga0081478_140894 | C75: 3035 | D75: 3424 | E75: - | F75: 390 | G75: 30S ribosomal protein S9 | H75: 470 | I75: 1.21 | J75: 51.79
A76: OCT-B-Caldipriscus-r01_01561 | B76: Ga0081478_167747 | C76: 2198 | D76: 3439 | E76: + | F76: 1242 | G76: cytb6/f_IV: cytb6/f complex subunit IV | H76: 1492 | I76: 1.20 | J76: 51.63
A77: OCT-B-Caldipriscus-r01_01103 | B77: Ga0081478_134501 | C77: 2624 | D77: 2842 | E77: + | F77: 219 | G77: secE_bact: preprotein translocase, SecE subunit | H77: 259 | I77: 1.18 | J77: 50.83
A78: OCT-B-Caldipriscus-r01_01101 | B78: Ga0081478_134501 | C78: 993 | D78: 2351 | E78: + | F78: 1359 | G78: Predicted neuraminidase (sialidase) [Carbohydrate transport and metabolism] | H78: 1604 | I78: 1.18 | J78: 50.73
A79: OCT-B-Caldipriscus-r01_01835 | B79: Ga0081478_164798 | C79: 2333 | D79: 2755 | E79: - | F79: 423 | G79: ExbD_2: TonB system transport protein ExbD | H79: 498 | I79: 1.18 | J79: 50.60
A80: OCT-B-Caldipriscus-r01_01018 | B80: Ga0081478_131711 | C80: 348 | D80: 848 | E80: + | F80: 501 | G80: hypothetical protein | H80: 582 | I80: 1.16 | J80: 49.93
A81: OCT-B-Caldipriscus-r01_00538 | B81: Ga0081478_132603 | C81: 2697 | D81: 3101 | E81: + | F81: 405 | G81: 6,7-dimethyl-8-ribityllumazine synthase | H81: 465 | I81: 1.15 | J81: 49.35
A82: OCT-B-Caldipriscus-r01_00724 | B82: Ga0081478_135063 | C82: 1417 | D82: 2106 | E82: - | F82: 690 | G82: Phosphoribosylaminoimidazole-succinocarboxamide synthase | H82: 792 | I82: 1.15 | J82: 49.33
A83: OCT-B-Caldipriscus-r01_00537 | B83: Ga0081478_132603 | C83: 1131 | D83: 2696 | E83: + | F83: 1566 | G83: type_VI_ompA: type VI secretion system peptidoglycan-associated domain | H83: 1790 | I83: 1.14 | J83: 49.13
A84: OCT-B-Caldipriscus-r01_00099 | B84: Ga0081478_144523 | C84: 711 | D84: 1247 | E84: + | F84: 537 | G84: hypothetical protein | H84: 611 | I84: 1.14 | J84: 48.90
A85: OCT-B-Caldipriscus-r01_01628 | B85: Ga0081478_139298 | C85: 3550 | D85: 4167 | E85: + | F85: 618 | G85: NADH-quinone oxidoreductase subunit 9 | H85: 700 | I85: 1.13 | J85: 48.68
A86: OCT-B-Caldipriscus-r01_00453 | B86: Ga0081478_144187 | C86: 1375 | D86: 2073 | E86: - | F86: 699 | G86: tolQ: protein TolQ | H86: 785 | I86: 1.12 | J86: 48.27
A87: OCT-B-Caldipriscus-r01_00961 | B87: Ga0081478_146005 | C87: 1257 | D87: 1646 | E87: + | F87: 390 | G87: 30S ribosomal protein S9 | H87: 437 | I87: 1.12 | J87: 48.16
A88: OCT-B-Caldipriscus-r01_00542 | B88: Ga0081478_132603 | C88: 5531 | D88: 5878 | E88: - | F88: 348 | G88: ftsN: cell division protein FtsN | H88: 387 | I88: 1.11 | J88: 47.80
A89: OCT-B-Caldipriscus-r01_00098 | B89: Ga0081478_144523 | C89: 180 | D89: 668 | E89: + | F89: 489 | G89: hypothetical protein | H89: 536 | I89: 1.10 | J89: 47.11
A90: OCT-B-Caldipriscus-r01_00213 | B90: Ga0081478_132685 | C90: 3654 | D90: 4421 | E90: - | F90: 768 | G90: hypothetical protein | H90: 835 | I90: 1.09 | J90: 46.73
A91: OCT-B-Caldipriscus-r01_00277 | B91: Ga0081478_139951 | C91: 9202 | D91: 9921 | E91: - | F91: 720 | G91: hypothetical protein | H91: 781 | I91: 1.08 | J91: 46.62
A92: OCT-B-Caldipriscus-r01_00476 | B92: Ga0081478_140894 | C92: 3435 | D92: 3872 | E92: - | F92: 438 | G92: 50S ribosomal protein L13 | H92: 468 | I92: 1.07 | J92: 45.92
A93: OCT-B-Caldipriscus-r01_00589 | B93: Ga0081478_161345 | C93: 1430 | D93: 1855 | E93: + | F93: 426 | G93: 1-methylthio-D-xylulose 5-phosphate methylsulfurylase | H93: 454 | I93: 1.07 | J93: 45.80
A94: OCT-B-Caldipriscus-r01_01758 | B94: Ga0081478_132783 | C94: 870 | D94: 1136 | E94: + | F94: 267 | G94: hypothetical protein | H94: 283 | I94: 1.06 | J94: 45.55
A95: OCT-B-Caldipriscus-r01_00150 | B95: Ga0081478_136851 | C95: 563 | D95: 1909 | E95: - | F95: 1347 | G95: menA: 1,4-dihydroxy-2-naphthoate octaprenyltransferase | H95: 1424 | I95: 1.06 | J95: 45.44
A96: OCT-B-Caldipriscus-r01_01636 | B96: Ga0081478_139298 | C96: 8270 | D96: 8482 | E96: + | F96: 213 | G96: GvpP Gas vesicle protein [General function prediction only] | H96: 225 | I96: 1.06 | J96: 45.40
A97: OCT-B-Caldipriscus-r01_00721 | B97: Ga0081478_164293 | C97: 4072 | D97: 4854 | E97: - | F97: 783 | G97: Elongation factor Tu | H97: 816 | I97: 1.04 | J97: 44.79
A98: OCT-B-Caldipriscus-r01_01034 | B98: Ga0081478_146023 | C98: 753 | D98: 1037 | E98: + | F98: 285 | G98: 30S ribosomal protein S19 | H98: 297 | I98: 1.04 | J98: 44.79
A99: OCT-B-Caldipriscus-r01_01461 | B99: Ga0081478_156582 | C99: 103 | D99: 246 | E99: + | F99: 144 | G99: hypothetical protein | H99: 150 | I99: 1.04 | J99: 44.77
A100: OCT-B-Caldipriscus-r01_01035 | B100: Ga0081478_146023 | C100: 1034 | D100: 1447 | E100: + | F100: 414 | G100: 50S ribosomal protein L22 | H100: 428 | I100: 1.03 | J100: 44.43
A101: OCT-B-Caldipriscus-r01_00426 | B101: Ga0081478_140968 | C101: 3709 | D101: 4134 | E101: - | F101: 426 | G101: Uncharacterized conserved protein [Function unknown] | H101: 439 | I101: 1.03 | J101: 44.29
A102: OCT-B-Caldipriscus-r01_01016 | B102: Ga0081478_131860 | C102: 470 | D102: 2314 | E102: - | F102: 1845 | G102: hypothetical protein | H102: 1901 | I102: 1.03 | J102: 44.28
A103: OCT-B-Caldipriscus-r01_00533 | B103: Ga0081478_145142 | C103: 672 | D103: 1076 | E103: - | F103: 405 | G103: 6,7-dimethyl-8-ribityllumazine synthase | H103: 414 | I103: 1.02 | J103: 43.93
A104: OCT-B-Caldipriscus-r01_01325 | B104: Ga0081478_137743 | C104: 160 | D104: 450 | E104: + | F104: 291 | G104: 60 kDa chaperonin | H104: 295 | I104: 1.01 | J104: 43.57
A105: OCT-B-Caldipriscus-r01_01861 | B105: Ga0081478_128287 | C105: 1731 | D105: 2069 | E105: - | F105: 339 | G105: tonB_Cterm: TonB family C-terminal domain | H105: 343 | I105: 1.01 | J105: 43.49
A106: OCT-B-Caldipriscus-r01_00543 | B106: Ga0081478_132603 | C106: 5865 | D106: 6071 | E106: - | F106: 207 | G106: 50S ribosomal protein L31 | H106: 209 | I106: 1.01 | J106: 43.39
A107: OCT-B-Caldipriscus-r01_01131 | B107: Ga0081478_140917 | C107: 2213 | D107: 2665 | E107: + | F107: 453 | G107: 50S ribosomal protein L9 | H107: 454 | I107: 1.00 | J107: 43.07
A108: OCT-B-Caldipriscus-r01_00077 | B108: Ga0081478_133022 | C108: 2010 | D108: 2357 | E108: - | F108: 348 | G108: hypothetical protein | H108: 346 | I108: 0.99 | J108: 42.73
A109: OCT-B-Caldipriscus-r01_00876 | B109: Ga0081478_143880 | C109: 826 | D109: 1791 | E109: - | F109: 966 | G109: hypothetical protein | H109: 960 | I109: 0.99 | J109: 42.71
A110: OCT-B-Caldipriscus-r01_01887 | B110: Ga0081478_140696 | C110: 216 | D110: 500 | E110: - | F110: 285 | G110: 30S ribosomal protein S19 | H110: 281 | I110: 0.99 | J110: 42.38
A111: OCT-B-Caldipriscus-r01_01731 | B111: Ga0081478_164523 | C111: 89 | D111: 325 | E111: - | F111: 237 | G111: hypothetical protein | H111: 233 | I111: 0.98 | J111: 42.25
A112: OCT-B-Caldipriscus-r01_00012 | B112: Ga0081478_129032 | C112: 2672 | D112: 2932 | E112: - | F112: 261 | G112: hypothetical protein | H112: 256 | I112: 0.98 | J112: 42.16
A113: OCT-B-Caldipriscus-r01_00480 | B113: Ga0081478_140894 | C113: 6075 | D113: 6932 | E113: + | F113: 858 | G113: hypothetical protein | H113: 841 | I113: 0.98 | J113: 42.13
A114: OCT-B-Caldipriscus-r01_00326 | B114: Ga0081478_141159 | C114: 1793 | D114: 2059 | E114: + | F114: 267 | G114: hypothetical protein | H114: 260 | I114: 0.97 | J114: 41.85
A115: OCT-B-Caldipriscus-r01_00973 | B115: Ga0081478_140723 | C115: 1265 | D115: 1738 | E115: + | F115: 474 | G115: Putative peroxiredoxin bcp | H115: 460 | I115: 0.97 | J115: 41.71
A116: OCT-B-Caldipriscus-r01_00715 | B116: Ga0081478_164293 | C116: 1044 | D116: 1328 | E116: - | F116: 285 | G116: 30S ribosomal protein S19 | H116: 274 | I116: 0.96 | J116: 41.32
A117: OCT-B-Caldipriscus-r01_00680 | B117: Ga0081478_139053 | C117: 93 | D117: 1007 | E117: + | F117: 915 | G117: T9SS_PorP_fam: type IX secretion system membrane protein, PorP/SprF family | H117: 864 | I117: 0.94 | J117: 40.58
A118: OCT-B-Caldipriscus-r01_01324 | B118: Ga0081478_158115 | C118: 3076 | D118: 3990 | E118: - | F118: 915 | G118: DNA repair protein RadA | H118: 854 | I118: 0.93 | J118: 40.11
A119: OCT-B-Caldipriscus-r01_00971 | B119: Ga0081478_144419 | C119: 1282 | D119: 2283 | E119: - | F119: 1002 | G119: menA_cyano-plnt: 1,4-dihydroxy-2-naphthoate phytyltransferase | H119: 934 | I119: 0.93 | J119: 40.06
A120: OCT-B-Caldipriscus-r01_00422 | B120: Ga0081478_134100 | C120: 3335 | D120: 3595 | E120: + | F120: 261 | G120: Ferredoxin 7Fe | H120: 237 | I120: 0.91 | J120: 39.03
A121: OCT-B-Caldipriscus-r01_00714 | B121: Ga0081478_164293 | C121: 634 | D121: 1047 | E121: - | F121: 414 | G121: 50S ribosomal protein L22 | H121: 373 | I121: 0.90 | J121: 38.72
A122: OCT-B-Caldipriscus-r01_01889 | B122: Ga0081478_140696 | C122: 1354 | D122: 1650 | E122: - | F122: 297 | G122: 50S ribosomal protein L23 | H122: 266 | I122: 0.90 | J122: 38.49
A123: OCT-B-Caldipriscus-r01_00506 | B123: Ga0081478_140644 | C123: 6945 | D123: 7829 | E123: - | F123: 885 | G123: PorB_KorB: 2-oxoacid:acceptor oxidoreductase, beta subunit, pyruvate/2-ketoisovalerate family | H123: 791 | I123: 0.89 | J123: 38.41
A124: OCT-B-Caldipriscus-r01_00046 | B124: Ga0081478_135237 | C124: 794 | D124: 1501 | E124: - | F124: 708 | G124: AGP_acyltrn: 1-acylglycerol-3-phosphate O-acyltransferases | H124: 627 | I124: 0.89 | J124: 38.06
A125: OCT-B-Caldipriscus-r01_01030 | B125: Ga0081478_143019 | C125: 965 | D125: 1246 | E125: + | F125: 282 | G125: hypothetical protein | H125: 249 | I125: 0.88 | J125: 37.95
A126: OCT-B-Caldipriscus-r01_00081 | B126: Ga0081478_133026 | C126: 78 | D126: 314 | E126: + | F126: 237 | G126: Platelet-activating factor acetylhydrolase, isoform II | H126: 209 | I126: 0.88 | J126: 37.90
A127: OCT-B-Caldipriscus-r01_00657 | B127: Ga0081478_137518 | C127: 5116 | D127: 5814 | E127: + | F127: 699 | G127: 3-oxoacyl-[acyl-carrier-protein] reductase FabG | H127: 606 | I127: 0.87 | J127: 37.26
A128: OCT-B-Caldipriscus-r01_01562 | B128: Ga0081478_167747 | C128: 3454 | D128: 4782 | E128: + | F128: 1329 | G128: 4cys_cytochr: c-type cytochrome, methanol metabolism-related | H128: 1151 | I128: 0.87 | J128: 37.22
A129: OCT-B-Caldipriscus-r01_00716 | B129: Ga0081478_164293 | C129: 1332 | D129: 2180 | E129: - | F129: 849 | G129: 50S ribosomal protein L2 | H129: 732 | I129: 0.86 | J129: 37.06
A130: OCT-B-Caldipriscus-r01_01165 | B130: Ga0081478_169930 | C130: 998 | D130: 2266 | E130: - | F130: 1269 | G130: Glutamate dehydrogenase | H130: 1088 | I130: 0.86 | J130: 36.85
A131: OCT-B-Caldipriscus-r01_01176 | B131: Ga0081478_169930 | C131: 9774 | D131: 9980 | E131: + | F131: 207 | G131: hypothetical protein | H131: 176 | I131: 0.85 | J131: 36.54
A132: OCT-B-Caldipriscus-r01_00753 | B132: Ga0081478_169308 | C132: 6385 | D132: 7431 | E132: + | F132: 1047 | G132: T9SS_PorP_fam: type IX secretion system membrane protein, PorP/SprF family | H132: 872 | I132: 0.83 | J132: 35.80
A133: OCT-B-Caldipriscus-r01_00698 | B133: Ga0081478_168869 | C133: 382 | D133: 915 | E133: - | F133: 534 | G133: organ_hyd_perox: peroxiredoxin, Ohr subfamily | H133: 443 | I133: 0.83 | J133: 35.65
A134: OCT-B-Caldipriscus-r01_00725 | B134: Ga0081478_135063 | C134: 2103 | D134: 3293 | E134: - | F134: 1191 | G134: TIGR00156: TIGR00156 family protein | H134: 985 | I134: 0.83 | J134: 35.54
A135: OCT-B-Caldipriscus-r01_00789 | B135: Ga0081478_138026 | C135: 690 | D135: 2762 | E135: + | F135: 2073 | G135: Extracellular protein TEM7, contains PSI domain (tumor endothelial marker in humans) [Extracellular structures] | H135: 1667 | I135: 0.80 | J135: 34.56
A136: OCT-B-Caldipriscus-r01_00918 | B136: Ga0081478_141592 | C136: 3545 | D136: 4048 | E136: - | F136: 504 | G136: Predicted secreted (periplasmic) protein [Function unknown] | H136: 405 | I136: 0.80 | J136: 34.54
A137: OCT-B-Caldipriscus-r01_01637 | B137: Ga0081478_139298 | C137: 8482 | D137: 9471 | E137: + | F137: 990 | G137: Glyceraldehyde-3-phosphate dehydrogenase | H137: 793 | I137: 0.80 | J137: 34.43
A138: OCT-B-Caldipriscus-r01_00960 | B138: Ga0081478_146005 | C138: 809 | D138: 1246 | E138: + | F138: 438 | G138: 50S ribosomal protein L13 | H138: 350 | I138: 0.80 | J138: 34.34
A139: OCT-B-Caldipriscus-r01_00587 | B139: Ga0081478_128266 | C139: 10622 | D139: 10891 | E139: + | F139: 270 | G139: 30S ribosomal protein S15 | H139: 215 | I139: 0.80 | J139: 34.22
A140: OCT-B-Caldipriscus-r01_01734 | B140: Ga0081478_164523 | C140: 821 | D140: 1597 | E140: + | F140: 777 | G140: Probable enoyl-CoA hydratase | H140: 617 | I140: 0.79 | J140: 34.13
A141: OCT-B-Caldipriscus-r01_00674 | B141: Ga0081478_133188 | C141: 1779 | D141: 1976 | E141: - | F141: 198 | G141: hypothetical protein | H141: 156 | I141: 0.79 | J141: 33.86
A142: OCT-B-Caldipriscus-r01_01836 | B142: Ga0081478_164798 | C142: 2757 | D142: 3392 | E142: - | F142: 636 | G142: tolQ: protein TolQ | H142: 501 | I142: 0.79 | J142: 33.86
A143: OCT-B-Caldipriscus-r01_01571 | B143: Ga0081478_134007 | C143: 2061 | D143: 2366 | E143: - | F143: 306 | G143: NADH-quinone oxidoreductase subunit K | H143: 241 | I143: 0.79 | J143: 33.85
A144: OCT-B-Caldipriscus-r01_00656 | B144: Ga0081478_137518 | C144: 4676 | D144: 5119 | E144: + | F144: 444 | G144: IscR: iron-sulfur cluster assembly transcription factor IscR | H144: 348 | I144: 0.78 | J144: 33.69
A145: OCT-B-Caldipriscus-r01_01732 | B145: Ga0081478_164523 | C145: 322 | D145: 693 | E145: - | F145: 372 | G145: NAD(P)H-quinone oxidoreductase subunit 3 | H145: 291 | I145: 0.78 | J145: 33.62
A146: OCT-B-Caldipriscus-r01_01130 | B146: Ga0081478_140917 | C146: 2019 | D146: 2216 | E146: + | F146: 198 | G146: 30S ribosomal protein S18 | H146: 154 | I146: 0.78 | J146: 33.43
A147: OCT-B-Caldipriscus-r01_00681 | B147: Ga0081478_139053 | C147: 995 | D147: 1459 | E147: - | F147: 465 | G147: phn_DUF6: phosphonate utilization associated putative membrane protein | H147: 358 | I147: 0.77 | J147: 33.09
A148: OCT-B-Caldipriscus-r01_01142 | B148: Ga0081478_132699 | C148: 2714 | D148: 2899 | E148: + | F148: 186 | G148: 30S ribosomal protein S14 type Z | H148: 143 | I148: 0.77 | J148: 33.04
A149: OCT-B-Caldipriscus-r01_01102 | B149: Ga0081478_134501 | C149: 2382 | D149: 2457 | E149: + | F149: 76 | G149: tRNA-Trp(cca) | H149: 58 | I149: 0.76 | J149: 32.80
A150: OCT-B-Caldipriscus-r01_00711 | B150: Ga0081478_140339 | C150: 1475 | D150: 1912 | E150: + | F150: 438 | G150: hypothetical protein | H150: 331 | I150: 0.76 | J150: 32.48
A151: OCT-B-Caldipriscus-r01_00334 | B151: Ga0081478_167862 | C151: 636 | D151: 1088 | E151: - | F151: 453 | G151: 50S ribosomal protein L9 | H151: 341 | I151: 0.75 | J151: 32.35
A152: OCT-B-Caldipriscus-r01_00366 | B152: Ga0081478_139972 | C152: 10559 | D152: 11089 | E152: - | F152: 531 | G152: Peptide deformylase | H152: 399 | I152: 0.75 | J152: 32.29
A153: OCT-B-Caldipriscus-r01_00783 | B153: Ga0081478_168220 | C153: 103 | D153: 387 | E153: + | F153: 285 | G153: dCTP deaminase | H153: 214 | I153: 0.75 | J153: 32.27
A154: OCT-B-Caldipriscus-r01_01336 | B154: Ga0081478_133053 | C154: 1964 | D154: 2047 | E154: + | F154: 84 | G154: tRNA-Ser(cag) | H154: 63 | I154: 0.75 | J154: 32.23
A155: OCT-B-Caldipriscus-r01_01230 | B155: Ga0081478_140487 | C155: 1188 | D155: 2060 | E155: - | F155: 873 | G155: Elongation factor G | H155: 649 | I155: 0.74 | J155: 31.95
A156: OCT-B-Caldipriscus-r01_00220 | B156: Ga0081478_141994 | C156: 1309 | D156: 1479 | E156: - | F156: 171 | G156: hypothetical protein | H156: 127 | I156: 0.74 | J156: 31.92
A157: OCT-B-Caldipriscus-r01_00808 | B157: Ga0081478_139012 | C157: 9535 | D157: 9930 | E157: + | F157: 396 | G157: 30S ribosomal protein S8 | H157: 294 | I157: 0.74 | J157: 31.91
A158: OCT-B-Caldipriscus-r01_01841 | B158: Ga0081478_145078 | C158: 1126 | D158: 1425 | E158: + | F158: 300 | G158: V_ATP_synt_C: V-type ATPase, C subunit | H158: 222 | I158: 0.74 | J158: 31.80
A159: OCT-B-Caldipriscus-r01_00367 | B159: Ga0081478_139972 | C159: 11073 | D159: 11345 | E159: - | F159: 273 | G159: yajC: preprotein translocase, YajC subunit | H159: 202 | I159: 0.74 | J159: 31.80
A160: OCT-B-Caldipriscus-r01_00654 | B160: Ga0081478_137518 | C160: 1861 | D160: 3639 | E160: + | F160: 1779 | G160: V-type ATP synthase alpha chain | H160: 1316 | I160: 0.74 | J160: 31.79
A161: OCT-B-Caldipriscus-r01_00673 | B161: Ga0081478_133188 | C161: 1312 | D161: 1776 | E161: - | F161: 465 | G161: FKBP-type peptidyl-prolyl cis-trans isomerase SlyD | H161: 342 | I161: 0.74 | J161: 31.61
A162: OCT-B-Caldipriscus-r01_00465 | B162: Ga0081478_136626 | C162: 3875 | D162: 4786 | E162: - | F162: 912 | G162: Uncharacterized protein Rv1488 | H162: 660 | I162: 0.72 | J162: 31.10
A163: OCT-B-Caldipriscus-r01_01393 | B163: Ga0081478_144445 | C163: 2715 | D163: 3716 | E163: - | F163: 1002 | G163: menA_cyano-plnt: 1,4-dihydroxy-2-naphthoate phytyltransferase | H163: 723 | I163: 0.72 | J163: 31.01
A164: OCT-B-Caldipriscus-r01_00958 | B164: Ga0081478_146000 | C164: 525 | D164: 1919 | E164: - | F164: 1395 | G164: Inosine-5'-monophosphate dehydrogenase | H164: 996 | I164: 0.71 | J164: 30.69
A165: OCT-B-Caldipriscus-r01_01888 | B165: Ga0081478_140696 | C165: 504 | D165: 1352 | E165: - | F165: 849 | G165: 50S ribosomal protein L2 | H165: 601 | I165: 0.71 | J165: 30.42
A166: OCT-B-Caldipriscus-r01_01423 | B166: Ga0081478_133462 | C166: 3328 | D166: 3906 | E166: + | F166: 579 | G166: hypothetical protein | H166: 409 | I166: 0.71 | J166: 30.36
A167: OCT-B-Caldipriscus-r01_00816 | B167: Ga0081478_130791 | C167: 2094 | D167: 2456 | E167: + | F167: 363 | G167: Chemotaxis protein CheY | H167: 256 | I167: 0.71 | J167: 30.31
A168: OCT-B-Caldipriscus-r01_00505 | B168: Ga0081478_140644 | C168: 6142 | D168: 6948 | E168: - | F168: 807 | G168: L-arabinose transport system permease protein AraQ | H168: 569 | I168: 0.71 | J168: 30.30
A169: OCT-B-Caldipriscus-r01_01100 | B169: Ga0081478_134501 | C169: 492 | D169: 989 | E169: + | F169: 498 | G169: hypothetical protein | H169: 351 | I169: 0.70 | J169: 30.29
A170: OCT-B-Caldipriscus-r01_00836 | B170: Ga0081478_130808 | C170: 181 | D170: 489 | E170: + | F170: 309 | G170: CyoD: cytochrome o ubiquinol oxidase subunit IV | H170: 217 | I170: 0.70 | J170: 30.18
A171: OCT-B-Caldipriscus-r01_01192 | B171: Ga0081478_169207 | C171: 8432 | D171: 8884 | E171: - | F171: 453 | G171: 4cys_cytochr: c-type cytochrome, methanol metabolism-related | H171: 318 | I171: 0.70 | J171: 30.17
A172: OCT-B-Caldipriscus-r01_00752 | B172: Ga0081478_169308 | C172: 5846 | D172: 6388 | E172: + | F172: 543 | G172: NADH-quinone oxidoreductase subunit B | H172: 380 | I172: 0.70 | J172: 30.08
A173: OCT-B-Caldipriscus-r01_00321 | B173: Ga0081478_131362 | C173: 10212 | D173: 10649 | E173: - | F173: 438 | G173: Spore protein SP21 | H173: 306 | I173: 0.70 | J173: 30.03
A174: OCT-B-Caldipriscus-r01_00302 | B174: Ga0081478_143201 | C174: 5930 | D174: 6784 | E174: - | F174: 855 | G174: Protease HtpX homolog | H174: 594 | I174: 0.69 | J174: 29.86
A175: OCT-B-Caldipriscus-r01_01697 | B175: Ga0081478_139457 | C175: 891 | D175: 1319 | E175: - | F175: 429 | G175: succ_dehyd_cytB: succinate dehydrogenase, cytochrome b556 subunit | H175: 297 | I175: 0.69 | J175: 29.75
A176: OCT-B-Caldipriscus-r01_00871 | B176: Ga0081478_131704 | C176: 1926 | D176: 2504 | E176: - | F176: 579 | G176: 50S ribosomal protein L25 | H176: 400 | I176: 0.69 | J176: 29.69
A177: OCT-B-Caldipriscus-r01_00338 | B177: Ga0081478_135879 | C177: 60 | D177: 515 | E177: + | F177: 456 | G177: 60 kDa chaperonin | H177: 315 | I177: 0.69 | J177: 29.69
A178: OCT-B-Caldipriscus-r01_01534 | B178: Ga0081478_135769 | C178: 9801 | D178: 9887 | E178: - | F178: 87 | G178: tRNA-Ser(tga) | H178: 60 | I178: 0.69 | J178: 29.64
A179: OCT-B-Caldipriscus-r01_01244 | B179: Ga0081478_159077 | C179: 955 | D179: 1428 | E179: - | F179: 474 | G179: Family of unknown function (DUF5362) | H179: 322 | I179: 0.68 | J179: 29.20
A180: OCT-B-Caldipriscus-r01_00074 | B180: Ga0081478_167965 | C180: 3505 | D180: 4731 | E180: - | F180: 1227 | G180: S_glycosyl_SunS: peptide S-glycosyltransferase, SunS family | H180: 823 | I180: 0.67 | J180: 28.83
A181: OCT-B-Caldipriscus-r01_00588 | B181: Ga0081478_161345 | C181: 246 | D181: 1433 | E181: + | F181: 1188 | G181: Putative pyridoxal phosphate-dependent acyltransferase | H181: 795 | I181: 0.67 | J181: 28.76
A182: OCT-B-Caldipriscus-r01_01267 | B182: Ga0081478_125545 | C182: 2616 | D182: 2930 | E182: - | F182: 315 | G182: 4cys_cytochr: c-type cytochrome, methanol metabolism-related | H182: 210 | I182: 0.67 | J182: 28.65
A183: OCT-B-Caldipriscus-r01_01274 | B183: Ga0081478_131149 | C183: 32 | D183: 454 | E183: + | F183: 423 | G183: Phosphate-specific transport system accessory protein PhoU homolog | H183: 281 | I183: 0.66 | J183: 28.55
A184: OCT-B-Caldipriscus-r01_01345 | B184: Ga0081478_133053 | C184: 10991 | D184: 11719 | E184: - | F184: 729 | G184: hypothetical protein | H184: 484 | I184: 0.66 | J184: 28.53
A185: OCT-B-Caldipriscus-r01_01813 | B185: Ga0081478_141025 | C185: 675 | D185: 1037 | E185: - | F185: 363 | G185: Sulfurtransferase Alvin_2599 | H185: 241 | I185: 0.66 | J185: 28.53
A186: OCT-B-Caldipriscus-r01_00333 | B186: Ga0081478_167862 | C186: 181 | D186: 639 | E186: - | F186: 459 | G186: Uncharacterized conserved protein [Function unknown] | H186: 304 | I186: 0.66 | J186: 28.47
A187: OCT-B-Caldipriscus-r01_00854 | B187: Ga0081478_129396 | C187: 3359 | D187: 4699 | E187: - | F187: 1341 | G187: fghA_ester_D: S-formylglutathione hydrolase | H187: 883 | I187: 0.66 | J187: 28.30
A188: OCT-B-Caldipriscus-r01_00853 | B188: Ga0081478_129396 | C188: 2896 | D188: 3366 | E188: - | F188: 471 | G188: NuoC_fam: NADH (or F420H2) dehydrogenase, subunit C | H188: 309 | I188: 0.66 | J188: 28.20
A189: OCT-B-Caldipriscus-r01_01788 | B189: Ga0081478_135256 | C189: 2886 | D189: 3428 | E189: + | F189: 543 | G189: hypothetical protein | H189: 356 | I189: 0.66 | J189: 28.18
A190: OCT-B-Caldipriscus-r01_00464 | B190: Ga0081478_136626 | C190: 2825 | D190: 3649 | E190: - | F190: 825 | G190: hypothetical protein | H190: 539 | I190: 0.65 | J190: 28.08
A191: OCT-B-Caldipriscus-r01_00219 | B191: Ga0081478_141994 | C191: 806 | D191: 1312 | E191: + | F191: 507 | G191: type_VI_ompA: type VI secretion system peptidoglycan-associated domain | H191: 329 | I191: 0.65 | J191: 27.89
A192: OCT-B-Caldipriscus-r01_00228 | B192: Ga0081478_134683 | C192: 2726 | D192: 2998 | E192: + | F192: 273 | G192: hypothetical protein | H192: 177 | I192: 0.65 | J192: 27.87
A193: OCT-B-Caldipriscus-r01_01064 | B193: Ga0081478_151031 | C193: 2585 | D193: 2974 | E193: - | F193: 390 | G193: hypothetical protein | H193: 252 | I193: 0.65 | J193: 27.77
A194: OCT-B-Caldipriscus-r01_01842 | B194: Ga0081478_145078 | C194: 1427 | D194: 2065 | E194: + | F194: 639 | G194: FliH_bacil: flagellar assembly protein FliH | H194: 411 | I194: 0.64 | J194: 27.64
A195: OCT-B-Caldipriscus-r01_00610 | B195: Ga0081478_145168 | C195: 964 | D195: 1332 | E195: - | F195: 369 | G195: hypothetical protein | H195: 237 | I195: 0.64 | J195: 27.60
A196: OCT-B-Caldipriscus-r01_00272 | B196: Ga0081478_139951 | C196: 4301 | D196: 5428 | E196: + | F196: 1128 | G196: Citrate synthase | H196: 722 | I196: 0.64 | J196: 27.51
A197: OCT-B-Caldipriscus-r01_01060 | B197: Ga0081478_142024 | C197: 3687 | D197: 4142 | E197: - | F197: 456 | G197: 60 kDa chaperonin | H197: 289 | I197: 0.63 | J197: 27.24
A198: OCT-B-Caldipriscus-r01_00014 | B198: Ga0081478_158799 | C198: 569 | D198: 1207 | E198: + | F198: 639 | G198: Phosphoribosylformylglycinamidine synthase subunit PurQ | H198: 402 | I198: 0.63 | J198: 27.04
A199: OCT-B-Caldipriscus-r01_00646 | B199: Ga0081478_130692 | C199: 3 | D199: 2435 | E199: + | F199: 2433 | G199: lipo_with_rSAM: putative lipoprotein, rSAM/lipoprotein system | H199: 1514 | I199: 0.62 | J199: 26.74
A200: OCT-B-Caldipriscus-r01_01143 | B200: Ga0081478_132699 | C200: 2910 | D200: 3305 | E200: + | F200: 396 | G200: 30S ribosomal protein S8 | H200: 244 | I200: 0.62 | J200: 26.48
... 1692 more rows

Sheet OCT-B-Calescibacterium-r01
A1: Gene_id | B1: Contig | C1: Start | D1: End | E1: Strand | F1: Length | G1: transcript_id | H1: Raw_counts | I1: Reads_base | J1: TPM
A2: OCT-B-Calescibacterium-r01_01823 | B2: Ga0081478_139266 | C2: 9948 | D2: 10313 | E2: + | F2: 366 | G2: transfer-messenger RNA, SsrA | H2: 4718 | I2: 12.89 | J2: 554.03
A3: OCT-B-Calescibacterium-r01_03713 | B3: Ga0081478_138982 | C3: 8729 | D3: 11622 | E3: + | F3: 2894 | G3: 23S ribosomal RNA | H3: 25605 | I3: 8.85 | J3: 380.26
A4: OCT-B-Calescibacterium-r01_03710 | B4: Ga0081478_138982 | C4: 6937 | D4: 8476 | E4: + | F4: 1540 | G4: 16S ribosomal RNA | H4: 9487 | I4: 6.16 | J4: 264.77
A5: OCT-B-Calescibacterium-r01_03712 | B5: Ga0081478_138982 | C5: 8595 | D5: 8667 | E5: + | F5: 73 | G5: tRNA-Ala(tgc) | H5: 251 | I5: 3.44 | J5: 147.78
A6: OCT-B-Calescibacterium-r01_03711 | B6: Ga0081478_138982 | C6: 8516 | D6: 8589 | E6: + | F6: 74 | G6: tRNA-Ile(gat) | H6: 239 | I6: 3.23 | J6: 138.81
A7: OCT-B-Calescibacterium-r01_01133 | B7: Ga0081478_146308 | C7: 9711 | D7: 10322 | E7: + | F7: 612 | G7: Alkyl hydroperoxide reductase C | H7: 903 | I7: 1.48 | J7: 63.41
A8: OCT-B-Calescibacterium-r01_03200 | B8: Ga0081478_145089 | C8: 2515 | D8: 3288 | E8: + | F8: 774 | G8: hypothetical protein | H8: 1057 | I8: 1.37 | J8: 58.69
A9: OCT-B-Calescibacterium-r01_01349 | B9: Ga0081478_135743 | C9: 11063 | D9: 11494 | E9: + | F9: 432 | G9: Uncharacterized protein conserved in bacteria [Function unknown] | H9: 527 | I9: 1.22 | J9: 52.43
A10: OCT-B-Calescibacterium-r01_03524 | B10: Ga0081478_131589 | C10: 10792 | D10: 11526 | E10: - | F10: 735 | G10: hypothetical protein | H10: 632 | I10: 0.86 | J10: 36.96
A11: OCT-B-Calescibacterium-r01_02315 | B11: Ga0081478_145991 | C11: 1330 | D11: 1650 | E11: - | F11: 321 | G11: hypothetical protein | H11: 257 | I11: 0.80 | J11: 34.41
A12: OCT-B-Calescibacterium-r01_02997 | B12: Ga0081478_136138 | C12: 12318 | D12: 12578 | E12: + | F12: 261 | G12: KH domain | H12: 204 | I12: 0.78 | J12: 33.59
A13: OCT-B-Calescibacterium-r01_02486 | B13: Ga0081478_138476 | C13: 142 | D13: 465 | E13: - | F13: 324 | G13: TRL-like protein family | H13: 244 | I13: 0.75 | J13: 32.37
A14: OCT-B-Calescibacterium-r01_03727 | B14: Ga0081478_131868 | C14: 1752 | D14: 3314 | E14: - | F14: 1563 | G14: PCC: polycystin cation channel protein | H14: 1168 | I14: 0.75 | J14: 32.12
A15: OCT-B-Calescibacterium-r01_03525 | B15: Ga0081478_131589 | C15: 11540 | D15: 11806 | E15: - | F15: 267 | G15: hypothetical protein | H15: 197 | I15: 0.74 | J15: 31.71
A16: OCT-B-Calescibacterium-r01_00626 | B16: Ga0081478_144512 | C16: 4526 | D16: 4601 | E16: + | F16: 76 | G16: tRNA-Trp(cca) | H16: 54 | I16: 0.71 | J16: 30.54
A17: OCT-B-Calescibacterium-r01_03201 | B17: Ga0081478_145089 | C17: 3341 | D17: 3928 | E17: + | F17: 588 | G17: hypothetical protein | H17: 408 | I17: 0.69 | J17: 29.82
A18: OCT-B-Calescibacterium-r01_03202 | B18: Ga0081478_145089 | C18: 3868 | D18: 4980 | E18: + | F18: 1113 | G18: hypothetical protein | H18: 613 | I18: 0.55 | J18: 23.67
A19: OCT-B-Calescibacterium-r01_00625 | B19: Ga0081478_144512 | C19: 3150 | D19: 4352 | E19: + | F19: 1203 | G19: Elongation factor Tu | H19: 605 | I19: 0.50 | J19: 21.61
A20: OCT-B-Calescibacterium-r01_00627 | B20: Ga0081478_144512 | C20: 4632 | D20: 4781 | E20: - | F20: 150 | G20: hypothetical protein | H20: 74 | I20: 0.49 | J20: 21.20
A21: OCT-B-Calescibacterium-r01_03203 | B21: Ga0081478_145089 | C21: 4984 | D21: 5763 | E21: + | F21: 780 | G21: hypothetical protein | H21: 383 | I21: 0.49 | J21: 21.10
A22: OCT-B-Calescibacterium-r01_00237 | B22: Ga0081478_134114 | C22: 13968 | D22: 14567 | E22: + | F22: 600 | G22: Superoxide dismutase [Fe] | H22: 266 | I22: 0.44 | J22: 19.05
A23: OCT-B-Calescibacterium-r01_00238 | B23: Ga0081478_134114 | C23: 14665 | D23: 14931 | E23: + | F23: 267 | G23: 30S ribosomal protein S15 | H23: 118 | I23: 0.44 | J23: 18.99
A24: OCT-B-Calescibacterium-r01_03753 | B24: Ga0081478_143080 | C24: 910 | D24: 1536 | E24: + | F24: 627 | G24: UbiG: 3-demethylubiquinone-9 3-O-methyltransferase | H24: 272 | I24: 0.43 | J24: 18.64
A25: OCT-B-Calescibacterium-r01_02103 | B25: Ga0081478_130826 | C25: 1389 | D25: 2348 | E25: - | F25: 960 | G25: PQQ_ABC_repeats: PQQ-dependent catabolism-associated beta-propeller protein | H25: 412 | I25: 0.43 | J25: 18.45
A26: OCT-B-Calescibacterium-r01_02011 | B26: Ga0081478_133257 | C26: 15 | D26: 362 | E26: + | F26: 348 | G26: hypothetical protein | H26: 140 | I26: 0.40 | J26: 17.29
A27: OCT-B-Calescibacterium-r01_02630 | B27: Ga0081478_137485 | C27: 867 | D27: 1316 | E27: + | F27: 450 | G27: hypothetical protein | H27: 178 | I27: 0.40 | J27: 17.00
A28: OCT-B-Calescibacterium-r01_01594 | B28: Ga0081478_150456 | C28: 28737 | D28: 28962 | E28: + | F28: 226 | G28: Cobalamin | H28: 89 | I28: 0.39 | J28: 16.93
A29: OCT-B-Calescibacterium-r01_02999 | B29: Ga0081478_146274 | C29: 390 | D29: 638 | E29: - | F29: 249 | G29: hypothetical protein | H29: 97 | I29: 0.39 | J29: 16.74
A30: OCT-B-Calescibacterium-r01_00623 | B30: Ga0081478_144512 | C30: 2081 | D30: 2476 | E30: + | F30: 396 | G30: hypothetical protein | H30: 154 | I30: 0.39 | J30: 16.71
A31: OCT-B-Calescibacterium-r01_00597 | B31: Ga0081478_138640 | C31: 413 | D31: 2056 | E31: - | F31: 1644 | G31: 60 kDa chaperonin 1 | H31: 627 | I31: 0.38 | J31: 16.39
A32: OCT-B-Calescibacterium-r01_03717 | B32: Ga0081478_138982 | C32: 16763 | D32: 16836 | E32: - | F32: 74 | G32: tRNA-Lys(ttt) | H32: 28 | I32: 0.38 | J32: 16.26
A33: OCT-B-Calescibacterium-r01_01571 | B33: Ga0081478_150456 | C33: 3147 | D33: 3221 | E33: - | F33: 75 | G33: tRNA-Gly(ccc) | H33: 28 | I33: 0.37 | J33: 16.05
A34: OCT-B-Calescibacterium-r01_02298 | B34: Ga0081478_137249 | C34: 8121 | D34: 8193 | E34: + | F34: 73 | G34: tRNA-Pro(ggg) | H34: 27 | I34: 0.37 | J34: 15.90
A35: OCT-B-Calescibacterium-r01_00018 | B35: Ga0081478_126054 | C35: 15436 | D35: 16128 | E35: - | F35: 693 | G35: nanowire_3heme: c(7)-type cytochrome triheme domain | H35: 251 | I35: 0.36 | J35: 15.57
A36: OCT-B-Calescibacterium-r01_03661 | B36: Ga0081478_124313 | C36: 378 | D36: 1634 | E36: - | F36: 1257 | G36: Flagellin B | H36: 451 | I36: 0.36 | J36: 15.42
A37: OCT-B-Calescibacterium-r01_03523 | B37: Ga0081478_131589 | C37: 10075 | D37: 10728 | E37: - | F37: 654 | G37: hypothetical protein | H37: 233 | I37: 0.36 | J37: 15.31
A38: OCT-B-Calescibacterium-r01_00316 | B38: Ga0081478_137112 | C38: 20338 | D38: 20613 | E38: - | F38: 276 | G38: hypothetical protein | H38: 97 | I38: 0.35 | J38: 15.10
A39: OCT-B-Calescibacterium-r01_03521 | B39: Ga0081478_131589 | C39: 8418 | D39: 8870 | E39: - | F39: 453 | G39: hypothetical protein | H39: 157 | I39: 0.35 | J39: 14.90
A40: OCT-B-Calescibacterium-r01_03198 | B40: Ga0081478_145089 | C40: 1269 | D40: 1967 | E40: - | F40: 699 | G40: hypothetical protein | H40: 239 | I40: 0.34 | J40: 14.70
A41: OCT-B-Calescibacterium-r01_03199 | B41: Ga0081478_145089 | C41: 1960 | D41: 2196 | E41: - | F41: 237 | G41: hypothetical protein | H41: 81 | I41: 0.34 | J41: 14.69
A42: OCT-B-Calescibacterium-r01_03255 | B42: Ga0081478_140032 | C42: 3678 | D42: 4289 | E42: + | F42: 612 | G42: Alkyl hydroperoxide reductase C | H42: 209 | I42: 0.34 | J42: 14.68
A43: OCT-B-Calescibacterium-r01_01381 | B43: Ga0081478_142297 | C43: 6266 | D43: 6763 | E43: - | F43: 498 | G43: hypothetical protein | H43: 169 | I43: 0.34 | J43: 14.59
A44: OCT-B-Calescibacterium-r01_03077 | B44: Ga0081478_157814 | C44: 13 | D44: 1893 | E44: + | F44: 1881 | G44: hypothetical protein | H44: 631 | I44: 0.34 | J44: 14.42
A45: OCT-B-Calescibacterium-r01_02357 | B45: Ga0081478_130913 | C45: 4007 | D45: 4450 | E45: + | F45: 444 | G45: 50S ribosomal protein L7/L12 | H45: 148 | I45: 0.33 | J45: 14.33
A46: OCT-B-Calescibacterium-r01_01593 | B46: Ga0081478_150456 | C46: 27470 | D46: 28681 | E46: + | F46: 1212 | G46: 3-oxoadipyl-CoA/3-oxo-5,6-dehydrosuberyl-CoA thiolase | H46: 402 | I46: 0.33 | J46: 14.26
A47: OCT-B-Calescibacterium-r01_01572 | B47: Ga0081478_150456 | C47: 3231 | D47: 3653 | E47: - | F47: 423 | G47: Spore protein SP21 | H47: 140 | I47: 0.33 | J47: 14.22
A48: OCT-B-Calescibacterium-r01_01798 | B48: Ga0081478_139985 | C48: 15 | D48: 362 | E48: + | F48: 348 | G48: hypothetical protein | H48: 115 | I48: 0.33 | J48: 14.20
A49: OCT-B-Calescibacterium-r01_01821 | B49: Ga0081478_139266 | C49: 8036 | D49: 8108 | E49: - | F49: 73 | G49: tRNA-Met(cat) | H49: 24 | I49: 0.33 | J49: 14.13
A50: OCT-B-Calescibacterium-r01_03000 | B50: Ga0081478_146274 | C50: 1014 | D50: 1256 | E50: + | F50: 243 | G50: hypothetical protein | H50: 75 | I50: 0.31 | J50: 13.27
A51: OCT-B-Calescibacterium-r01_03204 | B51: Ga0081478_145089 | C51: 5760 | D51: 6185 | E51: + | F51: 426 | G51: hypothetical protein | H51: 131 | I51: 0.31 | J51: 13.22
A52: OCT-B-Calescibacterium-r01_01183 | B52: Ga0081478_128562 | C52: 3842 | D52: 4741 | E52: - | F52: 900 | G52: Protease HtpX homolog | H52: 276 | I52: 0.31 | J52: 13.18
A53: OCT-B-Calescibacterium-r01_03206 | B53: Ga0081478_145089 | C53: 6870 | D53: 7172 | E53: + | F53: 303 | G53: hypothetical protein | H53: 92 | I53: 0.30 | J53: 13.05
A54: OCT-B-Calescibacterium-r01_03522 | B54: Ga0081478_131589 | C54: 8874 | D54: 10073 | E54: - | F54: 1200 | G54: hypothetical protein | H54: 350 | I54: 0.29 | J54: 12.54
A55: OCT-B-Calescibacterium-r01_03207 | B55: Ga0081478_145089 | C55: 7129 | D55: 7500 | E55: + | F55: 372 | G55: hypothetical protein | H55: 107 | I55: 0.29 | J55: 12.36
A56: OCT-B-Calescibacterium-r01_03147 | B56: Ga0081478_154158 | C56: 9525 | D56: 9728 | E56: - | F56: 204 | G56: rpmI_bact: ribosomal protein bL35 | H56: 57 | I56: 0.28 | J56: 12.01
A57: OCT-B-Calescibacterium-r01_03506 | B57: Ga0081478_139045 | C57: 8737 | D57: 8928 | E57: - | F57: 192 | G57: hypothetical protein | H57: 53 | I57: 0.28 | J57: 11.86
A58: OCT-B-Calescibacterium-r01_03021 | B58: Ga0081478_126620 | C58: 737 | D58: 943 | E58: + | F58: 207 | G58: hypothetical protein | H58: 57 | I58: 0.28 | J58: 11.83
A59: OCT-B-Calescibacterium-r01_02939 | B59: Ga0081478_131215 | C59: 3 | D59: 206 | E59: + | F59: 204 | G59: hypothetical protein | H59: 56 | I59: 0.27 | J59: 11.80
A60: OCT-B-Calescibacterium-r01_01429 | B60: Ga0081478_136852 | C60: 3853 | D60: 4689 | E60: + | F60: 837 | G60: TIGR00292: thiazole biosynthesis enzyme | H60: 228 | I60: 0.27 | J60: 11.71
A61: OCT-B-Calescibacterium-r01_00952 | B61: Ga0081478_141647 | C61: 508 | D61: 852 | E61: + | F61: 345 | G61: hypothetical protein | H61: 92 | I61: 0.27 | J61: 11.46
A62: OCT-B-Calescibacterium-r01_02007 | B62: Ga0081478_123733 | C62: 9484 | D62: 9615 | E62: - | F62: 132 | G62: hypothetical protein | H62: 35 | I62: 0.27 | J62: 11.40
A63: OCT-B-Calescibacterium-r01_02989 | B63: Ga0081478_136138 | C63: 5424 | D63: 5500 | E63: - | F63: 77 | G63: tRNA-His(gtg) | H63: 20 | I63: 0.26 | J63: 11.16
A64: OCT-B-Calescibacterium-r01_03001 | B64: Ga0081478_146274 | C64: 3714 | D64: 4010 | E64: + | F64: 297 | G64: hypothetical protein | H64: 77 | I64: 0.26 | J64: 11.14
A65: OCT-B-Calescibacterium-r01_03205 | B65: Ga0081478_145089 | C65: 6251 | D65: 6880 | E65: + | F65: 630 | G65: hypothetical protein | H65: 162 | I65: 0.26 | J65: 11.05
A66: OCT-B-Calescibacterium-r01_02485 | B66: Ga0081478_138476 | C66: 46 | D66: 119 | E66: - | F66: 74 | G66: tRNA-Ala(cgc) | H66: 19 | I66: 0.26 | J66: 11.04
A67: OCT-B-Calescibacterium-r01_02299 | B67: Ga0081478_137249 | C67: 8202 | D67: 8522 | E67: + | F67: 321 | G67: Thioredoxin C-1 | H67: 81 | I67: 0.25 | J67: 10.85
A68: OCT-B-Calescibacterium-r01_03769 | B68: Ga0081478_145482 | C68: 2969 | D68: 3148 | E68: - | F68: 180 | G68: GvpP Gas vesicle protein [General function prediction only] | H68: 44 | I68: 0.24 | J68: 10.51
A69: OCT-B-Calescibacterium-r01_03125 | B69: Ga0081478_149947 | C69: 5285 | D69: 5383 | E69: - | F69: 99 | G69: hypothetical protein | H69: 24 | I69: 0.24 | J69: 10.42
A70: OCT-B-Calescibacterium-r01_03767 | B70: Ga0081478_145482 | C70: 1399 | D70: 2391 | E70: - | F70: 993 | G70: Glyceraldehyde-3-phosphate dehydrogenase | H70: 237 | I70: 0.24 | J70: 10.26
A71: OCT-B-Calescibacterium-r01_01508 | B71: Ga0081478_166718 | C71: 6637 | D71: 6882 | E71: - | F71: 246 | G71: hypothetical protein | H71: 58 | I71: 0.24 | J71: 10.13
A72: OCT-B-Calescibacterium-r01_01382 | B72: Ga0081478_142297 | C72: 7104 | D72: 7388 | E72: + | F72: 285 | G72: cspD: cold shock domain protein CspD | H72: 67 | I72: 0.24 | J72: 10.10
A73: OCT-B-Calescibacterium-r01_01199 | B73: Ga0081478_135993 | C73: 6802 | D73: 7143 | E73: - | F73: 342 | G73: hypothetical protein | H73: 80 | I73: 0.23 | J73: 10.05
A74: OCT-B-Calescibacterium-r01_03752 | B74: Ga0081478_143080 | C74: 87 | D74: 830 | E74: + | F74: 744 | G74: dnd_rel_methyl: DNA phosphorothioation-associated putative methyltransferase | H74: 174 | I74: 0.23 | J74: 10.05
A75: OCT-B-Calescibacterium-r01_00400 | B75: Ga0081478_141279 | C75: 10525 | D75: 11643 | E75: - | F75: 1119 | G75: Protein RecA | H75: 242 | I75: 0.22 | J75: 9.29
A76: OCT-B-Calescibacterium-r01_01668 | B76: Ga0081478_141077 | C76: 415 | D76: 1536 | E76: - | F76: 1122 | G76: RutB: pyrimidine utilization protein B | H76: 241 | I76: 0.21 | J76: 9.23
A77: OCT-B-Calescibacterium-r01_03197 | B77: Ga0081478_145089 | C77: 746 | D77: 1285 | E77: - | F77: 540 | G77: cbbX_cfxQ: CbbX protein | H77: 115 | I77: 0.21 | J77: 9.15
A78: OCT-B-Calescibacterium-r01_00879 | B78: Ga0081478_138517 | C78: 2352 | D78: 2645 | E78: + | F78: 294 | G78: Glutamine synthetase and cystathionine beta-lyase binding protein | H78: 60 | I78: 0.20 | J78: 8.77
A79: OCT-B-Calescibacterium-r01_00170 | B79: Ga0081478_132260 | C79: 3315 | D79: 3644 | E79: - | F79: 330 | G79: 3-keto-5-aminohexanoate cleavage enzyme | H79: 67 | I79: 0.20 | J79: 8.73
A80: OCT-B-Calescibacterium-r01_02744 | B80: Ga0081478_138140 | C80: 33475 | D80: 35829 | E80: - | F80: 2355 | G80: Lon protease 1 | H80: 475 | I80: 0.20 | J80: 8.67
A81: OCT-B-Calescibacterium-r01_02221 | B81: Ga0081478_140257 | C81: 7444 | D81: 9150 | E81: - | F81: 1707 | G81: Probable acyl-CoA dehydrogenase | H81: 342 | I81: 0.20 | J81: 8.61
A82: OCT-B-Calescibacterium-r01_03770 | B82: Ga0081478_145482 | C82: 3161 | D82: 3538 | E82: - | F82: 378 | G82: Glycine cleavage system H protein | H82: 74 | I82: 0.20 | J82: 8.41
A83: OCT-B-Calescibacterium-r01_01375 | B83: Ga0081478_142297 | C83: 1320 | D83: 1595 | E83: + | F83: 276 | G83: rpmF_bact: ribosomal protein bL32 | H83: 54 | I83: 0.20 | J83: 8.41
A84: OCT-B-Calescibacterium-r01_02353 | B84: Ga0081478_145626 | C84: 2258 | D84: 3085 | E84: + | F84: 828 | G84: hypothetical protein | H84: 162 | I84: 0.20 | J84: 8.41
A85: OCT-B-Calescibacterium-r01_02940 | B85: Ga0081478_131215 | C85: 609 | D85: 702 | E85: - | F85: 94 | G85: tRNA-Arg(ccg) | H85: 18 | I85: 0.19 | J85: 8.23
A86: OCT-B-Calescibacterium-r01_02743 | B86: Ga0081478_138140 | C86: 33332 | D86: 33420 | E86: - | F86: 89 | G86: tRNA-Leu(gag) | H86: 17 | I86: 0.19 | J86: 8.21
A87: OCT-B-Calescibacterium-r01_02219 | B87: Ga0081478_140257 | C87: 6219 | D87: 6297 | E87: + | F87: 79 | G87: tRNA-Glu(ttc) | H87: 15 | I87: 0.19 | J87: 8.16
A88: OCT-B-Calescibacterium-r01_02093 | B88: Ga0081478_121882 | C88: 1180 | D88: 2427 | E88: - | F88: 1248 | G88: Acyl-CoA dehydrogenase | H88: 232 | I88: 0.19 | J88: 7.99
A89: OCT-B-Calescibacterium-r01_03520 | B89: Ga0081478_131589 | C89: 7629 | D89: 8414 | E89: - | F89: 786 | G89: hypothetical protein | H89: 145 | I89: 0.18 | J89: 7.93
A90: OCT-B-Calescibacterium-r01_03236 | B90: Ga0081478_138163 | C90: 2822 | D90: 3880 | E90: - | F90: 1059 | G90: Alkanal monooxygenase alpha chain | H90: 191 | I90: 0.18 | J90: 7.75
A91: OCT-B-Calescibacterium-r01_02543 | B91: Ga0081478_160681 | C91: 6941 | D91: 7657 | E91: - | F91: 717 | G91: hypothetical protein | H91: 128 | I91: 0.18 | J91: 7.67
A92: OCT-B-Calescibacterium-r01_02887 | B92: Ga0081478_133334 | C92: 2144 | D92: 2458 | E92: - | F92: 315 | G92: 10 kDa chaperonin 1 | H92: 56 | I92: 0.18 | J92: 7.64
A93: OCT-B-Calescibacterium-r01_02708 | B93: Ga0081478_157652 | C93: 4 | D93: 252 | E93: + | F93: 249 | G93: MerP: mercuric transport protein periplasmic component | H93: 44 | I93: 0.18 | J93: 7.59
A94: OCT-B-Calescibacterium-r01_02901 | B94: Ga0081478_168944 | C94: 189 | D94: 968 | E94: + | F94: 780 | G94: 3-methyl-2-oxobutanoate hydroxymethyltransferase | H94: 133 | I94: 0.17 | J94: 7.33
A95: OCT-B-Calescibacterium-r01_03768 | B95: Ga0081478_145482 | C95: 2395 | D95: 2976 | E95: - | F95: 582 | G95: hypothetical protein | H95: 98 | I95: 0.17 | J95: 7.24
A96: OCT-B-Calescibacterium-r01_01118 | B96: Ga0081478_129565 | C96: 110 | D96: 1090 | E96: - | F96: 981 | G96: tolQ: protein TolQ | H96: 163 | I96: 0.17 | J96: 7.14
A97: OCT-B-Calescibacterium-r01_00779 | B97: Ga0081478_147690 | C97: 30109 | D97: 30387 | E97: - | F97: 279 | G97: Ferredoxin 7Fe | H97: 46 | I97: 0.16 | J97: 7.09
A98: OCT-B-Calescibacterium-r01_00675 | B98: Ga0081478_136719 | C98: 7907 | D98: 8659 | E98: + | F98: 753 | G98: dhsB: succinate dehydrogenase and fumarate reductase iron-sulfur protein | H98: 122 | I98: 0.16 | J98: 6.96
A99: OCT-B-Calescibacterium-r01_02256 | B99: Ga0081478_156725 | C99: 456 | D99: 1646 | E99: + | F99: 1191 | G99: urea_ABC_UrtA: urea ABC transporter, urea binding protein | H99: 185 | I99: 0.16 | J99: 6.68
A100: OCT-B-Calescibacterium-r01_01411 | B100: Ga0081478_129195 | C100: 12960 | D100: 14105 | E100: + | F100: 1146 | G100: Protein SphX | H100: 177 | I100: 0.15 | J100: 6.64
A101: OCT-B-Calescibacterium-r01_02379 | B101: Ga0081478_142668 | C101: 1580 | D101: 2608 | E101: + | F101: 1029 | G101: DNA-directed RNA polymerase subunit alpha | H101: 158 | I101: 0.15 | J101: 6.60
A102: OCT-B-Calescibacterium-r01_02380 | B102: Ga0081478_142668 | C102: 2611 | D102: 2988 | E102: + | F102: 378 | G102: 50S ribosomal protein L17 | H102: 57 | I102: 0.15 | J102: 6.48
A103: OCT-B-Calescibacterium-r01_03176 | B103: Ga0081478_121327 | C103: 18591 | D103: 18663 | E103: + | F103: 73 | G103: tRNA-Met(cat) | H103: 11 | I103: 0.15 | J103: 6.48
A104: OCT-B-Calescibacterium-r01_01438 | B104: Ga0081478_139293 | C104: 1142 | D104: 2113 | E104: + | F104: 972 | G104: Electron transfer flavoprotein subunit alpha | H104: 146 | I104: 0.15 | J104: 6.46
A105: OCT-B-Calescibacterium-r01_00975 | B105: Ga0081478_131632 | C105: 16483 | D105: 17268 | E105: - | F105: 786 | G105: redox_disulf_1: redox-active disulfide protein 1 | H105: 118 | I105: 0.15 | J105: 6.45
A106: OCT-B-Calescibacterium-r01_01057 | B106: Ga0081478_143073 | C106: 4497 | D106: 5405 | E106: - | F106: 909 | G106: gmx_TIGR02266: Myxococcus xanthus paralogous domain TIGR02266 | H106: 136 | I106: 0.15 | J106: 6.43
A107: OCT-B-Calescibacterium-r01_02314 | B107: Ga0081478_145991 | C107: 696 | D107: 1193 | E107: - | F107: 498 | G107: Thioredoxin-like proteins and domains [Posttranslational modification, protein turnover, chaperones] | H107: 74 | I107: 0.15 | J107: 6.39
A108: OCT-B-Calescibacterium-r01_03148 | B108: Ga0081478_154158 | C108: 9773 | D108: 10726 | E108: - | F108: 954 | G108: RhaD_aldol-ADH: rhamnulose-1-phosphate aldolase/alcohol dehydrogenase | H108: 139 | I108: 0.15 | J108: 6.26
A109: OCT-B-Calescibacterium-r01_03644 | B109: Ga0081478_131325 | C109: 1727 | D109: 1885 | E109: - | F109: 159 | G109: hypothetical protein | H109: 23 | I109: 0.14 | J109: 6.22
A110: OCT-B-Calescibacterium-r01_03167 | B110: Ga0081478_121327 | C110: 13653 | D110: 14807 | E110: - | F110: 1155 | G110: GDP-mannose 4,6-dehydratase | H110: 162 | I110: 0.14 | J110: 6.03
A111: OCT-B-Calescibacterium-r01_00628 | B111: Ga0081478_144512 | C111: 4802 | D111: 5395 | E111: + | F111: 594 | G111: Transcription termination/antitermination protein NusG | H111: 82 | I111: 0.14 | J111: 5.93
A112: OCT-B-Calescibacterium-r01_00646 | B112: Ga0081478_132205 | C112: 378 | D112: 689 | E112: + | F112: 312 | G112: CyoD: cytochrome o ubiquinol oxidase subunit IV | H112: 42 | I112: 0.13 | J112: 5.79
A113: OCT-B-Calescibacterium-r01_00595 | B113: Ga0081478_131875 | C113: 4920 | D113: 4994 | E113: + | F113: 75 | G113: tRNA-Gln(ctg) | H113: 10 | I113: 0.13 | J113: 5.73
A114: OCT-B-Calescibacterium-r01_01797 | B114: Ga0081478_134252 | C114: 4419 | D114: 4622 | E114: - | F114: 204 | G114: hypothetical protein | H114: 27 | I114: 0.13 | J114: 5.69
A115: OCT-B-Calescibacterium-r01_01134 | B115: Ga0081478_146308 | C115: 10349 | D115: 11467 | E115: - | F115: 1119 | G115: cbiD: cobalamin biosynthesis protein CbiD | H115: 148 | I115: 0.13 | J115: 5.68
A116: OCT-B-Calescibacterium-r01_02903 | B116: Ga0081478_168944 | C116: 1947 | D116: 2309 | E116: + | F116: 363 | G116: Aspartate 1-decarboxylase | H116: 48 | I116: 0.13 | J116: 5.68
A117: OCT-B-Calescibacterium-r01_00596 | B117: Ga0081478_131875 | C117: 4999 | D117: 5089 | E117: + | F117: 91 | G117: tRNA-Ser(gga) | H117: 12 | I117: 0.13 | J117: 5.67
A118: OCT-B-Calescibacterium-r01_01845 | B118: Ga0081478_124431 | C118: 5503 | D118: 6921 | E118: + | F118: 1419 | G118: ATP synthase subunit beta | H118: 186 | I118: 0.13 | J118: 5.63
A119: OCT-B-Calescibacterium-r01_01884 | B119: Ga0081478_142918 | C119: 4746 | D119: 5114 | E119: - | F119: 369 | G119: 50S ribosomal protein L14 | H119: 48 | I119: 0.13 | J119: 5.59
A120: OCT-B-Calescibacterium-r01_02576 | B120: Ga0081478_155014 | C120: 10706 | D120: 10999 | E120: + | F120: 294 | G120: hypothetical protein | H120: 38 | I120: 0.13 | J120: 5.56
A121: OCT-B-Calescibacterium-r01_01406 | B121: Ga0081478_129195 | C121: 8450 | D121: 8872 | E121: - | F121: 423 | G121: CheD Chemotaxis protein; stimulates methylation of MCP proteins [Cell motility and secretion / Signal transduction mechanisms] | H121: 54 | I121: 0.13 | J121: 5.49
A122: OCT-B-Calescibacterium-r01_00333 | B122: Ga0081478_121639 | C122: 7834 | D122: 8376 | E122: - | F122: 543 | G122: SodC Cu/Zn superoxide dismutase [Inorganic ion transport and metabolism] | H122: 69 | I122: 0.13 | J122: 5.46
A123: OCT-B-Calescibacterium-r01_00654 | B123: Ga0081478_143523 | C123: 1791 | D123: 2114 | E123: + | F123: 324 | G123: 50S ribosomal protein L21 | H123: 41 | I123: 0.13 | J123: 5.44
A124: OCT-B-Calescibacterium-r01_03716 | B124: Ga0081478_138982 | C124: 15978 | D124: 16676 | E124: - | F124: 699 | G124: hflC: HflC protein | H124: 88 | I124: 0.13 | J124: 5.41
A125: OCT-B-Calescibacterium-r01_02735 | B125: Ga0081478_138140 | C125: 26013 | D125: 26405 | E125: + | F125: 393 | G125: Type II secretion system protein G | H125: 48 | I125: 0.12 | J125: 5.25
A126: OCT-B-Calescibacterium-r01_03754 | B126: Ga0081478_143080 | C126: 1557 | D126: 1976 | E126: + | F126: 420 | G126: ISXO2-like transposase domain | H126: 51 | I126: 0.12 | J126: 5.22
A127: OCT-B-Calescibacterium-r01_01812 | B127: Ga0081478_148850 | C127: 4268 | D127: 4780 | E127: - | F127: 513 | G127: tolR: protein TolR | H127: 62 | I127: 0.12 | J127: 5.19
A128: OCT-B-Calescibacterium-r01_02937 | B128: Ga0081478_141709 | C128: 2757 | D128: 4733 | E128: - | F128: 1977 | G128: Vitamin B12-dependent ribonucleoside-diphosphate reductase | H128: 238 | I128: 0.12 | J128: 5.17
A129: OCT-B-Calescibacterium-r01_00397 | B129: Ga0081478_141279 | C129: 8340 | D129: 8990 | E129: + | F129: 651 | G129: GlrX_arch: glutaredoxin-like domain protein | H129: 78 | I129: 0.12 | J129: 5.15
A130: OCT-B-Calescibacterium-r01_01794 | B130: Ga0081478_134252 | C130: 2105 | D130: 2230 | E130: + | F130: 126 | G130: hypothetical protein | H130: 15 | I130: 0.12 | J130: 5.12
A131: OCT-B-Calescibacterium-r01_02642 | B131: Ga0081478_136307 | C131: 6057 | D131: 6662 | E131: - | F131: 606 | G131: LPP20 lipoprotein | H131: 72 | I131: 0.12 | J131: 5.11
A132: OCT-B-Calescibacterium-r01_01410 | B132: Ga0081478_129195 | C132: 11802 | D132: 12890 | E132: + | F132: 1089 | G132: OprP Phosphate-selective porin [Inorganic ion transport and metabolism] | H132: 129 | I132: 0.12 | J132: 5.09
A133: OCT-B-Calescibacterium-r01_01422 | B133: Ga0081478_133802 | C133: 496 | D133: 2199 | E133: - | F133: 1704 | G133: Methylmalonyl-CoA mutase | H133: 200 | I133: 0.12 | J133: 5.04
A134: OCT-B-Calescibacterium-r01_00022 | B134: Ga0081478_126054 | C134: 18550 | D134: 19344 | E134: - | F134: 795 | G134: hypothetical protein | H134: 93 | I134: 0.12 | J134: 5.03
A135: OCT-B-Calescibacterium-r01_00012 | B135: Ga0081478_126054 | C135: 7945 | D135: 8307 | E135: - | F135: 363 | G135: hypothetical protein | H135: 41 | I135: 0.11 | J135: 4.85
A136: OCT-B-Calescibacterium-r01_00017 | B136: Ga0081478_126054 | C136: 12223 | D136: 15339 | E136: - | F136: 3117 | G136: Fdh-alpha: formate dehydrogenase, alpha subunit | H136: 351 | I136: 0.11 | J136: 4.84
A137: OCT-B-Calescibacterium-r01_02471 | B137: Ga0081478_140554 | C137: 609 | D137: 1604 | E137: + | F137: 996 | G137: dnd_rel_methyl: DNA phosphorothioation-associated putative methyltransferase | H137: 112 | I137: 0.11 | J137: 4.83
A138: OCT-B-Calescibacterium-r01_01885 | B138: Ga0081478_142918 | C138: 5111 | D138: 5413 | E138: - | F138: 303 | G138: uS17_arch: ribosomal protein uS17 | H138: 34 | I138: 0.11 | J138: 4.82
A139: OCT-B-Calescibacterium-r01_01792 | B139: Ga0081478_134252 | C139: 46 | D139: 459 | E139: + | F139: 414 | G139: flagell_flgL: flagellar hook-associated protein 3 | H139: 46 | I139: 0.11 | J139: 4.78
A140: OCT-B-Calescibacterium-r01_03389 | B140: Ga0081478_135837 | C140: 1468 | D140: 1755 | E140: + | F140: 288 | G140: hypothetical protein | H140: 32 | I140: 0.11 | J140: 4.78
A141: OCT-B-Calescibacterium-r01_00949 | B141: Ga0081478_130231 | C141: 4242 | D141: 4766 | E141: + | F141: 525 | G141: ytfJ_HI0045: conserved hypothetical protein YtfJ-family, TIGR01626 | H141: 58 | I141: 0.11 | J141: 4.75
A142: OCT-B-Calescibacterium-r01_02711 | B142: Ga0081478_157652 | C142: 2486 | D142: 3469 | E142: + | F142: 984 | G142: L-malyl-CoA/beta-methylmalyl-CoA lyase | H142: 108 | I142: 0.11 | J142: 4.72
A143: OCT-B-Calescibacterium-r01_01350 | B143: Ga0081478_135743 | C143: 11568 | D143: 12161 | E143: + | F143: 594 | G143: reco: DNA repair protein RecO | H143: 65 | I143: 0.11 | J143: 4.70
A144: OCT-B-Calescibacterium-r01_01310 | B144: Ga0081478_142699 | C144: 1146 | D144: 1733 | E144: - | F144: 588 | G144: Uncharacterized conserved protein [Function unknown] | H144: 64 | I144: 0.11 | J144: 4.68
A145: OCT-B-Calescibacterium-r01_03387 | B145: Ga0081478_165502 | C145: 3412 | D145: 7062 | E145: - | F145: 3651 | G145: hypothetical protein | H145: 396 | I145: 0.11 | J145: 4.66
A146: OCT-B-Calescibacterium-r01_00303 | B146: Ga0081478_137112 | C146: 7549 | D146: 7622 | E146: + | F146: 74 | G146: tRNA-Thr(ggt) | H146: 8 | I146: 0.11 | J146: 4.65
A147: OCT-B-Calescibacterium-r01_02329 | B147: Ga0081478_127217 | C147: 137 | D147: 210 | E147: - | F147: 74 | G147: tRNA-Ala(cgc) | H147: 8 | I147: 0.11 | J147: 4.65
A148: OCT-B-Calescibacterium-r01_01840 | B148: Ga0081478_124431 | C148: 183 | D148: 656 | E148: - | F148: 474 | G148: 30S ribosomal protein S7 | H148: 51 | I148: 0.11 | J148: 4.62
A149: OCT-B-Calescibacterium-r01_00070 | B149: Ga0081478_142610 | C149: 3268 | D149: 3342 | E149: - | F149: 75 | G149: tRNA-Pro(cgg) | H149: 8 | I149: 0.11 | J149: 4.58
A150: OCT-B-Calescibacterium-r01_00544 | B150: Ga0081478_147799 | C150: 7438 | D150: 8577 | E150: + | F150: 1140 | G150: hypothetical protein | H150: 121 | I150: 0.11 | J150: 4.56
A151: OCT-B-Calescibacterium-r01_00556 | B151: Ga0081478_133976 | C151: 4071 | D151: 4457 | E151: - | F151: 387 | G151: selenium_YedF: selenium metabolism protein YedF | H151: 41 | I151: 0.11 | J151: 4.55
A152: OCT-B-Calescibacterium-r01_02090 | B152: Ga0081478_131750 | C152: 8908 | D152: 10107 | E152: + | F152: 1200 | G152: Isocitrate dehydrogenase [NADP] | H152: 127 | I152: 0.11 | J152: 4.55
A153: OCT-B-Calescibacterium-r01_01579 | B153: Ga0081478_150456 | C153: 10255 | D153: 11493 | E153: + | F153: 1239 | G153: Sig70-cyanoRpoD: RNA polymerase sigma factor, cyanobacterial RpoD-like family | H153: 131 | I153: 0.11 | J153: 4.54
A154: OCT-B-Calescibacterium-r01_03516 | B154: Ga0081478_131589 | C154: 5486 | D154: 5761 | E154: - | F154: 276 | G154: hypothetical protein | H154: 29 | I154: 0.11 | J154: 4.52
A155: OCT-B-Calescibacterium-r01_03129 | B155: Ga0081478_133365 | C155: 1982 | D155: 2869 | E155: - | F155: 888 | G155: parB_part: ParB/RepB/Spo0J family partition protein | H155: 93 | I155: 0.10 | J155: 4.50
A156: OCT-B-Calescibacterium-r01_01140 | B156: Ga0081478_146308 | C156: 17255 | D156: 17560 | E156: - | F156: 306 | G156: 30S ribosomal protein S19 | H156: 32 | I156: 0.10 | J156: 4.49
A157: OCT-B-Calescibacterium-r01_02765 | B157: Ga0081478_136006 | C157: 812 | D157: 1081 | E157: + | F157: 270 | G157: hypothetical protein | H157: 28 | I157: 0.10 | J157: 4.46
A158: OCT-B-Calescibacterium-r01_01757 | B158: Ga0081478_157439 | C158: 32605 | D158: 32691 | E158: - | F158: 87 | G158: tRNA-Leu(tag) | H158: 9 | I158: 0.10 | J158: 4.45
A159: OCT-B-Calescibacterium-r01_02886 | B159: Ga0081478_133334 | C159: 413 | D159: 2056 | E159: - | F159: 1644 | G159: 60 kDa chaperonin 1 | H159: 170 | I159: 0.10 | J159: 4.44
A160: OCT-B-Calescibacterium-r01_03519 | B160: Ga0081478_131589 | C160: 6841 | D160: 7626 | E160: - | F160: 786 | G160: hypothetical protein | H160: 81 | I160: 0.10 | J160: 4.43
A161: OCT-B-Calescibacterium-r01_02024 | B161: Ga0081478_138663 | C161: 6871 | D161: 8304 | E161: + | F161: 1434 | G161: Cob-chelat-sub: cobaltochelatase subunit | H161: 145 | I161: 0.10 | J161: 4.35
A162: OCT-B-Calescibacterium-r01_01249 | B162: Ga0081478_145021 | C162: 5012 | D162: 5521 | E162: + | F162: 510 | G162: Sulfur carrier protein DsrE2 | H162: 51 | I162: 0.10 | J162: 4.30
A163: OCT-B-Calescibacterium-r01_03728 | B163: Ga0081478_131868 | C163: 3527 | D163: 5506 | E163: - | F163: 1980 | G163: hypothetical protein | H163: 196 | I163: 0.10 | J163: 4.25
A164: OCT-B-Calescibacterium-r01_03518 | B164: Ga0081478_131589 | C164: 6419 | D164: 6844 | E164: - | F164: 426 | G164: hypothetical protein | H164: 42 | I164: 0.10 | J164: 4.24
A165: OCT-B-Calescibacterium-r01_03078 | B165: Ga0081478_157814 | C165: 1981 | D165: 3108 | E165: + | F165: 1128 | G165: TIGR00488: putative HD superfamily hydrolase | H165: 110 | I165: 0.10 | J165: 4.19
A166: OCT-B-Calescibacterium-r01_00281 | B166: Ga0081478_135834 | C166: 1806 | D166: 2219 | E166: - | F166: 414 | G166: NADH-quinone oxidoreductase subunit 6 | H166: 40 | I166: 0.10 | J166: 4.15
A167: OCT-B-Calescibacterium-r01_03149 | B167: Ga0081478_154158 | C167: 10787 | D167: 11221 | E167: - | F167: 435 | G167: Fur Fe2+/Zn2+ uptake regulation proteins [Inorganic ion transport and metabolism] | H167: 42 | I167: 0.10 | J167: 4.15
A168: OCT-B-Calescibacterium-r01_02403 | B168: Ga0081478_158047 | C168: 12264 | D168: 13580 | E168: - | F168: 1317 | G168: 5-hydroxybenzimidazole synthase BzaB | H168: 127 | I168: 0.10 | J168: 4.14
A169: OCT-B-Calescibacterium-r01_01360 | B169: Ga0081478_135743 | C169: 23234 | D169: 23306 | E169: + | F169: 73 | G169: tRNA-Gln(ttg) | H169: 7 | I169: 0.10 | J169: 4.12
A170: OCT-B-Calescibacterium-r01_00802 | B170: Ga0081478_149874 | C170: 3994 | D170: 5130 | E170: + | F170: 1137 | G170: Fructose-1,6-bisphosphate aldolase/phosphatase | H170: 109 | I170: 0.10 | J170: 4.12
A171: OCT-B-Calescibacterium-r01_01139 | B171: Ga0081478_146308 | C171: 16857 | D171: 17213 | E171: - | F171: 357 | G171: 50S ribosomal protein L22 | H171: 34 | I171: 0.10 | J171: 4.09
A172: OCT-B-Calescibacterium-r01_01244 | B172: Ga0081478_145021 | C172: 149 | D172: 778 | E172: + | F172: 630 | G172: nuoE_fam: NADH-quinone oxidoreductase, E subunit | H172: 60 | I172: 0.10 | J172: 4.09
A173: OCT-B-Calescibacterium-r01_01883 | B173: Ga0081478_142918 | C173: 4410 | D173: 4730 | E173: - | F173: 321 | G173: 50S ribosomal protein L24 | H173: 30 | I173: 0.09 | J173: 4.02
A174: OCT-B-Calescibacterium-r01_01430 | B174: Ga0081478_136852 | C174: 4637 | D174: 5494 | E174: + | F174: 858 | G174: hypothetical protein | H174: 80 | I174: 0.09 | J174: 4.01
A175: OCT-B-Calescibacterium-r01_00739 | B175: Ga0081478_138269 | C175: 9190 | D175: 9750 | E175: - | F175: 561 | G175: TIGR00286: arginine decarboxylase, pyruvoyl-dependent | H175: 52 | I175: 0.09 | J175: 3.98
A176: OCT-B-Calescibacterium-r01_01380 | B176: Ga0081478_142297 | C176: 5070 | D176: 6227 | E176: - | F176: 1158 | G176: S-adenosylmethionine synthase | H176: 107 | I176: 0.09 | J176: 3.97
A177: OCT-B-Calescibacterium-r01_03296 | B177: Ga0081478_134229 | C177: 277 | D177: 645 | E177: + | F177: 369 | G177: hypothetical protein | H177: 34 | I177: 0.09 | J177: 3.96
A178: OCT-B-Calescibacterium-r01_00606 | B178: Ga0081478_138640 | C178: 7070 | D178: 7384 | E178: - | F178: 315 | G178: 30S ribosomal protein S10 | H178: 29 | I178: 0.09 | J178: 3.96
A179: OCT-B-Calescibacterium-r01_01174 | B179: Ga0081478_137222 | C179: 34 | D179: 120 | E179: - | F179: 87 | G179: tRNA-Tyr(gta) | H179: 8 | I179: 0.09 | J179: 3.95
A180: OCT-B-Calescibacterium-r01_03726 | B180: Ga0081478_131868 | C180: 971 | D180: 1624 | E180: - | F180: 654 | G180: Uncharacterized conserved protein containing a coiled-coil domain [Function unknown] | H180: 60 | I180: 0.09 | J180: 3.94
A181: OCT-B-Calescibacterium-r01_03691 | B181: Ga0081478_137731 | C181: 5764 | D181: 6330 | E181: + | F181: 567 | G181: UPF0098 protein YbcL | H181: 52 | I181: 0.09 | J181: 3.94
A182: OCT-B-Calescibacterium-r01_00014 | B182: Ga0081478_126054 | C182: 9634 | D182: 10257 | E182: - | F182: 624 | G182: PS_II_psbV2: photosystem II cytochrome PsbV2 | H182: 57 | I182: 0.09 | J182: 3.93
A183: OCT-B-Calescibacterium-r01_00602 | B183: Ga0081478_138640 | C183: 4380 | D183: 5240 | E183: - | F183: 861 | G183: 50S ribosomal protein L2 | H183: 78 | I183: 0.09 | J183: 3.89
A184: OCT-B-Calescibacterium-r01_02437 | B184: Ga0081478_143124 | C184: 1210 | D184: 1707 | E184: - | F184: 498 | G184: Peptide deformylase 1 | H184: 45 | I184: 0.09 | J184: 3.88
A185: OCT-B-Calescibacterium-r01_00239 | B185: Ga0081478_134114 | C185: 15022 | D185: 15555 | E185: + | F185: 534 | G185: Flagellar basal-body rod protein FlgC | H185: 48 | I185: 0.09 | J185: 3.86
A186: OCT-B-Calescibacterium-r01_02436 | B186: Ga0081478_143124 | C186: 136 | D186: 1218 | E186: + | F186: 1083 | G186: Predicted signal transduction protein with a C-terminal ATPase domain [Signal transduction mechanisms] | H186: 97 | I186: 0.09 | J186: 3.85
A187: OCT-B-Calescibacterium-r01_02734 | B187: Ga0081478_138140 | C187: 25106 | D187: 25798 | E187: + | F187: 693 | G187: fghA_ester_D: S-formylglutathione hydrolase | H187: 62 | I187: 0.09 | J187: 3.85
A188: OCT-B-Calescibacterium-r01_01322 | B188: Ga0081478_126774 | C188: 2401 | D188: 2829 | E188: + | F188: 429 | G188: hypothetical protein | H188: 38 | I188: 0.09 | J188: 3.81
A189: OCT-B-Calescibacterium-r01_01760 | B189: Ga0081478_157439 | C189: 33736 | D189: 34809 | E189: - | F189: 1074 | G189: hypothetical protein | H189: 95 | I189: 0.09 | J189: 3.80
A190: OCT-B-Calescibacterium-r01_02300 | B190: Ga0081478_137249 | C190: 8543 | D190: 9745 | E190: + | F190: 1203 | G190: sufD: FeS assembly protein SufD | H190: 106 | I190: 0.09 | J190: 3.79
A191: OCT-B-Calescibacterium-r01_00156 | B191: Ga0081478_140714 | C191: 3504 | D191: 4493 | E191: - | F191: 990 | G191: RNR_1b_NrdF: ribonucleoside-diphosphate reductase, class 1b, beta subunit | H191: 86 | I191: 0.09 | J191: 3.73
A192: OCT-B-Calescibacterium-r01_01383 | B192: Ga0081478_142297 | C192: 7402 | D192: 7737 | E192: - | F192: 336 | G192: PDHac_trf_long: dihydrolipoyllysine-residue acetyltransferase | H192: 29 | I192: 0.09 | J192: 3.71
A193: OCT-B-Calescibacterium-r01_03517 | B193: Ga0081478_131589 | C193: 5769 | D193: 6341 | E193: - | F193: 573 | G193: hypothetical protein | H193: 48 | I193: 0.08 | J193: 3.60
A194: OCT-B-Calescibacterium-r01_00280 | B194: Ga0081478_135834 | C194: 1450 | D194: 1725 | E194: - | F194: 276 | G194: 50S ribosomal protein L25 | H194: 23 | I194: 0.08 | J194: 3.58
A195: OCT-B-Calescibacterium-r01_00598 | B195: Ga0081478_138640 | C195: 2141 | D195: 2455 | E195: - | F195: 315 | G195: 10 kDa chaperonin | H195: 26 | I195: 0.08 | J195: 3.55
A196: OCT-B-Calescibacterium-r01_02096 | B196: Ga0081478_121882 | C196: 3304 | D196: 3498 | E196: - | F196: 195 | G196: hypothetical protein | H196: 16 | I196: 0.08 | J196: 3.53
A197: OCT-B-Calescibacterium-r01_02368 | B197: Ga0081478_130913 | C197: 24849 | D197: 25301 | E197: - | F197: 453 | G197: 50S ribosomal protein L16 | H197: 37 | I197: 0.08 | J197: 3.51
A198: OCT-B-Calescibacterium-r01_01841 | B198: Ga0081478_124431 | C198: 715 | D198: 1110 | E198: - | F198: 396 | G198: 30S ribosomal protein S12 | H198: 32 | I198: 0.08 | J198: 3.47
A199: OCT-B-Calescibacterium-r01_00460 | B199: Ga0081478_141934 | C199: 286 | D199: 1350 | E199: - | F199: 1065 | G199: Uncharacterized protein HI_1028 | H199: 86 | I199: 0.08 | J199: 3.47
A200: OCT-B-Calescibacterium-r01_01820 | B200: Ga0081478_139266 | C200: 7221 | D200: 7295 | E200: - | F200: 75 | G200: tRNA-Val(gac) | H200: 6 | I200: 0.08 | J200: 3.44
... 3619 more rows

Sheet OCT-B-Desulfurococcales-r01
A1: Gene_id | B1: Contig | C1: Start | D1: End | E1: Strand | F1: Length | G1: transcript_id | H1: Raw_counts | I1: Reads_base | J1: TPM
A2: OCT-B-Desulfurococcales-r01_01484 | B2: Ga0081478_169036 | C2: 354 | D2: 1823 | E2: - | F2: 1470 | G2: Mplasa_alph_rch: helix-rich protein | H2: 21196 | I2: 14.42 | J2: 619.71
A3: OCT-B-Desulfurococcales-r01_02483 | B3: Ga0081478_138337 | C3: 45 | D3: 882 | E3: + | F3: 838 | G3: 23S ribosomal RNA (partial) | H3: 9936 | I3: 11.86 | J3: 509.59
A4: OCT-B-Desulfurococcales-r01_01485 | B4: Ga0081478_169036 | C4: 1825 | D4: 4584 | E4: - | F4: 2760 | G4: hypothetical protein | H4: 29077 | I4: 10.54 | J4: 452.79
A5: OCT-B-Desulfurococcales-r01_02227 | B5: Ga0081478_149085 | C5: 13623 | D5: 15938 | E5: - | F5: 2316 | G5: SBP_KPN_01854: ABC transporter substrate binding protein, KPN_01854 family | H5: 19902 | I5: 8.59 | J5: 369.33
A6: OCT-B-Desulfurococcales-r01_00361 | B6: Ga0081478_138463 | C6: 4647 | D6: 5483 | E6: + | F6: 837 | G6: soxL2: Rieske iron-sulfur protein SoxL2 | H6: 4348 | I6: 5.19 | J6: 223.26
A7: OCT-B-Desulfurococcales-r01_00362 | B7: Ga0081478_138463 | C7: 5493 | D7: 7310 | E7: + | F7: 1818 | G7: cytb6/f_IV: cytb6/f complex subunit IV | H7: 7084 | I7: 3.90 | J7: 167.47
A8: OCT-B-Desulfurococcales-r01_00131 | B8: Ga0081478_153987 | C8: 14331 | D8: 14615 | E8: - | F8: 285 | G8: hypothetical protein | H8: 993 | I8: 3.48 | J8: 149.75
A9: OCT-B-Desulfurococcales-r01_01721 | B9: Ga0081478_140203 | C9: 16484 | D9: 16775 | E9: + | F9: 292 | G9: RNaseP_arch | H9: 905 | I9: 3.10 | J9: 133.20
A10: OCT-B-Desulfurococcales-r01_01334 | B10: Ga0081478_131869 | C10: 8186 | D10: 8431 | E10: + | F10: 246 | G10: hypothetical protein | H10: 707 | I10: 2.87 | J10: 123.52
A11: OCT-B-Desulfurococcales-r01_01333 | B11: Ga0081478_131869 | C11: 7344 | D11: 8180 | E11: + | F11: 837 | G11: Putative thiosulfate sulfurtransferase | H11: 2165 | I11: 2.59 | J11: 111.17
A12: OCT-B-Desulfurococcales-r01_00066 | B12: Ga0081478_132276 | C12: 11439 | D12: 11747 | E12: - | F12: 309 | G12: Archaea_SRP | H12: 697 | I12: 2.26 | J12: 96.95
A13: OCT-B-Desulfurococcales-r01_00814 | B13: Ga0081478_163542 | C13: 5655 | D13: 7934 | E13: - | F13: 2280 | G13: SBP_KPN_01854: ABC transporter substrate binding protein, KPN_01854 family | H13: 4901 | I13: 2.15 | J13: 92.39
A14: OCT-B-Desulfurococcales-r01_00337 | B14: Ga0081478_148820 | C14: 10841 | D14: 11374 | E14: - | F14: 534 | G14: hypothetical protein | H14: 1140 | I14: 2.13 | J14: 91.75
A15: OCT-B-Desulfurococcales-r01_00007 | B15: Ga0081478_167491 | C15: 5923 | D15: 6132 | E15: + | F15: 210 | G15: hypothetical protein | H15: 428 | I15: 2.04 | J15: 87.59
A16: OCT-B-Desulfurococcales-r01_00489 | B16: Ga0081478_154595 | C16: 2803 | D16: 3261 | E16: + | F16: 459 | G16: Uncharacterized protein conserved in bacteria [Function unknown] | H16: 852 | I16: 1.86 | J16: 79.78
A17: OCT-B-Desulfurococcales-r01_01535 | B17: Ga0081478_144039 | C17: 6148 | D17: 7635 | E17: - | F17: 1488 | G17: chitin_NgcE: carbohydrate ABC transporter, N-acetylglucosamine/diacetylchitobiose-binding protein | H17: 2723 | I17: 1.83 | J17: 78.65
A18: OCT-B-Desulfurococcales-r01_01053 | B18: Ga0081478_138233 | C18: 1586 | D18: 2206 | E18: + | F18: 621 | G18: hypothetical protein | H18: 1070 | I18: 1.72 | J18: 74.05
A19: OCT-B-Desulfurococcales-r01_01325 | B19: Ga0081478_131869 | C19: 1934 | D19: 2545 | E19: - | F19: 612 | G19: hypothetical protein | H19: 1053 | I19: 1.72 | J19: 73.95
A20: OCT-B-Desulfurococcales-r01_02163 | B20: Ga0081478_128447 | C20: 19814 | D20: 20104 | E20: + | F20: 291 | G20: hypothetical protein | H20: 499 | I20: 1.71 | J20: 73.70
A21: OCT-B-Desulfurococcales-r01_01810 | B21: Ga0081478_142690 | C21: 1343 | D21: 3490 | E21: + | F21: 2148 | G21: nickel_nikA: nickel ABC transporter, nickel/metallophore periplasmic binding protein | H21: 3581 | I21: 1.67 | J21: 71.65
A22: OCT-B-Desulfurococcales-r01_01557 | B22: Ga0081478_140158 | C22: 670 | D22: 2064 | E22: + | F22: 1395 | G22: peripla_PGF_1: putative ABC transporter PGF-CTERM-modified substrate-binding protein | H22: 2205 | I22: 1.58 | J22: 67.93
A23: OCT-B-Desulfurococcales-r01_00365 | B23: Ga0081478_138463 | C23: 9882 | D23: 11726 | E23: - | F23: 1845 | G23: 7,8-dihydro-6-hydroxymethylpterin dimethyltransferase | H23: 2790 | I23: 1.51 | J23: 64.99
A24: OCT-B-Desulfurococcales-r01_01079 | B24: Ga0081478_147869 | C24: 11277 | D24: 11426 | E24: + | F24: 150 | G24: Domain of unknown function (DUF5679) | H24: 225 | I24: 1.50 | J24: 64.47
A25: OCT-B-Desulfurococcales-r01_00849 | B25: Ga0081478_130068 | C25: 11182 | D25: 12264 | E25: + | F25: 1083 | G25: HtpX Zn-dependent protease with chaperone function [Posttranslational modification, protein turnover, chaperones] | H25: 1614 | I25: 1.49 | J25: 64.05
A26: OCT-B-Desulfurococcales-r01_00006 | B26: Ga0081478_167491 | C26: 5529 | D26: 5936 | E26: + | F26: 408 | G26: hypothetical protein | H26: 608 | I26: 1.49 | J26: 64.05
A27: OCT-B-Desulfurococcales-r01_02164 | B27: Ga0081478_128447 | C27: 20091 | D27: 20339 | E27: + | F27: 249 | G27: hypothetical protein | H27: 360 | I27: 1.45 | J27: 62.14
A28: OCT-B-Desulfurococcales-r01_01590 | B28: Ga0081478_138153 | C28: 8221 | D28: 9876 | E28: + | F28: 1656 | G28: nickel_nikA: nickel ABC transporter, nickel/metallophore periplasmic binding protein | H28: 2326 | I28: 1.40 | J28: 60.37
A29: OCT-B-Desulfurococcales-r01_01151 | B29: Ga0081478_138828 | C29: 43254 | D29: 44174 | E29: - | F29: 921 | G29: 2-oxoacid:ferredoxin oxidoreductase subunit beta | H29: 1241 | I29: 1.35 | J29: 57.91
A30: OCT-B-Desulfurococcales-r01_02226 | B30: Ga0081478_149085 | C30: 12518 | D30: 13567 | E30: - | F30: 1050 | G30: nickel_nikB: nickel ABC transporter, permease subunit NikB | H30: 1362 | I30: 1.30 | J30: 55.75
A31: OCT-B-Desulfurococcales-r01_00584 | B31: Ga0081478_144116 | C31: 1848 | D31: 2156 | E31: + | F31: 309 | G31: 30S ribosomal protein S10 | H31: 387 | I31: 1.25 | J31: 53.83
A32: OCT-B-Desulfurococcales-r01_00053 | B32: Ga0081478_132276 | C32: 2523 | D32: 4187 | E32: - | F32: 1665 | G32: Thermosome subunit beta | H32: 2070 | I32: 1.24 | J32: 53.43
A33: OCT-B-Desulfurococcales-r01_00538 | B33: Ga0081478_134450 | C33: 2628 | D33: 5702 | E33: + | F33: 3075 | G33: narG: nitrate reductase, alpha subunit | H33: 3768 | I33: 1.23 | J33: 52.66
A34: OCT-B-Desulfurococcales-r01_00953 | B34: Ga0081478_137135 | C34: 31706 | D34: 34330 | E34: - | F34: 2625 | G34: RTPR: ribonucleoside-triphosphate reductase, adenosylcobalamin-dependent | H34: 3071 | I34: 1.17 | J34: 50.28
A35: OCT-B-Desulfurococcales-r01_00583 | B35: Ga0081478_144116 | C35: 492 | D35: 1796 | E35: + | F35: 1305 | G35: Elongation factor 1-alpha | H35: 1520 | I35: 1.16 | J35: 50.06
A36: OCT-B-Desulfurococcales-r01_00981 | B36: Ga0081478_138214 | C36: 12536 | D36: 13216 | E36: - | F36: 681 | G36: Thermosome subunit beta | H36: 785 | I36: 1.15 | J36: 49.54
A37: OCT-B-Desulfurococcales-r01_01996 | B37: Ga0081478_137049 | C37: 3834 | D37: 4955 | E37: + | F37: 1122 | G37: TMAO_TorT: TMAO reductase system periplasmic protein TorT | H37: 1291 | I37: 1.15 | J37: 49.45
A38: OCT-B-Desulfurococcales-r01_01300 | B38: Ga0081478_139248 | C38: 26282 | D38: 28030 | E38: + | F38: 1749 | G38: nickel_nikA: nickel ABC transporter, nickel/metallophore periplasmic binding protein | H38: 1927 | I38: 1.10 | J38: 47.35
A39: OCT-B-Desulfurococcales-r01_00008 | B39: Ga0081478_167491 | C39: 6135 | D39: 6893 | E39: + | F39: 759 | G39: Fumarate reductase (CoM/CoB) subunit B | H39: 831 | I39: 1.09 | J39: 47.06
A40: OCT-B-Desulfurococcales-r01_02291 | B40: Ga0081478_125421 | C40: 4244 | D40: 4411 | E40: - | F40: 168 | G40: hypothetical protein | H40: 166 | I40: 0.99 | J40: 42.47
A41: OCT-B-Desulfurococcales-r01_02228 | B41: Ga0081478_149085 | C41: 16046 | D41: 17167 | E41: - | F41: 1122 | G41: hypothetical protein | H41: 1098 | I41: 0.98 | J41: 42.06
A42: OCT-B-Desulfurococcales-r01_00005 | B42: Ga0081478_167491 | C42: 3764 | D42: 5527 | E42: + | F42: 1764 | G42: Fumarate reductase (CoM/CoB) subunit A | H42: 1683 | I42: 0.95 | J42: 41.01
A43: OCT-B-Desulfurococcales-r01_00281 | B43: Ga0081478_131113 | C43: 3721 | D43: 4923 | E43: + | F43: 1203 | G43: TIGR00273: iron-sulfur cluster-binding protein | H43: 1141 | I43: 0.95 | J43: 40.76
A44: OCT-B-Desulfurococcales-r01_01025 | B44: Ga0081478_132797 | C44: 11728 | D44: 12219 | E44: - | F44: 492 | G44: 30S ribosomal protein S4 | H44: 461 | I44: 0.94 | J44: 40.27
A45: OCT-B-Desulfurococcales-r01_02618 | B45: Ga0081478_139741 | C45: 4386 | D45: 6794 | E45: - | F45: 2409 | G45: QoxB: cytochrome aa3 quinol oxidase, subunit I | H45: 2251 | I45: 0.93 | J45: 40.16
A46: OCT-B-Desulfurococcales-r01_01565 | B46: Ga0081478_135326 | C46: 50 | D46: 1936 | E46: + | F46: 1887 | G46: SBP_KPN_01854: ABC transporter substrate binding protein, KPN_01854 family | H46: 1759 | I46: 0.93 | J46: 40.06
A47: OCT-B-Desulfurococcales-r01_02076 | B47: Ga0081478_139068 | C47: 3006 | D47: 3260 | E47: - | F47: 255 | G47: RPP1A Ribosomal protein L12E/L44/L45/RPP1/RPP2 [Translation, ribosomal structure and biogenesis] | H47: 234 | I47: 0.92 | J47: 39.44
A48: OCT-B-Desulfurococcales-r01_02169 | B48: Ga0081478_135200 | C48: 3736 | D48: 4329 | E48: - | F48: 594 | G48: Pyridoxal 5'-phosphate synthase subunit PdxT | H48: 528 | I48: 0.89 | J48: 38.20
A49: OCT-B-Desulfurococcales-r01_00537 | B49: Ga0081478_134450 | C49: 2014 | D49: 2625 | E49: + | F49: 612 | G49: soxL2: Rieske iron-sulfur protein SoxL2 | H49: 541 | I49: 0.88 | J49: 37.99
A50: OCT-B-Desulfurococcales-r01_01024 | B50: Ga0081478_132797 | C50: 11316 | D50: 11717 | E50: - | F50: 402 | G50: 30S ribosomal protein S11 | H50: 347 | I50: 0.86 | J50: 37.10
A51: OCT-B-Desulfurococcales-r01_00995 | B51: Ga0081478_143545 | C51: 7812 | D51: 8342 | E51: - | F51: 531 | G51: organ_hyd_perox: peroxiredoxin, Ohr subfamily | H51: 454 | I51: 0.85 | J51: 36.75
A52: OCT-B-Desulfurococcales-r01_01700 | B52: Ga0081478_138791 | C52: 9855 | D52: 10145 | E52: - | F52: 291 | G52: hypothetical protein | H52: 248 | I52: 0.85 | J52: 36.63
A53: OCT-B-Desulfurococcales-r01_02170 | B53: Ga0081478_135200 | C53: 4331 | D53: 5338 | E53: - | F53: 1008 | G53: Pyridoxal 5'-phosphate synthase subunit PdxS | H53: 844 | I53: 0.84 | J53: 35.99
A54: OCT-B-Desulfurococcales-r01_01383 | B54: Ga0081478_135598 | C54: 14419 | D54: 15840 | E54: - | F54: 1422 | G54: sufB: FeS assembly protein SufB | H54: 1173 | I54: 0.82 | J54: 35.45
A55: OCT-B-Desulfurococcales-r01_00072 | B55: Ga0081478_132276 | C55: 16162 | D55: 16617 | E55: + | F55: 456 | G55: hypothetical protein | H55: 369 | I55: 0.81 | J55: 34.78
A56: OCT-B-Desulfurococcales-r01_01274 | B56: Ga0081478_139248 | C56: 25 | D56: 294 | E56: + | F56: 270 | G56: hypothetical protein | H56: 216 | I56: 0.80 | J56: 34.38
A57: OCT-B-Desulfurococcales-r01_00262 | B57: Ga0081478_139274 | C57: 27287 | D57: 27829 | E57: - | F57: 543 | G57: NuoC_fam: NADH (or F420H2) dehydrogenase, subunit C | H57: 432 | I57: 0.80 | J57: 34.19
A58: OCT-B-Desulfurococcales-r01_00550 | B58: Ga0081478_155237 | C58: 2129 | D58: 3277 | E58: - | F58: 1149 | G58: mft_etfB: electron transfer flavoprotein, mycofactocin-associated | H58: 895 | I58: 0.78 | J58: 33.48
A59: OCT-B-Desulfurococcales-r01_00994 | B59: Ga0081478_143545 | C59: 6630 | D59: 7805 | E59: - | F59: 1176 | G59: Methionine synthase | H59: 886 | I59: 0.75 | J59: 32.38
A60: OCT-B-Desulfurococcales-r01_02484 | B60: Ga0081478_138337 | C60: 1355 | D60: 1753 | E60: - | F60: 399 | G60: hypothetical protein | H60: 297 | I60: 0.74 | J60: 31.99
A61: OCT-B-Desulfurococcales-r01_00459 | B61: Ga0081478_132352 | C61: 894 | D61: 1697 | E61: + | F61: 804 | G61: Stomatin homolog PH1511 | H61: 580 | I61: 0.72 | J61: 31.00
A62: OCT-B-Desulfurococcales-r01_01534 | B62: Ga0081478_144039 | C62: 5190 | D62: 6101 | E62: - | F62: 912 | G62: PhnU: 2-aminoethylphosphonate ABC transporter, permease protein | H62: 654 | I62: 0.72 | J62: 30.82
A63: OCT-B-Desulfurococcales-r01_02225 | B63: Ga0081478_149085 | C63: 10969 | D63: 12513 | E63: - | F63: 1545 | G63: nickel_nikC: nickel ABC transporter, permease subunit NikC | H63: 1105 | I63: 0.72 | J63: 30.74
A64: OCT-B-Desulfurococcales-r01_01137 | B64: Ga0081478_138828 | C64: 27416 | D64: 28588 | E64: - | F64: 1173 | G64: Fructose-1,6-bisphosphate aldolase/phosphatase | H64: 824 | I64: 0.70 | J64: 30.19
A65: OCT-B-Desulfurococcales-r01_01019 | B65: Ga0081478_132797 | C65: 8948 | D65: 9148 | E65: - | F65: 201 | G65: DNA-directed RNA polymerase subunit N | H65: 140 | I65: 0.70 | J65: 29.94
A66: OCT-B-Desulfurococcales-r01_02561 | B66: Ga0081478_138483 | C66: 6188 | D66: 6478 | E66: + | F66: 291 | G66: DNA/RNA-binding protein Alba 1 | H66: 200 | I66: 0.69 | J66: 29.54
A67: OCT-B-Desulfurococcales-r01_01815 | B67: Ga0081478_156793 | C67: 172 | D67: 417 | E67: - | F67: 246 | G67: DNA-directed RNA polymerase subunit H | H67: 168 | I67: 0.68 | J67: 29.35
A68: OCT-B-Desulfurococcales-r01_01414 | B68: Ga0081478_138418 | C68: 1340 | D68: 1627 | E68: + | F68: 288 | G68: DNA/RNA-binding protein Alba 1 | H68: 195 | I68: 0.68 | J68: 29.10
A69: OCT-B-Desulfurococcales-r01_01382 | B69: Ga0081478_135598 | C69: 13192 | D69: 14406 | E69: - | F69: 1215 | G69: sufB: FeS assembly protein SufB | H69: 813 | I69: 0.67 | J69: 28.76
A70: OCT-B-Desulfurococcales-r01_00993 | B70: Ga0081478_143545 | C70: 5802 | D70: 6629 | E70: - | F70: 828 | G70: Putative thiosulfate sulfurtransferase | H70: 549 | I70: 0.66 | J70: 28.50
A71: OCT-B-Desulfurococcales-r01_01952 | B71: Ga0081478_130700 | C71: 5721 | D71: 5897 | E71: + | F71: 177 | G71: hypothetical protein | H71: 117 | I71: 0.66 | J71: 28.41
A72: OCT-B-Desulfurococcales-r01_00263 | B72: Ga0081478_139274 | C72: 27843 | D72: 28409 | E72: - | F72: 567 | G72: F(420)H(2) dehydrogenase subunit B | H72: 371 | I72: 0.65 | J72: 28.12
A73: OCT-B-Desulfurococcales-r01_02133 | B73: Ga0081478_138899 | C73: 5354 | D73: 5830 | E73: + | F73: 477 | G73: Peroxiredoxin | H73: 309 | I73: 0.65 | J73: 27.84
A74: OCT-B-Desulfurococcales-r01_01949 | B74: Ga0081478_130700 | C74: 327 | D74: 3662 | E74: + | F74: 3336 | G74: V-ATPase_V1_A: V-type ATPase, A subunit | H74: 2160 | I74: 0.65 | J74: 27.83
A75: OCT-B-Desulfurococcales-r01_01482 | B75: Ga0081478_128043 | C75: 5740 | D75: 6921 | E75: - | F75: 1182 | G75: Med Uncharacterized ABC-type transport system, periplasmic component/surface lipoprotein [General function prediction only] | H75: 762 | I75: 0.64 | J75: 27.71
A76: OCT-B-Desulfurococcales-r01_01811 | B76: Ga0081478_142690 | C76: 3509 | D76: 4513 | E76: + | F76: 1005 | G76: nickel_nikB: nickel ABC transporter, permease subunit NikB | H76: 646 | I76: 0.64 | J76: 27.63
A77: OCT-B-Desulfurococcales-r01_00287 | B77: Ga0081478_142036 | C77: 3864 | D77: 5804 | E77: - | F77: 1941 | G77: 2-oxoacid:ferredoxin oxidoreductase subunit alpha | H77: 1237 | I77: 0.64 | J77: 27.39
A78: OCT-B-Desulfurococcales-r01_00774 | B78: Ga0081478_139619 | C78: 5326 | D78: 5424 | E78: + | F78: 99 | G78: hypothetical protein | H78: 63 | I78: 0.64 | J78: 27.35
A79: OCT-B-Desulfurococcales-r01_01887 | B79: Ga0081478_138345 | C79: 5376 | D79: 5768 | E79: - | F79: 393 | G79: tatB: twin arginine-targeting protein translocase TatB | H79: 250 | I79: 0.64 | J79: 27.34
A80: OCT-B-Desulfurococcales-r01_01950 | B80: Ga0081478_130700 | C80: 3659 | D80: 5074 | E80: + | F80: 1416 | G80: V-type ATP synthase beta chain | H80: 900 | I80: 0.64 | J80: 27.32
A81: OCT-B-Desulfurococcales-r01_02242 | B81: Ga0081478_143105 | C81: 3205 | D81: 5883 | E81: - | F81: 2679 | G81: DNA-directed RNA polymerase subunit A' | H81: 1654 | I81: 0.62 | J81: 26.53
A82: OCT-B-Desulfurococcales-r01_01604 | B82: Ga0081478_138153 | C82: 19706 | D82: 19903 | E82: - | F82: 198 | G82: 30S ribosomal protein S27e | H82: 121 | I82: 0.61 | J82: 26.26
A83: OCT-B-Desulfurococcales-r01_01778 | B83: Ga0081478_129860 | C83: 16064 | D83: 16222 | E83: + | F83: 159 | G83: 50S ribosomal protein L39e | H83: 97 | I83: 0.61 | J83: 26.22
A84: OCT-B-Desulfurococcales-r01_02385 | B84: Ga0081478_152367 | C84: 23495 | D84: 24943 | E84: - | F84: 1449 | G84: tRNA-splicing ligase RtcB | H84: 874 | I84: 0.60 | J84: 25.92
A85: OCT-B-Desulfurococcales-r01_00551 | B85: Ga0081478_155237 | C85: 3283 | D85: 4392 | E85: - | F85: 1110 | G85: mft_etfB: electron transfer flavoprotein, mycofactocin-associated | H85: 667 | I85: 0.60 | J85: 25.83
A86: OCT-B-Desulfurococcales-r01_01020 | B86: Ga0081478_132797 | C86: 9154 | D86: 9573 | E86: - | F86: 420 | G86: 30S ribosomal protein S9 | H86: 252 | I86: 0.60 | J86: 25.79
A87: OCT-B-Desulfurococcales-r01_01026 | B87: Ga0081478_132797 | C87: 12229 | D87: 12696 | E87: - | F87: 468 | G87: 30S ribosomal protein S13 | H87: 280 | I87: 0.60 | J87: 25.71
A88: OCT-B-Desulfurococcales-r01_01136 | B88: Ga0081478_138828 | C88: 26701 | D88: 27405 | E88: - | F88: 705 | G88: Triosephosphate isomerase | H88: 419 | I88: 0.59 | J88: 25.54
A89: OCT-B-Desulfurococcales-r01_00987 | B89: Ga0081478_143545 | C89: 716 | D89: 1792 | E89: + | F89: 1077 | G89: PhoU Phosphate uptake regulator [Inorganic ion transport and metabolism] | H89: 639 | I89: 0.59 | J89: 25.50
A90: OCT-B-Desulfurococcales-r01_02243 | B90: Ga0081478_143105 | C90: 5889 | D90: 9299 | E90: - | F90: 3411 | G90: rpoB: DNA-directed RNA polymerase, beta subunit | H90: 2022 | I90: 0.59 | J90: 25.48
A91: OCT-B-Desulfurococcales-r01_01533 | B91: Ga0081478_144039 | C91: 4353 | D91: 5186 | E91: - | F91: 834 | G91: Trehalose/maltose transport system permease protein MalG | H91: 492 | I91: 0.59 | J91: 25.35
A92: OCT-B-Desulfurococcales-r01_00261 | B92: Ga0081478_139274 | C92: 26031 | D92: 27269 | E92: - | F92: 1239 | G92: F(420)H(2) dehydrogenase subunit D | H92: 729 | I92: 0.59 | J92: 25.29
A93: OCT-B-Desulfurococcales-r01_00902 | B93: Ga0081478_137091 | C93: 11347 | D93: 11511 | E93: + | F93: 165 | G93: 30S ribosomal protein S14 type Z | H93: 97 | I93: 0.59 | J93: 25.27
A94: OCT-B-Desulfurococcales-r01_01458 | B94: Ga0081478_131336 | C94: 1936 | D94: 3402 | E94: - | F94: 1467 | G94: nramp: metal ion transporter, metal ion (Mn2+/Fe2+) transporter (Nramp) family | H94: 843 | I94: 0.57 | J94: 24.70
A95: OCT-B-Desulfurococcales-r01_01781 | B95: Ga0081478_129860 | C95: 17233 | D95: 17499 | E95: + | F95: 267 | G95: 50S ribosomal protein L18Ae | H95: 153 | I95: 0.57 | J95: 24.63
A96: OCT-B-Desulfurococcales-r01_00117 | B96: Ga0081478_137639 | C96: 7214 | D96: 8245 | E96: + | F96: 1032 | G96: hypothetical protein | H96: 580 | I96: 0.56 | J96: 24.15
A97: OCT-B-Desulfurococcales-r01_02179 | B97: Ga0081478_147480 | C97: 6855 | D97: 7349 | E97: + | F97: 495 | G97: Glyceraldehyde dehydrogenase small chain | H97: 277 | I97: 0.56 | J97: 24.05
A98: OCT-B-Desulfurococcales-r01_00045 | B98: Ga0081478_135325 | C98: 1156 | D98: 1863 | E98: - | F98: 708 | G98: Uncharacterized protein conserved in archaea [Function unknown] | H98: 396 | I98: 0.56 | J98: 24.04
A99: OCT-B-Desulfurococcales-r01_00813 | B99: Ga0081478_163542 | C99: 4647 | D99: 5642 | E99: - | F99: 996 | G99: nickel_nikB: nickel ABC transporter, permease subunit NikB | H99: 553 | I99: 0.56 | J99: 23.86
A100: OCT-B-Desulfurococcales-r01_02240 | B100: Ga0081478_143105 | C100: 1691 | D100: 2020 | E100: - | F100: 330 | G100: eL8_ribo: ribosomal protein eL8 | H100: 182 | I100: 0.55 | J100: 23.70
A101: OCT-B-Desulfurococcales-r01_02257 | B101: Ga0081478_168663 | C101: 1025 | D101: 2548 | E101: - | F101: 1524 | G101: NAD(P)-dependent glyceraldehyde-3-phosphate dehydrogenase | H101: 835 | I101: 0.55 | J101: 23.55
A102: OCT-B-Desulfurococcales-r01_01418 | B102: Ga0081478_138418 | C102: 4895 | D102: 7111 | E102: + | F102: 2217 | G102: Elongation factor 2 | H102: 1189 | I102: 0.54 | J102: 23.05
A103: OCT-B-Desulfurococcales-r01_01021 | B103: Ga0081478_132797 | C103: 9570 | D103: 10055 | E103: - | F103: 486 | G103: 50S ribosomal protein L13 | H103: 257 | I103: 0.53 | J103: 22.73
A104: OCT-B-Desulfurococcales-r01_02368 | B104: Ga0081478_152367 | C104: 13849 | D104: 14091 | E104: - | F104: 243 | G104: hypothetical protein | H104: 127 | I104: 0.52 | J104: 22.46
A105: OCT-B-Desulfurococcales-r01_00363 | B105: Ga0081478_138463 | C105: 7321 | D105: 8505 | E105: - | F105: 1185 | G105: cyano_FeS_chp: putative radical SAM enzyme, TIGR03279 family | H105: 619 | I105: 0.52 | J105: 22.45
A106: OCT-B-Desulfurococcales-r01_02239 | B106: Ga0081478_143105 | C106: 1241 | D106: 1645 | E106: - | F106: 405 | G106: NusA: transcription termination factor NusA | H106: 209 | I106: 0.52 | J106: 22.18
A107: OCT-B-Desulfurococcales-r01_01282 | B107: Ga0081478_139248 | C107: 8478 | D107: 8669 | E107: + | F107: 192 | G107: nikR: nickel-responsive transcriptional regulator NikR | H107: 99 | I107: 0.52 | J107: 22.16
A108: OCT-B-Desulfurococcales-r01_02181 | B108: Ga0081478_147480 | C108: 9718 | D108: 10605 | E108: + | F108: 888 | G108: Glyceraldehyde dehydrogenase medium chain | H108: 451 | I108: 0.51 | J108: 21.83
A109: OCT-B-Desulfurococcales-r01_01558 | B109: Ga0081478_140158 | C109: 2075 | D109: 3091 | E109: + | F109: 1017 | G109: Cobalamin import system permease protein BtuC | H109: 513 | I109: 0.50 | J109: 21.68
A110: OCT-B-Desulfurococcales-r01_01022 | B110: Ga0081478_132797 | C110: 10052 | D110: 10414 | E110: - | F110: 363 | G110: 50S ribosomal protein L18e | H110: 183 | I110: 0.50 | J110: 21.67
A111: OCT-B-Desulfurococcales-r01_01751 | B111: Ga0081478_123471 | C111: 3982 | D111: 4704 | E111: - | F111: 723 | G111: hypothetical protein | H111: 364 | I111: 0.50 | J111: 21.64
A112: OCT-B-Desulfurococcales-r01_00627 | B112: Ga0081478_134435 | C112: 2909 | D112: 3607 | E112: + | F112: 699 | G112: Ribosome maturation protein SDO1 homolog | H112: 351 | I112: 0.50 | J112: 21.58
A113: OCT-B-Desulfurococcales-r01_00549 | B113: Ga0081478_155237 | C113: 406 | D113: 2127 | E113: - | F113: 1722 | G113: lycopene_cycl: lycopene cyclase | H113: 863 | I113: 0.50 | J113: 21.54
A114: OCT-B-Desulfurococcales-r01_01059 | B114: Ga0081478_138233 | C114: 7885 | D114: 8130 | E114: - | F114: 246 | G114: hypothetical protein | H114: 123 | I114: 0.50 | J114: 21.49
A115: OCT-B-Desulfurococcales-r01_01785 | B115: Ga0081478_129860 | C115: 20376 | D115: 20627 | E115: + | F115: 252 | G115: hypothetical protein | H115: 125 | I115: 0.50 | J115: 21.32
A116: OCT-B-Desulfurococcales-r01_02301 | B116: Ga0081478_167147 | C116: 3137 | D116: 3586 | E116: - | F116: 450 | G116: rpa1: replication factor-a protein 1 (rpa1) | H116: 223 | I116: 0.50 | J116: 21.30
A117: OCT-B-Desulfurococcales-r01_01543 | B117: Ga0081478_140938 | C117: 3809 | D117: 4447 | E117: + | F117: 639 | G117: Proteasome subunit beta | H117: 315 | I117: 0.49 | J117: 21.19
A118: OCT-B-Desulfurococcales-r01_02450 | B118: Ga0081478_135923 | C118: 14156 | D118: 14326 | E118: - | F118: 171 | G118: Sss1 Preprotein translocase subunit Sss1 [Intracellular trafficking and secretion] | H118: 84 | I118: 0.49 | J118: 21.11
A119: OCT-B-Desulfurococcales-r01_00897 | B119: Ga0081478_137091 | C119: 8665 | D119: 9105 | E119: + | F119: 441 | G119: uS17_arch: ribosomal protein uS17 | H119: 216 | I119: 0.49 | J119: 21.05
A120: OCT-B-Desulfurococcales-r01_01779 | B120: Ga0081478_129860 | C120: 16232 | D120: 16516 | E120: + | F120: 285 | G120: RPL31A Ribosomal protein L31E [Translation, ribosomal structure and biogenesis] | H120: 139 | I120: 0.49 | J120: 20.96
A121: OCT-B-Desulfurococcales-r01_01951 | B121: Ga0081478_130700 | C121: 5081 | D121: 5728 | E121: + | F121: 648 | G121: V-type ATP synthase subunit D | H121: 314 | I121: 0.48 | J121: 20.83
A122: OCT-B-Desulfurococcales-r01_00129 | B122: Ga0081478_153987 | C122: 11887 | D122: 12531 | E122: + | F122: 645 | G122: Superoxide dismutase [Mn/Fe] | H122: 310 | I122: 0.48 | J122: 20.66
A123: OCT-B-Desulfurococcales-r01_02404 | B123: Ga0081478_121199 | C123: 1418 | D123: 1849 | E123: + | F123: 432 | G123: hypothetical protein | H123: 207 | I123: 0.48 | J123: 20.59
A124: OCT-B-Desulfurococcales-r01_01532 | B124: Ga0081478_144039 | C124: 3263 | D124: 4348 | E124: - | F124: 1086 | G124: Trehalose/maltose import ATP-binding protein MalK | H124: 519 | I124: 0.48 | J124: 20.54
A125: OCT-B-Desulfurococcales-r01_01018 | B125: Ga0081478_132797 | C125: 8259 | D125: 8936 | E125: - | F125: 678 | G125: 30S ribosomal protein S2 | H125: 323 | I125: 0.48 | J125: 20.48
A126: OCT-B-Desulfurococcales-r01_02241 | B126: Ga0081478_143105 | C126: 2024 | D126: 3202 | E126: - | F126: 1179 | G126: DNA-directed RNA polymerase subunit A'' | H126: 560 | I126: 0.47 | J126: 20.41
A127: OCT-B-Desulfurococcales-r01_01350 | B127: Ga0081478_145862 | C127: 4582 | D127: 6282 | E127: + | F127: 1701 | G127: yjhG_yagF: putative dehydratase, YjhG/YagF family | H127: 802 | I127: 0.47 | J127: 20.26
A128: OCT-B-Desulfurococcales-r01_00626 | B128: Ga0081478_134435 | C128: 2181 | D128: 2912 | E128: + | F128: 732 | G128: Proteasome subunit alpha | H128: 345 | I128: 0.47 | J128: 20.26
A129: OCT-B-Desulfurococcales-r01_01705 | B129: Ga0081478_140203 | C129: 2237 | D129: 2524 | E129: - | F129: 288 | G129: 50S ribosomal protein L23 | H129: 133 | I129: 0.46 | J129: 19.85
A130: OCT-B-Desulfurococcales-r01_02454 | B130: Ga0081478_135923 | C130: 16756 | D130: 17373 | E130: + | F130: 618 | G130: tRNA-splicing endonuclease | H130: 284 | I130: 0.46 | J130: 19.75
A131: OCT-B-Desulfurococcales-r01_01753 | B131: Ga0081478_123471 | C131: 5970 | D131: 7133 | E131: + | F131: 1164 | G131: MauD: methylamine dehydrogenase accessory protein MauD | H131: 526 | I131: 0.45 | J131: 19.42
A132: OCT-B-Desulfurococcales-r01_02309 | B132: Ga0081478_167147 | C132: 10018 | D132: 10401 | E132: - | F132: 384 | G132: 50S ribosomal protein L7Ae | H132: 172 | I132: 0.45 | J132: 19.25
A133: OCT-B-Desulfurococcales-r01_00896 | B133: Ga0081478_137091 | C133: 8442 | D133: 8723 | E133: + | F133: 282 | G133: Ribonuclease P protein component 1 | H133: 126 | I133: 0.45 | J133: 19.20
A134: OCT-B-Desulfurococcales-r01_01000 | B134: Ga0081478_143545 | C134: 10805 | D134: 11185 | E134: - | F134: 381 | G134: FeS_long_SufT: probable FeS assembly SUF system protein SufT | H134: 170 | I134: 0.45 | J134: 19.18
A135: OCT-B-Desulfurococcales-r01_01301 | B135: Ga0081478_139248 | C135: 28035 | D135: 28961 | E135: + | F135: 927 | G135: nickel_nikB: nickel ABC transporter, permease subunit NikB | H135: 407 | I135: 0.44 | J135: 18.87
A136: OCT-B-Desulfurococcales-r01_00898 | B136: Ga0081478_137091 | C136: 9098 | D136: 9523 | E136: + | F136: 426 | G136: 50S ribosomal protein L14 | H136: 187 | I136: 0.44 | J136: 18.87
A137: OCT-B-Desulfurococcales-r01_01023 | B137: Ga0081478_132797 | C137: 10416 | D137: 11306 | E137: - | F137: 891 | G137: DNA-directed RNA polymerase subunit D | H137: 391 | I137: 0.44 | J137: 18.86
A138: OCT-B-Desulfurococcales-r01_00628 | B138: Ga0081478_134435 | C138: 3611 | D138: 4363 | E138: + | F138: 753 | G138: Exosome complex component Rrp4 | H138: 330 | I138: 0.44 | J138: 18.84
A139: OCT-B-Desulfurococcales-r01_00894 | B139: Ga0081478_137091 | C139: 7560 | D139: 8231 | E139: + | F139: 672 | G139: 30S ribosomal protein S3 | H139: 293 | I139: 0.44 | J139: 18.74
A140: OCT-B-Desulfurococcales-r01_02290 | B140: Ga0081478_125421 | C140: 1665 | D140: 4328 | E140: + | F140: 2664 | G140: T7SS_mycosin: type VII secretion-associated serine protease mycosin | H140: 1158 | I140: 0.43 | J140: 18.68
A141: OCT-B-Desulfurococcales-r01_02526 | B141: Ga0081478_144843 | C141: 1987 | D141: 2340 | E141: - | F141: 354 | G141: hypothetical protein | H141: 153 | I141: 0.43 | J141: 18.58
A142: OCT-B-Desulfurococcales-r01_00996 | B142: Ga0081478_143545 | C142: 8510 | D142: 8788 | E142: + | F142: 279 | G142: selenium_YedF: selenium metabolism protein YedF | H142: 120 | I142: 0.43 | J142: 18.49
A143: OCT-B-Desulfurococcales-r01_00370 | B143: Ga0081478_138463 | C143: 14784 | D143: 15113 | E143: + | F143: 330 | G143: Protein translation factor SUI1 homolog | H143: 140 | I143: 0.42 | J143: 18.23
A144: OCT-B-Desulfurococcales-r01_00629 | B144: Ga0081478_134435 | C144: 4344 | D144: 5078 | E144: + | F144: 735 | G144: Exosome complex component Rrp41 | H144: 308 | I144: 0.42 | J144: 18.01
A145: OCT-B-Desulfurococcales-r01_02180 | B145: Ga0081478_147480 | C145: 7346 | D145: 9715 | E145: + | F145: 2370 | G145: Glyceraldehyde dehydrogenase large chain | H145: 993 | I145: 0.42 | J145: 18.01
A146: OCT-B-Desulfurococcales-r01_02351 | B146: Ga0081478_169734 | C146: 7713 | D146: 8750 | E146: - | F146: 1038 | G146: taurine_ABC_bnd: taurine ABC transporter, periplasmic binding protein | H146: 431 | I146: 0.42 | J146: 17.85
A147: OCT-B-Desulfurococcales-r01_00895 | B147: Ga0081478_137091 | C147: 8222 | D147: 8461 | E147: + | F147: 240 | G147: L29: ribosomal protein uL29 | H147: 99 | I147: 0.41 | J147: 17.73
A148: OCT-B-Desulfurococcales-r01_01777 | B148: Ga0081478_129860 | C148: 15691 | D148: 16062 | E148: + | F148: 372 | G148: DNA-binding protein SSO0352 | H148: 149 | I148: 0.40 | J148: 17.21
A149: OCT-B-Desulfurococcales-r01_00883 | B149: Ga0081478_131003 | C149: 3674 | D149: 5215 | E149: + | F149: 1542 | G149: DNA repair and recombination protein RadA | H149: 617 | I149: 0.40 | J149: 17.20
A150: OCT-B-Desulfurococcales-r01_00669 | B150: Ga0081478_131657 | C150: 2585 | D150: 3301 | E150: - | F150: 717 | G150: hypothetical protein | H150: 286 | I150: 0.40 | J150: 17.14
A151: OCT-B-Desulfurococcales-r01_00775 | B151: Ga0081478_139619 | C151: 5421 | D151: 5570 | E151: + | F151: 150 | G151: hypothetical protein | H151: 59 | I151: 0.39 | J151: 16.90
A152: OCT-B-Desulfurococcales-r01_02300 | B152: Ga0081478_167147 | C152: 2841 | D152: 3140 | E152: - | F152: 300 | G152: geo_PqqD_fam: GeoRSP system PqqD family protein | H152: 118 | I152: 0.39 | J152: 16.90
A153: OCT-B-Desulfurococcales-r01_00037 | B153: Ga0081478_130295 | C153: 6850 | D153: 7986 | E153: + | F153: 1137 | G153: BchI-ChlI: magnesium chelatase ATPase subunit I | H153: 446 | I153: 0.39 | J153: 16.86
A154: OCT-B-Desulfurococcales-r01_00630 | B154: Ga0081478_134435 | C154: 5087 | D154: 5953 | E154: + | F154: 867 | G154: Exosome complex component Rrp42 | H154: 338 | I154: 0.39 | J154: 16.76
A155: OCT-B-Desulfurococcales-r01_01648 | B155: Ga0081478_142448 | C155: 7738 | D155: 8382 | E155: + | F155: 645 | G155: 50S ribosomal protein L1 | H155: 249 | I155: 0.39 | J155: 16.59
A156: OCT-B-Desulfurococcales-r01_01904 | B156: Ga0081478_152917 | C156: 8358 | D156: 9128 | E156: + | F156: 771 | G156: GlrX_arch: glutaredoxin-like domain protein | H156: 295 | I156: 0.38 | J156: 16.44
A157: OCT-B-Desulfurococcales-r01_00899 | B157: Ga0081478_137091 | C157: 9534 | D157: 9971 | E157: + | F157: 438 | G157: rplX_A_E: ribosomal protein uL24 | H157: 167 | I157: 0.38 | J157: 16.39
A158: OCT-B-Desulfurococcales-r01_01544 | B158: Ga0081478_140938 | C158: 4478 | D158: 6415 | E158: + | F158: 1938 | G158: arCOG00543: arCOG00543 universal archaeal KH-domain/beta-lactamase-domain protein | H158: 731 | I158: 0.38 | J158: 16.21
A159: OCT-B-Desulfurococcales-r01_01087 | B159: Ga0081478_147869 | C159: 17119 | D159: 18729 | E159: + | F159: 1611 | G159: DNA double-strand break repair helicase HerA | H159: 604 | I159: 0.37 | J159: 16.11
A160: OCT-B-Desulfurococcales-r01_00893 | B160: Ga0081478_137091 | C160: 7037 | D160: 7519 | E160: + | F160: 483 | G160: 50S ribosomal protein L22 | H160: 181 | I160: 0.37 | J160: 16.11
A161: OCT-B-Desulfurococcales-r01_00259 | B161: Ga0081478_139274 | C161: 24410 | D161: 24982 | E161: - | F161: 573 | G161: napF: ferredoxin-type protein NapF | H161: 213 | I161: 0.37 | J161: 15.98
A162: OCT-B-Desulfurococcales-r01_02453 | B162: Ga0081478_135923 | C162: 16066 | D162: 16746 | E162: + | F162: 681 | G162: TIGR00153: TIGR00153 family protein | H162: 251 | I162: 0.37 | J162: 15.84
A163: OCT-B-Desulfurococcales-r01_01780 | B163: Ga0081478_129860 | C163: 16545 | D163: 17231 | E163: + | F163: 687 | G163: Translation initiation factor 6 | H163: 253 | I163: 0.37 | J163: 15.83
A164: OCT-B-Desulfurococcales-r01_02010 | B164: Ga0081478_145446 | C164: 404 | D164: 1921 | E164: + | F164: 1518 | G164: nramp: metal ion transporter, metal ion (Mn2+/Fe2+) transporter (Nramp) family | H164: 556 | I164: 0.37 | J164: 15.74
A165: OCT-B-Desulfurococcales-r01_01288 | B165: Ga0081478_139248 | C165: 16023 | D165: 17015 | E165: + | F165: 993 | G165: ABC_MetN: D-methionine ABC transporter, ATP-binding protein | H165: 363 | I165: 0.37 | J165: 15.71
A166: OCT-B-Desulfurococcales-r01_00900 | B166: Ga0081478_137091 | C166: 9964 | D166: 10728 | E166: + | F166: 765 | G166: 30S ribosomal protein S4e | H166: 279 | I166: 0.36 | J166: 15.67
A167: OCT-B-Desulfurococcales-r01_01974 | B167: Ga0081478_136394 | C167: 15629 | D167: 16237 | E167: - | F167: 609 | G167: TATA-box-binding protein | H167: 222 | I167: 0.36 | J167: 15.67
A168: OCT-B-Desulfurococcales-r01_01948 | B168: Ga0081478_130700 | C168: 65 | D168: 322 | E168: + | F168: 258 | G168: NtpE Archaeal/vacuolar-type H+-ATPase subunit E [Energy production and conversion] | H168: 94 | I168: 0.36 | J168: 15.66
A169: OCT-B-Desulfurococcales-r01_02620 | B169: Ga0081478_139741 | C169: 7549 | D169: 8016 | E169: + | F169: 468 | G169: CyoA: ubiquinol oxidase, subunit II | H169: 170 | I169: 0.36 | J169: 15.61
A170: OCT-B-Desulfurococcales-r01_02214 | B170: Ga0081478_149085 | C170: 281 | D170: 1108 | E170: + | F170: 828 | G170: euk_UDPppase: uridine phosphorylase | H170: 299 | I170: 0.36 | J170: 15.52
A171: OCT-B-Desulfurococcales-r01_00930 | B171: Ga0081478_137135 | C171: 12231 | D171: 12563 | E171: + | F171: 333 | G171: Methionine--tRNA ligase | H171: 120 | I171: 0.36 | J171: 15.49
A172: OCT-B-Desulfurococcales-r01_01552 | B172: Ga0081478_141682 | C172: 5668 | D172: 5931 | E172: + | F172: 264 | G172: Putative snRNP Sm-like protein | H172: 95 | I172: 0.36 | J172: 15.47
A173: OCT-B-Desulfurococcales-r01_01289 | B173: Ga0081478_139248 | C173: 17016 | D173: 18128 | E173: + | F173: 1113 | G173: ABC_MetN: D-methionine ABC transporter, ATP-binding protein | H173: 400 | I173: 0.36 | J173: 15.45
A174: OCT-B-Desulfurococcales-r01_01080 | B174: Ga0081478_147869 | C174: 11505 | D174: 11855 | E174: - | F174: 351 | G174: Ferredoxin | H174: 126 | I174: 0.36 | J174: 15.43
A175: OCT-B-Desulfurococcales-r01_01707 | B175: Ga0081478_140203 | C175: 3351 | D175: 4367 | E175: - | F175: 1017 | G175: 50S ribosomal protein L3 | H175: 365 | I175: 0.36 | J175: 15.42
A176: OCT-B-Desulfurococcales-r01_00785 | B176: Ga0081478_139619 | C176: 11946 | D176: 12866 | E176: + | F176: 921 | G176: Putative branched-chain-amino-acid aminotransferase | H176: 329 | I176: 0.36 | J176: 15.35
A177: OCT-B-Desulfurococcales-r01_02463 | B177: Ga0081478_138030 | C177: 4491 | D177: 5849 | E177: - | F177: 1359 | G177: partition_RepA: plasmid partitioning protein RepA | H177: 485 | I177: 0.36 | J177: 15.34
A178: OCT-B-Desulfurococcales-r01_01324 | B178: Ga0081478_131869 | C178: 1654 | D178: 1911 | E178: + | F178: 258 | G178: hypothetical protein | H178: 92 | I178: 0.36 | J178: 15.33
A179: OCT-B-Desulfurococcales-r01_00057 | B179: Ga0081478_132276 | C179: 5457 | D179: 5636 | E179: + | F179: 180 | G179: SBH1 Preprotein translocase subunit Sec61beta [Intracellular trafficking and secretion] | H179: 64 | I179: 0.36 | J179: 15.28
A180: OCT-B-Desulfurococcales-r01_00076 | B180: Ga0081478_132276 | C180: 21928 | D180: 22518 | E180: + | F180: 591 | G180: hypothetical protein | H180: 210 | I180: 0.36 | J180: 15.27
A181: OCT-B-Desulfurococcales-r01_01086 | B181: Ga0081478_147869 | C181: 16142 | D181: 17122 | E181: + | F181: 981 | G181: Uncharacterized protein conserved in archaea [Function unknown] | H181: 348 | I181: 0.35 | J181: 15.25
A182: OCT-B-Desulfurococcales-r01_01605 | B182: Ga0081478_138153 | C182: 19900 | D182: 20199 | E182: - | F182: 300 | G182: 50S ribosomal protein L44e | H182: 106 | I182: 0.35 | J182: 15.19
A183: OCT-B-Desulfurococcales-r01_02455 | B183: Ga0081478_135923 | C183: 17370 | D183: 17954 | E183: + | F183: 585 | G183: hypothetical protein | H183: 206 | I183: 0.35 | J183: 15.13
A184: OCT-B-Desulfurococcales-r01_02297 | B184: Ga0081478_167147 | C184: 45 | D184: 1265 | E184: + | F184: 1221 | G184: urea_ABC_UrtA: urea ABC transporter, urea binding protein | H184: 424 | I184: 0.35 | J184: 14.92
A185: OCT-B-Desulfurococcales-r01_01576 | B185: Ga0081478_147673 | C185: 4964 | D185: 6274 | E185: - | F185: 1311 | G185: 2-isopropylmalate synthase | H185: 453 | I185: 0.35 | J185: 14.85
A186: OCT-B-Desulfurococcales-r01_02079 | B186: Ga0081478_139068 | C186: 5492 | D186: 5752 | E186: + | F186: 261 | G186: hypothetical protein | H186: 90 | I186: 0.34 | J186: 14.82
A187: OCT-B-Desulfurococcales-r01_00073 | B187: Ga0081478_132276 | C187: 16620 | D187: 18125 | E187: + | F187: 1506 | G187: heli_sec_ATPase: helicase/secretion neighborhood ATPase | H187: 519 | I187: 0.34 | J187: 14.81
A188: OCT-B-Desulfurococcales-r01_00901 | B188: Ga0081478_137091 | C188: 10725 | D188: 11330 | E188: + | F188: 606 | G188: 50S ribosomal protein L5 | H188: 208 | I188: 0.34 | J188: 14.75
A189: OCT-B-Desulfurococcales-r01_01782 | B189: Ga0081478_129860 | C189: 17489 | D189: 17965 | E189: + | F189: 477 | G189: TIGR00293: prefoldin, alpha subunit | H189: 163 | I189: 0.34 | J189: 14.69
A190: OCT-B-Desulfurococcales-r01_00999 | B190: Ga0081478_143545 | C190: 10516 | D190: 10758 | E190: + | F190: 243 | G190: Putative sulfur carrier protein Ta1170/Ta1414 | H190: 82 | I190: 0.34 | J190: 14.50
A191: OCT-B-Desulfurococcales-r01_00058 | B191: Ga0081478_132276 | C191: 5653 | D191: 6060 | E191: + | F191: 408 | G191: hypothetical protein | H191: 136 | I191: 0.33 | J191: 14.33
A192: OCT-B-Desulfurococcales-r01_02619 | B192: Ga0081478_139741 | C192: 7293 | D192: 7568 | E192: + | F192: 276 | G192: hypothetical protein | H192: 92 | I192: 0.33 | J192: 14.33
A193: OCT-B-Desulfurococcales-r01_00903 | B193: Ga0081478_137091 | C193: 11521 | D193: 11925 | E193: + | F193: 405 | G193: 30S ribosomal protein S8 | H193: 133 | I193: 0.33 | J193: 14.11
A194: OCT-B-Desulfurococcales-r01_00257 | B194: Ga0081478_139274 | C194: 23589 | D194: 23909 | E194: - | F194: 321 | G194: NuoK NADH:ubiquinone oxidoreductase subunit 11 or 4L (chain K) [Energy production and conversion] | H194: 105 | I194: 0.33 | J194: 14.06
A195: OCT-B-Desulfurococcales-r01_00258 | B195: Ga0081478_139274 | C195: 23906 | D195: 24376 | E195: - | F195: 471 | G195: NuoJ NADH:ubiquinone oxidoreductase subunit 6 (chain J) [Energy production and conversion] | H195: 153 | I195: 0.32 | J195: 13.96
A196: OCT-B-Desulfurococcales-r01_00798 | B196: Ga0081478_136644 | C196: 5099 | D196: 5548 | E196: + | F196: 450 | G196: Uncharacterized protein conserved in archaea [Function unknown] | H196: 146 | I196: 0.32 | J196: 13.94
A197: OCT-B-Desulfurococcales-r01_02350 | B197: Ga0081478_169734 | C197: 6976 | D197: 7716 | E197: - | F197: 741 | G197: PhnT: 2-aminoethylphosphonate ABC transport system, ATP-binding component PhnT | H197: 238 | I197: 0.32 | J197: 13.80
A198: OCT-B-Desulfurococcales-r01_01088 | B198: Ga0081478_147869 | C198: 18739 | D198: 19947 | E198: + | F198: 1209 | G198: mre11: DNA repair protein (mre11) | H198: 387 | I198: 0.32 | J198: 13.76
A199: OCT-B-Desulfurococcales-r01_00998 | B199: Ga0081478_143545 | C199: 10214 | D199: 10510 | E199: + | F199: 297 | G199: Acylphosphatase | H199: 95 | I199: 0.32 | J199: 13.75
A200: OCT-B-Desulfurococcales-r01_02168 | B200: Ga0081478_135200 | C200: 2601 | D200: 3710 | E200: - | F200: 1110 | G200: cysteate_syn: cysteate synthase | H200: 355 | I200: 0.32 | J200: 13.75
... 2442 more rows

Sheet OCT-B-Gearchaeaceae-r01
A1: Gene_id | B1: Contig | C1: Start | D1: End | E1: Strand | F1: Length | G1: transcript_id | H1: Raw_counts | I1: Reads_base | J1: TPM
A2: OCT-B-Gearchaeaceae-r01_00385 | B2: Ga0081478_131961 | C2: 31999 | D2: 32100 | E2: - | F2: 102 | G2: 5.8S ribosomal RNA (partial) | H2: 764 | I2: 7.49 | J2: 321.92
A3: OCT-B-Gearchaeaceae-r01_00384 | B3: Ga0081478_131961 | C3: 29003 | D3: 32111 | E3: - | F3: 3109 | G3: 23S ribosomal RNA | H3: 8770 | I3: 2.82 | J3: 121.24
A4: OCT-B-Gearchaeaceae-r01_01159 | B4: Ga0081478_147745 | C4: 50016 | D4: 50890 | E4: + | F4: 875 | G4: 16S ribosomal RNA (partial) | H4: 914 | I4: 1.04 | J4: 44.89
A5: OCT-B-Gearchaeaceae-r01_00876 | B5: Ga0081478_139235 | C5: 79944 | D5: 80132 | E5: - | F5: 189 | G5: hypothetical protein | H5: 116 | I5: 0.61 | J5: 26.38
A6: OCT-B-Gearchaeaceae-r01_01156 | B6: Ga0081478_147745 | C6: 48282 | D6: 48585 | E6: + | F6: 304 | G6: RNaseP_arch | H6: 113 | I6: 0.37 | J6: 15.98
A7: OCT-B-Gearchaeaceae-r01_01849 | B7: Ga0081478_122450 | C7: 716 | D7: 5179 | E7: - | F7: 4464 | G7: hypothetical protein | H7: 1109 | I7: 0.25 | J7: 10.68
A8: OCT-B-Gearchaeaceae-r01_01447 | B8: Ga0081478_128610 | C8: 18674 | D8: 22762 | E8: - | F8: 4089 | G8: hypothetical protein | H8: 762 | I8: 0.19 | J8: 8.01
A9: OCT-B-Gearchaeaceae-r01_00021 | B9: Ga0081478_135048 | C9: 1924 | D9: 2403 | E9: - | F9: 480 | G9: hypothetical protein | H9: 79 | I9: 0.16 | J9: 7.07
A10: OCT-B-Gearchaeaceae-r01_01815 | B10: Ga0081478_128594 | C10: 79949 | D10: 80287 | E10: + | F10: 339 | G10: TIGR00285: DNA-binding protein Alba | H10: 54 | I10: 0.16 | J10: 6.85
A11: OCT-B-Gearchaeaceae-r01_01462 | B11: Ga0081478_128610 | C11: 36806 | D11: 36988 | E11: - | F11: 183 | G11: hypothetical protein | H11: 25 | I11: 0.14 | J11: 5.87
A12: OCT-B-Gearchaeaceae-r01_01804 | B12: Ga0081478_128594 | C12: 71455 | D12: 71655 | E12: + | F12: 201 | G12: 30S ribosomal protein S27e | H12: 24 | I12: 0.12 | J12: 5.13
A13: OCT-B-Gearchaeaceae-r01_01223 | B13: Ga0081478_138965 | C13: 16724 | D13: 17037 | E13: + | F13: 314 | G13: Archaea_SRP | H13: 31 | I13: 0.10 | J13: 4.24
A14: OCT-B-Gearchaeaceae-r01_00829 | B14: Ga0081478_139235 | C14: 42130 | D14: 42339 | E14: - | F14: 210 | G14: hypothetical protein | H14: 20 | I14: 0.10 | J14: 4.09
A15: OCT-B-Gearchaeaceae-r01_00976 | B15: Ga0081478_137311 | C15: 804 | D15: 1250 | E15: + | F15: 447 | G15: fkbM_fam: methyltransferase, FkbM family | H15: 42 | I15: 0.09 | J15: 4.04
A16: OCT-B-Gearchaeaceae-r01_01463 | B16: Ga0081478_128610 | C16: 36985 | D16: 37293 | E16: - | F16: 309 | G16: Protein translation factor SUI1 homolog | H16: 29 | I16: 0.09 | J16: 4.03
A17: OCT-B-Gearchaeaceae-r01_00301 | B17: Ga0081478_125448 | C17: 157 | D17: 420 | E17: - | F17: 264 | G17: hypothetical protein | H17: 24 | I17: 0.09 | J17: 3.91
A18: OCT-B-Gearchaeaceae-r01_00452 | B18: Ga0081478_129938 | C18: 5144 | D18: 5572 | E18: + | F18: 429 | G18: CoxB: cytochrome c oxidase, subunit II | H18: 37 | I18: 0.09 | J18: 3.71
A19: OCT-B-Gearchaeaceae-r01_00451 | B19: Ga0081478_129938 | C19: 4871 | D19: 5143 | E19: + | F19: 273 | G19: hypothetical protein | H19: 23 | I19: 0.08 | J19: 3.62
A20: OCT-B-Gearchaeaceae-r01_00975 | B20: Ga0081478_137311 | C20: 439 | D20: 831 | E20: + | F20: 393 | G20: hypothetical protein | H20: 33 | I20: 0.08 | J20: 3.61
A21: OCT-B-Gearchaeaceae-r01_01803 | B21: Ga0081478_128594 | C21: 71172 | D21: 71453 | E21: + | F21: 282 | G21: 50S ribosomal protein L44e | H21: 23 | I21: 0.08 | J21: 3.51
A22: OCT-B-Gearchaeaceae-r01_01586 | B22: Ga0081478_139448 | C22: 3367 | D22: 3627 | E22: - | F22: 261 | G22: DNA-directed RNA polymerase subunit H | H22: 21 | I22: 0.08 | J22: 3.46
A23: OCT-B-Gearchaeaceae-r01_00831 | B23: Ga0081478_139235 | C23: 43565 | D23: 44245 | E23: - | F23: 681 | G23: soxL2: Rieske iron-sulfur protein SoxL2 | H23: 52 | I23: 0.08 | J23: 3.28
A24: OCT-B-Gearchaeaceae-r01_01136 | B24: Ga0081478_147745 | C24: 30695 | D24: 32347 | E24: - | F24: 1653 | G24: Thermosome subunit beta | H24: 115 | I24: 0.07 | J24: 2.99
A25: OCT-B-Gearchaeaceae-r01_01105 | B25: Ga0081478_147745 | C25: 12221 | D25: 13273 | E25: - | F25: 1053 | G25: 5,10-methylenetetrahydromethanopterin reductase | H25: 71 | I25: 0.07 | J25: 2.90
A26: OCT-B-Gearchaeaceae-r01_01828 | B26: Ga0081478_128594 | C26: 87641 | D26: 87925 | E26: + | F26: 285 | G26: RPS26B Ribosomal protein S26 [Translation, ribosomal structure and biogenesis] | H26: 19 | I26: 0.07 | J26: 2.87
A27: OCT-B-Gearchaeaceae-r01_01811 | B27: Ga0081478_128594 | C27: 76369 | D27: 78006 | E27: + | F27: 1638 | G27: Thermosome subunit beta | H27: 109 | I27: 0.07 | J27: 2.86
A28: OCT-B-Gearchaeaceae-r01_00852 | B28: Ga0081478_139235 | C28: 60027 | D28: 60245 | E28: + | F28: 219 | G28: 30S ribosomal protein S28e | H28: 14 | I28: 0.06 | J28: 2.75
A29: OCT-B-Gearchaeaceae-r01_00851 | B29: Ga0081478_139235 | C29: 59608 | D29: 60024 | E29: + | F29: 417 | G29: 50S ribosomal protein L7Ae | H29: 26 | I29: 0.06 | J29: 2.68
A30: OCT-B-Gearchaeaceae-r01_01270 | B30: Ga0081478_138965 | C30: 44624 | D30: 45925 | E30: - | F30: 1302 | G30: Elongation factor 1-alpha | H30: 81 | I30: 0.06 | J30: 2.67
A31: OCT-B-Gearchaeaceae-r01_00830 | B31: Ga0081478_139235 | C31: 42336 | D31: 43565 | E31: - | F31: 1230 | G31: cytb6/f_IV: cytb6/f complex subunit IV | H31: 75 | I31: 0.06 | J31: 2.62
A32: OCT-B-Gearchaeaceae-r01_01232 | B32: Ga0081478_138965 | C32: 25927 | D32: 26388 | E32: - | F32: 462 | G32: 30S ribosomal protein S4 | H32: 28 | I32: 0.06 | J32: 2.60
A33: OCT-B-Gearchaeaceae-r01_00143 | B33: Ga0081478_138741 | C33: 8778 | D33: 10517 | E33: - | F33: 1740 | G33: 7,8-dihydro-6-hydroxymethylpterin dimethyltransferase | H33: 105 | I33: 0.06 | J33: 2.59
A34: OCT-B-Gearchaeaceae-r01_00161 | B34: Ga0081478_138741 | C34: 23134 | D34: 23532 | E34: - | F34: 399 | G34: Arginine decarboxylase proenzyme | H34: 24 | I34: 0.06 | J34: 2.59
A35: OCT-B-Gearchaeaceae-r01_00483 | B35: Ga0081478_165679 | C35: 10130 | D35: 11473 | E35: - | F35: 1344 | G35: urea_ABC_arch: urea ABC transporter, substrate-binding protein | H35: 79 | I35: 0.06 | J35: 2.53
A36: OCT-B-Gearchaeaceae-r01_00949 | B36: Ga0081478_136443 | C36: 914 | D36: 1243 | E36: + | F36: 330 | G36: hypothetical protein | H36: 19 | I36: 0.06 | J36: 2.47
A37: OCT-B-Gearchaeaceae-r01_01697 | B37: Ga0081478_141905 | C37: 3059 | D37: 4084 | E37: - | F37: 1026 | G37: Ald_deCOase: long-chain fatty aldehyde decarbonylase | H37: 59 | I37: 0.06 | J37: 2.47
A38: OCT-B-Gearchaeaceae-r01_01098 | B38: Ga0081478_147745 | C38: 4128 | D38: 5636 | E38: + | F38: 1509 | G38: glcD: glycolate oxidase, subunit GlcD | H38: 86 | I38: 0.06 | J38: 2.45
A39: OCT-B-Gearchaeaceae-r01_00281 | B39: Ga0081478_126078 | C39: 20315 | D39: 21214 | E39: + | F39: 900 | G39: HtpX Zn-dependent protease with chaperone function [Posttranslational modification, protein turnover, chaperones] | H39: 51 | I39: 0.06 | J39: 2.44
A40: OCT-B-Gearchaeaceae-r01_01099 | B40: Ga0081478_147745 | C40: 5641 | D40: 6831 | E40: + | F40: 1191 | G40: Dihydromethanophenazine:CoB--CoM heterodisulfide reductase subunit D | H40: 66 | I40: 0.06 | J40: 2.38
A41: OCT-B-Gearchaeaceae-r01_01095 | B41: Ga0081478_147745 | C41: 941 | D41: 2338 | E41: + | F41: 1398 | G41: ncs1: NCS1 nucleoside transporter family | H41: 77 | I41: 0.06 | J41: 2.37
A42: OCT-B-Gearchaeaceae-r01_01272 | B42: Ga0081478_138965 | C42: 46556 | D42: 46996 | E42: - | F42: 441 | G42: 30S ribosomal protein S12 | H42: 24 | I42: 0.05 | J42: 2.34
A43: OCT-B-Gearchaeaceae-r01_01812 | B43: Ga0081478_128594 | C43: 78026 | D43: 78265 | E43: + | F43: 240 | G43: RpoZ DNA-directed RNA polymerase, subunit K/omega [Transcription] | H43: 13 | I43: 0.05 | J43: 2.33
A44: OCT-B-Gearchaeaceae-r01_01075 | B44: Ga0081478_142680 | C44: 6808 | D44: 6900 | E44: - | F44: 93 | G44: hypothetical protein | H44: 5 | I44: 0.05 | J44: 2.31
A45: OCT-B-Gearchaeaceae-r01_00386 | B45: Ga0081478_131961 | C45: 32264 | D45: 33011 | E45: - | F45: 748 | G45: 16S ribosomal RNA (partial) | H45: 40 | I45: 0.05 | J45: 2.30
A46: OCT-B-Gearchaeaceae-r01_00453 | B46: Ga0081478_129938 | C46: 5574 | D46: 7910 | E46: + | F46: 2337 | G46: QoxB: cytochrome aa3 quinol oxidase, subunit I | H46: 123 | I46: 0.05 | J46: 2.26
A47: OCT-B-Gearchaeaceae-r01_00754 | B47: Ga0081478_132675 | C47: 73169 | D47: 74050 | E47: + | F47: 882 | G47: Smc Chromosome segregation ATPases [Cell division and chromosome partitioning] | H47: 46 | I47: 0.05 | J47: 2.24
A48: OCT-B-Gearchaeaceae-r01_00389 | B48: Ga0081478_147540 | C48: 784 | D48: 900 | E48: + | F48: 117 | G48: hypothetical protein | H48: 6 | I48: 0.05 | J48: 2.20
A49: OCT-B-Gearchaeaceae-r01_01233 | B49: Ga0081478_138965 | C49: 26385 | D49: 26846 | E49: - | F49: 462 | G49: 30S ribosomal protein S13 | H49: 23 | I49: 0.05 | J49: 2.14
A50: OCT-B-Gearchaeaceae-r01_00496 | B50: Ga0081478_165679 | C50: 20060 | D50: 21067 | E50: - | F50: 1008 | G50: Pyridoxal 5'-phosphate synthase subunit PdxS | H50: 49 | I50: 0.05 | J50: 2.09
A51: OCT-B-Gearchaeaceae-r01_00136 | B51: Ga0081478_138741 | C51: 4370 | D51: 5134 | E51: - | F51: 765 | G51: Probable branched-chain amino acid transport ATP-binding protein LivG | H51: 37 | I51: 0.05 | J51: 2.08
A52: OCT-B-Gearchaeaceae-r01_01786 | B52: Ga0081478_128594 | C52: 60530 | D52: 61048 | E52: + | F52: 519 | G52: FlaF Putative archaeal flagellar protein F [Cell motility and secretion] | H52: 25 | I52: 0.05 | J52: 2.07
A53: OCT-B-Gearchaeaceae-r01_00105 | B53: Ga0081478_137759 | C53: 21086 | D53: 21469 | E53: + | F53: 384 | G53: 30S ribosomal protein S8e | H53: 18 | I53: 0.05 | J53: 2.01
A54: OCT-B-Gearchaeaceae-r01_00828 | B54: Ga0081478_139235 | C54: 41786 | D54: 42133 | E54: - | F54: 348 | G54: hypothetical protein | H54: 16 | I54: 0.05 | J54: 1.98
A55: OCT-B-Gearchaeaceae-r01_00974 | B55: Ga0081478_137311 | C55: 33 | D55: 428 | E55: + | F55: 396 | G55: hypothetical protein | H55: 18 | I55: 0.05 | J55: 1.95
A56: OCT-B-Gearchaeaceae-r01_01100 | B56: Ga0081478_147745 | C56: 6836 | D56: 7036 | E56: + | F56: 201 | G56: hypothetical protein | H56: 9 | I56: 0.04 | J56: 1.92
A57: OCT-B-Gearchaeaceae-r01_01249 | B57: Ga0081478_138965 | C57: 34894 | D57: 35055 | E57: - | F57: 162 | G57: 30S ribosomal protein S14 type Z | H57: 7 | I57: 0.04 | J57: 1.86
A58: OCT-B-Gearchaeaceae-r01_00495 | B58: Ga0081478_165679 | C58: 19461 | D58: 20018 | E58: - | F58: 558 | G58: Pyridoxal 5'-phosphate synthase subunit PdxT | H58: 24 | I58: 0.04 | J58: 1.85
A59: OCT-B-Gearchaeaceae-r01_00799 | B59: Ga0081478_139235 | C59: 15499 | D59: 15873 | E59: + | F59: 375 | G59: gimC_beta: prefoldin, beta subunit | H59: 16 | I59: 0.04 | J59: 1.83
A60: OCT-B-Gearchaeaceae-r01_01238 | B60: Ga0081478_138965 | C60: 28788 | D60: 29048 | E60: - | F60: 261 | G60: 50S ribosomal protein L34e | H60: 11 | I60: 0.04 | J60: 1.81
A61: OCT-B-Gearchaeaceae-r01_01055 | B61: Ga0081478_152970 | C61: 5644 | D61: 5952 | E61: + | F61: 309 | G61: FeS_long_SufT: probable FeS assembly SUF system protein SufT | H61: 13 | I61: 0.04 | J61: 1.81
A62: OCT-B-Gearchaeaceae-r01_00020 | B62: Ga0081478_135048 | C62: 967 | D62: 1917 | E62: - | F62: 951 | G62: exo_VPEID: exosortase E/protease, VPEID-CTERM system | H62: 40 | I62: 0.04 | J62: 1.81
A63: OCT-B-Gearchaeaceae-r01_01094 | B63: Ga0081478_147745 | C63: 675 | D63: 938 | E63: + | F63: 264 | G63: hypothetical protein | H63: 11 | I63: 0.04 | J63: 1.79
A64: OCT-B-Gearchaeaceae-r01_00871 | B64: Ga0081478_139235 | C64: 72535 | D64: 73227 | E64: + | F64: 693 | G64: Uncharacterized ABC transporter ATP-binding protein MJ0796 | H64: 28 | I64: 0.04 | J64: 1.74
A65: OCT-B-Gearchaeaceae-r01_01009 | B65: Ga0081478_147636 | C65: 5694 | D65: 8222 | E65: + | F65: 2529 | G65: NrdJ_Z: ribonucleoside-diphosphate reductase, adenosylcobalamin-dependent | H65: 99 | I65: 0.04 | J65: 1.68
A66: OCT-B-Gearchaeaceae-r01_01444 | B66: Ga0081478_128610 | C66: 16470 | D66: 17108 | E66: - | F66: 639 | G66: Cell division protein B2 | H66: 25 | I66: 0.04 | J66: 1.68
A67: OCT-B-Gearchaeaceae-r01_00202 | B67: Ga0081478_145388 | C67: 1583 | D67: 2170 | E67: + | F67: 588 | G67: hypothetical protein | H67: 23 | I67: 0.04 | J67: 1.68
A68: OCT-B-Gearchaeaceae-r01_01158 | B68: Ga0081478_147745 | C68: 49671 | D68: 49747 | E68: - | F68: 77 | G68: tRNA-Ile(gat) | H68: 3 | I68: 0.04 | J68: 1.67
A69: OCT-B-Gearchaeaceae-r01_01394 | B69: Ga0081478_155344 | C69: 7388 | D69: 7876 | E69: - | F69: 489 | G69: hypothetical protein | H69: 19 | I69: 0.04 | J69: 1.67
A70: OCT-B-Gearchaeaceae-r01_01271 | B70: Ga0081478_138965 | C70: 45975 | D70: 46553 | E70: - | F70: 579 | G70: 30S ribosomal protein S7 | H70: 22 | I70: 0.04 | J70: 1.63
A71: OCT-B-Gearchaeaceae-r01_01407 | B71: Ga0081478_155344 | C71: 20267 | D71: 20665 | E71: - | F71: 399 | G71: Uncharacterized protein conserved in archaea [Function unknown] | H71: 15 | I71: 0.04 | J71: 1.62
A72: OCT-B-Gearchaeaceae-r01_01322 | B72: Ga0081478_143287 | C72: 11598 | D72: 13463 | E72: - | F72: 1866 | G72: mft_etfB: electron transfer flavoprotein, mycofactocin-associated | H72: 70 | I72: 0.04 | J72: 1.61
A73: OCT-B-Gearchaeaceae-r01_00682 | B73: Ga0081478_132675 | C73: 4219 | D73: 4677 | E73: - | F73: 459 | G73: CoxB: cytochrome c oxidase, subunit II | H73: 17 | I73: 0.04 | J73: 1.59
A74: OCT-B-Gearchaeaceae-r01_00796 | B74: Ga0081478_139235 | C74: 14421 | D74: 14690 | E74: + | F74: 270 | G74: eL43_euk_arch: ribosomal protein eL43 | H74: 10 | I74: 0.04 | J74: 1.59
A75: OCT-B-Gearchaeaceae-r01_01252 | B75: Ga0081478_138965 | C75: 36357 | D75: 36713 | E75: - | F75: 357 | G75: 50S ribosomal protein L24 | H75: 13 | I75: 0.04 | J75: 1.57
A76: OCT-B-Gearchaeaceae-r01_00173 | B76: Ga0081478_138741 | C76: 30894 | D76: 31058 | E76: - | F76: 165 | G76: RPL39 Ribosomal protein L39E [Translation, ribosomal structure and biogenesis] | H76: 6 | I76: 0.04 | J76: 1.56
A77: OCT-B-Gearchaeaceae-r01_00107 | B77: Ga0081478_137759 | C77: 21833 | D77: 22057 | E77: + | F77: 225 | G77: GAR1 RNA-binding protein involved in rRNA processing [Translation, ribosomal structure and biogenesis] | H77: 8 | I77: 0.04 | J77: 1.53
A78: OCT-B-Gearchaeaceae-r01_01408 | B78: Ga0081478_155344 | C78: 20803 | D78: 21309 | E78: + | F78: 507 | G78: Protein-lysine N-methyltransferase | H78: 18 | I78: 0.04 | J78: 1.53
A79: OCT-B-Gearchaeaceae-r01_01268 | B79: Ga0081478_138965 | C79: 44148 | D79: 44232 | E79: - | F79: 85 | G79: tRNA-Ser(tga) | H79: 3 | I79: 0.04 | J79: 1.52
A80: OCT-B-Gearchaeaceae-r01_00715 | B80: Ga0081478_132675 | C80: 34397 | D80: 36613 | E80: - | F80: 2217 | G80: VCP-like ATPase | H80: 77 | I80: 0.03 | J80: 1.49
A81: OCT-B-Gearchaeaceae-r01_01251 | B81: Ga0081478_138965 | C81: 35600 | D81: 36355 | E81: - | F81: 756 | G81: 30S ribosomal protein S4e | H81: 26 | I81: 0.03 | J81: 1.48
A82: OCT-B-Gearchaeaceae-r01_01273 | B82: Ga0081478_138965 | C82: 47029 | D82: 47466 | E82: - | F82: 438 | G82: nusA_arch: NusA family KH domain protein, archaeal | H82: 15 | I82: 0.03 | J82: 1.47
A83: OCT-B-Gearchaeaceae-r01_01209 | B83: Ga0081478_138965 | C83: 7395 | D83: 7838 | E83: - | F83: 444 | G83: Zinc-containing ferredoxin | H83: 15 | I83: 0.03 | J83: 1.45
A84: OCT-B-Gearchaeaceae-r01_00406 | B84: Ga0081478_128895 | C84: 11433 | D84: 11669 | E84: + | F84: 237 | G84: Uncharacterized conserved protein [Function unknown] | H84: 8 | I84: 0.03 | J84: 1.45
A85: OCT-B-Gearchaeaceae-r01_00762 | B85: Ga0081478_132675 | C85: 81008 | D85: 81334 | E85: + | F85: 327 | G85: N-acetylglucosaminyltransferase complex, subunit PIG-P, required for phosphatidylinositol biosynthesis [Function unknown] | H85: 11 | I85: 0.03 | J85: 1.45
A86: OCT-B-Gearchaeaceae-r01_00135 | B86: Ga0081478_138741 | C86: 2976 | D86: 4373 | E86: - | F86: 1398 | G86: sufB: FeS assembly protein SufB | H86: 47 | I86: 0.03 | J86: 1.44
A87: OCT-B-Gearchaeaceae-r01_00052 | B87: Ga0081478_144327 | C87: 5182 | D87: 5748 | E87: - | F87: 567 | G87: hypothetical protein | H87: 19 | I87: 0.03 | J87: 1.44
A88: OCT-B-Gearchaeaceae-r01_01799 | B88: Ga0081478_128594 | C88: 67689 | D88: 68435 | E88: + | F88: 747 | G88: DNA polymerase sliding clamp | H88: 25 | I88: 0.03 | J88: 1.44
A89: OCT-B-Gearchaeaceae-r01_01250 | B89: Ga0081478_138965 | C89: 35055 | D89: 35603 | E89: - | F89: 549 | G89: 50S ribosomal protein L5 | H89: 18 | I89: 0.03 | J89: 1.41
A90: OCT-B-Gearchaeaceae-r01_01269 | B90: Ga0081478_138965 | C90: 44316 | D90: 44624 | E90: - | F90: 309 | G90: 30S ribosomal protein S10 | H90: 10 | I90: 0.03 | J90: 1.39
A91: OCT-B-Gearchaeaceae-r01_01231 | B91: Ga0081478_138965 | C91: 25529 | D91: 25930 | E91: - | F91: 402 | G91: 30S ribosomal protein S11 | H91: 13 | I91: 0.03 | J91: 1.39
A92: OCT-B-Gearchaeaceae-r01_01595 | B92: Ga0081478_139448 | C92: 9224 | D92: 9874 | E92: + | F92: 651 | G92: Proteasome subunit beta | H92: 21 | I92: 0.03 | J92: 1.39
A93: OCT-B-Gearchaeaceae-r01_00664 | B93: Ga0081478_152136 | C93: 18484 | D93: 18984 | E93: - | F93: 501 | G93: urea_ABC_UrtA: urea ABC transporter, urea binding protein | H93: 16 | I93: 0.03 | J93: 1.37
A94: OCT-B-Gearchaeaceae-r01_01395 | B94: Ga0081478_155344 | C94: 7869 | D94: 8432 | E94: - | F94: 564 | G94: Predicted membrane protein [Function unknown] | H94: 18 | I94: 0.03 | J94: 1.37
A95: OCT-B-Gearchaeaceae-r01_01211 | B95: Ga0081478_138965 | C95: 9714 | D95: 9938 | E95: - | F95: 225 | G95: hypothetical protein | H95: 7 | I95: 0.03 | J95: 1.34
A96: OCT-B-Gearchaeaceae-r01_00952 | B96: Ga0081478_136443 | C96: 2773 | D96: 3288 | E96: + | F96: 516 | G96: hypothetical protein | H96: 16 | I96: 0.03 | J96: 1.33
A97: OCT-B-Gearchaeaceae-r01_00098 | B97: Ga0081478_137759 | C97: 16229 | D97: 18439 | E97: + | F97: 2211 | G97: Elongation factor 2 | H97: 68 | I97: 0.03 | J97: 1.32
A98: OCT-B-Gearchaeaceae-r01_01411 | B98: Ga0081478_155344 | C98: 22153 | D98: 22479 | E98: - | F98: 327 | G98: hypothetical protein | H98: 10 | I98: 0.03 | J98: 1.31
A99: OCT-B-Gearchaeaceae-r01_01514 | B99: Ga0081478_135198 | C99: 10192 | D99: 10491 | E99: + | F99: 300 | G99: repress_PhaQ: poly-beta-hydroxybutyrate-responsive repressor | H99: 9 | I99: 0.03 | J99: 1.29
A100: OCT-B-Gearchaeaceae-r01_00192 | B100: Ga0081478_138741 | C100: 42500 | D100: 42973 | E100: - | F100: 474 | G100: hypothetical protein | H100: 14 | I100: 0.03 | J100: 1.27
A101: OCT-B-Gearchaeaceae-r01_00120 | B101: Ga0081478_137759 | C101: 34826 | D101: 35098 | E101: - | F101: 273 | G101: Putative snRNP Sm-like protein | H101: 8 | I101: 0.03 | J101: 1.26
A102: OCT-B-Gearchaeaceae-r01_00267 | B102: Ga0081478_126078 | C102: 5572 | D102: 5880 | E102: + | F102: 309 | G102: 50S ribosomal protein L12 | H102: 9 | I102: 0.03 | J102: 1.25
A103: OCT-B-Gearchaeaceae-r01_00277 | B103: Ga0081478_126078 | C103: 17368 | D103: 17715 | E103: + | F103: 348 | G103: TIGR00049: iron-sulfur cluster assembly accessory protein | H103: 10 | I103: 0.03 | J103: 1.24
A104: OCT-B-Gearchaeaceae-r01_00951 | B104: Ga0081478_136443 | C104: 2269 | D104: 2721 | E104: + | F104: 453 | G104: hypothetical protein | H104: 13 | I104: 0.03 | J104: 1.23
A105: OCT-B-Gearchaeaceae-r01_01102 | B105: Ga0081478_147745 | C105: 9016 | D105: 9330 | E105: - | F105: 315 | G105: hypothetical protein | H105: 9 | I105: 0.03 | J105: 1.23
A106: OCT-B-Gearchaeaceae-r01_01647 | B106: Ga0081478_140498 | C106: 25204 | D106: 25698 | E106: - | F106: 495 | G106: Uncharacterized protein conserved in archaea [Function unknown] | H106: 14 | I106: 0.03 | J106: 1.22
A107: OCT-B-Gearchaeaceae-r01_01253 | B107: Ga0081478_138965 | C107: 36710 | D107: 37135 | E107: - | F107: 426 | G107: 50S ribosomal protein L14 | H107: 12 | I107: 0.03 | J107: 1.21
A108: OCT-B-Gearchaeaceae-r01_01256 | B108: Ga0081478_138965 | C108: 37754 | D108: 37966 | E108: - | F108: 213 | G108: 50S ribosomal protein L29 | H108: 6 | I108: 0.03 | J108: 1.21
A109: OCT-B-Gearchaeaceae-r01_00294 | B109: Ga0081478_138181 | C109: 10339 | D109: 10839 | E109: + | F109: 501 | G109: Glyceraldehyde dehydrogenase small chain | H109: 14 | I109: 0.03 | J109: 1.20
A110: OCT-B-Gearchaeaceae-r01_00548 | B110: Ga0081478_155113 | C110: 9652 | D110: 9795 | E110: + | F110: 144 | G110: hypothetical protein | H110: 4 | I110: 0.03 | J110: 1.19
A111: OCT-B-Gearchaeaceae-r01_00798 | B111: Ga0081478_139235 | C111: 15231 | D111: 15521 | E111: + | F111: 291 | G111: hypothetical protein | H111: 8 | I111: 0.03 | J111: 1.18
A112: OCT-B-Gearchaeaceae-r01_00792 | B112: Ga0081478_139235 | C112: 11505 | D112: 12197 | E112: + | F112: 693 | G112: Ribosome maturation protein SDO1 homolog | H112: 19 | I112: 0.03 | J112: 1.18
A113: OCT-B-Gearchaeaceae-r01_00099 | B113: Ga0081478_137759 | C113: 18523 | D113: 18596 | E113: + | F113: 74 | G113: tRNA-Gly(ccc) | H113: 2 | I113: 0.03 | J113: 1.16
A114: OCT-B-Gearchaeaceae-r01_00174 | B114: Ga0081478_138741 | C114: 31058 | D114: 31396 | E114: - | F114: 339 | G114: DNA-binding protein SSO0352 | H114: 9 | I114: 0.03 | J114: 1.14
A115: OCT-B-Gearchaeaceae-r01_00264 | B115: Ga0081478_126078 | C115: 3486 | D115: 3977 | E115: + | F115: 492 | G115: 50S ribosomal protein L11 | H115: 13 | I115: 0.03 | J115: 1.14
A116: OCT-B-Gearchaeaceae-r01_00149 | B116: Ga0081478_138741 | C116: 13947 | D116: 14022 | E116: - | F116: 76 | G116: tRNA-Val(cac) | H116: 2 | I116: 0.03 | J116: 1.13
A117: OCT-B-Gearchaeaceae-r01_01532 | B117: Ga0081478_135198 | C117: 25909 | D117: 25984 | E117: - | F117: 76 | G117: tRNA-Met(cat) | H117: 2 | I117: 0.03 | J117: 1.13
A118: OCT-B-Gearchaeaceae-r01_01258 | B118: Ga0081478_138965 | C118: 38590 | D118: 39051 | E118: - | F118: 462 | G118: 50S ribosomal protein L22 | H118: 12 | I118: 0.03 | J118: 1.12
A119: OCT-B-Gearchaeaceae-r01_00104 | B119: Ga0081478_137759 | C119: 20971 | D119: 21048 | E119: + | F119: 78 | G119: tRNA-Glu(ctc) | H119: 2 | I119: 0.03 | J119: 1.10
A120: OCT-B-Gearchaeaceae-r01_00816 | B120: Ga0081478_139235 | C120: 32226 | D120: 32654 | E120: + | F120: 429 | G120: Translation initiation factor 2 subunit beta | H120: 11 | I120: 0.03 | J120: 1.10
A121: OCT-B-Gearchaeaceae-r01_01412 | B121: Ga0081478_155344 | C121: 22538 | D121: 22852 | E121: + | F121: 315 | G121: hypothetical protein | H121: 8 | I121: 0.03 | J121: 1.09
A122: OCT-B-Gearchaeaceae-r01_00623 | B122: Ga0081478_129727 | C122: 10271 | D122: 10705 | E122: + | F122: 435 | G122: hypothetical protein | H122: 11 | I122: 0.03 | J122: 1.09
A123: OCT-B-Gearchaeaceae-r01_00121 | B123: Ga0081478_137759 | C123: 35242 | D123: 36198 | E123: + | F123: 957 | G123: DNA repair and recombination protein RadA | H123: 24 | I123: 0.03 | J123: 1.08
A124: OCT-B-Gearchaeaceae-r01_00550 | B124: Ga0081478_129276 | C124: 46 | D124: 207 | E124: + | F124: 162 | G124: hypothetical protein | H124: 4 | I124: 0.02 | J124: 1.06
A125: OCT-B-Gearchaeaceae-r01_00733 | B125: Ga0081478_132675 | C125: 54349 | D125: 54879 | E125: - | F125: 531 | G125: kpsF: sugar isomerase, KpsF/GutQ family | H125: 13 | I125: 0.02 | J125: 1.05
A126: OCT-B-Gearchaeaceae-r01_00265 | B126: Ga0081478_126078 | C126: 3979 | D126: 4641 | E126: + | F126: 663 | G126: 50S ribosomal protein L1 | H126: 16 | I126: 0.02 | J126: 1.04
A127: OCT-B-Gearchaeaceae-r01_00872 | B127: Ga0081478_139235 | C127: 73228 | D127: 74484 | E127: + | F127: 1257 | G127: devC: ABC exporter transmembrane subunit, DevC protein | H127: 30 | I127: 0.02 | J127: 1.03
A128: OCT-B-Gearchaeaceae-r01_00106 | B128: Ga0081478_137759 | C128: 21466 | D128: 21759 | E128: + | F128: 294 | G128: Signal recognition particle 19 kDa protein | H128: 7 | I128: 0.02 | J128: 1.02
A129: OCT-B-Gearchaeaceae-r01_01103 | B129: Ga0081478_147745 | C129: 9331 | D129: 10842 | E129: - | F129: 1512 | G129: D-glyceraldehyde dehydrogenase (NADP(+)) | H129: 36 | I129: 0.02 | J129: 1.02
A130: OCT-B-Gearchaeaceae-r01_01512 | B130: Ga0081478_135198 | C130: 7963 | D130: 8385 | E130: + | F130: 423 | G130: ER_PDI_fam: protein disulfide isomerase | H130: 10 | I130: 0.02 | J130: 1.02
A131: OCT-B-Gearchaeaceae-r01_00768 | B131: Ga0081478_132675 | C131: 87402 | D131: 88940 | E131: - | F131: 1539 | G131: plasmid_TraJ: plasmid transfer ATPase TraJ | H131: 36 | I131: 0.02 | J131: 1.01
A132: OCT-B-Gearchaeaceae-r01_01257 | B132: Ga0081478_138965 | C132: 37947 | D132: 38588 | E132: - | F132: 642 | G132: 30S ribosomal protein S3 | H132: 15 | I132: 0.02 | J132: 1.00
A133: OCT-B-Gearchaeaceae-r01_01692 | B133: Ga0081478_141905 | C133: 431 | D133: 859 | E133: - | F133: 429 | G133: DNA: TIGR02647 family protein | H133: 10 | I133: 0.02 | J133: 1.00
A134: OCT-B-Gearchaeaceae-r01_01227 | B134: Ga0081478_138965 | C134: 20564 | D134: 21724 | E134: - | F134: 1161 | G134: DNA primase DnaG | H134: 27 | I134: 0.02 | J134: 1.00
A135: OCT-B-Gearchaeaceae-r01_01261 | B135: Ga0081478_138965 | C135: 40212 | D135: 40469 | E135: - | F135: 258 | G135: 50S ribosomal protein L23 | H135: 6 | I135: 0.02 | J135: 1.00
A136: OCT-B-Gearchaeaceae-r01_01274 | B136: Ga0081478_138965 | C136: 47470 | D136: 47772 | E136: - | F136: 303 | G136: 50S ribosomal protein L30e | H136: 7 | I136: 0.02 | J136: 0.99
A137: OCT-B-Gearchaeaceae-r01_01010 | B137: Ga0081478_147636 | C137: 8219 | D137: 8836 | E137: + | F137: 618 | G137: hypothetical protein | H137: 14 | I137: 0.02 | J137: 0.97
A138: OCT-B-Gearchaeaceae-r01_01747 | B138: Ga0081478_128594 | C138: 24619 | D138: 24795 | E138: - | F138: 177 | G138: Ribosomal protein S30 [Translation, ribosomal structure and biogenesis] | H138: 4 | I138: 0.02 | J138: 0.97
A139: OCT-B-Gearchaeaceae-r01_01823 | B139: Ga0081478_128594 | C139: 83902 | D139: 84078 | E139: + | F139: 177 | G139: hypothetical protein | H139: 4 | I139: 0.02 | J139: 0.97
A140: OCT-B-Gearchaeaceae-r01_01805 | B140: Ga0081478_128594 | C140: 71648 | D140: 72445 | E140: + | F140: 798 | G140: Translation initiation factor 2 subunit alpha | H140: 18 | I140: 0.02 | J140: 0.97
A141: OCT-B-Gearchaeaceae-r01_01768 | B141: Ga0081478_128594 | C141: 43257 | D141: 43478 | E141: - | F141: 222 | G141: hypothetical protein | H141: 5 | I141: 0.02 | J141: 0.97
A142: OCT-B-Gearchaeaceae-r01_01318 | B142: Ga0081478_143287 | C142: 8247 | D142: 8915 | E142: - | F142: 669 | G142: PQQ_syn_pqqB: coenzyme PQQ biosynthesis protein B | H142: 15 | I142: 0.02 | J142: 0.96
A143: OCT-B-Gearchaeaceae-r01_00840 | B143: Ga0081478_139235 | C143: 50642 | D143: 51001 | E143: + | F143: 360 | G143: 50S ribosomal protein L18e | H143: 8 | I143: 0.02 | J143: 0.96
A144: OCT-B-Gearchaeaceae-r01_00748 | B144: Ga0081478_132675 | C144: 67929 | D144: 69104 | E144: + | F144: 1176 | G144: sucB: dihydrolipoyllysine-residue succinyltransferase, E2 component of oxoglutarate dehydrogenase (succinyl-transferring) complex | H144: 26 | I144: 0.02 | J144: 0.95
A145: OCT-B-Gearchaeaceae-r01_01429 | B145: Ga0081478_128610 | C145: 4050 | D145: 5498 | E145: - | F145: 1449 | G145: tRNA uridine(34) acetyltransferase | H145: 32 | I145: 0.02 | J145: 0.95
A146: OCT-B-Gearchaeaceae-r01_00102 | B146: Ga0081478_137759 | C146: 20270 | D146: 20722 | E146: + | F146: 453 | G146: TIGR00052: nudix-type nucleoside diphosphatase, YffH/AdpP family | H146: 10 | I146: 0.02 | J146: 0.95
A147: OCT-B-Gearchaeaceae-r01_01831 | B147: Ga0081478_128594 | C147: 90169 | D147: 91575 | E147: + | F147: 1407 | G147: TldD Predicted Zn-dependent proteases and their inactivated homologs [General function prediction only] | H147: 31 | I147: 0.02 | J147: 0.95
A148: OCT-B-Gearchaeaceae-r01_00694 | B148: Ga0081478_132675 | C148: 13502 | D148: 13819 | E148: - | F148: 318 | G148: Uncharacterized protein conserved in archaea [Function unknown] | H148: 7 | I148: 0.02 | J148: 0.95
A149: OCT-B-Gearchaeaceae-r01_01006 | B149: Ga0081478_147636 | C149: 2576 | D149: 3031 | E149: + | F149: 456 | G149: CoxB: cytochrome c oxidase, subunit II | H149: 10 | I149: 0.02 | J149: 0.94
A150: OCT-B-Gearchaeaceae-r01_01248 | B150: Ga0081478_138965 | C150: 34473 | D150: 34838 | E150: - | F150: 366 | G150: 30S ribosomal protein S8 | H150: 8 | I150: 0.02 | J150: 0.94
A151: OCT-B-Gearchaeaceae-r01_01802 | B151: Ga0081478_128594 | C151: 70682 | D151: 71185 | E151: + | F151: 504 | G151: Uncharacterized conserved protein [Function unknown] | H151: 11 | I151: 0.02 | J151: 0.94
A152: OCT-B-Gearchaeaceae-r01_00109 | B152: Ga0081478_137759 | C152: 22935 | D152: 23303 | E152: + | F152: 369 | G152: hypothetical protein | H152: 8 | I152: 0.02 | J152: 0.93
A153: OCT-B-Gearchaeaceae-r01_00392 | B153: Ga0081478_147540 | C153: 3403 | D153: 4470 | E153: - | F153: 1068 | G153: nickel_nikB: nickel ABC transporter, permease subunit NikB | H153: 23 | I153: 0.02 | J153: 0.93
A154: OCT-B-Gearchaeaceae-r01_00862 | B154: Ga0081478_139235 | C154: 66190 | D154: 66375 | E154: + | F154: 186 | G154: Ribosomal protein S27a | H154: 4 | I154: 0.02 | J154: 0.92
A155: OCT-B-Gearchaeaceae-r01_01275 | B155: Ga0081478_138965 | C155: 47759 | D155: 48967 | E155: - | F155: 1209 | G155: DNA-directed RNA polymerase subunit A'' | H155: 26 | I155: 0.02 | J155: 0.92
A156: OCT-B-Gearchaeaceae-r01_01470 | B156: Ga0081478_140538 | C156: 1149 | D156: 1568 | E156: + | F156: 420 | G156: RPL13 Ribosomal protein L13E [Translation, ribosomal structure and biogenesis] | H156: 9 | I156: 0.02 | J156: 0.92
A157: OCT-B-Gearchaeaceae-r01_00216 | B157: Ga0081478_141545 | C157: 3523 | D157: 4788 | E157: + | F157: 1266 | G157: rSAM_TYW1: wyosine biosynthesis protein TYW1 | H157: 27 | I157: 0.02 | J157: 0.92
A158: OCT-B-Gearchaeaceae-r01_00391 | B158: Ga0081478_147540 | C158: 1987 | D158: 3399 | E158: - | F158: 1413 | G158: nickel_nikC: nickel ABC transporter, permease subunit NikC | H158: 30 | I158: 0.02 | J158: 0.91
A159: OCT-B-Gearchaeaceae-r01_01320 | B159: Ga0081478_143287 | C159: 9983 | D159: 10312 | E159: - | F159: 330 | G159: cyt_nit_nrfC: cytochrome c nitrite reductase, Fe-S protein | H159: 7 | I159: 0.02 | J159: 0.91
A160: OCT-B-Gearchaeaceae-r01_01346 | B160: Ga0081478_143287 | C160: 31539 | D160: 33257 | E160: - | F160: 1719 | G160: Fumarate reductase (CoM/CoB) subunit A | H160: 36 | I160: 0.02 | J160: 0.90
A161: OCT-B-Gearchaeaceae-r01_01729 | B161: Ga0081478_128594 | C161: 7236 | D161: 7379 | E161: + | F161: 144 | G161: hypothetical protein | H161: 3 | I161: 0.02 | J161: 0.90
A162: OCT-B-Gearchaeaceae-r01_00869 | B162: Ga0081478_139235 | C162: 70631 | D162: 71209 | E162: + | F162: 579 | G162: 30S ribosomal protein S3Ae | H162: 12 | I162: 0.02 | J162: 0.89
A163: OCT-B-Gearchaeaceae-r01_01143 | B163: Ga0081478_147745 | C163: 36517 | D163: 36759 | E163: + | F163: 243 | G163: Uncharacterized Zn ribbon-containing protein [General function prediction only] | H163: 5 | I163: 0.02 | J163: 0.88
A164: OCT-B-Gearchaeaceae-r01_00941 | B164: Ga0081478_136464 | C164: 6306 | D164: 8057 | E164: - | F164: 1752 | G164: 2-oxoacid:ferredoxin oxidoreductase 2, subunit alpha | H164: 36 | I164: 0.02 | J164: 0.88
A165: OCT-B-Gearchaeaceae-r01_00685 | B165: Ga0081478_132675 | C165: 5861 | D165: 6592 | E165: + | F165: 732 | G165: GTP cyclohydrolase MptA | H165: 15 | I165: 0.02 | J165: 0.88
A166: OCT-B-Gearchaeaceae-r01_01726 | B166: Ga0081478_128594 | C166: 3449 | D166: 5212 | E166: + | F166: 1764 | G166: V-type ATP synthase alpha chain | H166: 36 | I166: 0.02 | J166: 0.88
A167: OCT-B-Gearchaeaceae-r01_01245 | B167: Ga0081478_138965 | C167: 33089 | D167: 33532 | E167: - | F167: 444 | G167: 50S ribosomal protein L19e | H167: 9 | I167: 0.02 | J167: 0.87
A168: OCT-B-Gearchaeaceae-r01_01469 | B168: Ga0081478_140538 | C168: 709 | D168: 1152 | E168: + | F168: 444 | G168: 50S ribosomal protein L15e | H168: 9 | I168: 0.02 | J168: 0.87
A169: OCT-B-Gearchaeaceae-r01_01267 | B169: Ga0081478_138965 | C169: 43571 | D169: 43966 | E169: - | F169: 396 | G169: SAM_DCase_Eco: S-adenosylmethionine decarboxylase proenzyme | H169: 8 | I169: 0.02 | J169: 0.87
A170: OCT-B-Gearchaeaceae-r01_01727 | B170: Ga0081478_128594 | C170: 5214 | D170: 6602 | E170: + | F170: 1389 | G170: V-type ATP synthase beta chain | H170: 28 | I170: 0.02 | J170: 0.87
A171: OCT-B-Gearchaeaceae-r01_00676 | B171: Ga0081478_132675 | C171: 608 | D171: 1561 | E171: - | F171: 954 | G171: Replication factor C small subunit | H171: 19 | I171: 0.02 | J171: 0.86
A172: OCT-B-Gearchaeaceae-r01_00175 | B172: Ga0081478_138741 | C172: 31401 | D172: 31856 | E172: - | F172: 456 | G172: 30S ribosomal protein S19e | H172: 9 | I172: 0.02 | J172: 0.85
A173: OCT-B-Gearchaeaceae-r01_01241 | B173: Ga0081478_138965 | C173: 30936 | D173: 31391 | E173: - | F173: 456 | G173: 50S ribosomal protein L15 | H173: 9 | I173: 0.02 | J173: 0.85
A174: OCT-B-Gearchaeaceae-r01_01321 | B174: Ga0081478_143287 | C174: 10312 | D174: 11601 | E174: - | F174: 1290 | G174: Digeranylgeranylglycerophospholipid reductase | H174: 25 | I174: 0.02 | J174: 0.83
A175: OCT-B-Gearchaeaceae-r01_01247 | B175: Ga0081478_138965 | C175: 33914 | D175: 34483 | E175: - | F175: 570 | G175: 50S ribosomal protein L6 | H175: 11 | I175: 0.02 | J175: 0.83
A176: OCT-B-Gearchaeaceae-r01_01441 | B176: Ga0081478_128610 | C176: 13752 | D176: 14693 | E176: - | F176: 942 | G176: hflC: HflC protein | H176: 18 | I176: 0.02 | J176: 0.82
A177: OCT-B-Gearchaeaceae-r01_01824 | B177: Ga0081478_128594 | C177: 84071 | D177: 84280 | E177: + | F177: 210 | G177: Domain of unknown function (DUF1922) | H177: 4 | I177: 0.02 | J177: 0.82
A178: OCT-B-Gearchaeaceae-r01_00948 | B178: Ga0081478_136443 | C178: 137 | D178: 616 | E178: + | F178: 480 | G178: hypothetical protein | H178: 9 | I178: 0.02 | J178: 0.81
A179: OCT-B-Gearchaeaceae-r01_01743 | B179: Ga0081478_128594 | C179: 19797 | D179: 20117 | E179: + | F179: 321 | G179: hypothetical protein | H179: 6 | I179: 0.02 | J179: 0.80
A180: OCT-B-Gearchaeaceae-r01_01833 | B180: Ga0081478_128594 | C180: 93097 | D180: 93525 | E180: - | F180: 429 | G180: hypothetical protein | H180: 8 | I180: 0.02 | J180: 0.80
A181: OCT-B-Gearchaeaceae-r01_00156 | B181: Ga0081478_138741 | C181: 20599 | D181: 20814 | E181: + | F181: 216 | G181: hypothetical protein | H181: 4 | I181: 0.02 | J181: 0.80
A182: OCT-B-Gearchaeaceae-r01_00091 | B182: Ga0081478_137759 | C182: 5897 | D182: 8572 | E182: - | F182: 2676 | G182: Phosphoenolpyruvate synthase | H182: 49 | I182: 0.02 | J182: 0.79
A183: OCT-B-Gearchaeaceae-r01_00839 | B183: Ga0081478_139235 | C183: 50050 | D183: 50652 | E183: + | F183: 603 | G183: DNA-directed RNA polymerase subunit D | H183: 11 | I183: 0.02 | J183: 0.78
A184: OCT-B-Gearchaeaceae-r01_00293 | B184: Ga0081478_138181 | C184: 9459 | D184: 10337 | E184: + | F184: 879 | G184: Glyceraldehyde dehydrogenase medium chain | H184: 16 | I184: 0.02 | J184: 0.78
A185: OCT-B-Gearchaeaceae-r01_01096 | B185: Ga0081478_147745 | C185: 2370 | D185: 3140 | E185: + | F185: 771 | G185: mft_etfB: electron transfer flavoprotein, mycofactocin-associated | H185: 14 | I185: 0.02 | J185: 0.78
A186: OCT-B-Gearchaeaceae-r01_01792 | B186: Ga0081478_128594 | C186: 64135 | D186: 64632 | E186: - | F186: 498 | G186: 50S ribosomal protein L10e | H186: 9 | I186: 0.02 | J186: 0.78
A187: OCT-B-Gearchaeaceae-r01_01832 | B187: Ga0081478_128594 | C187: 91572 | D187: 92900 | E187: + | F187: 1329 | G187: TldD Predicted Zn-dependent proteases and their inactivated homologs [General function prediction only] | H187: 24 | I187: 0.02 | J187: 0.78
A188: OCT-B-Gearchaeaceae-r01_00791 | B188: Ga0081478_139235 | C188: 10747 | D188: 11466 | E188: + | F188: 720 | G188: Proteasome subunit alpha | H188: 13 | I188: 0.02 | J188: 0.78
A189: OCT-B-Gearchaeaceae-r01_01574 | B189: Ga0081478_135198 | C189: 64774 | D189: 65334 | E189: + | F189: 561 | G189: TATA-box-binding protein | H189: 10 | I189: 0.02 | J189: 0.77
A190: OCT-B-Gearchaeaceae-r01_00517 | B190: Ga0081478_134972 | C190: 2500 | D190: 2724 | E190: - | F190: 225 | G190: Post-segregation antitoxin (ccd killing mechanism protein) encoded by the F plasmid [General function prediction only] | H190: 4 | I190: 0.02 | J190: 0.76
A191: OCT-B-Gearchaeaceae-r01_01277 | B191: Ga0081478_138965 | C191: 51548 | D191: 51829 | E191: - | F191: 282 | G191: DNA-directed RNA polymerase subunit B' | H191: 5 | I191: 0.02 | J191: 0.76
A192: OCT-B-Gearchaeaceae-r01_00939 | B192: Ga0081478_136464 | C192: 5043 | D192: 5441 | E192: + | F192: 399 | G192: hypothetical protein | H192: 7 | I192: 0.02 | J192: 0.75
A193: OCT-B-Gearchaeaceae-r01_01594 | B193: Ga0081478_139448 | C193: 8388 | D193: 9128 | E193: + | F193: 741 | G193: hypothetical protein | H193: 13 | I193: 0.02 | J193: 0.75
A194: OCT-B-Gearchaeaceae-r01_00882 | B194: Ga0081478_146073 | C194: 758 | D194: 1501 | E194: - | F194: 744 | G194: hypothetical protein | H194: 13 | I194: 0.02 | J194: 0.75
A195: OCT-B-Gearchaeaceae-r01_00119 | B195: Ga0081478_137759 | C195: 34410 | D195: 34811 | E195: + | F195: 402 | G195: hypothetical protein | H195: 7 | I195: 0.02 | J195: 0.75
A196: OCT-B-Gearchaeaceae-r01_00172 | B196: Ga0081478_138741 | C196: 30553 | D196: 30897 | E196: - | F196: 345 | G196: RPL31A Ribosomal protein L31E [Translation, ribosomal structure and biogenesis] | H196: 6 | I196: 0.02 | J196: 0.75
A197: OCT-B-Gearchaeaceae-r01_01239 | B197: Ga0081478_138965 | C197: 29070 | D197: 29531 | E197: - | F197: 462 | G197: Predicted membrane protein [Function unknown] | H197: 8 | I197: 0.02 | J197: 0.74
A198: OCT-B-Gearchaeaceae-r01_00940 | B198: Ga0081478_136464 | C198: 5438 | D198: 6304 | E198: - | F198: 867 | G198: 2-oxoacid:ferredoxin oxidoreductase 2, subunit beta | H198: 15 | I198: 0.02 | J198: 0.74
A199: OCT-B-Gearchaeaceae-r01_00100 | B199: Ga0081478_137759 | C199: 19000 | D199: 19521 | E199: + | F199: 522 | G199: mutt: mutator mutT protein | H199: 9 | I199: 0.02 | J199: 0.74
A200: OCT-B-Gearchaeaceae-r01_00590 | B200: Ga0081478_151074 | C200: 554 | D200: 904 | E200: - | F200: 351 | G200: Uncharacterized protein conserved in archaea [Function unknown] | H200: 6 | I200: 0.02 | J200: 0.73
... 1650 more rows

Sheet OCT-B-HRBIN17-r01
A1: Gene_id | B1: Contig | C1: Start | D1: End | E1: Strand | F1: Length | G1: transcript_id | H1: Raw_counts | I1: Reads_base | J1: TPM
A2: OCT-B-HRBIN17-r01_00648 | B2: Ga0081478_143693 | C2: 8897 | D2: 9339 | E2: - | F2: 443 | G2: RNaseP_bact_a | H2: 3254 | I2: 7.35 | J2: 315.69
A3: OCT-B-HRBIN17-r01_01838 | B3: Ga0081478_126715 | C3: 4135 | D3: 4475 | E3: + | F3: 341 | G3: transfer-messenger RNA, SsrA | H3: 1477 | I3: 4.33 | J3: 186.16
A4: OCT-B-HRBIN17-r01_01508 | B4: Ga0081478_137392 | C4: 22719 | D4: 22984 | E4: + | F4: 266 | G4: Bacteria_large_SRP | H4: 567 | I4: 2.13 | J4: 91.61
A5: OCT-B-HRBIN17-r01_00647 | B5: Ga0081478_143693 | C5: 7681 | D5: 8988 | E5: - | F5: 1308 | G5: Citrate synthase 2 | H5: 1073 | I5: 0.82 | J5: 35.26
A6: OCT-B-HRBIN17-r01_02043 | B6: Ga0081478_138887 | C6: 14341 | D6: 14502 | E6: - | F6: 162 | G6: Flp Flp pilus assembly protein, pilin Flp [Intracellular trafficking and secretion] | H6: 23 | I6: 0.14 | J6: 6.10
A7: OCT-B-HRBIN17-r01_02744 | B7: Ga0081478_159537 | C7: 2396 | D7: 2610 | E7: - | F7: 215 | G7: Cobalamin | H7: 26 | I7: 0.12 | J7: 5.20
A8: OCT-B-HRBIN17-r01_00549 | B8: Ga0081478_128374 | C8: 479 | D8: 709 | E8: + | F8: 231 | G8: hypothetical protein | H8: 20 | I8: 0.09 | J8: 3.72
A9: OCT-B-HRBIN17-r01_02395 | B9: Ga0081478_165207 | C9: 9381 | D9: 9455 | E9: + | F9: 75 | G9: tRNA-Phe(gaa) | H9: 6 | I9: 0.08 | J9: 3.44
A10: OCT-B-HRBIN17-r01_01464 | B10: Ga0081478_141412 | C10: 544 | D10: 747 | E10: - | F10: 204 | G10: hypothetical protein | H10: 16 | I10: 0.08 | J10: 3.37
A11: OCT-B-HRBIN17-r01_02044 | B11: Ga0081478_138887 | C11: 14607 | D11: 14768 | E11: - | F11: 162 | G11: Flp Flp pilus assembly protein, pilin Flp [Intracellular trafficking and secretion] | H11: 10 | I11: 0.06 | J11: 2.65
A12: OCT-B-HRBIN17-r01_02396 | B12: Ga0081478_165207 | C12: 9508 | D12: 9593 | E12: + | F12: 86 | G12: tRNA-Ser(tga) | H12: 5 | I12: 0.06 | J12: 2.50
A13: OCT-B-HRBIN17-r01_00858 | B13: Ga0081478_144106 | C13: 10438 | D13: 10620 | E13: + | F13: 183 | G13: hypothetical protein | H13: 8 | I13: 0.04 | J13: 1.88
A14: OCT-B-HRBIN17-r01_01774 | B14: Ga0081478_145701 | C14: 3075 | D14: 3221 | E14: + | F14: 147 | G14: hypothetical protein | H14: 5 | I14: 0.03 | J14: 1.46
A15: OCT-B-HRBIN17-r01_01420 | B15: Ga0081478_133684 | C15: 2713 | D15: 2997 | E15: + | F15: 285 | G15: hypothetical protein | H15: 9 | I15: 0.03 | J15: 1.36
A16: OCT-B-HRBIN17-r01_00235 | B16: Ga0081478_131282 | C16: 1009 | D16: 1644 | E16: - | F16: 636 | G16: hemH: ferrochelatase | H16: 20 | I16: 0.03 | J16: 1.35
A17: OCT-B-HRBIN17-r01_02628 | B17: Ga0081478_131104 | C17: 1590 | D17: 1760 | E17: - | F17: 171 | G17: hypothetical protein | H17: 5 | I17: 0.03 | J17: 1.26
A18: OCT-B-HRBIN17-r01_02003 | B18: Ga0081478_137676 | C18: 726 | D18: 1274 | E18: + | F18: 549 | G18: soxL2: Rieske iron-sulfur protein SoxL2 | H18: 16 | I18: 0.03 | J18: 1.25
A19: OCT-B-HRBIN17-r01_02386 | B19: Ga0081478_165207 | C19: 304 | D19: 1092 | E19: - | F19: 789 | G19: typeII_sec_gspG: type II secretion system protein G | H19: 22 | I19: 0.03 | J19: 1.20
A20: OCT-B-HRBIN17-r01_00297 | B20: Ga0081478_137724 | C20: 22824 | D20: 23048 | E20: - | F20: 225 | G20: Probable cold shock protein A | H20: 6 | I20: 0.03 | J20: 1.15
A21: OCT-B-HRBIN17-r01_00603 | B21: Ga0081478_137577 | C21: 5997 | D21: 6071 | E21: - | F21: 75 | G21: tRNA-Ala(ggc) | H21: 2 | I21: 0.03 | J21: 1.15
A22: OCT-B-HRBIN17-r01_02064 | B22: Ga0081478_137271 | C22: 18856 | D22: 19317 | E22: + | F22: 462 | G22: Spore protein SP21 | H22: 12 | I22: 0.03 | J22: 1.12
A23: OCT-B-HRBIN17-r01_00385 | B23: Ga0081478_135538 | C23: 3129 | D23: 3884 | E23: + | F23: 756 | G23: Polysaccharide lyase family 4, domain II | H23: 18 | I23: 0.02 | J23: 1.02
A24: OCT-B-HRBIN17-r01_01777 | B24: Ga0081478_145701 | C24: 5124 | D24: 5378 | E24: + | F24: 255 | G24: hypothetical protein | H24: 6 | I24: 0.02 | J24: 1.01
A25: OCT-B-HRBIN17-r01_02731 | B25: Ga0081478_134565 | C25: 44072 | D25: 44284 | E25: - | F25: 213 | G25: typeII_sec_gspG: type II secretion system protein G | H25: 5 | I25: 0.02 | J25: 1.01
A26: OCT-B-HRBIN17-r01_01764 | B26: Ga0081478_144828 | C26: 168 | D26: 10655 | E26: - | F26: 10488 | G26: lipo_with_rSAM: putative lipoprotein, rSAM/lipoprotein system | H26: 245 | I26: 0.02 | J26: 1.00
A27: OCT-B-HRBIN17-r01_02730 | B27: Ga0081478_134565 | C27: 43424 | D27: 43861 | E27: - | F27: 438 | G27: hypothetical protein | H27: 10 | I27: 0.02 | J27: 0.98
A28: OCT-B-HRBIN17-r01_01421 | B28: Ga0081478_133684 | C28: 3088 | D28: 3579 | E28: + | F28: 492 | G28: hypothetical protein | H28: 11 | I28: 0.02 | J28: 0.96
A29: OCT-B-HRBIN17-r01_00236 | B29: Ga0081478_131282 | C29: 1774 | D29: 2550 | E29: - | F29: 777 | G29: typeII_sec_gspG: type II secretion system protein G | H29: 17 | I29: 0.02 | J29: 0.94
A30: OCT-B-HRBIN17-r01_00468 | B30: Ga0081478_140177 | C30: 11584 | D30: 12426 | E30: + | F30: 843 | G30: typeII_sec_gspG: type II secretion system protein G | H30: 18 | I30: 0.02 | J30: 0.92
A31: OCT-B-HRBIN17-r01_02090 | B31: Ga0081478_141675 | C31: 1746 | D31: 2039 | E31: - | F31: 294 | G31: hypothetical protein | H31: 6 | I31: 0.02 | J31: 0.88
A32: OCT-B-HRBIN17-r01_02004 | B32: Ga0081478_137676 | C32: 1303 | D32: 2139 | E32: + | F32: 837 | G32: Menaquinol-cytochrome c reductase cytochrome b subunit | H32: 17 | I32: 0.02 | J32: 0.87
A33: OCT-B-HRBIN17-r01_02065 | B33: Ga0081478_137271 | C33: 19425 | D33: 19868 | E33: + | F33: 444 | G33: Spore protein SP21 | H33: 9 | I33: 0.02 | J33: 0.87
A34: OCT-B-HRBIN17-r01_01024 | B34: Ga0081478_140544 | C34: 8917 | D34: 9168 | E34: - | F34: 252 | G34: KH domain | H34: 5 | I34: 0.02 | J34: 0.85
A35: OCT-B-HRBIN17-r01_00857 | B35: Ga0081478_144106 | C35: 9465 | D35: 10355 | E35: + | F35: 891 | G35: typeII_sec_gspG: type II secretion system protein G | H35: 17 | I35: 0.02 | J35: 0.82
A36: OCT-B-HRBIN17-r01_02015 | B36: Ga0081478_162538 | C36: 1713 | D36: 2033 | E36: - | F36: 321 | G36: hypothetical protein | H36: 6 | I36: 0.02 | J36: 0.80
A37: OCT-B-HRBIN17-r01_00854 | B37: Ga0081478_144106 | C37: 6544 | D37: 6705 | E37: - | F37: 162 | G37: Sulfur carrier protein TtuB | H37: 3 | I37: 0.02 | J37: 0.80
A38: OCT-B-HRBIN17-r01_02005 | B38: Ga0081478_137676 | C38: 2207 | D38: 3124 | E38: + | F38: 918 | G38: cytb6/f_IV: cytb6/f complex subunit IV | H38: 17 | I38: 0.02 | J38: 0.80
A39: OCT-B-HRBIN17-r01_02250 | B39: Ga0081478_133454 | C39: 798 | D39: 1127 | E39: - | F39: 330 | G39: CoxD_Bacillus: cytochrome c oxidase, subunit IVB | H39: 6 | I39: 0.02 | J39: 0.78
A40: OCT-B-HRBIN17-r01_00617 | B40: Ga0081478_137577 | C40: 17947 | D40: 18390 | E40: + | F40: 444 | G40: S6: ribosomal protein bS6 | H40: 8 | I40: 0.02 | J40: 0.77
A41: OCT-B-HRBIN17-r01_01656 | B41: Ga0081478_147521 | C41: 2199 | D41: 2483 | E41: + | F41: 285 | G41: DNA-binding protein HU 1 | H41: 5 | I41: 0.02 | J41: 0.75
A42: OCT-B-HRBIN17-r01_01512 | B42: Ga0081478_137392 | C42: 26733 | D42: 27599 | E42: - | F42: 867 | G42: typeII_sec_gspG: type II secretion system protein G | H42: 15 | I42: 0.02 | J42: 0.74
A43: OCT-B-HRBIN17-r01_02774 | B43: Ga0081478_140440 | C43: 642 | D43: 1292 | E43: - | F43: 651 | G43: Acetylxylan esterase | H43: 11 | I43: 0.02 | J43: 0.73
A44: OCT-B-HRBIN17-r01_02773 | B44: Ga0081478_140440 | C44: 213 | D44: 629 | E44: + | F44: 417 | G44: hypothetical protein | H44: 7 | I44: 0.02 | J44: 0.72
A45: OCT-B-HRBIN17-r01_01137 | B45: Ga0081478_137263 | C45: 13187 | D45: 13606 | E45: + | F45: 420 | G45: hypothetical protein | H45: 7 | I45: 0.02 | J45: 0.72
A46: OCT-B-HRBIN17-r01_02249 | B46: Ga0081478_133454 | C46: 552 | D46: 791 | E46: - | F46: 240 | G46: hypothetical protein | H46: 4 | I46: 0.02 | J46: 0.72
A47: OCT-B-HRBIN17-r01_02006 | B47: Ga0081478_137676 | C47: 3142 | D47: 5928 | E47: + | F47: 2787 | G47: ccoO: cytochrome c oxidase, cbb3-type, subunit II | H47: 45 | I47: 0.02 | J47: 0.69
A48: OCT-B-HRBIN17-r01_00007 | B48: Ga0081478_137556 | C48: 6106 | D48: 6357 | E48: + | F48: 252 | G48: selenium_YedF: selenium metabolism protein YedF | H48: 4 | I48: 0.02 | J48: 0.68
A49: OCT-B-HRBIN17-r01_02627 | B49: Ga0081478_131104 | C49: 1194 | D49: 1580 | E49: - | F49: 387 | G49: hypothetical protein | H49: 6 | I49: 0.02 | J49: 0.67
A50: OCT-B-HRBIN17-r01_00738 | B50: Ga0081478_130266 | C50: 8449 | D50: 8709 | E50: + | F50: 261 | G50: 50S ribosomal protein L27 | H50: 4 | I50: 0.02 | J50: 0.66
A51: OCT-B-HRBIN17-r01_02007 | B51: Ga0081478_137676 | C51: 5891 | D51: 6547 | E51: - | F51: 657 | G51: repress_PhaQ: poly-beta-hydroxybutyrate-responsive repressor | H51: 10 | I51: 0.02 | J51: 0.65
A52: OCT-B-HRBIN17-r01_00079 | B52: Ga0081478_131785 | C52: 21530 | D52: 21931 | E52: + | F52: 402 | G52: 30S ribosomal protein S11 | H52: 6 | I52: 0.01 | J52: 0.64
A53: OCT-B-HRBIN17-r01_01438 | B53: Ga0081478_132422 | C53: 5627 | D53: 5962 | E53: - | F53: 336 | G53: hypothetical protein | H53: 5 | I53: 0.01 | J53: 0.64
A54: OCT-B-HRBIN17-r01_01290 | B54: Ga0081478_140163 | C54: 2224 | D54: 2499 | E54: + | F54: 276 | G54: hypothetical protein | H54: 4 | I54: 0.01 | J54: 0.62
A55: OCT-B-HRBIN17-r01_01527 | B55: Ga0081478_148085 | C55: 153 | D55: 428 | E55: + | F55: 276 | G55: hypothetical protein | H55: 4 | I55: 0.01 | J55: 0.62
A56: OCT-B-HRBIN17-r01_01494 | B56: Ga0081478_137392 | C56: 997 | D56: 1695 | E56: + | F56: 699 | G56: 50S ribosomal protein L1 | H56: 10 | I56: 0.01 | J56: 0.61
A57: OCT-B-HRBIN17-r01_01200 | B57: Ga0081478_125667 | C57: 22423 | D57: 22842 | E57: + | F57: 420 | G57: Alkaline phosphatase synthesis transcriptional regulatory protein PhoP | H57: 6 | I57: 0.01 | J57: 0.61
A58: OCT-B-HRBIN17-r01_00047 | B58: Ga0081478_131785 | C58: 2196 | D58: 2624 | E58: + | F58: 429 | G58: 30S ribosomal protein S12 | H58: 6 | I58: 0.01 | J58: 0.60
A59: OCT-B-HRBIN17-r01_00092 | B59: Ga0081478_158810 | C59: 2181 | D59: 2687 | E59: - | F59: 507 | G59: hypothetical protein | H59: 7 | I59: 0.01 | J59: 0.59
A60: OCT-B-HRBIN17-r01_01495 | B60: Ga0081478_137392 | C60: 1744 | D60: 2691 | E60: + | F60: 948 | G60: L12: ribosomal protein bL12 | H60: 13 | I60: 0.01 | J60: 0.59
A61: OCT-B-HRBIN17-r01_02494 | B61: Ga0081478_132381 | C61: 720 | D61: 792 | E61: + | F61: 73 | G61: tRNA-Val(gac) | H61: 1 | I61: 0.01 | J61: 0.59
A62: OCT-B-HRBIN17-r01_01273 | B62: Ga0081478_153929 | C62: 1129 | D62: 1422 | E62: - | F62: 294 | G62: Ferredoxin | H62: 4 | I62: 0.01 | J62: 0.58
A63: OCT-B-HRBIN17-r01_00125 | B63: Ga0081478_141579 | C63: 8620 | D63: 8769 | E63: + | F63: 150 | G63: 50S ribosomal protein L34 | H63: 2 | I63: 0.01 | J63: 0.57
A64: OCT-B-HRBIN17-r01_01123 | B64: Ga0081478_147456 | C64: 13190 | D64: 13264 | E64: - | F64: 75 | G64: tRNA-Gly(ccc) | H64: 1 | I64: 0.01 | J64: 0.57
A65: OCT-B-HRBIN17-r01_01129 | B65: Ga0081478_137263 | C65: 3640 | D65: 3864 | E65: - | F65: 225 | G65: hypothetical protein | H65: 3 | I65: 0.01 | J65: 0.57
A66: OCT-B-HRBIN17-r01_01293 | B66: Ga0081478_141882 | C66: 13 | D66: 687 | E66: + | F66: 675 | G66: hypothetical protein | H66: 9 | I66: 0.01 | J66: 0.57
A67: OCT-B-HRBIN17-r01_02341 | B67: Ga0081478_162279 | C67: 2913 | D67: 2987 | E67: - | F67: 75 | G67: tRNA-Cys(gca) | H67: 1 | I67: 0.01 | J67: 0.57
A68: OCT-B-HRBIN17-r01_02591 | B68: Ga0081478_146185 | C68: 3847 | D68: 3921 | E68: + | F68: 75 | G68: tRNA-Ala(cgc) | H68: 1 | I68: 0.01 | J68: 0.57
A69: OCT-B-HRBIN17-r01_00919 | B69: Ga0081478_124463 | C69: 3079 | D69: 3154 | E69: + | F69: 76 | G69: tRNA-Asn(gtt) | H69: 1 | I69: 0.01 | J69: 0.57
A70: OCT-B-HRBIN17-r01_01687 | B70: Ga0081478_138071 | C70: 495 | D70: 570 | E70: - | F70: 76 | G70: tRNA-Val(tac) | H70: 1 | I70: 0.01 | J70: 0.57
A71: OCT-B-HRBIN17-r01_02142 | B71: Ga0081478_144261 | C71: 2170 | D71: 2245 | E71: - | F71: 76 | G71: tRNA-Gln(ttg) | H71: 1 | I71: 0.01 | J71: 0.57
A72: OCT-B-HRBIN17-r01_02593 | B72: Ga0081478_146185 | C72: 4222 | D72: 4297 | E72: - | F72: 76 | G72: tRNA-His(gtg) | H72: 1 | I72: 0.01 | J72: 0.57
A73: OCT-B-HRBIN17-r01_00071 | B73: Ga0081478_131785 | C73: 17212 | D73: 17442 | E73: + | F73: 231 | G73: rpmD_bact: ribosomal protein uL30 | H73: 3 | I73: 0.01 | J73: 0.56
A74: OCT-B-HRBIN17-r01_01757 | B74: Ga0081478_133247 | C74: 2184 | D74: 2414 | E74: + | F74: 231 | G74: Predicted periplasmic or secreted lipoprotein [Cell motility and secretion] | H74: 3 | I74: 0.01 | J74: 0.56
A75: OCT-B-HRBIN17-r01_01980 | B75: Ga0081478_131346 | C75: 5302 | D75: 5688 | E75: - | F75: 387 | G75: NAD-specific glutamate dehydrogenase | H75: 5 | I75: 0.01 | J75: 0.56
A76: OCT-B-HRBIN17-r01_00035 | B76: Ga0081478_136667 | C76: 328 | D76: 405 | E76: + | F76: 78 | G76: tRNA-Arg(tcg) | H76: 1 | I76: 0.01 | J76: 0.55
A77: OCT-B-HRBIN17-r01_01092 | B77: Ga0081478_135298 | C77: 1213 | D77: 1290 | E77: - | F77: 78 | G77: tRNA-Pro(ggg) | H77: 1 | I77: 0.01 | J77: 0.55
A78: OCT-B-HRBIN17-r01_01776 | B78: Ga0081478_145701 | C78: 3981 | D78: 4448 | E78: + | F78: 468 | G78: hypothetical protein | H78: 6 | I78: 0.01 | J78: 0.55
A79: OCT-B-HRBIN17-r01_02394 | B79: Ga0081478_165207 | C79: 9294 | D79: 9371 | E79: + | F79: 78 | G79: tRNA-Asp(gtc) | H79: 1 | I79: 0.01 | J79: 0.55
A80: OCT-B-HRBIN17-r01_02592 | B80: Ga0081478_146185 | C80: 4121 | D80: 4198 | E80: - | F80: 78 | G80: tRNA-Arg(tct) | H80: 1 | I80: 0.01 | J80: 0.55
A81: OCT-B-HRBIN17-r01_00081 | B81: Ga0081478_131785 | C81: 22511 | D81: 22747 | E81: - | F81: 237 | G81: hypothetical protein | H81: 3 | I81: 0.01 | J81: 0.54
A82: OCT-B-HRBIN17-r01_01220 | B82: Ga0081478_139502 | C82: 4808 | D82: 5044 | E82: - | F82: 237 | G82: Uncharacterized protein conserved in archaea [Function unknown] | H82: 3 | I82: 0.01 | J82: 0.54
A83: OCT-B-HRBIN17-r01_01567 | B83: Ga0081478_139343 | C83: 17511 | D83: 17589 | E83: - | F83: 79 | G83: tRNA-Val(cac) | H83: 1 | I83: 0.01 | J83: 0.54
A84: OCT-B-HRBIN17-r01_01778 | B84: Ga0081478_145701 | C84: 6398 | D84: 7444 | E84: + | F84: 1047 | G84: hypothetical protein | H84: 13 | I84: 0.01 | J84: 0.53
A85: OCT-B-HRBIN17-r01_01081 | B85: Ga0081478_145250 | C85: 9044 | D85: 9532 | E85: - | F85: 489 | G85: GcvR Glycine cleavage system regulatory protein [Amino acid transport and metabolism] | H85: 6 | I85: 0.01 | J85: 0.53
A86: OCT-B-HRBIN17-r01_01401 | B86: Ga0081478_135701 | C86: 8691 | D86: 10001 | E86: + | F86: 1311 | G86: typeII_sec_gspL: type II secretion system protein L | H86: 16 | I86: 0.01 | J86: 0.52
A87: OCT-B-HRBIN17-r01_00560 | B87: Ga0081478_128374 | C87: 11185 | D87: 11436 | E87: - | F87: 252 | G87: Acyl carrier protein | H87: 3 | I87: 0.01 | J87: 0.51
A88: OCT-B-HRBIN17-r01_01040 | B88: Ga0081478_149799 | C88: 442 | D88: 2127 | E88: + | F88: 1686 | G88: Putative porin | H88: 20 | I88: 0.01 | J88: 0.51
A89: OCT-B-HRBIN17-r01_02470 | B89: Ga0081478_134455 | C89: 6676 | D89: 7350 | E89: - | F89: 675 | G89: hypothetical protein | H89: 8 | I89: 0.01 | J89: 0.51
A90: OCT-B-HRBIN17-r01_01493 | B90: Ga0081478_137392 | C90: 509 | D90: 934 | E90: + | F90: 426 | G90: 50S ribosomal protein L11 | H90: 5 | I90: 0.01 | J90: 0.50
A91: OCT-B-HRBIN17-r01_01280 | B91: Ga0081478_153929 | C91: 7064 | D91: 7321 | E91: - | F91: 258 | G91: hypothetical protein | H91: 3 | I91: 0.01 | J91: 0.50
A92: OCT-B-HRBIN17-r01_02020 | B92: Ga0081478_162538 | C92: 4748 | D92: 5962 | E92: - | F92: 1215 | G92: Argininosuccinate synthase | H92: 14 | I92: 0.01 | J92: 0.50
A93: OCT-B-HRBIN17-r01_02385 | B93: Ga0081478_133639 | C93: 7675 | D93: 7935 | E93: - | F93: 261 | G93: hypothetical protein | H93: 3 | I93: 0.01 | J93: 0.49
A94: OCT-B-HRBIN17-r01_01365 | B94: Ga0081478_148463 | C94: 2346 | D94: 2609 | E94: + | F94: 264 | G94: hypothetical protein | H94: 3 | I94: 0.01 | J94: 0.49
A95: OCT-B-HRBIN17-r01_00261 | B95: Ga0081478_149113 | C95: 1728 | D95: 2174 | E95: + | F95: 447 | G95: ssb: single-stranded DNA-binding protein | H95: 5 | I95: 0.01 | J95: 0.48
A96: OCT-B-HRBIN17-r01_01224 | B96: Ga0081478_139502 | C96: 6853 | D96: 9180 | E96: - | F96: 2328 | G96: Carbon monoxide dehydrogenase large chain | H96: 26 | I96: 0.01 | J96: 0.48
A97: OCT-B-HRBIN17-r01_02375 | B97: Ga0081478_142711 | C97: 2021 | D97: 2290 | E97: + | F97: 270 | G97: hypothetical protein | H97: 3 | I97: 0.01 | J97: 0.48
A98: OCT-B-HRBIN17-r01_00062 | B98: Ga0081478_131785 | C98: 13014 | D98: 13376 | E98: + | F98: 363 | G98: 50S ribosomal protein L14 | H98: 4 | I98: 0.01 | J98: 0.47
A99: OCT-B-HRBIN17-r01_02047 | B99: Ga0081478_140084 | C99: 2364 | D99: 2636 | E99: - | F99: 273 | G99: hypothetical protein | H99: 3 | I99: 0.01 | J99: 0.47
A100: OCT-B-HRBIN17-r01_00220 | B100: Ga0081478_142634 | C100: 9752 | D100: 10123 | E100: - | F100: 372 | G100: Uncharacterized conserved protein [Function unknown] | H100: 4 | I100: 0.01 | J100: 0.46
A101: OCT-B-HRBIN17-r01_00915 | B101: Ga0081478_135750 | C101: 13259 | D101: 13351 | E101: - | F101: 93 | G101: tRNA-Ser(gga) | H101: 1 | I101: 0.01 | J101: 0.46
A102: OCT-B-HRBIN17-r01_01034 | B102: Ga0081478_140544 | C102: 18871 | D102: 19242 | E102: + | F102: 372 | G102: Spore protein SP21 | H102: 4 | I102: 0.01 | J102: 0.46
A103: OCT-B-HRBIN17-r01_01295 | B103: Ga0081478_141882 | C103: 2013 | D103: 2105 | E103: - | F103: 93 | G103: tRNA-Pro(ggg) | H103: 1 | I103: 0.01 | J103: 0.46
A104: OCT-B-HRBIN17-r01_01860 | B104: Ga0081478_139196 | C104: 3330 | D104: 3423 | E104: - | F104: 94 | G104: tRNA-seC(tca) | H104: 1 | I104: 0.01 | J104: 0.46
A105: OCT-B-HRBIN17-r01_02091 | B105: Ga0081478_141675 | C105: 1988 | D105: 2269 | E105: - | F105: 282 | G105: hypothetical protein | H105: 3 | I105: 0.01 | J105: 0.46
A106: OCT-B-HRBIN17-r01_00387 | B106: Ga0081478_135538 | C106: 4825 | D106: 6621 | E106: + | F106: 1797 | G106: Alternative cytochrome c oxidase subunit 1 | H106: 19 | I106: 0.01 | J106: 0.45
A107: OCT-B-HRBIN17-r01_00645 | B107: Ga0081478_143693 | C107: 6610 | D107: 6801 | E107: + | F107: 192 | G107: hypothetical protein | H107: 2 | I107: 0.01 | J107: 0.45
A108: OCT-B-HRBIN17-r01_00085 | B108: Ga0081478_131785 | C108: 24951 | D108: 25433 | E108: + | F108: 483 | G108: 50S ribosomal protein L13 | H108: 5 | I108: 0.01 | J108: 0.44
A109: OCT-B-HRBIN17-r01_00618 | B109: Ga0081478_137577 | C109: 18422 | D109: 18904 | E109: + | F109: 483 | G109: ssb: single-stranded DNA-binding protein | H109: 5 | I109: 0.01 | J109: 0.44
A110: OCT-B-HRBIN17-r01_01363 | B110: Ga0081478_148463 | C110: 604 | D110: 1473 | E110: - | F110: 870 | G110: FlgA Flagellar basal body P-ring biosynthesis protein [Cell motility and secretion / Posttranslational modification, protein tu | H110: 9 | I110: 0.01 | J110: 0.44
A111: OCT-B-HRBIN17-r01_02107 | B111: Ga0081478_137176 | C111: 6634 | D111: 7020 | E111: - | F111: 387 | G111: RhaT: RhaT L-rhamnose-proton symporter family protein | H111: 4 | I111: 0.01 | J111: 0.44
A112: OCT-B-HRBIN17-r01_02251 | B112: Ga0081478_133454 | C112: 1150 | D112: 1833 | E112: - | F112: 684 | G112: Cytochrome bo(3) ubiquinol oxidase subunit 3 | H112: 7 | I112: 0.01 | J112: 0.44
A113: OCT-B-HRBIN17-r01_00469 | B113: Ga0081478_140177 | C113: 12298 | D113: 12888 | E113: - | F113: 591 | G113: hypothetical protein | H113: 6 | I113: 0.01 | J113: 0.44
A114: OCT-B-HRBIN17-r01_00425 | B114: Ga0081478_153052 | C114: 6620 | D114: 7834 | E114: - | F114: 1215 | G114: Twitching mobility protein | H114: 12 | I114: 0.01 | J114: 0.42
A115: OCT-B-HRBIN17-r01_00048 | B115: Ga0081478_131785 | C115: 2641 | D115: 3147 | E115: + | F115: 507 | G115: 30S ribosomal protein S7 | H115: 5 | I115: 0.01 | J115: 0.42
A116: OCT-B-HRBIN17-r01_01708 | B116: Ga0081478_133367 | C116: 8084 | D116: 8287 | E116: + | F116: 204 | G116: rpmI_bact: ribosomal protein bL35 | H116: 2 | I116: 0.01 | J116: 0.42
A117: OCT-B-HRBIN17-r01_00493 | B117: Ga0081478_128690 | C117: 10392 | D117: 10598 | E117: + | F117: 207 | G117: tatB: twin arginine-targeting protein translocase TatB | H117: 2 | I117: 0.01 | J117: 0.42
A118: OCT-B-HRBIN17-r01_02865 | B118: Ga0081478_138438 | C118: 23206 | D118: 25707 | E118: + | F118: 2502 | G118: ATP-dependent Clp protease ATP-binding subunit ClpC | H118: 24 | I118: 0.01 | J118: 0.41
A119: OCT-B-HRBIN17-r01_00644 | B119: Ga0081478_143693 | C119: 5733 | D119: 6578 | E119: + | F119: 846 | G119: typeII_sec_gspG: type II secretion system protein G | H119: 8 | I119: 0.01 | J119: 0.41
A120: OCT-B-HRBIN17-r01_01411 | B120: Ga0081478_131017 | C120: 3723 | D120: 4361 | E120: + | F120: 639 | G120: Superoxide dismutase [Mn] | H120: 6 | I120: 0.01 | J120: 0.40
A121: OCT-B-HRBIN17-r01_02448 | B121: Ga0081478_124105 | C121: 1456 | D121: 1881 | E121: - | F121: 426 | G121: hypothetical protein | H121: 4 | I121: 0.01 | J121: 0.40
A122: OCT-B-HRBIN17-r01_01798 | B122: Ga0081478_121715 | C122: 271 | D122: 804 | E122: + | F122: 534 | G122: hypothetical protein | H122: 5 | I122: 0.01 | J122: 0.40
A123: OCT-B-HRBIN17-r01_00053 | B123: Ga0081478_131785 | C123: 7064 | D123: 7384 | E123: + | F123: 321 | G123: 50S ribosomal protein L23 | H123: 3 | I123: 0.01 | J123: 0.40
A124: OCT-B-HRBIN17-r01_00520 | B124: Ga0081478_136993 | C124: 6795 | D124: 7010 | E124: - | F124: 216 | G124: Cold shock-like protein CspE | H124: 2 | I124: 0.01 | J124: 0.40
A125: OCT-B-HRBIN17-r01_02061 | B125: Ga0081478_137271 | C125: 14883 | D125: 14990 | E125: - | F125: 108 | G125: hypothetical protein | H125: 1 | I125: 0.01 | J125: 0.40
A126: OCT-B-HRBIN17-r01_00411 | B126: Ga0081478_139514 | C126: 14 | D126: 340 | E126: + | F126: 327 | G126: Predicted nucleic acid-binding protein, contains PIN domain [General function prediction only] | H126: 3 | I126: 0.01 | J126: 0.39
A127: OCT-B-HRBIN17-r01_02857 | B127: Ga0081478_138438 | C127: 15005 | D127: 15877 | E127: - | F127: 873 | G127: Nicotinate dehydrogenase FAD-subunit | H127: 8 | I127: 0.01 | J127: 0.39
A128: OCT-B-HRBIN17-r01_00126 | B128: Ga0081478_141579 | C128: 8769 | D128: 9209 | E128: + | F128: 441 | G128: rnpA: ribonuclease P protein component | H128: 4 | I128: 0.01 | J128: 0.39
A129: OCT-B-HRBIN17-r01_02100 | B129: Ga0081478_141675 | C129: 8029 | D129: 8475 | E129: - | F129: 447 | G129: 50S ribosomal protein L19 | H129: 4 | I129: 0.01 | J129: 0.38
A130: OCT-B-HRBIN17-r01_00917 | B130: Ga0081478_124463 | C130: 337 | D130: 448 | E130: + | F130: 112 | G130: 5S ribosomal RNA | H130: 1 | I130: 0.01 | J130: 0.38
A131: OCT-B-HRBIN17-r01_02559 | B131: Ga0081478_147882 | C131: 2821 | D131: 3270 | E131: + | F131: 450 | G131: hypothetical protein | H131: 4 | I131: 0.01 | J131: 0.38
A132: OCT-B-HRBIN17-r01_00424 | B132: Ga0081478_153052 | C132: 5304 | D132: 6551 | E132: - | F132: 1248 | G132: Type II secretion system protein F | H132: 11 | I132: 0.01 | J132: 0.38
A133: OCT-B-HRBIN17-r01_00009 | B133: Ga0081478_137556 | C133: 7412 | D133: 7525 | E133: + | F133: 114 | G133: hypothetical protein | H133: 1 | I133: 0.01 | J133: 0.38
A134: OCT-B-HRBIN17-r01_01020 | B134: Ga0081478_140544 | C134: 6654 | D134: 6881 | E134: - | F134: 228 | G134: hypothetical protein | H134: 2 | I134: 0.01 | J134: 0.38
A135: OCT-B-HRBIN17-r01_02723 | B135: Ga0081478_134565 | C135: 32988 | D135: 33215 | E135: + | F135: 228 | G135: hypothetical protein | H135: 2 | I135: 0.01 | J135: 0.38
